{"text_format":"1","workbook":"xlsx","n_sheets":11,"sheets":["TeamLogos","Introduction","Data Entry Instructions","Schedule","NHL Rosters","Game Summary","All Goals 2020_21","Teams","All Penalties 2020_21","All Shootouts 2020_21","All Goalies 2020_21"],"not_rendered":{"charts":0,"images":127,"macros":1,"external_links":0,"defined_names":27,"comments":0,"pivot_tables":0},"unopened":[],"bounds":{"document_bytes":16777216,"sheet_cells":100000,"rows_first":2000,"rows_last":500,"rows_between":2000,"halvings":0,"cell_chars":16384,"cell_head_chars":4096},"cells_cut":0,"cells_raw":0,"read":"whole","date_system":"1900"}

{"sheet":"TeamLogos","index":0,"n_rows":26,"n_cols":14,"rows_kept":26,"cut":false,"hidden":true,"merged":[]}
[]
[]
[]
[]
[]
[null,"ANAlogo",null,"ARIlogo",null,"BOSlogo",null,"BUFlogo",null,"CARlogo",null,"CBJlogo"]
[]
[]
[]
[]
[null,"CGYlogo",null,"CHIlogo",null,"COLlogo",null,"DALlogo",null,"DETlogo",null,"EDMlogo"]
[]
[]
[]
[]
[null,"FLAlogo",null,"LAKlogo",null,"MINlogo",null,"MTLlogo",null,"NJDlogo",null,"NSHlogo"]
[]
[]
[]
[]
[null,"NYIlogo",null,"NYRlogo",null,"OTTlogo",null,"PHIlogo",null,"PITlogo",null,"SJSlogo"]
[]
[]
[]
[]
[null,"STLlogo",null,"TBLlogo",null,"TORlogo",null,"VANlogo",null,"VEGlogo",null,"WPGlogo",null,"WSHlogo"]

{"sheet":"Introduction","index":1,"n_rows":62,"n_cols":34,"rows_kept":62,"cut":false,"hidden":false,"merged":[[1,0,1,19],[12,5,12,13],[19,1,19,17],[4,3,4,14],[11,3,11,14]]}
[]
["Pittsburgh Penguins 2020-2021 Season"]
[]
[]
[null,null,null,"(Step 3) - Form Input"]
[]
[]
[]
[]
[]
[]
[null,null,null,"(Step 3) - Paste Input"]
[]
[]
[]
[]
[]
[]
[]
[]
[]
[]
[]
[]
[]
[]
[]
[]
[]
[]
[]
[]
[]
[]
[]
[]
[]
[]
["PIT"]
["NYR"]
["New York Rangers"]
["@New York Rangers"]
["Rangers"]
["2021-02-01"]
[10]
[]
[]
[]
[]
[]
[]
[]
[]
[]
[]
[]
[]
[]
[]
["https://www.hockey-reference.com/boxscores/202102010NYR.html"]
[]
[null,null,null,null,null,null,null,null,null,null,null,null,null,null,null,null,null,null,null,null,null,null,null,null,null,null,null,null,null,null,null,null,null,"Yes"]

{"sheet":"Data Entry Instructions","index":2,"n_rows":673,"n_cols":1,"rows_kept":673,"cut":false,"hidden":false,"merged":[[446,0,446,19],[474,0,474,19],[618,0,618,19],[593,0,593,19],[557,0,557,19],[575,0,575,19],[501,0,501,19],[529,0,529,19],[318,0,318,19],[216,0,216,17],[375,0,375,19],[403,0,403,19],[418,0,418,19],[645,0,645,19],[672,0,672,19],[346,0,346,19],[2,0,2,18],[0,0,0,19],[18,0,18,19],[41,0,41,17],[188,0,188,17],[109,0,109,18],[135,0,135,16],[161,0,161,17],[64,0,64,18],[84,0,84,18],[232,0,232,19],[261,0,261,19],[289,0,289,19]]}
["Instructions for entering game statistics"]
[]
["Step 1.  Selecting a game for data entry"]
[]
[]
[]
[]
[]
[]
[]
[]
[]
[]
[]
[]
[]
[]
[]
["Step 2.  Entering game data and linking to hockey-reference.com"]
[]
[]
[]
[]
[]
[]
[]
[]
[]
[]
[]
[]
[]
[]
[]
[]
[]
[]
[]
[]
[]
[]
["Step 3.  Entering scoring stats (continued)"]
[]
[]
[]
[]
[]
[]
[]
[]
[]
[]
[]
[]
[]
[]
[]
[]
[]
[]
[]
[]
[]
[]
["Step 3.  Entering scoring stats (continued)"]
[]
[]
[]
[]
[]
[]
[]
[]
[]
[]
[]
[]
[]
[]
[]
[]
[]
[]
[]
["Step 3.  Entering scoring stats (continued)"]
[]
[]
[]
[]
[]
[]
[]
[]
[]
[]
[]
[]
[]
[]
[]
[]
[]
[]
[]
[]
[]
[]
[]
[]
["Step 3.  Entering scoring stats (continued)"]
[]
[]
[]
[]
[]
[]
[]
[]
[]
[]
[]
[]
[]
[]
[]
[]
[]
[]
[]
[]
[]
[]
[]
[]
[]
["Step 3.  Entering scoring stats (continued)"]
[]
[]
[]
[]
[]
[]
[]
[]
[]
[]
[]
[]
[]
[]
[]
[]
[]
[]
[]
[]
[]
[]
[]
[]
[]
["Step 3.  Entering scoring stats (continued)"]
[]
[]
[]
[]
[]
[]
[]
[]
[]
[]
[]
[]
[]
[]
[]
[]
[]
[]
[]
[]
[]
[]
[]
[]
[]
[]
["Step 3.  Entering scoring stats (continued)"]
[]
[]
[]
[]
[]
[]
[]
[]
[]
[]
[]
[]
[]
[]
[]
[]
[]
[]
[]
[]
[]
[]
[]
[]
[]
[]
[]
["Step 3.  Entering shootout stats"]
[]
[]
[]
[]
[]
[]
[]
[]
[]
[]
[]
[]
[]
[]
[]
["Step 3.  Entering shootout stats (continued)"]
[]
[]
[]
[]
[]
[]
[]
[]
[]
[]
[]
[]
[]
[]
[]
[]
[]
[]
[]
[]
[]
[]
[]
[]
[]
[]
[]
[]
["Step 3.  Entering shootout stats (continued)"]
[]
[]
[]
[]
[]
[]
[]
[]
[]
[]
[]
[]
[]
[]
[]
[]
[]
[]
[]
[]
[]
[]
[]
[]
[]
[]
[]
["Step 3.  Entering shootout stats (continued)"]
[]
[]
[]
[]
[]
[]
[]
[]
[]
[]
[]
[]
[]
[]
[]
[]
[]
[]
[]
[]
[]
[]
[]
[]
[]
[]
[]
[]
["Step 3.  Entering shootout stats (continued)"]
[]
[]
[]
[]
[]
[]
[]
[]
[]
[]
[]
[]
[]
[]
[]
[]
[]
[]
[]
[]
[]
[]
[]
[]
[]
[]
[]
["Step 3.  Entering shootout stats (continued)"]
[]
[]
[]
[]
[]
[]
[]
[]
[]
[]
[]
[]
[]
[]
[]
[]
[]
[]
[]
[]
[]
[]
[]
[]
[]
[]
[]
[]
["Step 3.  Entering shootout stats (continued)"]
[]
[]
[]
[]
[]
[]
[]
[]
[]
[]
[]
[]
[]
[]
[]
[]
[]
[]
[]
[]
[]
[]
[]
[]
[]
[]
[]
["Step 3.  Entering penalty stats"]
[]
[]
[]
[]
[]
[]
[]
[]
[]
[]
[]
[]
[]
[]
["Step 3.  Entering penalty stats (continued)"]
[]
[]
[]
[]
[]
[]
[]
[]
[]
[]
[]
[]
[]
[]
[]
[]
[]
[]
[]
[]
[]
[]
[]
[]
[]
[]
[]
["Step 3.  Entering penalty stats (continued)"]
[]
[]
[]
[]
[]
[]
[]
[]
[]
[]
[]
[]
[]
[]
[]
[]
[]
[]
[]
[]
[]
[]
[]
[]
[]
[]
[]
["Step 3.  Entering penalty stats (continued)"]
[]
[]
[]
[]
[]
[]
[]
[]
[]
[]
[]
[]
[]
[]
[]
[]
[]
[]
[]
[]
[]
[]
[]
[]
[]
[]
["Step 3.  Entering penalty stats (continued)"]
[]
[]
[]
[]
[]
[]
[]
[]
[]
[]
[]
[]
[]
[]
[]
[]
[]
[]
[]
[]
[]
[]
[]
[]
[]
[]
[]
["Step 3.  Entering penalty stats (continued)"]
[]
[]
[]
[]
[]
[]
[]
[]
[]
[]
[]
[]
[]
[]
[]
[]
[]
[]
[]
[]
[]
[]
[]
[]
[]
[]
[]
["Step 4.  Entering goalie stats"]
[]
[]
[]
[]
[]
[]
[]
[]
[]
[]
[]
[]
[]
[]
[]
[]
[]
["Step 4.  Entering goalie stats (continued)"]
[]
[]
[]
[]
[]
[]
[]
[]
[]
[]
[]
[]
[]
[]
[]
[]
[]
["Step 4.  Entering goalie stats (continued)"]
[]
[]
[]
[]
[]
[]
[]
[]
[]
[]
[]
[]
[]
[]
[]
[]
[]
[]
[]
[]
[]
[]
[]
[]
["Step 4.  Entering goalie stats (continued)"]
[]
[]
[]
[]
[]
[]
[]
[]
[]
[]
[]
[]
[]
[]
[]
[]
[]
[]
[]
[]
[]
[]
[]
[]
[]
[]
["Step 4.  Entering goalie stats (continued)"]
[]
[]
[]
[]
[]
[]
[]
[]
[]
[]
[]
[]
[]
[]
[]
[]
[]
[]
[]
[]
[]
[]
[]
[]
[]
[]
["Step 4.  Entering goalie stats (continued)"]

{"sheet":"Schedule","index":3,"n_rows":868,"n_cols":69,"rows_kept":868,"cut":false,"hidden":false,"merged":[[0,67,0,68],[0,45,0,46],[0,7,0,20],[0,54,0,59],[0,1,0,5],[0,23,0,26],[0,35,0,38],[1,48,1,52],[0,61,0,65]]}
[null,"2020-21 Season Schedule",null,null,null,null,null,"Variables for forms and macros",null,null,null,null,null,null,null,null,null,null,null,null,null,null,null,"2018-19 Season Record",null,null,null,null,null,null,null,null,null,null,null,"Web Query Variables for Game Dates ",null,null,null,null,null,null,null,null,null,"Opponents table",null,null,null,null,null,null,null,null,"League Schedule",null,null,null,null,null,null,"Extract Data Number for Hockey-Reference.com tables",null,null,null,null,null,"GameNumData Table"]
["GP","Date","Time (EST)","Home/Away","H/ASymbol","Opponent",null,"GameDates",null,null,null,"GDNoDate",null,null,"TeamAbr",null,"TeamCity",null,"TeamName",null,"ScheduleTeamName",null,"GP","Date","Home/Away","Opponent","Pens","Opp","OT","SO","PensPen","OppPen","SOSPens","SOSOpp",null,"Game_Date","HTML_Input","GameNum","HRLink",null,null,null,null,null,null,null,null,null,"Penguins Schedule",null,null,null,null,null,"Date","Visitor","G","Home","G",null,null,"Game_Date","Num_Games_Played","Pens_Home","Pens_Away","Data_Num",null,"Game_Date","Data_Num"]
[{"$f":"AW3","v":1},{"$f":"AX3","v":"2021-01-13"},null,{"$f":"IF(E3=\"@\",\"Away\",\"Home\")","v":"Away"},{"$f":"IF(AZ3=\"@\",\"@\",\"\")","v":"@"},{"$f":"BA3","v":"Philadelphia Flyers"},null,{"$f":"TEXT(B3,\"mm/dd/yyyy\")&\" \"&E3&F3&\" (\"&O3&\")\"","v":"01/13/2021 @Philadelphia Flyers (PHI)"},null,null,null,{"$f":"TRIM(RIGHT(H3,LEN(H3)-11))","v":"@Philadelphia Flyers (PHI)"},null,null,{"$f":"VLOOKUP(F3,Opponents[],2)","v":"PHI"},null,{"$f":"LEFT(L3,FIND(\"(\",L3)-1)","v":"@Philadelphia Flyers "},null,{"$f":"IF(LEN(L3)-LEN(SUBSTITUTE(L3,\" \",\"\"))=2,RIGHT(F3,LEN(F3)-FIND(\" \",F3)),RIGHT(F3,LEN(F3)-FIND(\" \",F3,FIND(\" \",F3)+1)))","v":"Flyers"},null,{"$f":"IF(E3=\"Away\",\"@\",\"\")&F3","v":"Philadelphia Flyers"},null,1,{"$f":"AX3","v":"2021-01-13"},{"$f":"D3","v":"Away"},{"$f":"LEFT(L3,LEN(L3)-6)","v":"@Philadelphia Flyers"},3,6,null,null,3,3,0,0,null,{"$f":"AX3","v":"2021-01-13"},{"$f":"IF(E3=\"@\",AO3&\"0\"&O3&\".html\",AO3&\"0PIT.html\")","v":"202101130PHI.html"},1,{"$f":"\"https://www.hockey-reference.com/boxscores/\" & AK3","v":"https://www.hockey-reference.com/boxscores/202101130PHI.html"},null,{"$f":"\"2021\"&LEFT(TEXT(B3,\"mm/dd/yyyy\"),2)&RIGHT(LEFT(TEXT(B3,\"mm/dd/yyyy\"),5),2)","v":"20210113"},null,{"$f":"IF(E3=\"@\",AO3&\"0\"&O3&\".html\",AO3&\"0PIT.html\")","v":"202101130PHI.html"},null,null,"Team","Team_Abr",null,1,"2021-01-13","17:30:00","@","Philadelphia Flyers",null,"2021-01-13","St. Louis Blues",4,"Colorado Avalanche",1,null,null,"2021-01-13",{"$f":"COUNTIF(BC3:BC868,BJ3)","v":5},{"$f":"COUNTIFS(BC3:BC868,BJ3,BD3:BD868,\"Pittsburgh Penguins\")","v":1},{"$f":"COUNTIFS(BC3:BC868,BJ3,BF3:BF868,\"Pittsburgh Penguins\")","v":0},{"$f":"IF(OR(BL3=1,BM3=1),BK3,\"\")","v":5},null,"2021-01-13",5]
[{"$f":"AW4","v":2},{"$f":"AX4","v":"2021-01-15"},null,{"$f":"IF(E4=\"@\",\"Away\",\"Home\")","v":"Away"},{"$f":"IF(AZ4=\"@\",\"@\",\"\")","v":"@"},{"$f":"BA4","v":"Philadelphia Flyers"},null,{"$f":"TEXT(B4,\"mm/dd/yyyy\")&\" \"&E4&F4&\" (\"&O4&\")\"","v":"01/15/2021 @Philadelphia Flyers (PHI)"},null,null,null,{"$f":"TRIM(RIGHT(H4,LEN(H4)-11))","v":"@Philadelphia Flyers (PHI)"},null,null,{"$f":"VLOOKUP(F4,Opponents[],2)","v":"PHI"},null,{"$f":"LEFT(L4,FIND(\"(\",L4)-1)","v":"@Philadelphia Flyers "},null,"Flyers",null,"Philadelphia Flyers",null,2,"2021-01-15",{"$f":"D4","v":"Away"},"@Philadelphia Flyers",2,5,null,null,6,5,0,0,null,"2021-01-15","202101150PHI.html",{"$f":"AL3+1","v":2},"https://www.hockey-reference.com/boxscores/202101150PHI.html",null,{"$f":"\"2021\"&LEFT(TEXT(B4,\"mm/dd/yyyy\"),2)&RIGHT(LEFT(TEXT(B4,\"mm/dd/yyyy\"),5),2)","v":"20210115"},null,{"$f":"IF(E4=\"@\",AO4&\"0\"&O4&\".html\",AO4&\"0PIT.html\")","v":"202101150PHI.html"},null,null,"Anaheim Ducks","ANA",null,2,"2021-01-15","19:00:00","@","Philadelphia Flyers",null,"2021-01-13","Vancouver Canucks",5,"Edmonton Oilers",3,null,null,"2021-01-14",{"$f":"COUNTIF(BC4:BC869,BJ4)","v":10},{"$f":"COUNTIFS(BC4:BC869,BJ4,BD4:BD869,\"Pittsburgh Penguins\")","v":0},{"$f":"COUNTIFS(BC4:BC869,BJ4,BF4:BF869,\"Pittsburgh Penguins\")","v":0},{"$f":"IF(OR(BL4=1,BM4=1),BK4,\"\")","v":""},null,"2021-01-15",5]
[3,"2021-01-17",null,"Home","","Washington Capitals",null,"01/17/2021 Washington Capitals (WSH)",null,null,null,{"$f":"TRIM(RIGHT(H5,LEN(H5)-10))","v":"Washington Capitals (WSH)"},null,null,{"$f":"VLOOKUP(F5,Opponents[],2)","v":"WSH"},null,"Washington Capitals ",null,"Capitals",null,"Washington Capitals",null,3,"2021-01-17","Home","Washington Capitals",4,3,null,1,4,5,4,4,null,"2021-01-17","202101170PIT.html",{"$f":"AL4+1","v":3},"https://www.hockey-reference.com/boxscores/202101170PIT.html",null,"20210117",null,"202101170PIT.html",null,null,"Arizona Coyotes","ARI",null,3,"2021-01-17","12:00:00",null,"Washington Capitals",null,"2021-01-13","Pittsburgh Penguins",3,"Philadelphia Flyers",6,null,null,"2021-01-15",5,1,0,5,null,"2021-01-17",2]
[4,"2021-01-19",null,"Home","","Washington Capitals",null,"01/19/2021 Washington Capitals (WSH)",null,null,null,"Washington Capitals (WSH)",null,null,{"$f":"VLOOKUP(F6,Opponents[],2)","v":"WSH"},null,"Washington Capitals ",null,"Capitals",null,"Washington Capitals",null,4,"2021-01-19","Home","Washington Capitals",5,4,1,null,2,3,0,0,null,"2021-01-19","202101190PIT.html",4,"https://www.hockey-reference.com/boxscores/202101190PIT.html",null,"20210119",null,"202101190PIT.html",null,null,"Boston Bruins","BOS",null,4,"2021-01-19","19:00:00",null,"Washington Capitals",null,"2021-01-13","Chicago Blackhawks",1,"Tampa Bay Lightning",5,null,null,"2021-01-16",10,0,0,"",null,"2021-01-19",7]
[5,"2021-01-22",null,"Home","","New York Rangers",null,"01/22/2021 New York Rangers (NYR)",null,null,null,"New York Rangers (NYR)",null,null,{"$f":"VLOOKUP(F7,Opponents[],2)","v":"NYR"},null,"New York Rangers ",null,"Rangers",null,"New York Rangers",null,5,"2021-01-22","Home","New York Rangers",4,3,null,1,4,2,3,3,null,"2021-01-22","202101220PIT.html",5,"https://www.hockey-reference.com/boxscores/202101220PIT.html",null,"20210122",null,"202101220PIT.html",null,null,"Buffalo Sabres","BUF",null,5,"2021-01-22","19:00:00",null,"New York Rangers",null,"2021-01-13","Montreal Canadiens",4,"Toronto Maple Leafs",5,"OT",null,"2021-01-17",2,0,1,2,null,"2021-01-22",8]
[6,"2021-01-24",null,"Home","","New York Rangers",null,"01/24/2021 New York Rangers (NYR)",null,null,null,"New York Rangers (NYR)",null,null,{"$f":"VLOOKUP(F8,Opponents[],2)","v":"NYR"},null,"New York Rangers ",null,"Rangers",null,"New York Rangers",null,6,"2021-01-24","Home","New York Rangers",3,2,null,null,2,0,0,0,null,"2021-01-24","202101240PIT.html",6,"https://www.hockey-reference.com/boxscores/202101240PIT.html",null,"20210124",null,"202101240PIT.html",null,null,"Calgary Flames","CGY",null,6,"2021-01-24","19:00:00",null,"New York Rangers",null,"2021-01-14","San Jose Sharks",4,"Arizona Coyotes",3,"SO",null,"2021-01-18",10,0,0,"",null,"2021-01-24",11]
[7,"2021-01-26",null,"Away","@","Boston Bruins",null,"01/26/2021 @Boston Bruins (BOS)",null,null,null,"@Boston Bruins (BOS)",null,null,{"$f":"VLOOKUP(F9,Opponents[],2)","v":"BOS"},null,"@Boston Bruins ",null,"Bruins",null,"Boston Bruins",null,7,"2021-01-26","Away","@Boston Bruins",2,3,1,null,2,6,0,0,null,"2021-01-26","202101260BOS.html",7,"https://www.hockey-reference.com/boxscores/202101260BOS.html",null,"20210126",null,"202101260BOS.html",null,null,"Carolina Hurricanes","CAR",null,7,"2021-01-26","19:00:00","@","Boston Bruins",null,"2021-01-14","Washington Capitals",6,"Buffalo Sabres",4,null,null,"2021-01-19",7,0,1,7,null,"2021-01-26",13]
[8,"2021-01-28",null,"Away","@","Boston Bruins",null,"01/28/2021 @Boston Bruins (BOS)",null,null,null,"@Boston Bruins (BOS)",null,null,{"$f":"VLOOKUP(F10,Opponents[],2)","v":"BOS"},null,"@Boston Bruins ",null,"Bruins",null,"Boston Bruins",null,8,"2021-01-28","Away","@Boston Bruins",1,4,null,null,2,3,0,0,null,"2021-01-28","202101280BOS.html",8,"https://www.hockey-reference.com/boxscores/202101280BOS.html",null,"20210128",null,"202101280BOS.html",null,null,"Chicago Blackhawks","CHI",null,8,"2021-01-28","19:00:00","@","Boston Bruins",null,"2021-01-14","Carolina Hurricanes",3,"Detroit Red Wings",0,null,null,"2021-01-20",5,0,0,"",null,"2021-01-28",13]
[9,"2021-01-30",null,"Away","@","New York Rangers",null,"01/30/2021 @New York Rangers (NYR)",null,null,null,"@New York Rangers (NYR)",null,null,{"$f":"VLOOKUP(F11,Opponents[],2)","v":"NYR"},null,"@New York Rangers ",null,"Rangers",null,"New York Rangers",null,9,"2021-01-30","Away","@New York Rangers",5,4,1,null,5,4,0,0,null,"2021-01-30","202101300NYR.html",9,"https://www.hockey-reference.com/boxscores/202101300NYR.html",null,"20210130",null,"202101300NYR.html",null,null,"Colorado Avalanche","COL",null,9,"2021-01-30","19:00:00","@","New York Rangers",null,"2021-01-14","Vancouver Canucks",2,"Edmonton Oilers",5,null,null,"2021-01-21",6,0,0,"",null,"2021-01-30",12]
[10,"2021-02-01",null,"Away","@","New York Rangers",null,"02/01/2021 @New York Rangers (NYR)",null,null,null,"@New York Rangers (NYR)",null,null,{"$f":"VLOOKUP(F12,Opponents[],2)","v":"NYR"},null,"@New York Rangers ",null,"Rangers",null,"New York Rangers",null,10,"2021-02-01","Away","@New York Rangers",null,null,null,null,0,0,0,0,null,"2021-02-01","202102010NYR.html",10,"https://www.hockey-reference.com/boxscores/202102010NYR.html",null,"20210201",null,"202102010NYR.html",null,null,"Columbus Blue Jackets","CBJ",null,10,"2021-02-01","19:00:00","@","New York Rangers",null,"2021-01-14","Minnesota Wild",4,"Los Angeles Kings",3,"OT",null,"2021-01-22",8,0,1,8,null,"2021-02-01",5]
[11,"2021-02-06",null,"Away","@","New York Islanders",null,"02/06/2021 @New York Islanders (NYI)",null,null,null,"@New York Islanders (NYI)",null,null,{"$f":"VLOOKUP(F13,Opponents[],2)","v":"NYI"},null,"@New York Islanders ",null,"Islanders",null,"New York Islanders",null,11,"2021-02-06","Away","@New York Islanders",null,null,null,null,null,null,null,null,null,"2021-02-06","202102060NYI.html",11,"https://www.hockey-reference.com/boxscores/202102060NYI.html",null,"20210206",null,"202102060NYI.html",null,null,"Dallas Stars","DAL",null,11,"2021-02-06","19:00:00","@","New York Islanders",null,"2021-01-14","Boston Bruins",3,"New Jersey Devils",2,"SO",null,"2021-01-23",5,0,0,{"$f":"IF(OR(BL13=1,BM13=1),BK13,\"\")","v":""},null,"2021-02-06",6]
[12,"2021-02-11",null,"Away","@","New York Islanders",null,"02/11/2021 @New York Islanders (NYI)",null,null,null,"@New York Islanders (NYI)",null,null,{"$f":"VLOOKUP(F14,Opponents[],2)","v":"NYI"},null,"@New York Islanders ",null,"Islanders",null,"New York Islanders",null,12,"2021-02-11","Away","@New York Islanders",null,null,null,null,null,null,null,null,null,"2021-02-11","202102110NYI.html",12,"https://www.hockey-reference.com/boxscores/202102110NYI.html",null,"20210211",null,"202102110NYI.html",null,null,"Detroit Red Wings","DET",null,12,"2021-02-11","19:00:00","@","New York Islanders",null,"2021-01-14","Columbus Blue Jackets",1,"Nashville Predators",3,null,null,"2021-01-24",11,0,1,11,null,"2021-02-11",10]
[13,"2021-02-14",null,"Home","","Washington Capitals",null,"02/14/2021 Washington Capitals (WSH)",null,null,null,"Washington Capitals (WSH)",null,null,{"$f":"VLOOKUP(F15,Opponents[],2)","v":"WSH"},null,"Washington Capitals ",null,"Capitals",null,"Washington Capitals",null,13,"2021-02-14","Home","Washington Capitals",null,null,null,null,null,null,null,null,null,"2021-02-14","202102140PIT.html",13,"https://www.hockey-reference.com/boxscores/202102140PIT.html",null,"20210214",null,"202102140PIT.html",null,null,"Edmonton Oilers","EDM",null,13,"2021-02-14","15:00:00",null,"Washington Capitals",null,"2021-01-14","New York Islanders",4,"New York Rangers",0,null,null,"2021-01-25",1,0,0,"",null,"2021-02-14",2]
[14,"2021-02-16",null,"Home","","Washington Capitals",null,"02/16/2021 Washington Capitals (WSH)",null,null,null,"Washington Capitals (WSH)",null,null,{"$f":"VLOOKUP(F16,Opponents[],2)","v":"WSH"},null,"Washington Capitals ",null,"Capitals",null,"Washington Capitals",null,14,"2021-02-16","Home","Washington Capitals",null,null,null,null,null,null,null,null,null,"2021-02-16","202102160PIT.html",14,"https://www.hockey-reference.com/boxscores/202102160PIT.html",null,"20210216",null,"202102160PIT.html",null,null,"Florida Panthers","FLA",null,14,"2021-02-16","19:00:00",null,"Washington Capitals",null,"2021-01-14","Anaheim Ducks",2,"Vegas Golden Knights",5,null,null,"2021-01-26",13,1,0,13,null,"2021-02-16",5]
[15,"2021-02-18",null,"Home","","New York Islanders",null,"02/18/2021 New York Islanders (NYI)",null,null,null,"New York Islanders (NYI)",null,null,{"$f":"VLOOKUP(F17,Opponents[],2)","v":"NYI"},null,"New York Islanders ",null,"Islanders",null,"New York Islanders",null,15,"2021-02-18","Home","New York Islanders",null,null,null,null,null,null,null,null,null,"2021-02-18","202102180PIT.html",15,"https://www.hockey-reference.com/boxscores/202102180PIT.html",null,"20210218",null,"202102180PIT.html",null,null,"Los Angeles Kings","LAK",null,15,"2021-02-18","19:00:00",null,"New York Islanders",null,"2021-01-14","Calgary Flames",3,"Winnipeg Jets",4,"OT",null,"2021-01-27",2,0,0,"",null,"2021-02-18",9]
[16,"2021-02-20",null,"Home","","New York Islanders",null,"02/20/2021 New York Islanders (NYI)",null,null,null,"New York Islanders (NYI)",null,null,{"$f":"VLOOKUP(F18,Opponents[],2)","v":"NYI"},null,"New York Islanders ",null,"Blue Jackets",null,"New York Islanders",null,16,"2021-02-20","Home","New York Islanders",null,null,null,null,null,null,null,null,null,"2021-02-20","202102200PIT.html",16,"https://www.hockey-reference.com/boxscores/202102200PIT.html",null,"20210220",null,"202102200PIT.html",null,null,"Minnesota Wild","MIN",null,16,"2021-02-20","19:00:00",null,"New York Islanders",null,"2021-01-15","Washington Capitals",2,"Buffalo Sabres",1,null,null,"2021-01-28",13,1,0,13,null,"2021-02-20",12]
[17,"2021-02-23",null,"Away","@","Washington Capitals",null,"02/23/2021 @Washington Capitals (WSH)",null,null,null,"@Washington Capitals (WSH)",null,null,{"$f":"VLOOKUP(F19,Opponents[],2)","v":"WSH"},null,"@Washington Capitals ",null,"Capitals",null,"Washington Capitals",null,17,"2021-02-23","Away","@Washington Capitals",null,null,null,null,null,null,null,null,null,"2021-02-23","202102230WSH.html",17,"https://www.hockey-reference.com/boxscores/202102230WSH.html",null,"20210223",null,"202102230WSH.html",null,null,"Montreal Canadiens","MTL",null,17,"2021-02-23","19:00:00","@","Washington Capitals",null,"2021-01-15","St. Louis Blues",0,"Colorado Avalanche",8,null,null,"2021-01-29",1,0,0,"",null,"2021-02-23",6]
[18,"2021-02-25",null,"Away","@","Washington Capitals",null,"02/25/2021 @Washington Capitals (WSH)",null,null,null,"@Washington Capitals (WSH)",null,null,{"$f":"VLOOKUP(F20,Opponents[],2)","v":"WSH"},null,"@Washington Capitals ",null,"Capitals",null,"Washington Capitals",null,18,"2021-02-25","Away","@Washington Capitals",null,null,null,null,null,null,null,null,null,"2021-02-25","202102250WSH.html",18,"https://www.hockey-reference.com/boxscores/202102250WSH.html",null,"20210225",null,"202102250WSH.html",null,null,"Nashville Predators","NSH",null,18,"2021-02-25","19:00:00","@","Washington Capitals",null,"2021-01-15","Toronto Maple Leafs",3,"Ottawa Senators",5,null,null,"2021-01-30",12,1,0,12,null,"2021-02-25",10]
[19,"2021-02-27",null,"Away","@","New York Islanders",null,"02/27/2021 @New York Islanders (NYI)",null,null,null,"@New York Islanders (NYI)",null,null,{"$f":"VLOOKUP(F21,Opponents[],2)","v":"NYI"},null,"@New York Islanders ",null,"Islanders",null,"New York Islanders",null,19,"2021-02-27","Away","@New York Islanders",null,null,null,null,null,null,null,null,null,"2021-02-27","202102270NYI.html",19,"https://www.hockey-reference.com/boxscores/202102270NYI.html",null,"20210227",null,"202102270NYI.html",null,null,"New Jersey Devils","NJD",null,19,"2021-02-27","19:00:00","@","New York Islanders",null,"2021-01-15","Pittsburgh Penguins",2,"Philadelphia Flyers",5,null,null,"2021-01-31",8,0,0,"",null,"2021-02-27",14]
[20,"2021-02-28",null,"Away","@","New York Islanders",null,"02/28/2021 @New York Islanders (NYI)",null,null,null,"@New York Islanders (NYI)",null,null,{"$f":"VLOOKUP(F22,Opponents[],2)","v":"NYI"},null,"@New York Islanders ",null,"Islanders",null,"New York Islanders",null,20,"2021-02-28","Away","@New York Islanders",null,null,null,null,null,null,null,null,null,"2021-02-28","202102280NYI.html",20,"https://www.hockey-reference.com/boxscores/202102280NYI.html",null,"20210228",null,"202102280NYI.html",null,null,"New York Islanders","NYI",null,20,"2021-02-28","17:00:00","@","New York Islanders",null,"2021-01-15","Chicago Blackhawks",2,"Tampa Bay Lightning",5,null,null,"2021-02-01",5,1,0,5,null,"2021-02-28",6]
[21,"2021-03-02",null,"Home","","Philadelphia Flyers",null,"03/02/2021 Philadelphia Flyers (PHI)",null,null,null,"Philadelphia Flyers (PHI)",null,null,{"$f":"VLOOKUP(F23,Opponents[],2)","v":"PHI"},null,"Philadelphia Flyers ",null,"Flyers",null,"Philadelphia Flyers",null,21,"2021-03-02","Home","Philadelphia Flyers",null,null,null,null,null,null,null,null,null,"2021-03-02","202103020PIT.html",21,"https://www.hockey-reference.com/boxscores/202103020PIT.html",null,"20210302",null,"202103020PIT.html",null,null,"New York Rangers","NYR",null,21,"2021-03-02","19:00:00",null,"Philadelphia Flyers",null,"2021-01-16","San Jose Sharks",3,"Arizona Coyotes",5,null,null,"2021-02-02",8,0,0,"",null,"2021-03-02",8]
[22,"2021-03-04",null,"Home","","Philadelphia Flyers",null,"03/04/2021 Philadelphia Flyers (PHI)",null,null,null,"Philadelphia Flyers (PHI)",null,null,{"$f":"VLOOKUP(F24,Opponents[],2)","v":"PHI"},null,"Philadelphia Flyers ",null,"Flyers",null,"Philadelphia Flyers",null,22,"2021-03-04","Home","Philadelphia Flyers",null,null,null,null,null,null,null,null,null,"2021-03-04","202103040PIT.html",22,"https://www.hockey-reference.com/boxscores/202103040PIT.html",null,"20210304",null,"202103040PIT.html",null,null,"Ottawa Senators","OTT",null,22,"2021-03-04","19:00:00",null,"Philadelphia Flyers",null,"2021-01-16","Vancouver Canucks",0,"Calgary Flames",3,null,null,"2021-02-03",2,0,0,"",null,"2021-03-04",10]
[23,"2021-03-06",null,"Home","","Philadelphia Flyers",null,"03/06/2021 Philadelphia Flyers (PHI)",null,null,null,"Philadelphia Flyers (PHI)",null,null,{"$f":"VLOOKUP(F25,Opponents[],2)","v":"PHI"},null,"Philadelphia Flyers ",null,"Flyers",null,"Philadelphia Flyers",null,23,"2021-03-06","Home","Philadelphia Flyers",null,null,null,null,null,null,null,null,null,"2021-03-06","202103060PIT.html",23,"https://www.hockey-reference.com/boxscores/202103060PIT.html",null,"20210306",null,"202103060PIT.html",null,null,"Philadelphia Flyers","PHI",null,23,"2021-03-06","13:00:00",null,"Philadelphia Flyers",null,"2021-01-16","Carolina Hurricanes",2,"Detroit Red Wings",4,null,null,"2021-02-04",8,0,0,"",null,"2021-03-06",12]
[24,"2021-03-07",null,"Home","","New York Rangers",null,"03/07/2021 New York Rangers (NYR)",null,null,null,"New York Rangers (NYR)",null,null,{"$f":"VLOOKUP(F26,Opponents[],2)","v":"NYR"},null,"New York Rangers ",null,"Rangers",null,"New York Rangers",null,24,"2021-03-07","Home","New York Rangers",null,null,null,null,null,null,null,null,null,"2021-03-07","202103070PIT.html",24,"https://www.hockey-reference.com/boxscores/202103070PIT.html",null,"20210307",null,"202103070PIT.html",null,null,"San Jose Sharks","SJS",null,24,"2021-03-07","19:30:00",null,"New York Rangers",null,"2021-01-16","Montreal Canadiens",5,"Edmonton Oilers",1,null,null,"2021-02-05",5,0,0,"",null,"2021-03-07",8]
[25,"2021-03-09",null,"Home","","New York Rangers",null,"03/09/2021 New York Rangers (NYR)",null,null,null,"New York Rangers (NYR)",null,null,{"$f":"VLOOKUP(F27,Opponents[],2)","v":"NYR"},null,"New York Rangers ",null,"Rangers",null,"New York Rangers",null,25,"2021-03-09","Home","New York Rangers",null,null,null,null,null,null,null,null,null,"2021-03-09","202103090PIT.html",25,"https://www.hockey-reference.com/boxscores/202103090PIT.html",null,"20210309",null,"202103090PIT.html",null,null,"St. Louis Blues","STL",null,25,"2021-03-09","18:00:00",null,"New York Rangers",null,"2021-01-16","Minnesota Wild",4,"Los Angeles Kings",3,"OT",null,"2021-02-06",6,1,0,6,null,"2021-03-09",9]
[26,"2021-03-11",null,"Away","@","Buffalo Sabres",null,"03/11/2021 @Buffalo Sabres (BUF)",null,null,null,"@Buffalo Sabres (BUF)",null,null,{"$f":"VLOOKUP(F28,Opponents[],2)","v":"BUF"},null,"@Buffalo Sabres ",null,"Sabres",null,"Buffalo Sabres",null,26,"2021-03-11","Away","@Buffalo Sabres",null,null,null,null,null,null,null,null,null,"2021-03-11","202103110BUF.html",26,"https://www.hockey-reference.com/boxscores/202103110BUF.html",null,"20210311",null,"202103110BUF.html",null,null,"Tampa Bay Lightning","TBL",null,26,"2021-03-11","19:00:00","@","Buffalo Sabres",null,"2021-01-16","Boston Bruins",1,"New Jersey Devils",2,"OT",null,"2021-02-07",5,0,0,"",null,"2021-03-11",10]
[27,"2021-03-13",null,"Away","@","Buffalo Sabres",null,"03/13/2021 @Buffalo Sabres (BUF)",null,null,null,"@Buffalo Sabres (BUF)",null,null,{"$f":"VLOOKUP(F29,Opponents[],2)","v":"BUF"},null,"@Buffalo Sabres ",null,"Sabres",null,"Buffalo Sabres",null,27,"2021-03-13","Away","@Buffalo Sabres",null,null,null,null,null,null,null,null,null,"2021-03-13","202103130BUF.html",27,"https://www.hockey-reference.com/boxscores/202103130BUF.html",null,"20210313",null,"202103130BUF.html",null,null,"Toronto Maple Leafs","TOR",null,27,"2021-03-13","19:00:00","@","Buffalo Sabres",null,"2021-01-16","Columbus Blue Jackets",2,"Nashville Predators",5,null,null,"2021-02-08",6,0,0,"",null,"2021-03-13",12]
[28,"2021-03-15",null,"Home","","Boston Bruins",null,"03/15/2021 Boston Bruins (BOS)",null,null,null,"Boston Bruins (BOS)",null,null,{"$f":"VLOOKUP(F30,Opponents[],2)","v":"BOS"},null,"Boston Bruins ",null,"Bruins",null,"Boston Bruins",null,28,"2021-03-15","Home","Boston Bruins",null,null,null,null,null,null,null,null,null,"2021-03-15","202103150PIT.html",28,"https://www.hockey-reference.com/boxscores/202103150PIT.html",null,"20210315",null,"202103150PIT.html",null,null,"Vancouver Canucks","VAN",null,28,"2021-03-15","19:00:00",null,"Boston Bruins",null,"2021-01-16","New York Islanders",0,"New York Rangers",5,null,null,"2021-02-09",7,0,0,"",null,"2021-03-15",10]
[29,"2021-03-16",null,"Home","","Boston Bruins",null,"03/16/2021 Boston Bruins (BOS)",null,null,null,"Boston Bruins (BOS)",null,null,{"$f":"VLOOKUP(F31,Opponents[],2)","v":"BOS"},null,"Boston Bruins ",null,"Bruins",null,"Boston Bruins",null,29,"2021-03-16","Home","Boston Bruins",null,null,null,null,null,null,null,null,null,"2021-03-16","202103160PIT.html",29,"https://www.hockey-reference.com/boxscores/202103160PIT.html",null,"20210316",null,"202103160PIT.html",null,null,"Vegas Golden Knights","VEG",null,29,"2021-03-16","19:00:00",null,"Boston Bruins",null,"2021-01-16","Toronto Maple Leafs",3,"Ottawa Senators",2,null,null,"2021-02-10",2,0,0,"",null,"2021-03-16",7]
[30,"2021-03-18",null,"Away","@","New Jersey Devils",null,"03/18/2021 @New Jersey Devils (NJD)",null,null,null,"@New Jersey Devils (NJD)",null,null,{"$f":"VLOOKUP(F32,Opponents[],2)","v":"NJD"},null,"@New Jersey Devils ",null,"Devils",null,"New Jersey Devils",null,30,"2021-03-18","Away","@New Jersey Devils",null,null,null,null,null,null,null,null,null,"2021-03-18","202103180NJD.html",30,"https://www.hockey-reference.com/boxscores/202103180NJD.html",null,"20210318",null,"202103180NJD.html",null,null,"Washington Capitals","WSH",null,30,"2021-03-18","19:00:00","@","New Jersey Devils",null,"2021-01-16","Anaheim Ducks",1,"Vegas Golden Knights",2,"OT",null,"2021-02-11",10,1,0,10,null,"2021-03-18",10]
[31,"2021-03-20",null,"Away","@","New Jersey Devils",null,"03/20/2021 @New Jersey Devils (NJD)",null,null,null,"@New Jersey Devils (NJD)",null,null,{"$f":"VLOOKUP(F33,Opponents[],2)","v":"NJD"},null,"@New Jersey Devils ",null,"Devils",null,"New Jersey Devils",null,31,"2021-03-20","Away","@New Jersey Devils",null,null,null,null,null,null,null,null,null,"2021-03-20","202103200NJD.html",31,"https://www.hockey-reference.com/boxscores/202103200NJD.html",null,"20210320",null,"202103200NJD.html",null,null,"Winnipeg Jets","WPG",null,31,"2021-03-20","13:00:00","@","New Jersey Devils",null,"2021-01-17","Chicago Blackhawks",2,"Florida Panthers",5,null,null,"2021-02-12",2,0,0,"",null,"2021-03-20",14]
[32,"2021-03-21",null,"Home","","New Jersey Devils",null,"03/21/2021 New Jersey Devils (NJD)",null,null,null,"New Jersey Devils (NJD)",null,null,{"$f":"VLOOKUP(F34,Opponents[],2)","v":"NJD"},null,"New Jersey Devils ",null,"Devils",null,"New Jersey Devils",null,32,"2021-03-21","Home","New Jersey Devils",null,null,null,null,null,null,null,null,null,"2021-03-21","202103210PIT.html",32,"https://www.hockey-reference.com/boxscores/202103210PIT.html",null,"20210321",null,"202103210PIT.html",null,null,null,null,null,32,"2021-03-21","13:00:00",null,"New Jersey Devils",null,"2021-01-17","Washington Capitals",3,"Pittsburgh Penguins",4,"SO",null,"2021-02-13",10,0,0,"",null,"2021-03-21",4]
[33,"2021-03-24",null,"Home","","Buffalo Sabres",null,"03/24/2021 Buffalo Sabres (BUF)",null,null,null,"Buffalo Sabres (BUF)",null,null,{"$f":"VLOOKUP(F35,Opponents[],2)","v":"BUF"},null,"Buffalo Sabres ",null,"Sabres",null,"Buffalo Sabres",null,33,{"$f":"AX35","v":"2021-03-24"},"Home","Buffalo Sabres",null,null,null,null,null,null,null,null,null,{"$f":"AX35","v":"2021-03-24"},{"$f":"IF(E35=\"@\",AO35&\"0\"&O35&\".html\",AO35&\"0PIT.html\")","v":"202103240PIT.html"},33,{"$f":"\"https://www.hockey-reference.com/boxscores/\" & AK35","v":"https://www.hockey-reference.com/boxscores/202103240PIT.html"},null,"20210324",null,"202103240PIT.html",null,null,null,null,null,33,"2021-03-24","20:00:00",null,"Buffalo Sabres",null,"2021-01-18","Minnesota Wild",0,"Anaheim Ducks",1,null,null,"2021-02-14",2,0,1,2,null,"2021-03-24",6]
[34,"2021-03-25",null,"Home","","Buffalo Sabres",null,"03/25/2021 Buffalo Sabres (BUF)",null,null,null,"Buffalo Sabres (BUF)",null,null,{"$f":"VLOOKUP(F36,Opponents[],2)","v":"BUF"},null,"Buffalo Sabres ",null,"Sabres",null,"Buffalo Sabres",null,34,"2021-03-25","Home","Buffalo Sabres",null,null,null,null,null,null,null,null,null,"2021-03-25","202103250PIT.html",34,"https://www.hockey-reference.com/boxscores/202103250PIT.html",null,"20210325",null,"202103250PIT.html",null,null,null,null,null,34,"2021-03-25","19:00:00",null,"Buffalo Sabres",null,"2021-01-18","Vancouver Canucks",2,"Calgary Flames",5,null,null,"2021-02-15",9,0,0,"",null,"2021-03-25",11]
[35,"2021-03-27",null,"Home","","New York Islanders",null,"03/27/2021 New York Islanders (NYI)",null,null,null,"New York Islanders (NYI)",null,null,{"$f":"VLOOKUP(F37,Opponents[],2)","v":"NYI"},null,"New York Islanders ",null,"Islanders",null,"New York Islanders",null,35,"2021-03-27","Home","New York Islanders",null,null,null,null,null,null,null,null,null,"2021-03-27","202103270PIT.html",35,"https://www.hockey-reference.com/boxscores/202103270PIT.html",null,"20210327",null,"202103270PIT.html",null,null,null,null,null,35,"2021-03-27","19:00:00",null,"New York Islanders",null,"2021-01-18","Columbus Blue Jackets",3,"Detroit Red Wings",2,null,null,"2021-02-16",5,0,1,5,null,"2021-03-27",11]
[36,"2021-03-29",null,"Home","","New York Islanders",null,"03/29/2021 New York Islanders (NYI)",null,null,null,"New York Islanders (NYI)",null,null,{"$f":"VLOOKUP(F38,Opponents[],2)","v":"NYI"},null,"New York Islanders ",null,"Islanders",null,"New York Islanders",null,36,"2021-03-29","Home","New York Islanders",null,null,null,null,null,null,null,null,null,"2021-03-29","202103290PIT.html",36,"https://www.hockey-reference.com/boxscores/202103290PIT.html",null,"20210329",null,"202103290PIT.html",null,null,null,null,null,36,"2021-03-29","19:00:00",null,"New York Islanders",null,"2021-01-18","Montreal Canadiens",3,"Edmonton Oilers",1,null,null,"2021-02-17",5,0,0,"",null,"2021-03-29",7]
[37,"2021-04-01",null,"Away","@","Boston Bruins",null,"04/01/2021 @Boston Bruins (BOS)",null,null,null,"@Boston Bruins (BOS)",null,null,{"$f":"VLOOKUP(F39,Opponents[],2)","v":"BOS"},null,"@Boston Bruins ",null,"Bruins",null,"Boston Bruins",null,37,"2021-04-01","Away","@Boston Bruins",null,null,null,null,null,null,null,null,null,"2021-04-01","202104010BOS.html",37,"https://www.hockey-reference.com/boxscores/202104010BOS.html",null,"20210401",null,"202104010BOS.html",null,null,null,null,null,37,"2021-04-01","19:00:00","@","Boston Bruins",null,"2021-01-18","Carolina Hurricanes",4,"Nashville Predators",2,null,null,"2021-02-18",9,0,1,9,null,"2021-04-01",9]
[38,"2021-04-03",null,"Away","@","Boston Bruins",null,"04/03/2021 @Boston Bruins (BOS)",null,null,null,"@Boston Bruins (BOS)",null,null,{"$f":"VLOOKUP(F40,Opponents[],2)","v":"BOS"},null,"@Boston Bruins ",null,"Bruins",null,"Boston Bruins",null,38,"2021-04-03","Away","@Boston Bruins",null,null,null,null,null,null,null,null,null,"2021-04-03","202104030BOS.html",38,"https://www.hockey-reference.com/boxscores/202104030BOS.html",null,"20210403",null,"202104030BOS.html",null,null,null,null,null,38,"2021-04-03","13:00:00","@","Boston Bruins",null,"2021-01-18","Boston Bruins",0,"New York Islanders",1,null,null,"2021-02-19",4,0,0,"",null,"2021-04-03",12]
[39,"2021-04-06",null,"Away","@","New York Rangers",null,"04/06/2021 @New York Rangers (NYR)",null,null,null,"@New York Rangers (NYR)",null,null,{"$f":"VLOOKUP(F41,Opponents[],2)","v":"NYR"},null,"@New York Rangers ",null,"Rangers",null,"New York Rangers",null,39,"2021-04-06","Away","@New York Rangers",null,null,null,null,null,null,null,null,null,"2021-04-06","202104060NYR.html",39,"https://www.hockey-reference.com/boxscores/202104060NYR.html",null,"20210406",null,"202104060NYR.html",null,null,null,null,null,39,"2021-04-06","19:00:00","@","New York Rangers",null,"2021-01-18","Buffalo Sabres",6,"Philadelphia Flyers",1,null,null,"2021-02-20",12,0,1,12,null,"2021-04-06",10]
[40,"2021-04-08",null,"Away","@","New York Rangers",null,"04/08/2021 @New York Rangers (NYR)",null,null,null,"@New York Rangers (NYR)",null,null,{"$f":"VLOOKUP(F42,Opponents[],2)","v":"NYR"},null,"@New York Rangers ",null,"Rangers",null,"New York Rangers",null,40,"2021-04-08","Away","@New York Rangers",null,null,null,null,null,null,null,null,null,"2021-04-08","202104080NYR.html",40,"https://www.hockey-reference.com/boxscores/202104080NYR.html",null,"20210408",null,"202104080NYR.html",null,null,null,null,null,40,"2021-04-08","19:00:00","@","New York Rangers",null,"2021-01-18","San Jose Sharks",4,"St. Louis Blues",5,null,null,"2021-02-21",4,0,0,"",null,"2021-04-08",10]
[41,"2021-04-09",null,"Away","@","New Jersey Devils",null,"04/09/2021 @New Jersey Devils (NJD)",null,null,null,"@New Jersey Devils (NJD)",null,null,{"$f":"VLOOKUP(F43,Opponents[],2)","v":"NJD"},null,"@New Jersey Devils ",null,"Devils",null,"New Jersey Devils",null,41,"2021-04-09","Away","@New Jersey Devils",null,null,null,null,null,null,null,null,null,"2021-04-09","202104090NJD.html",41,"https://www.hockey-reference.com/boxscores/202104090NJD.html",null,"20210409",null,"202104090NJD.html",null,null,null,null,null,41,"2021-04-09","19:00:00","@","New Jersey Devils",null,"2021-01-18","Winnipeg Jets",1,"Toronto Maple Leafs",3,null,null,"2021-02-22",8,0,0,"",null,"2021-04-09",8]
[42,"2021-04-11",null,"Away","@","New Jersey Devils",null,"04/11/2021 @New Jersey Devils (NJD)",null,null,null,"@New Jersey Devils (NJD)",null,null,{"$f":"VLOOKUP(F44,Opponents[],2)","v":"NJD"},null,"@New Jersey Devils ",null,"Devils",null,"New Jersey Devils",null,42,"2021-04-11","Away","@New Jersey Devils",null,null,null,null,null,null,null,null,null,"2021-04-11","202104110NJD.html",42,"https://www.hockey-reference.com/boxscores/202104110NJD.html",null,"20210411",null,"202104110NJD.html",null,null,null,null,null,42,"2021-04-11","19:00:00","@","New Jersey Devils",null,"2021-01-18","Arizona Coyotes",2,"Vegas Golden Knights",4,null,null,"2021-02-23",6,1,0,6,null,"2021-04-11",7]
[43,"2021-04-15",null,"Home","","Philadelphia Flyers",null,"04/15/2021 Philadelphia Flyers (PHI)",null,null,null,"Philadelphia Flyers (PHI)",null,null,{"$f":"VLOOKUP(F45,Opponents[],2)","v":"PHI"},null,"Philadelphia Flyers ",null,"Flyers",null,"Philadelphia Flyers",null,43,"2021-04-15","Home","Philadelphia Flyers",null,null,null,null,null,null,null,null,null,"2021-04-15","202104150PIT.html",43,"https://www.hockey-reference.com/boxscores/202104150PIT.html",null,"20210415",null,"202104150PIT.html",null,null,null,null,null,43,"2021-04-15","19:00:00",null,"Philadelphia Flyers",null,"2021-01-19","Columbus Blue Jackets",2,"Detroit Red Wings",3,"OT",null,"2021-02-24",7,0,0,"",null,"2021-04-15",9]
[44,"2021-04-17",null,"Away","@","Buffalo Sabres",null,"04/17/2021 @Buffalo Sabres (BUF)",null,null,null,"@Buffalo Sabres (BUF)",null,null,{"$f":"VLOOKUP(F46,Opponents[],2)","v":"BUF"},null,"@Buffalo Sabres ",null,"Sabres",null,"Buffalo Sabres",null,44,"2021-04-17","Away","@Buffalo Sabres",null,null,null,null,null,null,null,null,null,"2021-04-17","202104170BUF.html",44,"https://www.hockey-reference.com/boxscores/202104170BUF.html",null,"20210417",null,"202104170BUF.html",null,null,null,null,null,44,"2021-04-17","15:00:00","@","Buffalo Sabres",null,"2021-01-19","Chicago Blackhawks",4,"Florida Panthers",5,"OT",null,"2021-02-25",10,1,0,10,null,"2021-04-17",11]
[45,"2021-04-18",null,"Away","@","Buffalo Sabres",null,"04/18/2021 @Buffalo Sabres (BUF)",null,null,null,"@Buffalo Sabres (BUF)",null,null,{"$f":"VLOOKUP(F47,Opponents[],2)","v":"BUF"},null,"@Buffalo Sabres ",null,"Sabres",null,"Buffalo Sabres",null,45,"2021-04-18","Away","@Buffalo Sabres",null,null,null,null,null,null,null,null,null,"2021-04-18","202104180BUF.html",45,"https://www.hockey-reference.com/boxscores/202104180BUF.html",null,"20210418",null,"202104180BUF.html",null,null,null,null,null,45,"2021-04-18","15:00:00","@","Buffalo Sabres",null,"2021-01-19","Colorado Avalanche",3,"Los Angeles Kings",2,null,null,"2021-02-26",3,0,0,"",null,"2021-04-18",6]
[46,"2021-04-20",null,"Home","","New Jersey Devils",null,"04/20/2021 New Jersey Devils (NJD)",null,null,null,"New Jersey Devils (NJD)",null,null,{"$f":"VLOOKUP(F48,Opponents[],2)","v":"NJD"},null,"New Jersey Devils ",null,"Devils",null,"New Jersey Devils",null,46,"2021-04-20","Home","New Jersey Devils",null,null,null,null,null,null,null,null,null,"2021-04-20","202104200PIT.html",46,"https://www.hockey-reference.com/boxscores/202104200PIT.html",null,"20210420",null,"202104200PIT.html",null,null,null,null,null,46,"2021-04-20","19:00:00",null,"New Jersey Devils",null,"2021-01-19","New Jersey Devils",4,"New York Rangers",3,null,null,"2021-02-27",14,1,0,14,null,"2021-04-20",10]
[47,"2021-04-22",null,"Home","","New Jersey Devils",null,"04/22/2021 New Jersey Devils (NJD)",null,null,null,"New Jersey Devils (NJD)",null,null,{"$f":"VLOOKUP(F49,Opponents[],2)","v":"NJD"},null,"New Jersey Devils ",null,"Devils",null,"New Jersey Devils",null,47,"2021-04-22","Home","New Jersey Devils",null,null,null,null,null,null,null,null,null,"2021-04-22","202104220PIT.html",47,"https://www.hockey-reference.com/boxscores/202104220PIT.html",null,"20210422",null,"202104220PIT.html",null,null,null,null,null,47,"2021-04-22","19:00:00",null,"New Jersey Devils",null,"2021-01-19","Winnipeg Jets",4,"Ottawa Senators",3,"OT",null,"2021-02-28",6,1,0,6,null,"2021-04-22",10]
[48,"2021-04-24",null,"Home","","New Jersey Devils",null,"04/24/2021 New Jersey Devils (NJD)",null,null,null,"New Jersey Devils (NJD)",null,null,{"$f":"VLOOKUP(F50,Opponents[],2)","v":"NJD"},null,"New Jersey Devils ",null,"Devils",null,"New Jersey Devils",null,48,"2021-04-24","Home","New Jersey Devils",null,null,null,null,null,null,null,null,null,"2021-04-24","202104240PIT.html",48,"https://www.hockey-reference.com/boxscores/202104240PIT.html",null,"20210424",null,"202104240PIT.html",null,null,null,null,null,48,"2021-04-24","12:30:00",null,"New Jersey Devils",null,"2021-01-19","Buffalo Sabres",0,"Philadelphia Flyers",3,null,null,"2021-03-01",7,0,0,"",null,"2021-04-24",10]
[49,"2021-04-25",null,"Home","","Boston Bruins",null,"04/25/2021 Boston Bruins (BOS)",null,null,null,"Boston Bruins (BOS)",null,null,{"$f":"VLOOKUP(F51,Opponents[],2)","v":"BOS"},null,"Boston Bruins ",null,"Bruins",null,"Boston Bruins",null,49,"2021-04-25","Home","Boston Bruins",null,null,null,null,null,null,null,null,null,"2021-04-25","202104250PIT.html",49,"https://www.hockey-reference.com/boxscores/202104250PIT.html",null,"20210425",null,"202104250PIT.html",null,null,null,null,null,49,"2021-04-25","15:00:00",null,"Boston Bruins",null,"2021-01-19","Washington Capitals",4,"Pittsburgh Penguins",5,"OT",null,"2021-03-02",8,0,1,8,null,"2021-04-25",4]
[50,"2021-04-27",null,"Home","","Boston Bruins",null,"04/27/2021 Boston Bruins (BOS)",null,null,null,"Boston Bruins (BOS)",null,null,{"$f":"VLOOKUP(F52,Opponents[],2)","v":"BOS"},null,"Boston Bruins ",null,"Bruins",null,"Boston Bruins",null,50,"2021-04-27","Home","Boston Bruins",null,null,null,null,null,null,null,null,null,"2021-04-27","202104270PIT.html",50,"https://www.hockey-reference.com/boxscores/202104270PIT.html",null,"20210427",null,"202104270PIT.html",null,null,null,null,null,50,"2021-04-27","19:00:00",null,"Boston Bruins",null,"2021-01-20","Minnesota Wild",3,"Anaheim Ducks",2,null,null,"2021-03-03",6,0,0,"",null,"2021-04-27",8]
[51,"2021-04-29",null,"Away","@","Washington Capitals",null,"04/29/2021 @Washington Capitals (WSH)",null,null,null,"@Washington Capitals (WSH)",null,null,{"$f":"VLOOKUP(F53,Opponents[],2)","v":"WSH"},null,"@Washington Capitals ",null,"Capitals",null,"Washington Capitals",null,51,"2021-04-29","Away","@Washington Capitals",null,null,null,null,null,null,null,null,null,"2021-04-29","202104290WSH.html",51,"https://www.hockey-reference.com/boxscores/202104290WSH.html",null,"20210429",null,"202104290WSH.html",null,null,null,null,null,51,"2021-04-29","19:00:00","@","Washington Capitals",null,"2021-01-20","San Jose Sharks",2,"St. Louis Blues",1,"SO",null,"2021-03-04",10,0,1,10,null,"2021-04-29",8]
[52,"2021-05-01",null,"Away","@","Washington Capitals",null,"05/01/2021 @Washington Capitals (WSH)",null,null,null,"@Washington Capitals (WSH)",null,null,{"$f":"VLOOKUP(F54,Opponents[],2)","v":"WSH"},null,"@Washington Capitals ",null,"Capitals",null,"Washington Capitals",null,52,"2021-05-01","Away","@Washington Capitals",null,null,null,null,null,null,null,null,null,"2021-05-01","202105010WSH.html",52,"https://www.hockey-reference.com/boxscores/202105010WSH.html",null,"20210501",null,"202105010WSH.html",null,null,null,null,null,52,"2021-05-01","19:00:00","@","Washington Capitals",null,"2021-01-20","Edmonton Oilers",3,"Toronto Maple Leafs",1,null,null,"2021-03-05",6,0,0,"",null,"2021-05-01",15]
[53,"2021-05-03",null,"Away","@","Philadelphia Flyers",null,"05/03/2021 @Philadelphia Flyers (PHI)",null,null,null,"@Philadelphia Flyers (PHI)",null,null,{"$f":"VLOOKUP(F55,Opponents[],2)","v":"PHI"},null,"@Philadelphia Flyers ",null,"Flyers",null,"Philadelphia Flyers",null,53,"2021-05-03","Away","@Philadelphia Flyers",null,null,null,null,null,null,null,null,null,"2021-05-03","202105030PHI.html",53,"https://www.hockey-reference.com/boxscores/202105030PHI.html",null,"20210503",null,"202105030PHI.html",null,null,null,null,null,53,"2021-05-03","19:00:00","@","Philadelphia Flyers",null,"2021-01-20","Montreal Canadiens",5,"Vancouver Canucks",6,"SO",null,"2021-03-06",12,0,1,12,null,"2021-05-03",13]
[54,"2021-05-04",null,"Away","@","Philadelphia Flyers",null,"05/04/2021 @Philadelphia Flyers (PHI)",null,null,null,"@Philadelphia Flyers (PHI)",null,null,{"$f":"VLOOKUP(F56,Opponents[],2)","v":"PHI"},null,"@Philadelphia Flyers ",null,"Flyers",null,"Philadelphia Flyers",null,54,"2021-05-04","Away","@Philadelphia Flyers",null,null,null,null,null,null,null,null,null,"2021-05-04","202105040PHI.html",54,"https://www.hockey-reference.com/boxscores/202105040PHI.html",null,"20210504",null,"202105040PHI.html",null,null,null,null,null,54,"2021-05-04","19:00:00","@","Philadelphia Flyers",null,"2021-01-20","Arizona Coyotes",2,"Vegas Golden Knights",5,null,null,"2021-03-07",8,0,1,8,null,"2021-05-04",5]
[55,"2021-05-06",null,"Home","","Buffalo Sabres",null,"05/06/2021 Buffalo Sabres (BUF)",null,null,null,"Buffalo Sabres (BUF)",null,null,{"$f":"VLOOKUP(F57,Opponents[],2)","v":"BUF"},null,"Buffalo Sabres ",null,"Sabres",null,"Buffalo Sabres",null,55,"2021-05-06","Home","Buffalo Sabres",null,null,null,null,null,null,null,null,null,"2021-05-06","202105060PIT.html",55,"https://www.hockey-reference.com/boxscores/202105060PIT.html",null,"20210506",null,"202105060PIT.html",null,null,null,null,null,55,"2021-05-06","19:00:00",null,"Buffalo Sabres",null,"2021-01-21","Philadelphia Flyers",4,"Boston Bruins",5,"SO",null,"2021-03-08",6,0,0,"",null,"2021-05-06",6]
[{"$f":"AW58","v":56},"2021-05-08",null,"Home","","Buffalo Sabres",null,"05/08/2021 Buffalo Sabres (BUF)",null,null,null,"Buffalo Sabres (BUF)",null,null,{"$f":"VLOOKUP(F58,Opponents[],2)","v":"BUF"},null,"Buffalo Sabres ",null,"Sabres",null,"Buffalo Sabres",null,56,"2021-05-08","Home","Buffalo Sabres",null,null,null,null,null,null,null,null,null,"2021-05-08","202105080PIT.html",56,"https://www.hockey-reference.com/boxscores/202105080PIT.html",null,"20210508",null,"202105080PIT.html",null,null,null,null,null,56,"2021-05-08","19:00:00",null,"Buffalo Sabres",null,"2021-01-21","Tampa Bay Lightning",3,"Columbus Blue Jackets",2,"OT",null,"2021-03-09",9,0,1,9,null,"2021-05-08",14]
[null,null,null,null,null,null,null,null,null,null,null,null,null,null,null,null,null,null,null,null,"",null,null,null,null,null,null,null,null,null,null,null,null,null,null,null,null,null,null,null,null,null,null,null,null,null,null,null,null,null,null,null,null,null,"2021-01-21","Colorado Avalanche",2,"Los Angeles Kings",4,null,null,"2021-03-10",5,0,0,""]
[null,null,null,null,null,null,null,null,null,null,null,null,null,null,null,null,null,null,null,null,"",null,null,null,null,null,null,null,null,null,null,null,null,null,null,null,null,null,null,null,null,null,null,null,null,null,null,null,null,null,null,null,null,null,"2021-01-21","New Jersey Devils",1,"New York Islanders",4,null,null,"2021-03-11",10,1,0,10]
[null,null,null,null,null,null,null,null,null,null,null,null,null,null,null,null,null,null,null,null,"",null,null,null,null,null,null,null,null,null,null,null,null,null,null,null,null,null,null,null,null,null,null,null,null,null,null,null,null,null,null,null,null,null,"2021-01-21","Winnipeg Jets",4,"Ottawa Senators",1,null,null,"2021-03-12",5,0,0,""]
[null,null,null,null,null,null,null,null,null,null,null,null,null,null,null,null,null,null,null,null,"",null,null,null,null,null,null,null,null,null,null,null,null,null,null,null,null,null,null,null,null,null,null,null,null,null,null,null,null,null,null,null,null,null,"2021-01-21","Montreal Canadiens",7,"Vancouver Canucks",3,null,null,"2021-03-13",12,1,0,12]
[null,null,null,null,null,null,null,null,null,null,null,null,null,null,null,null,null,null,null,null,"",null,null,null,null,null,null,null,null,null,null,null,null,null,null,null,null,null,null,null,null,null,null,null,null,null,null,null,null,null,null,null,null,null,"2021-01-22","Colorado Avalanche",3,"Anaheim Ducks",2,"OT",null,"2021-03-14",6,0,0,""]
[null,null,null,null,null,null,null,null,null,null,null,null,null,null,null,null,null,null,null,null,"",null,null,null,null,null,null,null,null,null,null,null,null,null,null,null,null,null,null,null,null,null,null,null,null,null,null,null,null,null,null,null,null,null,"2021-01-22","Vegas Golden Knights",2,"Arizona Coyotes",5,null,null,"2021-03-15",10,0,1,10]
[null,null,null,null,null,null,null,null,null,null,null,null,null,null,null,null,null,null,null,null,"",null,null,null,null,null,null,null,null,null,null,null,null,null,null,null,null,null,null,null,null,null,null,null,null,null,null,null,null,null,null,null,null,null,"2021-01-22","Detroit Red Wings",1,"Chicago Blackhawks",4,null,null,"2021-03-16",7,0,1,7]
[null,null,null,null,null,null,null,null,null,null,null,null,null,null,null,null,null,null,null,null,"",null,null,null,null,null,null,null,null,null,null,null,null,null,null,null,null,null,null,null,null,null,null,null,null,null,null,null,null,null,null,null,null,null,"2021-01-22","Nashville Predators",0,"Dallas Stars",7,null,null,"2021-03-17",6,0,0,""]
[null,null,null,null,null,null,null,null,null,null,null,null,null,null,null,null,null,null,null,null,{"$f":"IF(E67=\"Away\",\"@\",\"\")&F67","v":""},null,null,null,null,null,null,null,null,null,null,null,null,null,null,null,null,null,null,null,null,null,null,null,null,null,null,null,null,null,null,null,null,null,"2021-01-22","San Jose Sharks",1,"Minnesota Wild",4,null,null,"2021-03-18",10,1,0,10]
[null,null,null,null,null,null,null,null,null,null,null,null,null,null,null,null,null,null,null,null,"",null,null,null,null,null,null,null,null,null,null,null,null,null,null,null,null,null,null,null,null,null,null,null,null,null,null,null,null,null,null,null,null,null,"2021-01-22","New York Rangers",3,"Pittsburgh Penguins",4,"SO",null,"2021-03-19",{"$f":"COUNTIF(BC68:BC933,BJ68)","v":5},{"$f":"COUNTIFS(BC68:BC933,BJ68,BD68:BD933,\"Pittsburgh Penguins\")","v":0},{"$f":"COUNTIFS(BC68:BC933,BJ68,BF68:BF933,\"Pittsburgh Penguins\")","v":0},{"$f":"IF(OR(BL68=1,BM68=1),BK68,\"\")","v":""}]
[null,null,null,null,null,null,null,null,null,null,null,null,null,null,null,null,null,null,null,null,"",null,null,null,null,null,null,null,null,null,null,null,null,null,null,null,null,null,null,null,null,null,null,null,null,null,null,null,null,null,null,null,null,null,"2021-01-22","Edmonton Oilers",2,"Toronto Maple Leafs",4,null,null,"2021-03-20",14,1,0,14]
[null,null,null,null,null,null,null,null,null,null,null,null,null,null,null,null,null,null,null,null,"",null,null,null,null,null,null,null,null,null,null,null,null,null,null,null,null,null,null,null,null,null,null,null,null,null,null,null,null,null,null,null,null,null,"2021-01-22","Buffalo Sabres",3,"Washington Capitals",4,"SO",null,"2021-03-21",4,0,1,4]
[null,null,null,null,null,null,null,null,null,null,null,null,null,null,null,null,null,null,null,null,"",null,null,null,null,null,null,null,null,null,null,null,null,null,null,null,null,null,null,null,null,null,null,null,null,null,null,null,null,null,null,null,null,null,"2021-01-23","Philadelphia Flyers",1,"Boston Bruins",6,null,null,"2021-03-22",9,0,0,""]
[null,null,null,null,null,null,null,null,null,null,null,null,null,null,null,null,null,null,null,null,null,null,null,null,null,null,null,null,null,null,null,null,null,null,null,null,null,null,null,null,null,null,null,null,null,null,null,null,null,null,null,null,null,null,"2021-01-23","Tampa Bay Lightning",2,"Columbus Blue Jackets",5,null,null,"2021-03-23",6,0,0,""]
[null,null,null,null,null,null,null,null,null,null,null,null,null,null,null,null,null,null,null,null,{"$f":"IF(E74=\"Away\",\"@\",\"\")&F74","v":""},null,null,null,null,null,null,null,null,null,null,null,null,null,null,null,null,null,null,null,null,null,null,null,null,null,null,null,null,null,null,null,null,null,"2021-01-23","Los Angeles Kings",2,"St. Louis Blues",4,null,null,"2021-03-24",6,0,1,6]
[null,null,null,null,null,null,null,null,null,null,null,null,null,null,null,null,null,null,null,null,"",null,null,null,null,null,null,null,null,null,null,null,null,null,null,null,null,null,null,null,null,null,null,null,null,null,null,null,null,null,null,null,null,null,"2021-01-23","Montreal Canadiens",5,"Vancouver Canucks",2,null,null,"2021-03-25",11,0,1,11]
[null,null,null,null,null,null,null,null,null,null,null,null,null,null,null,null,null,null,null,null,"",null,null,null,null,null,null,null,null,null,null,null,null,null,null,null,null,null,null,null,null,null,null,null,null,null,null,null,null,null,null,null,null,null,"2021-01-23","Ottawa Senators",3,"Winnipeg Jets",6,null,null,"2021-03-26",5,0,0,""]
[null,null,null,null,null,null,null,null,null,null,null,null,null,null,null,null,null,null,null,null,"",null,null,null,null,null,null,null,null,null,null,null,null,null,null,null,null,null,null,null,null,null,null,null,null,null,null,null,null,null,null,null,null,null,"2021-01-24","Colorado Avalanche",1,"Anaheim Ducks",3,null,null,"2021-03-27",11,0,1,11]
[null,null,null,null,null,null,null,null,null,null,null,null,null,null,null,null,null,null,null,null,"",null,null,null,null,null,null,null,null,null,null,null,null,null,null,null,null,null,null,null,null,null,null,null,null,null,null,null,null,null,null,null,null,null,"2021-01-24","Vegas Golden Knights",1,"Arizona Coyotes",0,null,null,"2021-03-28",7,0,0,""]
[null,null,null,null,null,null,null,null,null,null,null,null,null,null,null,null,null,null,null,null,"",null,null,null,null,null,null,null,null,null,null,null,null,null,null,null,null,null,null,null,null,null,null,null,null,null,null,null,null,null,null,null,null,null,"2021-01-24","Toronto Maple Leafs",3,"Calgary Flames",2,null,null,"2021-03-29",7,0,1,7]
[null,null,null,null,null,null,null,null,null,null,null,null,null,null,null,null,null,null,null,null,"",null,null,null,null,null,null,null,null,null,null,null,null,null,null,null,null,null,null,null,null,null,null,null,null,null,null,null,null,null,null,null,null,null,"2021-01-24","Detroit Red Wings",2,"Chicago Blackhawks",6,null,null,"2021-03-30",7,0,0,""]
[null,null,null,null,null,null,null,null,null,null,null,null,null,null,null,null,null,null,null,null,"",null,null,null,null,null,null,null,null,null,null,null,null,null,null,null,null,null,null,null,null,null,null,null,null,null,null,null,null,null,null,null,null,null,"2021-01-24","Nashville Predators",2,"Dallas Stars",3,null,null,"2021-03-31",6,0,0,""]
[null,null,null,null,null,null,null,null,null,null,null,null,null,null,null,null,null,null,null,null,"",null,null,null,null,null,null,null,null,null,null,null,null,null,null,null,null,null,null,null,null,null,null,null,null,null,null,null,null,null,null,null,null,null,"2021-01-24","San Jose Sharks",5,"Minnesota Wild",3,null,null,"2021-04-01",9,1,0,9]
[null,null,null,null,null,null,null,null,null,null,null,null,null,null,null,null,null,null,null,null,"",null,null,null,null,null,null,null,null,null,null,null,null,null,null,null,null,null,null,null,null,null,null,null,null,null,null,null,null,null,null,null,null,null,"2021-01-24","New York Islanders",0,"New Jersey Devils",2,null,null,"2021-04-02",6,0,0,""]
[null,null,null,null,null,null,null,null,null,null,null,null,null,null,null,null,null,null,null,null,"",null,null,null,null,null,null,null,null,null,null,null,null,null,null,null,null,null,null,null,null,null,null,null,null,null,null,null,null,null,null,null,null,null,"2021-01-24","New York Rangers",2,"Pittsburgh Penguins",3,null,null,"2021-04-03",12,1,0,12]
[null,null,null,null,null,null,null,null,null,null,null,null,null,null,null,null,null,null,null,null,"",null,null,null,null,null,null,null,null,null,null,null,null,null,null,null,null,null,null,null,null,null,null,null,null,null,null,null,null,null,null,null,null,null,"2021-01-24","Los Angeles Kings",6,"St. Louis Blues",3,null,null,"2021-04-04",7,0,0,""]
[null,null,null,null,null,null,null,null,null,null,null,null,null,null,null,null,null,null,null,null,null,null,null,null,null,null,null,null,null,null,null,null,null,null,null,null,null,null,null,null,null,null,null,null,null,null,null,null,null,null,null,null,null,null,"2021-01-24","Edmonton Oilers",4,"Winnipeg Jets",3,null,null,"2021-04-05",6,0,0,""]
[null,null,null,null,null,null,null,null,null,null,null,null,null,null,null,null,null,null,null,null,null,null,null,null,null,null,null,null,null,null,null,null,null,null,null,null,null,null,null,null,null,null,null,null,null,null,null,null,null,null,null,null,null,null,"2021-01-24","Buffalo Sabres",4,"Washington Capitals",3,"SO",null,"2021-04-06",10,1,0,10]
[null,null,null,null,null,null,null,null,null,null,null,null,null,null,null,null,null,null,null,null,null,null,null,null,null,null,null,null,null,null,null,null,null,null,null,null,null,null,null,null,null,null,null,null,null,null,null,null,null,null,null,null,null,null,"2021-01-25","Ottawa Senators",1,"Vancouver Canucks",7,null,null,"2021-04-07",5,0,0,""]
[null,null,null,null,null,null,null,null,null,null,null,null,null,null,null,null,null,null,null,null,null,null,null,null,null,null,null,null,null,null,null,null,null,null,null,null,null,null,null,null,null,null,null,null,null,null,null,null,null,null,null,null,null,null,"2021-01-26","Anaheim Ducks",1,"Arizona Coyotes",0,null,null,"2021-04-08",10,1,0,10]
[null,null,null,null,null,null,null,null,null,null,null,null,null,null,null,null,null,null,null,null,null,null,null,null,null,null,null,null,null,null,null,null,null,null,null,null,null,null,null,null,null,null,null,null,null,null,null,null,null,null,null,null,null,null,"2021-01-26","Pittsburgh Penguins",2,"Boston Bruins",3,"OT",null,"2021-04-09",8,1,0,8]
[null,null,null,null,null,null,null,null,null,null,null,null,null,null,null,null,null,null,null,null,null,null,null,null,null,null,null,null,null,null,null,null,null,null,null,null,null,null,null,null,null,null,null,null,null,null,null,null,null,null,null,null,null,null,"2021-01-26","New York Rangers",2,"Buffalo Sabres",3,null,null,"2021-04-10",10,0,0,""]
[null,null,null,null,null,null,null,null,null,null,null,null,null,null,null,null,null,null,null,null,null,null,null,null,null,null,null,null,null,null,null,null,null,null,null,null,null,null,null,null,null,null,null,null,null,null,null,null,null,null,null,null,null,null,"2021-01-26","Florida Panthers",4,"Columbus Blue Jackets",3,"SO",null,"2021-04-11",7,1,0,7]
[null,null,null,null,null,null,null,null,null,null,null,null,null,null,null,null,null,null,null,null,null,null,null,null,null,null,null,null,null,null,null,null,null,null,null,null,null,null,null,null,null,null,null,null,null,null,null,null,null,null,null,null,null,null,"2021-01-26","Toronto Maple Leafs",4,"Calgary Flames",3,null,null,"2021-04-12",9,0,0,""]
[null,null,null,null,null,null,null,null,null,null,null,null,null,null,null,null,null,null,null,null,null,null,null,null,null,null,null,null,null,null,null,null,null,null,null,null,null,null,null,null,null,null,null,null,null,null,null,null,null,null,null,null,null,null,"2021-01-26","San Jose Sharks",3,"Colorado Avalanche",7,null,null,"2021-04-13",6,0,0,""]
[null,null,null,null,null,null,null,null,null,null,null,null,null,null,null,null,null,null,null,null,null,null,null,null,null,null,null,null,null,null,null,null,null,null,null,null,null,null,null,null,null,null,null,null,null,null,null,null,null,null,null,null,null,null,"2021-01-26","Detroit Red Wings",1,"Dallas Stars",2,"OT",null,"2021-04-14",7,0,0,""]
[null,null,null,null,null,null,null,null,null,null,null,null,null,null,null,null,null,null,null,null,null,null,null,null,null,null,null,null,null,null,null,null,null,null,null,null,null,null,null,null,null,null,null,null,null,null,null,null,null,null,null,null,null,null,"2021-01-26","Los Angeles Kings",2,"Minnesota Wild",1,null,null,"2021-04-15",9,0,1,9]
[null,null,null,null,null,null,null,null,null,null,null,null,null,null,null,null,null,null,null,null,null,null,null,null,null,null,null,null,null,null,null,null,null,null,null,null,null,null,null,null,null,null,null,null,null,null,null,null,null,null,null,null,null,null,"2021-01-26","Philadelphia Flyers",5,"New Jersey Devils",3,null,null,"2021-04-16",5,0,0,""]
[null,null,null,null,null,null,null,null,null,null,null,null,null,null,null,null,null,null,null,null,null,null,null,null,null,null,null,null,null,null,null,null,null,null,null,null,null,null,null,null,null,null,null,null,null,null,null,null,null,null,null,null,null,null,"2021-01-26","Chicago Blackhawks",2,"Nashville Predators",3,"OT",null,"2021-04-17",11,1,0,11]
[null,null,null,null,null,null,null,null,null,null,null,null,null,null,null,null,null,null,null,null,null,null,null,null,null,null,null,null,null,null,null,null,null,null,null,null,null,null,null,null,null,null,null,null,null,null,null,null,null,null,null,null,null,null,"2021-01-26","St. Louis Blues",5,"Vegas Golden Knights",4,"SO",null,"2021-04-18",6,1,0,6]
[null,null,null,null,null,null,null,null,null,null,null,null,null,null,null,null,null,null,null,null,null,null,null,null,null,null,null,null,null,null,null,null,null,null,null,null,null,null,null,null,null,null,null,null,null,null,null,null,null,null,null,null,null,null,"2021-01-26","Edmonton Oilers",4,"Winnipeg Jets",6,null,null,"2021-04-19",9,0,0,""]
[null,null,null,null,null,null,null,null,null,null,null,null,null,null,null,null,null,null,null,null,null,null,null,null,null,null,null,null,null,null,null,null,null,null,null,null,null,null,null,null,null,null,null,null,null,null,null,null,null,null,null,null,null,null,"2021-01-26","New York Islanders",2,"Washington Capitals",3,null,null,"2021-04-20",10,0,1,10]
[null,null,null,null,null,null,null,null,null,null,null,null,null,null,null,null,null,null,null,null,null,null,null,null,null,null,null,null,null,null,null,null,null,null,null,null,null,null,null,null,null,null,null,null,null,null,null,null,null,null,null,null,null,null,"2021-01-27","Chicago Blackhawks",1,"Nashville Predators",2,"SO",null,"2021-04-21",4,0,0,""]
[null,null,null,null,null,null,null,null,null,null,null,null,null,null,null,null,null,null,null,null,null,null,null,null,null,null,null,null,null,null,null,null,null,null,null,null,null,null,null,null,null,null,null,null,null,null,null,null,null,null,null,null,null,null,"2021-01-27","Ottawa Senators",1,"Vancouver Canucks",5,null,null,"2021-04-22",10,0,1,10]
[null,null,null,null,null,null,null,null,null,null,null,null,null,null,null,null,null,null,null,null,null,null,null,null,null,null,null,null,null,null,null,null,null,null,null,null,null,null,null,null,null,null,null,null,null,null,null,null,null,null,null,null,null,null,"2021-01-28","Anaheim Ducks",2,"Arizona Coyotes",3,null,null,"2021-04-23",6,0,0,""]
[null,null,null,null,null,null,null,null,null,null,null,null,null,null,null,null,null,null,null,null,null,null,null,null,null,null,null,null,null,null,null,null,null,null,null,null,null,null,null,null,null,null,null,null,null,null,null,null,null,null,null,null,null,null,"2021-01-28","Pittsburgh Penguins",1,"Boston Bruins",4,null,null,"2021-04-24",10,0,1,10]
[null,null,null,null,null,null,null,null,null,null,null,null,null,null,null,null,null,null,null,null,null,null,null,null,null,null,null,null,null,null,null,null,null,null,null,null,null,null,null,null,null,null,null,null,null,null,null,null,null,null,null,null,null,null,"2021-01-28","New York Rangers",3,"Buffalo Sabres",2,"OT",null,"2021-04-25",4,0,1,4]
[null,null,null,null,null,null,null,null,null,null,null,null,null,null,null,null,null,null,null,null,null,null,null,null,null,null,null,null,null,null,null,null,null,null,null,null,null,null,null,null,null,null,null,null,null,null,null,null,null,null,null,null,null,null,"2021-01-28","Tampa Bay Lightning",0,"Carolina Hurricanes",1,"OT",null,"2021-04-26",9,0,0,""]
[null,null,null,null,null,null,null,null,null,null,null,null,null,null,null,null,null,null,null,null,null,null,null,null,null,null,null,null,null,null,null,null,null,null,null,null,null,null,null,null,null,null,null,null,null,null,null,null,null,null,null,null,null,null,"2021-01-28","Florida Panthers",2,"Columbus Blue Jackets",3,"SO",null,"2021-04-27",8,0,1,8]
[null,null,null,null,null,null,null,null,null,null,null,null,null,null,null,null,null,null,null,null,null,null,null,null,null,null,null,null,null,null,null,null,null,null,null,null,null,null,null,null,null,null,null,null,null,null,null,null,null,null,null,null,null,null,"2021-01-28","San Jose Sharks",0,"Colorado Avalanche",3,null,null,"2021-04-28",7,0,0,""]
[null,null,null,null,null,null,null,null,null,null,null,null,null,null,null,null,null,null,null,null,null,null,null,null,null,null,null,null,null,null,null,null,null,null,null,null,null,null,null,null,null,null,null,null,null,null,null,null,null,null,null,null,null,null,"2021-01-28","Detroit Red Wings",3,"Dallas Stars",7,null,null,"2021-04-29",8,1,0,8]
[null,null,null,null,null,null,null,null,null,null,null,null,null,null,null,null,null,null,null,null,null,null,null,null,null,null,null,null,null,null,null,null,null,null,null,null,null,null,null,null,null,null,null,null,null,null,null,null,null,null,null,null,null,null,"2021-01-28","Toronto Maple Leafs",4,"Edmonton Oilers",3,null,null,"2021-04-30",6,0,0,""]
[null,null,null,null,null,null,null,null,null,null,null,null,null,null,null,null,null,null,null,null,null,null,null,null,null,null,null,null,null,null,null,null,null,null,null,null,null,null,null,null,null,null,null,null,null,null,null,null,null,null,null,null,null,null,"2021-01-28","Los Angeles Kings",3,"Minnesota Wild",5,null,null,"2021-05-01",15,1,0,15]
[null,null,null,null,null,null,null,null,null,null,null,null,null,null,null,null,null,null,null,null,null,null,null,null,null,null,null,null,null,null,null,null,null,null,null,null,null,null,null,null,null,null,null,null,null,null,null,null,null,null,null,null,null,null,"2021-01-28","Calgary Flames",2,"Montreal Canadiens",4,null,null,"2021-05-02",1,0,0,""]
[null,null,null,null,null,null,null,null,null,null,null,null,null,null,null,null,null,null,null,null,null,null,null,null,null,null,null,null,null,null,null,null,null,null,null,null,null,null,null,null,null,null,null,null,null,null,null,null,null,null,null,null,null,null,"2021-01-28","Philadelphia Flyers",3,"New Jersey Devils",1,null,null,"2021-05-03",13,1,0,13]
[null,null,null,null,null,null,null,null,null,null,null,null,null,null,null,null,null,null,null,null,null,null,null,null,null,null,null,null,null,null,null,null,null,null,null,null,null,null,null,null,null,null,null,null,null,null,null,null,null,null,null,null,null,null,"2021-01-28","Ottawa Senators",1,"Vancouver Canucks",4,null,null,"2021-05-04",5,1,0,5]
[null,null,null,null,null,null,null,null,null,null,null,null,null,null,null,null,null,null,null,null,null,null,null,null,null,null,null,null,null,null,null,null,null,null,null,null,null,null,null,null,null,null,null,null,null,null,null,null,null,null,null,null,null,null,"2021-01-28","New York Islanders",3,"Washington Capitals",6,null,null,"2021-05-05",9,0,0,""]
[null,null,null,null,null,null,null,null,null,null,null,null,null,null,null,null,null,null,null,null,null,null,null,null,null,null,null,null,null,null,null,null,null,null,null,null,null,null,null,null,null,null,null,null,null,null,null,null,null,null,null,null,null,null,"2021-01-29","Columbus Blue Jackets",2,"Chicago Blackhawks",1,null,null,"2021-05-06",6,0,1,6]
[null,null,null,null,null,null,null,null,null,null,null,null,null,null,null,null,null,null,null,null,null,null,null,null,null,null,null,null,null,null,null,null,null,null,null,null,null,null,null,null,null,null,null,null,null,null,null,null,null,null,null,null,null,null,"2021-01-30","St. Louis Blues",6,"Anaheim Ducks",1,null,null,"2021-05-07",10,0,0,""]
[null,null,null,null,null,null,null,null,null,null,null,null,null,null,null,null,null,null,null,null,null,null,null,null,null,null,null,null,null,null,null,null,null,null,null,null,null,null,null,null,null,null,null,null,null,null,null,null,null,null,null,null,null,null,"2021-01-30","New Jersey Devils",3,"Buffalo Sabres",4,"SO",null,"2021-05-08",14,0,1,14]
[null,null,null,null,null,null,null,null,null,null,null,null,null,null,null,null,null,null,null,null,null,null,null,null,null,null,null,null,null,null,null,null,null,null,null,null,null,null,null,null,null,null,null,null,null,null,null,null,null,null,null,null,null,null,"2021-01-30","Dallas Stars",1,"Carolina Hurricanes",4,null,null,"2021-05-09",1,0,0,""]
[null,null,null,null,null,null,null,null,null,null,null,null,null,null,null,null,null,null,null,null,null,null,null,null,null,null,null,null,null,null,null,null,null,null,null,null,null,null,null,null,null,null,null,null,null,null,null,null,null,null,null,null,null,null,"2021-01-30","Florida Panthers",3,"Detroit Red Wings",2,"OT",null,"2021-05-10",3,0,0,""]
[null,null,null,null,null,null,null,null,null,null,null,null,null,null,null,null,null,null,null,null,null,null,null,null,null,null,null,null,null,null,null,null,null,null,null,null,null,null,null,null,null,null,null,null,null,null,null,null,null,null,null,null,null,null,"2021-01-30","Toronto Maple Leafs",3,"Edmonton Oilers",4,"OT"]
[null,null,null,null,null,null,null,null,null,null,null,null,null,null,null,null,null,null,null,null,null,null,null,null,null,null,null,null,null,null,null,null,null,null,null,null,null,null,null,null,null,null,null,null,null,null,null,null,null,null,null,null,null,null,"2021-01-30","Colorado Avalanche",5,"Minnesota Wild",1]
[null,null,null,null,null,null,null,null,null,null,null,null,null,null,null,null,null,null,null,null,null,null,null,null,null,null,null,null,null,null,null,null,null,null,null,null,null,null,null,null,null,null,null,null,null,null,null,null,null,null,null,null,null,null,"2021-01-30","Calgary Flames",2,"Montreal Canadiens",0]
[null,null,null,null,null,null,null,null,null,null,null,null,null,null,null,null,null,null,null,null,null,null,null,null,null,null,null,null,null,null,null,null,null,null,null,null,null,null,null,null,null,null,null,null,null,null,null,null,null,null,null,null,null,null,"2021-01-30","Pittsburgh Penguins",5,"New York Rangers",4,"OT"]
[null,null,null,null,null,null,null,null,null,null,null,null,null,null,null,null,null,null,null,null,null,null,null,null,null,null,null,null,null,null,null,null,null,null,null,null,null,null,null,null,null,null,null,null,null,null,null,null,null,null,null,null,null,null,"2021-01-30","New York Islanders",2,"Philadelphia Flyers",3,"OT"]
[null,null,null,null,null,null,null,null,null,null,null,null,null,null,null,null,null,null,null,null,null,null,null,null,null,null,null,null,null,null,null,null,null,null,null,null,null,null,null,null,null,null,null,null,null,null,null,null,null,null,null,null,null,null,"2021-01-30","Nashville Predators",3,"Tampa Bay Lightning",4]
[null,null,null,null,null,null,null,null,null,null,null,null,null,null,null,null,null,null,null,null,null,null,null,null,null,null,null,null,null,null,null,null,null,null,null,null,null,null,null,null,null,null,null,null,null,null,null,null,null,null,null,null,null,null,"2021-01-30","Vancouver Canucks",4,"Winnipeg Jets",1]
[null,null,null,null,null,null,null,null,null,null,null,null,null,null,null,null,null,null,null,null,null,null,null,null,null,null,null,null,null,null,null,null,null,null,null,null,null,null,null,null,null,null,null,null,null,null,null,null,null,null,null,null,null,null,"2021-01-30","Boston Bruins",3,"Washington Capitals",4,"OT"]
[null,null,null,null,null,null,null,null,null,null,null,null,null,null,null,null,null,null,null,null,null,null,null,null,null,null,null,null,null,null,null,null,null,null,null,null,null,null,null,null,null,null,null,null,null,null,null,null,null,null,null,null,null,null,"2021-01-31","St. Louis Blues",4,"Anaheim Ducks",1]
[null,null,null,null,null,null,null,null,null,null,null,null,null,null,null,null,null,null,null,null,null,null,null,null,null,null,null,null,null,null,null,null,null,null,null,null,null,null,null,null,null,null,null,null,null,null,null,null,null,null,null,null,null,null,"2021-01-31","New Jersey Devils",5,"Buffalo Sabres",3]
[null,null,null,null,null,null,null,null,null,null,null,null,null,null,null,null,null,null,null,null,null,null,null,null,null,null,null,null,null,null,null,null,null,null,null,null,null,null,null,null,null,null,null,null,null,null,null,null,null,null,null,null,null,null,"2021-01-31","Dallas Stars",3,"Carolina Hurricanes",4,"SO"]
[null,null,null,null,null,null,null,null,null,null,null,null,null,null,null,null,null,null,null,null,null,null,null,null,null,null,null,null,null,null,null,null,null,null,null,null,null,null,null,null,null,null,null,null,null,null,null,null,null,null,null,null,null,null,"2021-01-31","Columbus Blue Jackets",1,"Chicago Blackhawks",3]
[null,null,null,null,null,null,null,null,null,null,null,null,null,null,null,null,null,null,null,null,null,null,null,null,null,null,null,null,null,null,null,null,null,null,null,null,null,null,null,null,null,null,null,null,null,null,null,null,null,null,null,null,null,null,"2021-01-31","Florida Panthers",3,"Detroit Red Wings",2]
[null,null,null,null,null,null,null,null,null,null,null,null,null,null,null,null,null,null,null,null,null,null,null,null,null,null,null,null,null,null,null,null,null,null,null,null,null,null,null,null,null,null,null,null,null,null,null,null,null,null,null,null,null,null,"2021-01-31","Ottawa Senators",5,"Edmonton Oilers",8]
[null,null,null,null,null,null,null,null,null,null,null,null,null,null,null,null,null,null,null,null,null,null,null,null,null,null,null,null,null,null,null,null,null,null,null,null,null,null,null,null,null,null,null,null,null,null,null,null,null,null,null,null,null,null,"2021-01-31","Colorado Avalanche",3,"Minnesota Wild",4,"OT"]
[null,null,null,null,null,null,null,null,null,null,null,null,null,null,null,null,null,null,null,null,null,null,null,null,null,null,null,null,null,null,null,null,null,null,null,null,null,null,null,null,null,null,null,null,null,null,null,null,null,null,null,null,null,null,"2021-01-31","New York Islanders",3,"Philadelphia Flyers",4,"OT"]
[null,null,null,null,null,null,null,null,null,null,null,null,null,null,null,null,null,null,null,null,null,null,null,null,null,null,null,null,null,null,null,null,null,null,null,null,null,null,null,null,null,null,null,null,null,null,null,null,null,null,null,null,null,null,"2021-02-01","Vancouver Canucks",2,"Montreal Canadiens",6]
[null,null,null,null,null,null,null,null,null,null,null,null,null,null,null,null,null,null,null,null,null,null,null,null,null,null,null,null,null,null,null,null,null,null,null,null,null,null,null,null,null,null,null,null,null,null,null,null,null,null,null,null,null,null,"2021-02-01","Pittsburgh Penguins",1,"New York Rangers",3]
[null,null,null,null,null,null,null,null,null,null,null,null,null,null,null,null,null,null,null,null,null,null,null,null,null,null,null,null,null,null,null,null,null,null,null,null,null,null,null,null,null,null,null,null,null,null,null,null,null,null,null,null,null,null,"2021-02-01","Nashville Predators",2,"Tampa Bay Lightning",5]
[null,null,null,null,null,null,null,null,null,null,null,null,null,null,null,null,null,null,null,null,null,null,null,null,null,null,null,null,null,null,null,null,null,null,null,null,null,null,null,null,null,null,null,null,null,null,null,null,null,null,null,null,null,null,"2021-02-01","Calgary Flames",4,"Winnipeg Jets",3,"SO"]
[null,null,null,null,null,null,null,null,null,null,null,null,null,null,null,null,null,null,null,null,null,null,null,null,null,null,null,null,null,null,null,null,null,null,null,null,null,null,null,null,null,null,null,null,null,null,null,null,null,null,null,null,null,null,"2021-02-01","Boston Bruins",5,"Washington Capitals",3]
[null,null,null,null,null,null,null,null,null,null,null,null,null,null,null,null,null,null,null,null,null,null,null,null,null,null,null,null,null,null,null,null,null,null,null,null,null,null,null,null,null,null,null,null,null,null,null,null,null,null,null,null,null,null,"2021-02-02","Dallas Stars",6,"Columbus Blue Jackets",3]
[null,null,null,null,null,null,null,null,null,null,null,null,null,null,null,null,null,null,null,null,null,null,null,null,null,null,null,null,null,null,null,null,null,null,null,null,null,null,null,null,null,null,null,null,null,null,null,null,null,null,null,null,null,null,"2021-02-02","Carolina Hurricanes",4,"Chicago Blackhawks",3,"SO"]
[null,null,null,null,null,null,null,null,null,null,null,null,null,null,null,null,null,null,null,null,null,null,null,null,null,null,null,null,null,null,null,null,null,null,null,null,null,null,null,null,null,null,null,null,null,null,null,null,null,null,null,null,null,null,"2021-02-02","Minnesota Wild",1,"Colorado Avalanche",2]
[null,null,null,null,null,null,null,null,null,null,null,null,null,null,null,null,null,null,null,null,null,null,null,null,null,null,null,null,null,null,null,null,null,null,null,null,null,null,null,null,null,null,null,null,null,null,null,null,null,null,null,null,null,null,"2021-02-02","Ottawa Senators",2,"Edmonton Oilers",4]
[null,null,null,null,null,null,null,null,null,null,null,null,null,null,null,null,null,null,null,null,null,null,null,null,null,null,null,null,null,null,null,null,null,null,null,null,null,null,null,null,null,null,null,null,null,null,null,null,null,null,null,null,null,null,"2021-02-02","Anaheim Ducks",3,"Los Angeles Kings",1]
[null,null,null,null,null,null,null,null,null,null,null,null,null,null,null,null,null,null,null,null,null,null,null,null,null,null,null,null,null,null,null,null,null,null,null,null,null,null,null,null,null,null,null,null,null,null,null,null,null,null,null,null,null,null,"2021-02-02","Vancouver Canucks",3,"Montreal Canadiens",5]
[null,null,null,null,null,null,null,null,null,null,null,null,null,null,null,null,null,null,null,null,null,null,null,null,null,null,null,null,null,null,null,null,null,null,null,null,null,null,null,null,null,null,null,null,null,null,null,null,null,null,null,null,null,null,"2021-02-02","Arizona Coyotes",3,"St. Louis Blues",4]
[null,null,null,null,null,null,null,null,null,null,null,null,null,null,null,null,null,null,null,null,null,null,null,null,null,null,null,null,null,null,null,null,null,null,null,null,null,null,null,null,null,null,null,null,null,null,null,null,null,null,null,null,null,null,"2021-02-02","Calgary Flames",2,"Winnipeg Jets",3]
[null,null,null,null,null,null,null,null,null,null,null,null,null,null,null,null,null,null,null,null,null,null,null,null,null,null,null,null,null,null,null,null,null,null,null,null,null,null,null,null,null,null,null,null,null,null,null,null,null,null,null,null,null,null,"2021-02-03","Boston Bruins",4,"Philadelphia Flyers",3,"OT"]
[null,null,null,null,null,null,null,null,null,null,null,null,null,null,null,null,null,null,null,null,null,null,null,null,null,null,null,null,null,null,null,null,null,null,null,null,null,null,null,null,null,null,null,null,null,null,null,null,null,null,null,null,null,null,"2021-02-03","Detroit Red Wings",1,"Tampa Bay Lightning",5]
[null,null,null,null,null,null,null,null,null,null,null,null,null,null,null,null,null,null,null,null,null,null,null,null,null,null,null,null,null,null,null,null,null,null,null,null,null,null,null,null,null,null,null,null,null,null,null,null,null,null,null,null,null,null,"2021-02-04","Dallas Stars",3,"Columbus Blue Jackets",4]
[null,null,null,null,null,null,null,null,null,null,null,null,null,null,null,null,null,null,null,null,null,null,null,null,null,null,null,null,null,null,null,null,null,null,null,null,null,null,null,null,null,null,null,null,null,null,null,null,null,null,null,null,null,null,"2021-02-04","Carolina Hurricanes",4,"Chicago Blackhawks",6]
[null,null,null,null,null,null,null,null,null,null,null,null,null,null,null,null,null,null,null,null,null,null,null,null,null,null,null,null,null,null,null,null,null,null,null,null,null,null,null,null,null,null,null,null,null,null,null,null,null,null,null,null,null,null,"2021-02-04","Nashville Predators",6,"Florida Panthers",5,"OT"]
[null,null,null,null,null,null,null,null,null,null,null,null,null,null,null,null,null,null,null,null,null,null,null,null,null,null,null,null,null,null,null,null,null,null,null,null,null,null,null,null,null,null,null,null,null,null,null,null,null,null,null,null,null,null,"2021-02-04","Ottawa Senators",3,"Montreal Canadiens",2]
[null,null,null,null,null,null,null,null,null,null,null,null,null,null,null,null,null,null,null,null,null,null,null,null,null,null,null,null,null,null,null,null,null,null,null,null,null,null,null,null,null,null,null,null,null,null,null,null,null,null,null,null,null,null,"2021-02-04","Washington Capitals",2,"New York Rangers",4]
[null,null,null,null,null,null,null,null,null,null,null,null,null,null,null,null,null,null,null,null,null,null,null,null,null,null,null,null,null,null,null,null,null,null,null,null,null,null,null,null,null,null,null,null,null,null,null,null,null,null,null,null,null,null,"2021-02-04","Arizona Coyotes",4,"St. Louis Blues",3]
[null,null,null,null,null,null,null,null,null,null,null,null,null,null,null,null,null,null,null,null,null,null,null,null,null,null,null,null,null,null,null,null,null,null,null,null,null,null,null,null,null,null,null,null,null,null,null,null,null,null,null,null,null,null,"2021-02-04","Vancouver Canucks",3,"Toronto Maple Leafs",7]
[null,null,null,null,null,null,null,null,null,null,null,null,null,null,null,null,null,null,null,null,null,null,null,null,null,null,null,null,null,null,null,null,null,null,null,null,null,null,null,null,null,null,null,null,null,null,null,null,null,null,null,null,null,null,"2021-02-04","Calgary Flames",1,"Winnipeg Jets",4]
[null,null,null,null,null,null,null,null,null,null,null,null,null,null,null,null,null,null,null,null,null,null,null,null,null,null,null,null,null,null,null,null,null,null,null,null,null,null,null,null,null,null,null,null,null,null,null,null,null,null,null,null,null,null,"2021-02-05","San Jose Sharks",5,"Anaheim Ducks",4,"SO"]
[null,null,null,null,null,null,null,null,null,null,null,null,null,null,null,null,null,null,null,null,null,null,null,null,null,null,null,null,null,null,null,null,null,null,null,null,null,null,null,null,null,null,null,null,null,null,null,null,null,null,null,null,null,null,"2021-02-05","Nashville Predators",1,"Florida Panthers",2]
[null,null,null,null,null,null,null,null,null,null,null,null,null,null,null,null,null,null,null,null,null,null,null,null,null,null,null,null,null,null,null,null,null,null,null,null,null,null,null,null,null,null,null,null,null,null,null,null,null,null,null,null,null,null,"2021-02-05","Boston Bruins",2,"Philadelphia Flyers",1]
[null,null,null,null,null,null,null,null,null,null,null,null,null,null,null,null,null,null,null,null,null,null,null,null,null,null,null,null,null,null,null,null,null,null,null,null,null,null,null,null,null,null,null,null,null,null,null,null,null,null,null,null,null,null,"2021-02-05","Detroit Red Wings",1,"Tampa Bay Lightning",3]
[null,null,null,null,null,null,null,null,null,null,null,null,null,null,null,null,null,null,null,null,null,null,null,null,null,null,null,null,null,null,null,null,null,null,null,null,null,null,null,null,null,null,null,null,null,null,null,null,null,null,null,null,null,null,"2021-02-05","Los Angeles Kings",2,"Vegas Golden Knights",5]
[null,null,null,null,null,null,null,null,null,null,null,null,null,null,null,null,null,null,null,null,null,null,null,null,null,null,null,null,null,null,null,null,null,null,null,null,null,null,null,null,null,null,null,null,null,null,null,null,null,null,null,null,null,null,"2021-02-06","San Jose Sharks",1,"Anaheim Ducks",2,"SO"]
[null,null,null,null,null,null,null,null,null,null,null,null,null,null,null,null,null,null,null,null,null,null,null,null,null,null,null,null,null,null,null,null,null,null,null,null,null,null,null,null,null,null,null,null,null,null,null,null,null,null,null,null,null,null,"2021-02-06","Edmonton Oilers",4,"Calgary Flames",6]
[null,null,null,null,null,null,null,null,null,null,null,null,null,null,null,null,null,null,null,null,null,null,null,null,null,null,null,null,null,null,null,null,null,null,null,null,null,null,null,null,null,null,null,null,null,null,null,null,null,null,null,null,null,null,"2021-02-06","Pittsburgh Penguins",3,"New York Islanders",4]
[null,null,null,null,null,null,null,null,null,null,null,null,null,null,null,null,null,null,null,null,null,null,null,null,null,null,null,null,null,null,null,null,null,null,null,null,null,null,null,null,null,null,null,null,null,null,null,null,null,null,null,null,null,null,"2021-02-06","Montreal Canadiens",2,"Ottawa Senators",1]
[null,null,null,null,null,null,null,null,null,null,null,null,null,null,null,null,null,null,null,null,null,null,null,null,null,null,null,null,null,null,null,null,null,null,null,null,null,null,null,null,null,null,null,null,null,null,null,null,null,null,null,null,null,null,"2021-02-06","Arizona Coyotes",3,"St. Louis Blues",1]
[null,null,null,null,null,null,null,null,null,null,null,null,null,null,null,null,null,null,null,null,null,null,null,null,null,null,null,null,null,null,null,null,null,null,null,null,null,null,null,null,null,null,null,null,null,null,null,null,null,null,null,null,null,null,"2021-02-06","Vancouver Canucks",1,"Toronto Maple Leafs",5]
[null,null,null,null,null,null,null,null,null,null,null,null,null,null,null,null,null,null,null,null,null,null,null,null,null,null,null,null,null,null,null,null,null,null,null,null,null,null,null,null,null,null,null,null,null,null,null,null,null,null,null,null,null,null,"2021-02-07","Carolina Hurricanes",6,"Columbus Blue Jackets",5]
[null,null,null,null,null,null,null,null,null,null,null,null,null,null,null,null,null,null,null,null,null,null,null,null,null,null,null,null,null,null,null,null,null,null,null,null,null,null,null,null,null,null,null,null,null,null,null,null,null,null,null,null,null,null,"2021-02-07","Chicago Blackhawks",2,"Dallas Stars",1,"OT"]
[null,null,null,null,null,null,null,null,null,null,null,null,null,null,null,null,null,null,null,null,null,null,null,null,null,null,null,null,null,null,null,null,null,null,null,null,null,null,null,null,null,null,null,null,null,null,null,null,null,null,null,null,null,null,"2021-02-07","Detroit Red Wings",4,"Florida Panthers",1]
[null,null,null,null,null,null,null,null,null,null,null,null,null,null,null,null,null,null,null,null,null,null,null,null,null,null,null,null,null,null,null,null,null,null,null,null,null,null,null,null,null,null,null,null,null,null,null,null,null,null,null,null,null,null,"2021-02-07","Los Angeles Kings",3,"Vegas Golden Knights",4]
[null,null,null,null,null,null,null,null,null,null,null,null,null,null,null,null,null,null,null,null,null,null,null,null,null,null,null,null,null,null,null,null,null,null,null,null,null,null,null,null,null,null,null,null,null,null,null,null,null,null,null,null,null,null,"2021-02-07","Philadelphia Flyers",7,"Washington Capitals",4]
[null,null,null,null,null,null,null,null,null,null,null,null,null,null,null,null,null,null,null,null,null,null,null,null,null,null,null,null,null,null,null,null,null,null,null,null,null,null,null,null,null,null,null,null,null,null,null,null,null,null,null,null,null,null,"2021-02-08","Carolina Hurricanes",2,"Columbus Blue Jackets",3]
[null,null,null,null,null,null,null,null,null,null,null,null,null,null,null,null,null,null,null,null,null,null,null,null,null,null,null,null,null,null,null,null,null,null,null,null,null,null,null,null,null,null,null,null,null,null,null,null,null,null,null,null,null,null,"2021-02-08","Tampa Bay Lightning",4,"Nashville Predators",1]
[null,null,null,null,null,null,null,null,null,null,null,null,null,null,null,null,null,null,null,null,null,null,null,null,null,null,null,null,null,null,null,null,null,null,null,null,null,null,null,null,null,null,null,null,null,null,null,null,null,null,null,null,null,null,"2021-02-08","New York Islanders",2,"New York Rangers",0]
[null,null,null,null,null,null,null,null,null,null,null,null,null,null,null,null,null,null,null,null,null,null,null,null,null,null,null,null,null,null,null,null,null,null,null,null,null,null,null,null,null,null,null,null,null,null,null,null,null,null,null,null,null,null,"2021-02-08","Edmonton Oilers",3,"Ottawa Senators",1]
[null,null,null,null,null,null,null,null,null,null,null,null,null,null,null,null,null,null,null,null,null,null,null,null,null,null,null,null,null,null,null,null,null,null,null,null,null,null,null,null,null,null,null,null,null,null,null,null,null,null,null,null,null,null,"2021-02-08","Arizona Coyotes",4,"St. Louis Blues",3,"SO"]
[null,null,null,null,null,null,null,null,null,null,null,null,null,null,null,null,null,null,null,null,null,null,null,null,null,null,null,null,null,null,null,null,null,null,null,null,null,null,null,null,null,null,null,null,null,null,null,null,null,null,null,null,null,null,"2021-02-08","Vancouver Canucks",1,"Toronto Maple Leafs",3]
[null,null,null,null,null,null,null,null,null,null,null,null,null,null,null,null,null,null,null,null,null,null,null,null,null,null,null,null,null,null,null,null,null,null,null,null,null,null,null,null,null,null,null,null,null,null,null,null,null,null,null,null,null,null,"2021-02-09","Winnipeg Jets",2,"Calgary Flames",3]
[null,null,null,null,null,null,null,null,null,null,null,null,null,null,null,null,null,null,null,null,null,null,null,null,null,null,null,null,null,null,null,null,null,null,null,null,null,null,null,null,null,null,null,null,null,null,null,null,null,null,null,null,null,null,"2021-02-09","Chicago Blackhawks",2,"Dallas Stars",1,"OT"]
[null,null,null,null,null,null,null,null,null,null,null,null,null,null,null,null,null,null,null,null,null,null,null,null,null,null,null,null,null,null,null,null,null,null,null,null,null,null,null,null,null,null,null,null,null,null,null,null,null,null,null,null,null,null,"2021-02-09","Detroit Red Wings",1,"Florida Panthers",2]
[null,null,null,null,null,null,null,null,null,null,null,null,null,null,null,null,null,null,null,null,null,null,null,null,null,null,null,null,null,null,null,null,null,null,null,null,null,null,null,null,null,null,null,null,null,null,null,null,null,null,null,null,null,null,"2021-02-09","San Jose Sharks",4,"Los Angeles Kings",3,"SO"]
[null,null,null,null,null,null,null,null,null,null,null,null,null,null,null,null,null,null,null,null,null,null,null,null,null,null,null,null,null,null,null,null,null,null,null,null,null,null,null,null,null,null,null,null,null,null,null,null,null,null,null,null,null,null,"2021-02-09","Tampa Bay Lightning",6,"Nashville Predators",1]
[null,null,null,null,null,null,null,null,null,null,null,null,null,null,null,null,null,null,null,null,null,null,null,null,null,null,null,null,null,null,null,null,null,null,null,null,null,null,null,null,null,null,null,null,null,null,null,null,null,null,null,null,null,null,"2021-02-09","Edmonton Oilers",3,"Ottawa Senators",2]
[null,null,null,null,null,null,null,null,null,null,null,null,null,null,null,null,null,null,null,null,null,null,null,null,null,null,null,null,null,null,null,null,null,null,null,null,null,null,null,null,null,null,null,null,null,null,null,null,null,null,null,null,null,null,"2021-02-09","Anaheim Ducks",4,"Vegas Golden Knights",5]
[null,null,null,null,null,null,null,null,null,null,null,null,null,null,null,null,null,null,null,null,null,null,null,null,null,null,null,null,null,null,null,null,null,null,null,null,null,null,null,null,null,null,null,null,null,null,null,null,null,null,null,null,null,null,"2021-02-10","Toronto Maple Leafs",4,"Montreal Canadiens",2]
[null,null,null,null,null,null,null,null,null,null,null,null,null,null,null,null,null,null,null,null,null,null,null,null,null,null,null,null,null,null,null,null,null,null,null,null,null,null,null,null,null,null,null,null,null,null,null,null,null,null,null,null,null,null,"2021-02-10","Boston Bruins",3,"New York Rangers",2,"OT"]
[null,null,null,null,null,null,null,null,null,null,null,null,null,null,null,null,null,null,null,null,null,null,null,null,null,null,null,null,null,null,null,null,null,null,null,null,null,null,null,null,null,null,null,null,null,null,null,null,null,null,null,null,null,null,"2021-02-11","Columbus Blue Jackets",6,"Chicago Blackhawks",5]
[null,null,null,null,null,null,null,null,null,null,null,null,null,null,null,null,null,null,null,null,null,null,null,null,null,null,null,null,null,null,null,null,null,null,null,null,null,null,null,null,null,null,null,null,null,null,null,null,null,null,null,null,null,null,"2021-02-11","Carolina Hurricanes",5,"Dallas Stars",3]
[null,null,null,null,null,null,null,null,null,null,null,null,null,null,null,null,null,null,null,null,null,null,null,null,null,null,null,null,null,null,null,null,null,null,null,null,null,null,null,null,null,null,null,null,null,null,null,null,null,null,null,null,null,null,"2021-02-11","Tampa Bay Lightning",2,"Florida Panthers",5]
[null,null,null,null,null,null,null,null,null,null,null,null,null,null,null,null,null,null,null,null,null,null,null,null,null,null,null,null,null,null,null,null,null,null,null,null,null,null,null,null,null,null,null,null,null,null,null,null,null,null,null,null,null,null,"2021-02-11","San Jose Sharks",2,"Los Angeles Kings",6]
[null,null,null,null,null,null,null,null,null,null,null,null,null,null,null,null,null,null,null,null,null,null,null,null,null,null,null,null,null,null,null,null,null,null,null,null,null,null,null,null,null,null,null,null,null,null,null,null,null,null,null,null,null,null,"2021-02-11","Edmonton Oilers",3,"Montreal Canadiens",0]
[null,null,null,null,null,null,null,null,null,null,null,null,null,null,null,null,null,null,null,null,null,null,null,null,null,null,null,null,null,null,null,null,null,null,null,null,null,null,null,null,null,null,null,null,null,null,null,null,null,null,null,null,null,null,"2021-02-11","Detroit Red Wings",2,"Nashville Predators",3]
[null,null,null,null,null,null,null,null,null,null,null,null,null,null,null,null,null,null,null,null,null,null,null,null,null,null,null,null,null,null,null,null,null,null,null,null,null,null,null,null,null,null,null,null,null,null,null,null,null,null,null,null,null,null,"2021-02-11","Pittsburgh Penguins",4,"New York Islanders",3,"SO"]
[null,null,null,null,null,null,null,null,null,null,null,null,null,null,null,null,null,null,null,null,null,null,null,null,null,null,null,null,null,null,null,null,null,null,null,null,null,null,null,null,null,null,null,null,null,null,null,null,null,null,null,null,null,null,"2021-02-11","Calgary Flames",3,"Vancouver Canucks",1]
[null,null,null,null,null,null,null,null,null,null,null,null,null,null,null,null,null,null,null,null,null,null,null,null,null,null,null,null,null,null,null,null,null,null,null,null,null,null,null,null,null,null,null,null,null,null,null,null,null,null,null,null,null,null,"2021-02-11","Anaheim Ducks",1,"Vegas Golden Knights",0]
[null,null,null,null,null,null,null,null,null,null,null,null,null,null,null,null,null,null,null,null,null,null,null,null,null,null,null,null,null,null,null,null,null,null,null,null,null,null,null,null,null,null,null,null,null,null,null,null,null,null,null,null,null,null,"2021-02-11","Ottawa Senators",1,"Winnipeg Jets",5]
[null,null,null,null,null,null,null,null,null,null,null,null,null,null,null,null,null,null,null,null,null,null,null,null,null,null,null,null,null,null,null,null,null,null,null,null,null,null,null,null,null,null,null,null,null,null,null,null,null,null,null,null,null,null,"2021-02-12","St. Louis Blues",4,"Arizona Coyotes",1]
[null,null,null,null,null,null,null,null,null,null,null,null,null,null,null,null,null,null,null,null,null,null,null,null,null,null,null,null,null,null,null,null,null,null,null,null,null,null,null,null,null,null,null,null,null,null,null,null,null,null,null,null,null,null,"2021-02-12","Boston Bruins",1,"New York Rangers",0]
[null,null,null,null,null,null,null,null,null,null,null,null,null,null,null,null,null,null,null,null,null,null,null,null,null,null,null,null,null,null,null,null,null,null,null,null,null,null,null,null,null,null,null,null,null,null,null,null,null,null,null,null,null,null,"2021-02-13","St. Louis Blues",5,"Arizona Coyotes",4,"OT"]
[null,null,null,null,null,null,null,null,null,null,null,null,null,null,null,null,null,null,null,null,null,null,null,null,null,null,null,null,null,null,null,null,null,null,null,null,null,null,null,null,null,null,null,null,null,null,null,null,null,null,null,null,null,null,"2021-02-13","Columbus Blue Jackets",2,"Chicago Blackhawks",3,"OT"]
[null,null,null,null,null,null,null,null,null,null,null,null,null,null,null,null,null,null,null,null,null,null,null,null,null,null,null,null,null,null,null,null,null,null,null,null,null,null,null,null,null,null,null,null,null,null,null,null,null,null,null,null,null,null,"2021-02-13","Carolina Hurricanes",4,"Dallas Stars",3,"SO"]
[null,null,null,null,null,null,null,null,null,null,null,null,null,null,null,null,null,null,null,null,null,null,null,null,null,null,null,null,null,null,null,null,null,null,null,null,null,null,null,null,null,null,null,null,null,null,null,null,null,null,null,null,null,null,"2021-02-13","Tampa Bay Lightning",6,"Florida Panthers",1]
[null,null,null,null,null,null,null,null,null,null,null,null,null,null,null,null,null,null,null,null,null,null,null,null,null,null,null,null,null,null,null,null,null,null,null,null,null,null,null,null,null,null,null,null,null,null,null,null,null,null,null,null,null,null,"2021-02-13","Detroit Red Wings",4,"Nashville Predators",2]
[null,null,null,null,null,null,null,null,null,null,null,null,null,null,null,null,null,null,null,null,null,null,null,null,null,null,null,null,null,null,null,null,null,null,null,null,null,null,null,null,null,null,null,null,null,null,null,null,null,null,null,null,null,null,"2021-02-13","Boston Bruins",2,"New York Islanders",4]
[null,null,null,null,null,null,null,null,null,null,null,null,null,null,null,null,null,null,null,null,null,null,null,null,null,null,null,null,null,null,null,null,null,null,null,null,null,null,null,null,null,null,null,null,null,null,null,null,null,null,null,null,null,null,"2021-02-13","Vegas Golden Knights",3,"San Jose Sharks",1]
[null,null,null,null,null,null,null,null,null,null,null,null,null,null,null,null,null,null,null,null,null,null,null,null,null,null,null,null,null,null,null,null,null,null,null,null,null,null,null,null,null,null,null,null,null,null,null,null,null,null,null,null,null,null,"2021-02-13","Montreal Canadiens",2,"Toronto Maple Leafs",1]
[null,null,null,null,null,null,null,null,null,null,null,null,null,null,null,null,null,null,null,null,null,null,null,null,null,null,null,null,null,null,null,null,null,null,null,null,null,null,null,null,null,null,null,null,null,null,null,null,null,null,null,null,null,null,"2021-02-13","Calgary Flames",1,"Vancouver Canucks",3]
[null,null,null,null,null,null,null,null,null,null,null,null,null,null,null,null,null,null,null,null,null,null,null,null,null,null,null,null,null,null,null,null,null,null,null,null,null,null,null,null,null,null,null,null,null,null,null,null,null,null,null,null,null,null,"2021-02-13","Ottawa Senators",2,"Winnipeg Jets",1]
[null,null,null,null,null,null,null,null,null,null,null,null,null,null,null,null,null,null,null,null,null,null,null,null,null,null,null,null,null,null,null,null,null,null,null,null,null,null,null,null,null,null,null,null,null,null,null,null,null,null,null,null,null,null,"2021-02-14","Washington Capitals",3,"Pittsburgh Penguins",6]
[null,null,null,null,null,null,null,null,null,null,null,null,null,null,null,null,null,null,null,null,null,null,null,null,null,null,null,null,null,null,null,null,null,null,null,null,null,null,null,null,null,null,null,null,null,null,null,null,null,null,null,null,null,null,"2021-02-14","Colorado Avalanche",0,"Vegas Golden Knights",1]
[null,null,null,null,null,null,null,null,null,null,null,null,null,null,null,null,null,null,null,null,null,null,null,null,null,null,null,null,null,null,null,null,null,null,null,null,null,null,null,null,null,null,null,null,null,null,null,null,null,null,null,null,null,null,"2021-02-15","St. Louis Blues",0,"Arizona Coyotes",1]
[null,null,null,null,null,null,null,null,null,null,null,null,null,null,null,null,null,null,null,null,null,null,null,null,null,null,null,null,null,null,null,null,null,null,null,null,null,null,null,null,null,null,null,null,null,null,null,null,null,null,null,null,null,null,"2021-02-15","New York Islanders",3,"Buffalo Sabres",1]
[null,null,null,null,null,null,null,null,null,null,null,null,null,null,null,null,null,null,null,null,null,null,null,null,null,null,null,null,null,null,null,null,null,null,null,null,null,null,null,null,null,null,null,null,null,null,null,null,null,null,null,null,null,null,"2021-02-15","Columbus Blue Jackets",3,"Carolina Hurricanes",7]
[null,null,null,null,null,null,null,null,null,null,null,null,null,null,null,null,null,null,null,null,null,null,null,null,null,null,null,null,null,null,null,null,null,null,null,null,null,null,null,null,null,null,null,null,null,null,null,null,null,null,null,null,null,null,"2021-02-15","Chicago Blackhawks",3,"Detroit Red Wings",2,"OT"]
[null,null,null,null,null,null,null,null,null,null,null,null,null,null,null,null,null,null,null,null,null,null,null,null,null,null,null,null,null,null,null,null,null,null,null,null,null,null,null,null,null,null,null,null,null,null,null,null,null,null,null,null,null,null,"2021-02-15","Winnipeg Jets",6,"Edmonton Oilers",5]
[null,null,null,null,null,null,null,null,null,null,null,null,null,null,null,null,null,null,null,null,null,null,null,null,null,null,null,null,null,null,null,null,null,null,null,null,null,null,null,null,null,null,null,null,null,null,null,null,null,null,null,null,null,null,"2021-02-15","Anaheim Ducks",2,"San Jose Sharks",3]
[null,null,null,null,null,null,null,null,null,null,null,null,null,null,null,null,null,null,null,null,null,null,null,null,null,null,null,null,null,null,null,null,null,null,null,null,null,null,null,null,null,null,null,null,null,null,null,null,null,null,null,null,null,null,"2021-02-15","Florida Panthers",6,"Tampa Bay Lightning",4]
[null,null,null,null,null,null,null,null,null,null,null,null,null,null,null,null,null,null,null,null,null,null,null,null,null,null,null,null,null,null,null,null,null,null,null,null,null,null,null,null,null,null,null,null,null,null,null,null,null,null,null,null,null,null,"2021-02-15","Ottawa Senators",6,"Toronto Maple Leafs",5,"OT"]
[null,null,null,null,null,null,null,null,null,null,null,null,null,null,null,null,null,null,null,null,null,null,null,null,null,null,null,null,null,null,null,null,null,null,null,null,null,null,null,null,null,null,null,null,null,null,null,null,null,null,null,null,null,null,"2021-02-15","Calgary Flames",4,"Vancouver Canucks",3,"OT"]
[null,null,null,null,null,null,null,null,null,null,null,null,null,null,null,null,null,null,null,null,null,null,null,null,null,null,null,null,null,null,null,null,null,null,null,null,null,null,null,null,null,null,null,null,null,null,null,null,null,null,null,null,null,null,"2021-02-16","New York Islanders",3,"Buffalo Sabres",0]
[null,null,null,null,null,null,null,null,null,null,null,null,null,null,null,null,null,null,null,null,null,null,null,null,null,null,null,null,null,null,null,null,null,null,null,null,null,null,null,null,null,null,null,null,null,null,null,null,null,null,null,null,null,null,"2021-02-16","Minnesota Wild",0,"Los Angeles Kings",4]
[null,null,null,null,null,null,null,null,null,null,null,null,null,null,null,null,null,null,null,null,null,null,null,null,null,null,null,null,null,null,null,null,null,null,null,null,null,null,null,null,null,null,null,null,null,null,null,null,null,null,null,null,null,null,"2021-02-16","New Jersey Devils",5,"New York Rangers",2]
[null,null,null,null,null,null,null,null,null,null,null,null,null,null,null,null,null,null,null,null,null,null,null,null,null,null,null,null,null,null,null,null,null,null,null,null,null,null,null,null,null,null,null,null,null,null,null,null,null,null,null,null,null,null,"2021-02-16","Washington Capitals",3,"Pittsburgh Penguins",1]
[null,null,null,null,null,null,null,null,null,null,null,null,null,null,null,null,null,null,null,null,null,null,null,null,null,null,null,null,null,null,null,null,null,null,null,null,null,null,null,null,null,null,null,null,null,null,null,null,null,null,null,null,null,null,"2021-02-16","Colorado Avalanche",3,"Vegas Golden Knights",2]
[null,null,null,null,null,null,null,null,null,null,null,null,null,null,null,null,null,null,null,null,null,null,null,null,null,null,null,null,null,null,null,null,null,null,null,null,null,null,null,null,null,null,null,null,null,null,null,null,null,null,null,null,null,null,"2021-02-17","Florida Panthers",4,"Carolina Hurricanes",3,"OT"]
[null,null,null,null,null,null,null,null,null,null,null,null,null,null,null,null,null,null,null,null,null,null,null,null,null,null,null,null,null,null,null,null,null,null,null,null,null,null,null,null,null,null,null,null,null,null,null,null,null,null,null,null,null,null,"2021-02-17","Vancouver Canucks",5,"Calgary Flames",1]
[null,null,null,null,null,null,null,null,null,null,null,null,null,null,null,null,null,null,null,null,null,null,null,null,null,null,null,null,null,null,null,null,null,null,null,null,null,null,null,null,null,null,null,null,null,null,null,null,null,null,null,null,null,null,"2021-02-17","Chicago Blackhawks",2,"Detroit Red Wings",0]
[null,null,null,null,null,null,null,null,null,null,null,null,null,null,null,null,null,null,null,null,null,null,null,null,null,null,null,null,null,null,null,null,null,null,null,null,null,null,null,null,null,null,null,null,null,null,null,null,null,null,null,null,null,null,"2021-02-17","Winnipeg Jets",2,"Edmonton Oilers",3]
[null,null,null,null,null,null,null,null,null,null,null,null,null,null,null,null,null,null,null,null,null,null,null,null,null,null,null,null,null,null,null,null,null,null,null,null,null,null,null,null,null,null,null,null,null,null,null,null,null,null,null,null,null,null,"2021-02-17","Ottawa Senators",1,"Toronto Maple Leafs",2]
[null,null,null,null,null,null,null,null,null,null,null,null,null,null,null,null,null,null,null,null,null,null,null,null,null,null,null,null,null,null,null,null,null,null,null,null,null,null,null,null,null,null,null,null,null,null,null,null,null,null,null,null,null,null,"2021-02-18","Minnesota Wild",3,"Anaheim Ducks",1]
[null,null,null,null,null,null,null,null,null,null,null,null,null,null,null,null,null,null,null,null,null,null,null,null,null,null,null,null,null,null,null,null,null,null,null,null,null,null,null,null,null,null,null,null,null,null,null,null,null,null,null,null,null,null,"2021-02-18","Los Angeles Kings",3,"Arizona Coyotes",2,"SO"]
[null,null,null,null,null,null,null,null,null,null,null,null,null,null,null,null,null,null,null,null,null,null,null,null,null,null,null,null,null,null,null,null,null,null,null,null,null,null,null,null,null,null,null,null,null,null,null,null,null,null,null,null,null,null,"2021-02-18","New Jersey Devils",3,"Boston Bruins",2]
[null,null,null,null,null,null,null,null,null,null,null,null,null,null,null,null,null,null,null,null,null,null,null,null,null,null,null,null,null,null,null,null,null,null,null,null,null,null,null,null,null,null,null,null,null,null,null,null,null,null,null,null,null,null,"2021-02-18","Nashville Predators",0,"Columbus Blue Jackets",3]
[null,null,null,null,null,null,null,null,null,null,null,null,null,null,null,null,null,null,null,null,null,null,null,null,null,null,null,null,null,null,null,null,null,null,null,null,null,null,null,null,null,null,null,null,null,null,null,null,null,null,null,null,null,null,"2021-02-18","New York Rangers",3,"Philadelphia Flyers",2,"SO"]
[null,null,null,null,null,null,null,null,null,null,null,null,null,null,null,null,null,null,null,null,null,null,null,null,null,null,null,null,null,null,null,null,null,null,null,null,null,null,null,null,null,null,null,null,null,null,null,null,null,null,null,null,null,null,"2021-02-18","New York Islanders",1,"Pittsburgh Penguins",4]
[null,null,null,null,null,null,null,null,null,null,null,null,null,null,null,null,null,null,null,null,null,null,null,null,null,null,null,null,null,null,null,null,null,null,null,null,null,null,null,null,null,null,null,null,null,null,null,null,null,null,null,null,null,null,"2021-02-18","San Jose Sharks",2,"St. Louis Blues",3,"OT"]
[null,null,null,null,null,null,null,null,null,null,null,null,null,null,null,null,null,null,null,null,null,null,null,null,null,null,null,null,null,null,null,null,null,null,null,null,null,null,null,null,null,null,null,null,null,null,null,null,null,null,null,null,null,null,"2021-02-18","Ottawa Senators",3,"Toronto Maple Leafs",7]
[null,null,null,null,null,null,null,null,null,null,null,null,null,null,null,null,null,null,null,null,null,null,null,null,null,null,null,null,null,null,null,null,null,null,null,null,null,null,null,null,null,null,null,null,null,null,null,null,null,null,null,null,null,null,"2021-02-18","Buffalo Sabres",1,"Washington Capitals",3]
[null,null,null,null,null,null,null,null,null,null,null,null,null,null,null,null,null,null,null,null,null,null,null,null,null,null,null,null,null,null,null,null,null,null,null,null,null,null,null,null,null,null,null,null,null,null,null,null,null,null,null,null,null,null,"2021-02-19","Chicago Blackhawks",3,"Carolina Hurricanes",5]
[null,null,null,null,null,null,null,null,null,null,null,null,null,null,null,null,null,null,null,null,null,null,null,null,null,null,null,null,null,null,null,null,null,null,null,null,null,null,null,null,null,null,null,null,null,null,null,null,null,null,null,null,null,null,"2021-02-19","Edmonton Oilers",2,"Calgary Flames",1]
[null,null,null,null,null,null,null,null,null,null,null,null,null,null,null,null,null,null,null,null,null,null,null,null,null,null,null,null,null,null,null,null,null,null,null,null,null,null,null,null,null,null,null,null,null,null,null,null,null,null,null,null,null,null,"2021-02-19","Florida Panthers",7,"Detroit Red Wings",2]
[null,null,null,null,null,null,null,null,null,null,null,null,null,null,null,null,null,null,null,null,null,null,null,null,null,null,null,null,null,null,null,null,null,null,null,null,null,null,null,null,null,null,null,null,null,null,null,null,null,null,null,null,null,null,"2021-02-19","Winnipeg Jets",2,"Vancouver Canucks",0]
[null,null,null,null,null,null,null,null,null,null,null,null,null,null,null,null,null,null,null,null,null,null,null,null,null,null,null,null,null,null,null,null,null,null,null,null,null,null,null,null,null,null,null,null,null,null,null,null,null,null,null,null,null,null,"2021-02-20","Minnesota Wild",5,"Anaheim Ducks",1]
[null,null,null,null,null,null,null,null,null,null,null,null,null,null,null,null,null,null,null,null,null,null,null,null,null,null,null,null,null,null,null,null,null,null,null,null,null,null,null,null,null,null,null,null,null,null,null,null,null,null,null,null,null,null,"2021-02-20","Los Angeles Kings",4,"Arizona Coyotes",2]
[null,null,null,null,null,null,null,null,null,null,null,null,null,null,null,null,null,null,null,null,null,null,null,null,null,null,null,null,null,null,null,null,null,null,null,null,null,null,null,null,null,null,null,null,null,null,null,null,null,null,null,null,null,null,"2021-02-20","Tampa Bay Lightning",0,"Carolina Hurricanes",4]
[null,null,null,null,null,null,null,null,null,null,null,null,null,null,null,null,null,null,null,null,null,null,null,null,null,null,null,null,null,null,null,null,null,null,null,null,null,null,null,null,null,null,null,null,null,null,null,null,null,null,null,null,null,null,"2021-02-20","Nashville Predators",4,"Columbus Blue Jackets",2]
[null,null,null,null,null,null,null,null,null,null,null,null,null,null,null,null,null,null,null,null,null,null,null,null,null,null,null,null,null,null,null,null,null,null,null,null,null,null,null,null,null,null,null,null,null,null,null,null,null,null,null,null,null,null,"2021-02-20","Vegas Golden Knights",2,"Colorado Avalanche",3]
[null,null,null,null,null,null,null,null,null,null,null,null,null,null,null,null,null,null,null,null,null,null,null,null,null,null,null,null,null,null,null,null,null,null,null,null,null,null,null,null,null,null,null,null,null,null,null,null,null,null,null,null,null,null,"2021-02-20","Florida Panthers",1,"Detroit Red Wings",2]
[null,null,null,null,null,null,null,null,null,null,null,null,null,null,null,null,null,null,null,null,null,null,null,null,null,null,null,null,null,null,null,null,null,null,null,null,null,null,null,null,null,null,null,null,null,null,null,null,null,null,null,null,null,null,"2021-02-20","Calgary Flames",1,"Edmonton Oilers",7]
[null,null,null,null,null,null,null,null,null,null,null,null,null,null,null,null,null,null,null,null,null,null,null,null,null,null,null,null,null,null,null,null,null,null,null,null,null,null,null,null,null,null,null,null,null,null,null,null,null,null,null,null,null,null,"2021-02-20","Toronto Maple Leafs",5,"Montreal Canadiens",3]
[null,null,null,null,null,null,null,null,null,null,null,null,null,null,null,null,null,null,null,null,null,null,null,null,null,null,null,null,null,null,null,null,null,null,null,null,null,null,null,null,null,null,null,null,null,null,null,null,null,null,null,null,null,null,"2021-02-20","Buffalo Sabres",3,"New Jersey Devils",2]
[null,null,null,null,null,null,null,null,null,null,null,null,null,null,null,null,null,null,null,null,null,null,null,null,null,null,null,null,null,null,null,null,null,null,null,null,null,null,null,null,null,null,null,null,null,null,null,null,null,null,null,null,null,null,"2021-02-20","New York Islanders",2,"Pittsburgh Penguins",3]
[null,null,null,null,null,null,null,null,null,null,null,null,null,null,null,null,null,null,null,null,null,null,null,null,null,null,null,null,null,null,null,null,null,null,null,null,null,null,null,null,null,null,null,null,null,null,null,null,null,null,null,null,null,null,"2021-02-20","San Jose Sharks",5,"St. Louis Blues",4]
[null,null,null,null,null,null,null,null,null,null,null,null,null,null,null,null,null,null,null,null,null,null,null,null,null,null,null,null,null,null,null,null,null,null,null,null,null,null,null,null,null,null,null,null,null,null,null,null,null,null,null,null,null,null,"2021-02-20","New York Rangers",4,"Washington Capitals",1]
[null,null,null,null,null,null,null,null,null,null,null,null,null,null,null,null,null,null,null,null,null,null,null,null,null,null,null,null,null,null,null,null,null,null,null,null,null,null,null,null,null,null,null,null,null,null,null,null,null,null,null,null,null,null,"2021-02-21","Philadelphia Flyers",3,"Boston Bruins",7]
[null,null,null,null,null,null,null,null,null,null,null,null,null,null,null,null,null,null,null,null,null,null,null,null,null,null,null,null,null,null,null,null,null,null,null,null,null,null,null,null,null,null,null,null,null,null,null,null,null,null,null,null,null,null,"2021-02-21","Montreal Canadiens",2,"Ottawa Senators",3,"OT"]
[null,null,null,null,null,null,null,null,null,null,null,null,null,null,null,null,null,null,null,null,null,null,null,null,null,null,null,null,null,null,null,null,null,null,null,null,null,null,null,null,null,null,null,null,null,null,null,null,null,null,null,null,null,null,"2021-02-21","Winnipeg Jets",4,"Vancouver Canucks",3,"OT"]
[null,null,null,null,null,null,null,null,null,null,null,null,null,null,null,null,null,null,null,null,null,null,null,null,null,null,null,null,null,null,null,null,null,null,null,null,null,null,null,null,null,null,null,null,null,null,null,null,null,null,null,null,null,null,"2021-02-21","New Jersey Devils",3,"Washington Capitals",4]
[null,null,null,null,null,null,null,null,null,null,null,null,null,null,null,null,null,null,null,null,null,null,null,null,null,null,null,null,null,null,null,null,null,null,null,null,null,null,null,null,null,null,null,null,null,null,null,null,null,null,null,null,null,null,"2021-02-22","Anaheim Ducks",3,"Arizona Coyotes",4]
[null,null,null,null,null,null,null,null,null,null,null,null,null,null,null,null,null,null,null,null,null,null,null,null,null,null,null,null,null,null,null,null,null,null,null,null,null,null,null,null,null,null,null,null,null,null,null,null,null,null,null,null,null,null,"2021-02-22","Tampa Bay Lightning",4,"Carolina Hurricanes",2]
[null,null,null,null,null,null,null,null,null,null,null,null,null,null,null,null,null,null,null,null,null,null,null,null,null,null,null,null,null,null,null,null,null,null,null,null,null,null,null,null,null,null,null,null,null,null,null,null,null,null,null,null,null,null,"2021-02-22","Vegas Golden Knights",3,"Colorado Avalanche",0]
[null,null,null,null,null,null,null,null,null,null,null,null,null,null,null,null,null,null,null,null,null,null,null,null,null,null,null,null,null,null,null,null,null,null,null,null,null,null,null,null,null,null,null,null,null,null,null,null,null,null,null,null,null,null,"2021-02-22","Dallas Stars",1,"Florida Panthers",3]
[null,null,null,null,null,null,null,null,null,null,null,null,null,null,null,null,null,null,null,null,null,null,null,null,null,null,null,null,null,null,null,null,null,null,null,null,null,null,null,null,null,null,null,null,null,null,null,null,null,null,null,null,null,null,"2021-02-22","Buffalo Sabres",2,"New York Islanders",3]
[null,null,null,null,null,null,null,null,null,null,null,null,null,null,null,null,null,null,null,null,null,null,null,null,null,null,null,null,null,null,null,null,null,null,null,null,null,null,null,null,null,null,null,null,null,null,null,null,null,null,null,null,null,null,"2021-02-22","Minnesota Wild",6,"San Jose Sharks",2]
[null,null,null,null,null,null,null,null,null,null,null,null,null,null,null,null,null,null,null,null,null,null,null,null,null,null,null,null,null,null,null,null,null,null,null,null,null,null,null,null,null,null,null,null,null,null,null,null,null,null,null,null,null,null,"2021-02-22","Los Angeles Kings",3,"St. Louis Blues",0]
[null,null,null,null,null,null,null,null,null,null,null,null,null,null,null,null,null,null,null,null,null,null,null,null,null,null,null,null,null,null,null,null,null,null,null,null,null,null,null,null,null,null,null,null,null,null,null,null,null,null,null,null,null,null,"2021-02-22","Calgary Flames",3,"Toronto Maple Leafs",0]
[null,null,null,null,null,null,null,null,null,null,null,null,null,null,null,null,null,null,null,null,null,null,null,null,null,null,null,null,null,null,null,null,null,null,null,null,null,null,null,null,null,null,null,null,null,null,null,null,null,null,null,null,null,null,"2021-02-23","Chicago Blackhawks",6,"Columbus Blue Jackets",5,"SO"]
[null,null,null,null,null,null,null,null,null,null,null,null,null,null,null,null,null,null,null,null,null,null,null,null,null,null,null,null,null,null,null,null,null,null,null,null,null,null,null,null,null,null,null,null,null,null,null,null,null,null,null,null,null,null,"2021-02-23","Nashville Predators",2,"Detroit Red Wings",0]
[null,null,null,null,null,null,null,null,null,null,null,null,null,null,null,null,null,null,null,null,null,null,null,null,null,null,null,null,null,null,null,null,null,null,null,null,null,null,null,null,null,null,null,null,null,null,null,null,null,null,null,null,null,null,"2021-02-23","Buffalo Sabres",4,"New Jersey Devils",1]
[null,null,null,null,null,null,null,null,null,null,null,null,null,null,null,null,null,null,null,null,null,null,null,null,null,null,null,null,null,null,null,null,null,null,null,null,null,null,null,null,null,null,null,null,null,null,null,null,null,null,null,null,null,null,"2021-02-23","Montreal Canadiens",4,"Ottawa Senators",5,"SO"]
[null,null,null,null,null,null,null,null,null,null,null,null,null,null,null,null,null,null,null,null,null,null,null,null,null,null,null,null,null,null,null,null,null,null,null,null,null,null,null,null,null,null,null,null,null,null,null,null,null,null,null,null,null,null,"2021-02-23","Edmonton Oilers",4,"Vancouver Canucks",3]
[null,null,null,null,null,null,null,null,null,null,null,null,null,null,null,null,null,null,null,null,null,null,null,null,null,null,null,null,null,null,null,null,null,null,null,null,null,null,null,null,null,null,null,null,null,null,null,null,null,null,null,null,null,null,"2021-02-23","Pittsburgh Penguins",3,"Washington Capitals",2,"OT"]
[null,null,null,null,null,null,null,null,null,null,null,null,null,null,null,null,null,null,null,null,null,null,null,null,null,null,null,null,null,null,null,null,null,null,null,null,null,null,null,null,null,null,null,null,null,null,null,null,null,null,null,null,null,null,"2021-02-24","Anaheim Ducks",3,"Arizona Coyotes",4,"SO"]
[null,null,null,null,null,null,null,null,null,null,null,null,null,null,null,null,null,null,null,null,null,null,null,null,null,null,null,null,null,null,null,null,null,null,null,null,null,null,null,null,null,null,null,null,null,null,null,null,null,null,null,null,null,null,"2021-02-24","Minnesota Wild",6,"Colorado Avalanche",2]
[null,null,null,null,null,null,null,null,null,null,null,null,null,null,null,null,null,null,null,null,null,null,null,null,null,null,null,null,null,null,null,null,null,null,null,null,null,null,null,null,null,null,null,null,null,null,null,null,null,null,null,null,null,null,"2021-02-24","Dallas Stars",3,"Florida Panthers",0]
[null,null,null,null,null,null,null,null,null,null,null,null,null,null,null,null,null,null,null,null,null,null,null,null,null,null,null,null,null,null,null,null,null,null,null,null,null,null,null,null,null,null,null,null,null,null,null,null,null,null,null,null,null,null,"2021-02-24","New York Rangers",3,"Philadelphia Flyers",4]
[null,null,null,null,null,null,null,null,null,null,null,null,null,null,null,null,null,null,null,null,null,null,null,null,null,null,null,null,null,null,null,null,null,null,null,null,null,null,null,null,null,null,null,null,null,null,null,null,null,null,null,null,null,null,"2021-02-24","Los Angeles Kings",2,"St. Louis Blues",1]
[null,null,null,null,null,null,null,null,null,null,null,null,null,null,null,null,null,null,null,null,null,null,null,null,null,null,null,null,null,null,null,null,null,null,null,null,null,null,null,null,null,null,null,null,null,null,null,null,null,null,null,null,null,null,"2021-02-24","Carolina Hurricanes",0,"Tampa Bay Lightning",3]
[null,null,null,null,null,null,null,null,null,null,null,null,null,null,null,null,null,null,null,null,null,null,null,null,null,null,null,null,null,null,null,null,null,null,null,null,null,null,null,null,null,null,null,null,null,null,null,null,null,null,null,null,null,null,"2021-02-24","Calgary Flames",1,"Toronto Maple Leafs",2,"OT"]
[null,null,null,null,null,null,null,null,null,null,null,null,null,null,null,null,null,null,null,null,null,null,null,null,null,null,null,null,null,null,null,null,null,null,null,null,null,null,null,null,null,null,null,null,null,null,null,null,null,null,null,null,null,null,"2021-02-25","New Jersey Devils",4,"Buffalo Sabres",3,"OT"]
[null,null,null,null,null,null,null,null,null,null,null,null,null,null,null,null,null,null,null,null,null,null,null,null,null,null,null,null,null,null,null,null,null,null,null,null,null,null,null,null,null,null,null,null,null,null,null,null,null,null,null,null,null,null,"2021-02-25","Chicago Blackhawks",2,"Columbus Blue Jackets",0]
[null,null,null,null,null,null,null,null,null,null,null,null,null,null,null,null,null,null,null,null,null,null,null,null,null,null,null,null,null,null,null,null,null,null,null,null,null,null,null,null,null,null,null,null,null,null,null,null,null,null,null,null,null,null,"2021-02-25","Nashville Predators",2,"Detroit Red Wings",5]
[null,null,null,null,null,null,null,null,null,null,null,null,null,null,null,null,null,null,null,null,null,null,null,null,null,null,null,null,null,null,null,null,null,null,null,null,null,null,null,null,null,null,null,null,null,null,null,null,null,null,null,null,null,null,"2021-02-25","Dallas Stars",2,"Florida Panthers",3]
[null,null,null,null,null,null,null,null,null,null,null,null,null,null,null,null,null,null,null,null,null,null,null,null,null,null,null,null,null,null,null,null,null,null,null,null,null,null,null,null,null,null,null,null,null,null,null,null,null,null,null,null,null,null,"2021-02-25","Boston Bruins",2,"New York Islanders",7]
[null,null,null,null,null,null,null,null,null,null,null,null,null,null,null,null,null,null,null,null,null,null,null,null,null,null,null,null,null,null,null,null,null,null,null,null,null,null,null,null,null,null,null,null,null,null,null,null,null,null,null,null,null,null,"2021-02-25","Calgary Flames",1,"Ottawa Senators",6]
[null,null,null,null,null,null,null,null,null,null,null,null,null,null,null,null,null,null,null,null,null,null,null,null,null,null,null,null,null,null,null,null,null,null,null,null,null,null,null,null,null,null,null,null,null,null,null,null,null,null,null,null,null,null,"2021-02-25","Carolina Hurricanes",1,"Tampa Bay Lightning",3]
[null,null,null,null,null,null,null,null,null,null,null,null,null,null,null,null,null,null,null,null,null,null,null,null,null,null,null,null,null,null,null,null,null,null,null,null,null,null,null,null,null,null,null,null,null,null,null,null,null,null,null,null,null,null,"2021-02-25","Edmonton Oilers",3,"Vancouver Canucks",0]
[null,null,null,null,null,null,null,null,null,null,null,null,null,null,null,null,null,null,null,null,null,null,null,null,null,null,null,null,null,null,null,null,null,null,null,null,null,null,null,null,null,null,null,null,null,null,null,null,null,null,null,null,null,null,"2021-02-25","Montreal Canadiens",3,"Winnipeg Jets",6]
[null,null,null,null,null,null,null,null,null,null,null,null,null,null,null,null,null,null,null,null,null,null,null,null,null,null,null,null,null,null,null,null,null,null,null,null,null,null,null,null,null,null,null,null,null,null,null,null,null,null,null,null,null,null,"2021-02-25","Pittsburgh Penguins",2,"Washington Capitals",5]
[null,null,null,null,null,null,null,null,null,null,null,null,null,null,null,null,null,null,null,null,null,null,null,null,null,null,null,null,null,null,null,null,null,null,null,null,null,null,null,null,null,null,null,null,null,null,null,null,null,null,null,null,null,null,"2021-02-26","Colorado Avalanche",3,"Arizona Coyotes",2]
[null,null,null,null,null,null,null,null,null,null,null,null,null,null,null,null,null,null,null,null,null,null,null,null,null,null,null,null,null,null,null,null,null,null,null,null,null,null,null,null,null,null,null,null,null,null,null,null,null,null,null,null,null,null,"2021-02-26","Los Angeles Kings",1,"Minnesota Wild",3]
[null,null,null,null,null,null,null,null,null,null,null,null,null,null,null,null,null,null,null,null,null,null,null,null,null,null,null,null,null,null,null,null,null,null,null,null,null,null,null,null,null,null,null,null,null,null,null,null,null,null,null,null,null,null,"2021-02-26","Boston Bruins",2,"New York Rangers",6]
[null,null,null,null,null,null,null,null,null,null,null,null,null,null,null,null,null,null,null,null,null,null,null,null,null,null,null,null,null,null,null,null,null,null,null,null,null,null,null,null,null,null,null,null,null,null,null,null,null,null,null,null,null,null,"2021-02-27","Vegas Golden Knights",3,"Anaheim Ducks",2,"OT"]
[null,null,null,null,null,null,null,null,null,null,null,null,null,null,null,null,null,null,null,null,null,null,null,null,null,null,null,null,null,null,null,null,null,null,null,null,null,null,null,null,null,null,null,null,null,null,null,null,null,null,null,null,null,null,"2021-02-27","Colorado Avalanche",6,"Arizona Coyotes",2]
[null,null,null,null,null,null,null,null,null,null,null,null,null,null,null,null,null,null,null,null,null,null,null,null,null,null,null,null,null,null,null,null,null,null,null,null,null,null,null,null,null,null,null,null,null,null,null,null,null,null,null,null,null,null,"2021-02-27","Philadelphia Flyers",3,"Buffalo Sabres",0]
[null,null,null,null,null,null,null,null,null,null,null,null,null,null,null,null,null,null,null,null,null,null,null,null,null,null,null,null,null,null,null,null,null,null,null,null,null,null,null,null,null,null,null,null,null,null,null,null,null,null,null,null,null,null,"2021-02-27","Detroit Red Wings",5,"Chicago Blackhawks",3]
[null,null,null,null,null,null,null,null,null,null,null,null,null,null,null,null,null,null,null,null,null,null,null,null,null,null,null,null,null,null,null,null,null,null,null,null,null,null,null,null,null,null,null,null,null,null,null,null,null,null,null,null,null,null,"2021-02-27","Toronto Maple Leafs",4,"Edmonton Oilers",0]
[null,null,null,null,null,null,null,null,null,null,null,null,null,null,null,null,null,null,null,null,null,null,null,null,null,null,null,null,null,null,null,null,null,null,null,null,null,null,null,null,null,null,null,null,null,null,null,null,null,null,null,null,null,null,"2021-02-27","Carolina Hurricanes",4,"Florida Panthers",3,"SO"]
[null,null,null,null,null,null,null,null,null,null,null,null,null,null,null,null,null,null,null,null,null,null,null,null,null,null,null,null,null,null,null,null,null,null,null,null,null,null,null,null,null,null,null,null,null,null,null,null,null,null,null,null,null,null,"2021-02-27","Los Angeles Kings",3,"Minnesota Wild",4,"OT"]
[null,null,null,null,null,null,null,null,null,null,null,null,null,null,null,null,null,null,null,null,null,null,null,null,null,null,null,null,null,null,null,null,null,null,null,null,null,null,null,null,null,null,null,null,null,null,null,null,null,null,null,null,null,null,"2021-02-27","Washington Capitals",5,"New Jersey Devils",2]
[null,null,null,null,null,null,null,null,null,null,null,null,null,null,null,null,null,null,null,null,null,null,null,null,null,null,null,null,null,null,null,null,null,null,null,null,null,null,null,null,null,null,null,null,null,null,null,null,null,null,null,null,null,null,"2021-02-27","Columbus Blue Jackets",1,"Nashville Predators",2]
[null,null,null,null,null,null,null,null,null,null,null,null,null,null,null,null,null,null,null,null,null,null,null,null,null,null,null,null,null,null,null,null,null,null,null,null,null,null,null,null,null,null,null,null,null,null,null,null,null,null,null,null,null,null,"2021-02-27","Pittsburgh Penguins",4,"New York Islanders",3,"OT"]
[null,null,null,null,null,null,null,null,null,null,null,null,null,null,null,null,null,null,null,null,null,null,null,null,null,null,null,null,null,null,null,null,null,null,null,null,null,null,null,null,null,null,null,null,null,null,null,null,null,null,null,null,null,null,"2021-02-27","Calgary Flames",6,"Ottawa Senators",3]
[null,null,null,null,null,null,null,null,null,null,null,null,null,null,null,null,null,null,null,null,null,null,null,null,null,null,null,null,null,null,null,null,null,null,null,null,null,null,null,null,null,null,null,null,null,null,null,null,null,null,null,null,null,null,"2021-02-27","St. Louis Blues",7,"San Jose Sharks",6]
[null,null,null,null,null,null,null,null,null,null,null,null,null,null,null,null,null,null,null,null,null,null,null,null,null,null,null,null,null,null,null,null,null,null,null,null,null,null,null,null,null,null,null,null,null,null,null,null,null,null,null,null,null,null,"2021-02-27","Dallas Stars",0,"Tampa Bay Lightning",5]
[null,null,null,null,null,null,null,null,null,null,null,null,null,null,null,null,null,null,null,null,null,null,null,null,null,null,null,null,null,null,null,null,null,null,null,null,null,null,null,null,null,null,null,null,null,null,null,null,null,null,null,null,null,null,"2021-02-27","Montreal Canadiens",1,"Winnipeg Jets",2,"OT"]
[null,null,null,null,null,null,null,null,null,null,null,null,null,null,null,null,null,null,null,null,null,null,null,null,null,null,null,null,null,null,null,null,null,null,null,null,null,null,null,null,null,null,null,null,null,null,null,null,null,null,null,null,null,null,"2021-02-28","Philadelphia Flyers",3,"Buffalo Sabres",0]
[null,null,null,null,null,null,null,null,null,null,null,null,null,null,null,null,null,null,null,null,null,null,null,null,null,null,null,null,null,null,null,null,null,null,null,null,null,null,null,null,null,null,null,null,null,null,null,null,null,null,null,null,null,null,"2021-02-28","Detroit Red Wings",2,"Chicago Blackhawks",7]
[null,null,null,null,null,null,null,null,null,null,null,null,null,null,null,null,null,null,null,null,null,null,null,null,null,null,null,null,null,null,null,null,null,null,null,null,null,null,null,null,null,null,null,null,null,null,null,null,null,null,null,null,null,null,"2021-02-28","Washington Capitals",3,"New Jersey Devils",2]
[null,null,null,null,null,null,null,null,null,null,null,null,null,null,null,null,null,null,null,null,null,null,null,null,null,null,null,null,null,null,null,null,null,null,null,null,null,null,null,null,null,null,null,null,null,null,null,null,null,null,null,null,null,null,"2021-02-28","Columbus Blue Jackets",1,"Nashville Predators",3]
[null,null,null,null,null,null,null,null,null,null,null,null,null,null,null,null,null,null,null,null,null,null,null,null,null,null,null,null,null,null,null,null,null,null,null,null,null,null,null,null,null,null,null,null,null,null,null,null,null,null,null,null,null,null,"2021-02-28","Pittsburgh Penguins",0,"New York Islanders",2]
[null,null,null,null,null,null,null,null,null,null,null,null,null,null,null,null,null,null,null,null,null,null,null,null,null,null,null,null,null,null,null,null,null,null,null,null,null,null,null,null,null,null,null,null,null,null,null,null,null,null,null,null,null,null,"2021-02-28","Boston Bruins",4,"New York Rangers",1]
[null,null,null,null,null,null,null,null,null,null,null,null,null,null,null,null,null,null,null,null,null,null,null,null,null,null,null,null,null,null,null,null,null,null,null,null,null,null,null,null,null,null,null,null,null,null,null,null,null,null,null,null,null,null,"2021-03-01","St. Louis Blues",5,"Anaheim Ducks",4]
[null,null,null,null,null,null,null,null,null,null,null,null,null,null,null,null,null,null,null,null,null,null,null,null,null,null,null,null,null,null,null,null,null,null,null,null,null,null,null,null,null,null,null,null,null,null,null,null,null,null,null,null,null,null,"2021-03-01","Toronto Maple Leafs",3,"Edmonton Oilers",0]
[null,null,null,null,null,null,null,null,null,null,null,null,null,null,null,null,null,null,null,null,null,null,null,null,null,null,null,null,null,null,null,null,null,null,null,null,null,null,null,null,null,null,null,null,null,null,null,null,null,null,null,null,null,null,"2021-03-01","Carolina Hurricanes",3,"Florida Panthers",2,"OT"]
[null,null,null,null,null,null,null,null,null,null,null,null,null,null,null,null,null,null,null,null,null,null,null,null,null,null,null,null,null,null,null,null,null,null,null,null,null,null,null,null,null,null,null,null,null,null,null,null,null,null,null,null,null,null,"2021-03-01","Calgary Flames",1,"Ottawa Senators",5]
[null,null,null,null,null,null,null,null,null,null,null,null,null,null,null,null,null,null,null,null,null,null,null,null,null,null,null,null,null,null,null,null,null,null,null,null,null,null,null,null,null,null,null,null,null,null,null,null,null,null,null,null,null,null,"2021-03-01","Colorado Avalanche",2,"San Jose Sharks",6]
[null,null,null,null,null,null,null,null,null,null,null,null,null,null,null,null,null,null,null,null,null,null,null,null,null,null,null,null,null,null,null,null,null,null,null,null,null,null,null,null,null,null,null,null,null,null,null,null,null,null,null,null,null,null,"2021-03-01","Minnesota Wild",4,"Vegas Golden Knights",5,"OT"]
[null,null,null,null,null,null,null,null,null,null,null,null,null,null,null,null,null,null,null,null,null,null,null,null,null,null,null,null,null,null,null,null,null,null,null,null,null,null,null,null,null,null,null,null,null,null,null,null,null,null,null,null,null,null,"2021-03-01","Vancouver Canucks",4,"Winnipeg Jets",0]
[null,null,null,null,null,null,null,null,null,null,null,null,null,null,null,null,null,null,null,null,null,null,null,null,null,null,null,null,null,null,null,null,null,null,null,null,null,null,null,null,null,null,null,null,null,null,null,null,null,null,null,null,null,null,"2021-03-02","Detroit Red Wings",1,"Columbus Blue Jackets",4]
[null,null,null,null,null,null,null,null,null,null,null,null,null,null,null,null,null,null,null,null,null,null,null,null,null,null,null,null,null,null,null,null,null,null,null,null,null,null,null,null,null,null,null,null,null,null,null,null,null,null,null,null,null,null,"2021-03-02","Tampa Bay Lightning",2,"Dallas Stars",0]
[null,null,null,null,null,null,null,null,null,null,null,null,null,null,null,null,null,null,null,null,null,null,null,null,null,null,null,null,null,null,null,null,null,null,null,null,null,null,null,null,null,null,null,null,null,null,null,null,null,null,null,null,null,null,"2021-03-02","Ottawa Senators",1,"Montreal Canadiens",3]
[null,null,null,null,null,null,null,null,null,null,null,null,null,null,null,null,null,null,null,null,null,null,null,null,null,null,null,null,null,null,null,null,null,null,null,null,null,null,null,null,null,null,null,null,null,null,null,null,null,null,null,null,null,null,"2021-03-02","New York Islanders",2,"New Jersey Devils",1]
[null,null,null,null,null,null,null,null,null,null,null,null,null,null,null,null,null,null,null,null,null,null,null,null,null,null,null,null,null,null,null,null,null,null,null,null,null,null,null,null,null,null,null,null,null,null,null,null,null,null,null,null,null,null,"2021-03-02","Carolina Hurricanes",4,"Nashville Predators",2]
[null,null,null,null,null,null,null,null,null,null,null,null,null,null,null,null,null,null,null,null,null,null,null,null,null,null,null,null,null,null,null,null,null,null,null,null,null,null,null,null,null,null,null,null,null,null,null,null,null,null,null,null,null,null,"2021-03-02","Buffalo Sabres",2,"New York Rangers",3]
[null,null,null,null,null,null,null,null,null,null,null,null,null,null,null,null,null,null,null,null,null,null,null,null,null,null,null,null,null,null,null,null,null,null,null,null,null,null,null,null,null,null,null,null,null,null,null,null,null,null,null,null,null,null,"2021-03-02","Philadelphia Flyers",2,"Pittsburgh Penguins",5]
[null,null,null,null,null,null,null,null,null,null,null,null,null,null,null,null,null,null,null,null,null,null,null,null,null,null,null,null,null,null,null,null,null,null,null,null,null,null,null,null,null,null,null,null,null,null,null,null,null,null,null,null,null,null,"2021-03-02","Vancouver Canucks",2,"Winnipeg Jets",5]
[null,null,null,null,null,null,null,null,null,null,null,null,null,null,null,null,null,null,null,null,null,null,null,null,null,null,null,null,null,null,null,null,null,null,null,null,null,null,null,null,null,null,null,null,null,null,null,null,null,null,null,null,null,null,"2021-03-03","St. Louis Blues",3,"Anaheim Ducks",2]
[null,null,null,null,null,null,null,null,null,null,null,null,null,null,null,null,null,null,null,null,null,null,null,null,null,null,null,null,null,null,null,null,null,null,null,null,null,null,null,null,null,null,null,null,null,null,null,null,null,null,null,null,null,null,"2021-03-03","Washington Capitals",2,"Boston Bruins",1,"SO"]
[null,null,null,null,null,null,null,null,null,null,null,null,null,null,null,null,null,null,null,null,null,null,null,null,null,null,null,null,null,null,null,null,null,null,null,null,null,null,null,null,null,null,null,null,null,null,null,null,null,null,null,null,null,null,"2021-03-03","Toronto Maple Leafs",6,"Edmonton Oilers",1]
[null,null,null,null,null,null,null,null,null,null,null,null,null,null,null,null,null,null,null,null,null,null,null,null,null,null,null,null,null,null,null,null,null,null,null,null,null,null,null,null,null,null,null,null,null,null,null,null,null,null,null,null,null,null,"2021-03-03","Arizona Coyotes",3,"Los Angeles Kings",2]
[null,null,null,null,null,null,null,null,null,null,null,null,null,null,null,null,null,null,null,null,null,null,null,null,null,null,null,null,null,null,null,null,null,null,null,null,null,null,null,null,null,null,null,null,null,null,null,null,null,null,null,null,null,null,"2021-03-03","Colorado Avalanche",4,"San Jose Sharks",0]
[null,null,null,null,null,null,null,null,null,null,null,null,null,null,null,null,null,null,null,null,null,null,null,null,null,null,null,null,null,null,null,null,null,null,null,null,null,null,null,null,null,null,null,null,null,null,null,null,null,null,null,null,null,null,"2021-03-03","Minnesota Wild",1,"Vegas Golden Knights",5]
[null,null,null,null,null,null,null,null,null,null,null,null,null,null,null,null,null,null,null,null,null,null,null,null,null,null,null,null,null,null,null,null,null,null,null,null,null,null,null,null,null,null,null,null,null,null,null,null,null,null,null,null,null,null,"2021-03-04","Detroit Red Wings",null,"Carolina Hurricanes"]
[null,null,null,null,null,null,null,null,null,null,null,null,null,null,null,null,null,null,null,null,null,null,null,null,null,null,null,null,null,null,null,null,null,null,null,null,null,null,null,null,null,null,null,null,null,null,null,null,null,null,null,null,null,null,"2021-03-04","Ottawa Senators",null,"Calgary Flames"]
[null,null,null,null,null,null,null,null,null,null,null,null,null,null,null,null,null,null,null,null,null,null,null,null,null,null,null,null,null,null,null,null,null,null,null,null,null,null,null,null,null,null,null,null,null,null,null,null,null,null,null,null,null,null,"2021-03-04","Tampa Bay Lightning",null,"Chicago Blackhawks"]
[null,null,null,null,null,null,null,null,null,null,null,null,null,null,null,null,null,null,null,null,null,null,null,null,null,null,null,null,null,null,null,null,null,null,null,null,null,null,null,null,null,null,null,null,null,null,null,null,null,null,null,null,null,null,"2021-03-04","Columbus Blue Jackets",null,"Dallas Stars"]
[null,null,null,null,null,null,null,null,null,null,null,null,null,null,null,null,null,null,null,null,null,null,null,null,null,null,null,null,null,null,null,null,null,null,null,null,null,null,null,null,null,null,null,null,null,null,null,null,null,null,null,null,null,null,"2021-03-04","Winnipeg Jets",null,"Montreal Canadiens"]
[null,null,null,null,null,null,null,null,null,null,null,null,null,null,null,null,null,null,null,null,null,null,null,null,null,null,null,null,null,null,null,null,null,null,null,null,null,null,null,null,null,null,null,null,null,null,null,null,null,null,null,null,null,null,"2021-03-04","New York Rangers",null,"New Jersey Devils"]
[null,null,null,null,null,null,null,null,null,null,null,null,null,null,null,null,null,null,null,null,null,null,null,null,null,null,null,null,null,null,null,null,null,null,null,null,null,null,null,null,null,null,null,null,null,null,null,null,null,null,null,null,null,null,"2021-03-04","Florida Panthers",null,"Nashville Predators"]
[null,null,null,null,null,null,null,null,null,null,null,null,null,null,null,null,null,null,null,null,null,null,null,null,null,null,null,null,null,null,null,null,null,null,null,null,null,null,null,null,null,null,null,null,null,null,null,null,null,null,null,null,null,null,"2021-03-04","Buffalo Sabres",null,"New York Islanders"]
[null,null,null,null,null,null,null,null,null,null,null,null,null,null,null,null,null,null,null,null,null,null,null,null,null,null,null,null,null,null,null,null,null,null,null,null,null,null,null,null,null,null,null,null,null,null,null,null,null,null,null,null,null,null,"2021-03-04","Philadelphia Flyers",null,"Pittsburgh Penguins"]
[null,null,null,null,null,null,null,null,null,null,null,null,null,null,null,null,null,null,null,null,null,null,null,null,null,null,null,null,null,null,null,null,null,null,null,null,null,null,null,null,null,null,null,null,null,null,null,null,null,null,null,null,null,null,"2021-03-04","Toronto Maple Leafs",null,"Vancouver Canucks"]
[null,null,null,null,null,null,null,null,null,null,null,null,null,null,null,null,null,null,null,null,null,null,null,null,null,null,null,null,null,null,null,null,null,null,null,null,null,null,null,null,null,null,null,null,null,null,null,null,null,null,null,null,null,null,"2021-03-05","Minnesota Wild",null,"Arizona Coyotes"]
[null,null,null,null,null,null,null,null,null,null,null,null,null,null,null,null,null,null,null,null,null,null,null,null,null,null,null,null,null,null,null,null,null,null,null,null,null,null,null,null,null,null,null,null,null,null,null,null,null,null,null,null,null,null,"2021-03-05","Washington Capitals",null,"Boston Bruins"]
[null,null,null,null,null,null,null,null,null,null,null,null,null,null,null,null,null,null,null,null,null,null,null,null,null,null,null,null,null,null,null,null,null,null,null,null,null,null,null,null,null,null,null,null,null,null,null,null,null,null,null,null,null,null,"2021-03-05","Tampa Bay Lightning",null,"Chicago Blackhawks"]
[null,null,null,null,null,null,null,null,null,null,null,null,null,null,null,null,null,null,null,null,null,null,null,null,null,null,null,null,null,null,null,null,null,null,null,null,null,null,null,null,null,null,null,null,null,null,null,null,null,null,null,null,null,null,"2021-03-05","Anaheim Ducks",null,"Colorado Avalanche"]
[null,null,null,null,null,null,null,null,null,null,null,null,null,null,null,null,null,null,null,null,null,null,null,null,null,null,null,null,null,null,null,null,null,null,null,null,null,null,null,null,null,null,null,null,null,null,null,null,null,null,null,null,null,null,"2021-03-05","St. Louis Blues",null,"Los Angeles Kings"]
[null,null,null,null,null,null,null,null,null,null,null,null,null,null,null,null,null,null,null,null,null,null,null,null,null,null,null,null,null,null,null,null,null,null,null,null,null,null,null,null,null,null,null,null,null,null,null,null,null,null,null,null,null,null,"2021-03-05","Vegas Golden Knights",null,"San Jose Sharks"]
[null,null,null,null,null,null,null,null,null,null,null,null,null,null,null,null,null,null,null,null,null,null,null,null,null,null,null,null,null,null,null,null,null,null,null,null,null,null,null,null,null,null,null,null,null,null,null,null,null,null,null,null,null,null,"2021-03-06","Minnesota Wild",null,"Arizona Coyotes"]
[null,null,null,null,null,null,null,null,null,null,null,null,null,null,null,null,null,null,null,null,null,null,null,null,null,null,null,null,null,null,null,null,null,null,null,null,null,null,null,null,null,null,null,null,null,null,null,null,null,null,null,null,null,null,"2021-03-06","Anaheim Ducks",null,"Colorado Avalanche"]
[null,null,null,null,null,null,null,null,null,null,null,null,null,null,null,null,null,null,null,null,null,null,null,null,null,null,null,null,null,null,null,null,null,null,null,null,null,null,null,null,null,null,null,null,null,null,null,null,null,null,null,null,null,null,"2021-03-06","Columbus Blue Jackets",null,"Dallas Stars"]
[null,null,null,null,null,null,null,null,null,null,null,null,null,null,null,null,null,null,null,null,null,null,null,null,null,null,null,null,null,null,null,null,null,null,null,null,null,null,null,null,null,null,null,null,null,null,null,null,null,null,null,null,null,null,"2021-03-06","Calgary Flames",null,"Edmonton Oilers"]
[null,null,null,null,null,null,null,null,null,null,null,null,null,null,null,null,null,null,null,null,null,null,null,null,null,null,null,null,null,null,null,null,null,null,null,null,null,null,null,null,null,null,null,null,null,null,null,null,null,null,null,null,null,null,"2021-03-06","St. Louis Blues",null,"Los Angeles Kings"]
[null,null,null,null,null,null,null,null,null,null,null,null,null,null,null,null,null,null,null,null,null,null,null,null,null,null,null,null,null,null,null,null,null,null,null,null,null,null,null,null,null,null,null,null,null,null,null,null,null,null,null,null,null,null,"2021-03-06","Winnipeg Jets",null,"Montreal Canadiens"]
[null,null,null,null,null,null,null,null,null,null,null,null,null,null,null,null,null,null,null,null,null,null,null,null,null,null,null,null,null,null,null,null,null,null,null,null,null,null,null,null,null,null,null,null,null,null,null,null,null,null,null,null,null,null,"2021-03-06","New York Rangers",null,"New Jersey Devils"]
[null,null,null,null,null,null,null,null,null,null,null,null,null,null,null,null,null,null,null,null,null,null,null,null,null,null,null,null,null,null,null,null,null,null,null,null,null,null,null,null,null,null,null,null,null,null,null,null,null,null,null,null,null,null,"2021-03-06","Florida Panthers",null,"Nashville Predators"]
[null,null,null,null,null,null,null,null,null,null,null,null,null,null,null,null,null,null,null,null,null,null,null,null,null,null,null,null,null,null,null,null,null,null,null,null,null,null,null,null,null,null,null,null,null,null,null,null,null,null,null,null,null,null,"2021-03-06","Buffalo Sabres",null,"New York Islanders"]
[null,null,null,null,null,null,null,null,null,null,null,null,null,null,null,null,null,null,null,null,null,null,null,null,null,null,null,null,null,null,null,null,null,null,null,null,null,null,null,null,null,null,null,null,null,null,null,null,null,null,null,null,null,null,"2021-03-06","Philadelphia Flyers",null,"Pittsburgh Penguins"]
[null,null,null,null,null,null,null,null,null,null,null,null,null,null,null,null,null,null,null,null,null,null,null,null,null,null,null,null,null,null,null,null,null,null,null,null,null,null,null,null,null,null,null,null,null,null,null,null,null,null,null,null,null,null,"2021-03-06","Vegas Golden Knights",null,"San Jose Sharks"]
[null,null,null,null,null,null,null,null,null,null,null,null,null,null,null,null,null,null,null,null,null,null,null,null,null,null,null,null,null,null,null,null,null,null,null,null,null,null,null,null,null,null,null,null,null,null,null,null,null,null,null,null,null,null,"2021-03-06","Toronto Maple Leafs",null,"Vancouver Canucks"]
[null,null,null,null,null,null,null,null,null,null,null,null,null,null,null,null,null,null,null,null,null,null,null,null,null,null,null,null,null,null,null,null,null,null,null,null,null,null,null,null,null,null,null,null,null,null,null,null,null,null,null,null,null,null,"2021-03-07","New Jersey Devils",null,"Boston Bruins"]
[null,null,null,null,null,null,null,null,null,null,null,null,null,null,null,null,null,null,null,null,null,null,null,null,null,null,null,null,null,null,null,null,null,null,null,null,null,null,null,null,null,null,null,null,null,null,null,null,null,null,null,null,null,null,"2021-03-07","Florida Panthers",null,"Carolina Hurricanes"]
[null,null,null,null,null,null,null,null,null,null,null,null,null,null,null,null,null,null,null,null,null,null,null,null,null,null,null,null,null,null,null,null,null,null,null,null,null,null,null,null,null,null,null,null,null,null,null,null,null,null,null,null,null,null,"2021-03-07","Ottawa Senators",null,"Calgary Flames"]
[null,null,null,null,null,null,null,null,null,null,null,null,null,null,null,null,null,null,null,null,null,null,null,null,null,null,null,null,null,null,null,null,null,null,null,null,null,null,null,null,null,null,null,null,null,null,null,null,null,null,null,null,null,null,"2021-03-07","Tampa Bay Lightning",null,"Chicago Blackhawks"]
[null,null,null,null,null,null,null,null,null,null,null,null,null,null,null,null,null,null,null,null,null,null,null,null,null,null,null,null,null,null,null,null,null,null,null,null,null,null,null,null,null,null,null,null,null,null,null,null,null,null,null,null,null,null,"2021-03-07","Nashville Predators",null,"Dallas Stars"]
[null,null,null,null,null,null,null,null,null,null,null,null,null,null,null,null,null,null,null,null,null,null,null,null,null,null,null,null,null,null,null,null,null,null,null,null,null,null,null,null,null,null,null,null,null,null,null,null,null,null,null,null,null,null,"2021-03-07","Buffalo Sabres",null,"New York Islanders"]
[null,null,null,null,null,null,null,null,null,null,null,null,null,null,null,null,null,null,null,null,null,null,null,null,null,null,null,null,null,null,null,null,null,null,null,null,null,null,null,null,null,null,null,null,null,null,null,null,null,null,null,null,null,null,"2021-03-07","Washington Capitals",null,"Philadelphia Flyers"]
[null,null,null,null,null,null,null,null,null,null,null,null,null,null,null,null,null,null,null,null,null,null,null,null,null,null,null,null,null,null,null,null,null,null,null,null,null,null,null,null,null,null,null,null,null,null,null,null,null,null,null,null,null,null,"2021-03-07","New York Rangers",null,"Pittsburgh Penguins"]
[null,null,null,null,null,null,null,null,null,null,null,null,null,null,null,null,null,null,null,null,null,null,null,null,null,null,null,null,null,null,null,null,null,null,null,null,null,null,null,null,null,null,null,null,null,null,null,null,null,null,null,null,null,null,"2021-03-08","Los Angeles Kings",null,"Anaheim Ducks"]
[null,null,null,null,null,null,null,null,null,null,null,null,null,null,null,null,null,null,null,null,null,null,null,null,null,null,null,null,null,null,null,null,null,null,null,null,null,null,null,null,null,null,null,null,null,null,null,null,null,null,null,null,null,null,"2021-03-08","Arizona Coyotes",null,"Colorado Avalanche"]
[null,null,null,null,null,null,null,null,null,null,null,null,null,null,null,null,null,null,null,null,null,null,null,null,null,null,null,null,null,null,null,null,null,null,null,null,null,null,null,null,null,null,null,null,null,null,null,null,null,null,null,null,null,null,"2021-03-08","Ottawa Senators",null,"Edmonton Oilers"]
[null,null,null,null,null,null,null,null,null,null,null,null,null,null,null,null,null,null,null,null,null,null,null,null,null,null,null,null,null,null,null,null,null,null,null,null,null,null,null,null,null,null,null,null,null,null,null,null,null,null,null,null,null,null,"2021-03-08","Vegas Golden Knights",null,"Minnesota Wild"]
[null,null,null,null,null,null,null,null,null,null,null,null,null,null,null,null,null,null,null,null,null,null,null,null,null,null,null,null,null,null,null,null,null,null,null,null,null,null,null,null,null,null,null,null,null,null,null,null,null,null,null,null,null,null,"2021-03-08","St. Louis Blues",null,"San Jose Sharks"]
[null,null,null,null,null,null,null,null,null,null,null,null,null,null,null,null,null,null,null,null,null,null,null,null,null,null,null,null,null,null,null,null,null,null,null,null,null,null,null,null,null,null,null,null,null,null,null,null,null,null,null,null,null,null,"2021-03-08","Montreal Canadiens",null,"Vancouver Canucks"]
[null,null,null,null,null,null,null,null,null,null,null,null,null,null,null,null,null,null,null,null,null,null,null,null,null,null,null,null,null,null,null,null,null,null,null,null,null,null,null,null,null,null,null,null,null,null,null,null,null,null,null,null,null,null,"2021-03-09","Nashville Predators",null,"Carolina Hurricanes"]
[null,null,null,null,null,null,null,null,null,null,null,null,null,null,null,null,null,null,null,null,null,null,null,null,null,null,null,null,null,null,null,null,null,null,null,null,null,null,null,null,null,null,null,null,null,null,null,null,null,null,null,null,null,null,"2021-03-09","Florida Panthers",null,"Columbus Blue Jackets"]
[null,null,null,null,null,null,null,null,null,null,null,null,null,null,null,null,null,null,null,null,null,null,null,null,null,null,null,null,null,null,null,null,null,null,null,null,null,null,null,null,null,null,null,null,null,null,null,null,null,null,null,null,null,null,"2021-03-09","Chicago Blackhawks",null,"Dallas Stars"]
[null,null,null,null,null,null,null,null,null,null,null,null,null,null,null,null,null,null,null,null,null,null,null,null,null,null,null,null,null,null,null,null,null,null,null,null,null,null,null,null,null,null,null,null,null,null,null,null,null,null,null,null,null,null,"2021-03-09","Tampa Bay Lightning",null,"Detroit Red Wings"]
[null,null,null,null,null,null,null,null,null,null,null,null,null,null,null,null,null,null,null,null,null,null,null,null,null,null,null,null,null,null,null,null,null,null,null,null,null,null,null,null,null,null,null,null,null,null,null,null,null,null,null,null,null,null,"2021-03-09","Boston Bruins",null,"New York Islanders"]
[null,null,null,null,null,null,null,null,null,null,null,null,null,null,null,null,null,null,null,null,null,null,null,null,null,null,null,null,null,null,null,null,null,null,null,null,null,null,null,null,null,null,null,null,null,null,null,null,null,null,null,null,null,null,"2021-03-09","Buffalo Sabres",null,"Philadelphia Flyers"]
[null,null,null,null,null,null,null,null,null,null,null,null,null,null,null,null,null,null,null,null,null,null,null,null,null,null,null,null,null,null,null,null,null,null,null,null,null,null,null,null,null,null,null,null,null,null,null,null,null,null,null,null,null,null,"2021-03-09","New York Rangers",null,"Pittsburgh Penguins"]
[null,null,null,null,null,null,null,null,null,null,null,null,null,null,null,null,null,null,null,null,null,null,null,null,null,null,null,null,null,null,null,null,null,null,null,null,null,null,null,null,null,null,null,null,null,null,null,null,null,null,null,null,null,null,"2021-03-09","Winnipeg Jets",null,"Toronto Maple Leafs"]
[null,null,null,null,null,null,null,null,null,null,null,null,null,null,null,null,null,null,null,null,null,null,null,null,null,null,null,null,null,null,null,null,null,null,null,null,null,null,null,null,null,null,null,null,null,null,null,null,null,null,null,null,null,null,"2021-03-09","New Jersey Devils",null,"Washington Capitals"]
[null,null,null,null,null,null,null,null,null,null,null,null,null,null,null,null,null,null,null,null,null,null,null,null,null,null,null,null,null,null,null,null,null,null,null,null,null,null,null,null,null,null,null,null,null,null,null,null,null,null,null,null,null,null,"2021-03-10","Los Angeles Kings",null,"Anaheim Ducks"]
[null,null,null,null,null,null,null,null,null,null,null,null,null,null,null,null,null,null,null,null,null,null,null,null,null,null,null,null,null,null,null,null,null,null,null,null,null,null,null,null,null,null,null,null,null,null,null,null,null,null,null,null,null,null,"2021-03-10","Arizona Coyotes",null,"Colorado Avalanche"]
[null,null,null,null,null,null,null,null,null,null,null,null,null,null,null,null,null,null,null,null,null,null,null,null,null,null,null,null,null,null,null,null,null,null,null,null,null,null,null,null,null,null,null,null,null,null,null,null,null,null,null,null,null,null,"2021-03-10","Ottawa Senators",null,"Edmonton Oilers"]
[null,null,null,null,null,null,null,null,null,null,null,null,null,null,null,null,null,null,null,null,null,null,null,null,null,null,null,null,null,null,null,null,null,null,null,null,null,null,null,null,null,null,null,null,null,null,null,null,null,null,null,null,null,null,"2021-03-10","Vegas Golden Knights",null,"Minnesota Wild"]
[null,null,null,null,null,null,null,null,null,null,null,null,null,null,null,null,null,null,null,null,null,null,null,null,null,null,null,null,null,null,null,null,null,null,null,null,null,null,null,null,null,null,null,null,null,null,null,null,null,null,null,null,null,null,"2021-03-10","Montreal Canadiens",null,"Vancouver Canucks"]
[null,null,null,null,null,null,null,null,null,null,null,null,null,null,null,null,null,null,null,null,null,null,null,null,null,null,null,null,null,null,null,null,null,null,null,null,null,null,null,null,null,null,null,null,null,null,null,null,null,null,null,null,null,null,"2021-03-11","New York Rangers",null,"Boston Bruins"]
[null,null,null,null,null,null,null,null,null,null,null,null,null,null,null,null,null,null,null,null,null,null,null,null,null,null,null,null,null,null,null,null,null,null,null,null,null,null,null,null,null,null,null,null,null,null,null,null,null,null,null,null,null,null,"2021-03-11","Pittsburgh Penguins",null,"Buffalo Sabres"]
[null,null,null,null,null,null,null,null,null,null,null,null,null,null,null,null,null,null,null,null,null,null,null,null,null,null,null,null,null,null,null,null,null,null,null,null,null,null,null,null,null,null,null,null,null,null,null,null,null,null,null,null,null,null,"2021-03-11","Nashville Predators",null,"Carolina Hurricanes"]
[null,null,null,null,null,null,null,null,null,null,null,null,null,null,null,null,null,null,null,null,null,null,null,null,null,null,null,null,null,null,null,null,null,null,null,null,null,null,null,null,null,null,null,null,null,null,null,null,null,null,null,null,null,null,"2021-03-11","Florida Panthers",null,"Columbus Blue Jackets"]
[null,null,null,null,null,null,null,null,null,null,null,null,null,null,null,null,null,null,null,null,null,null,null,null,null,null,null,null,null,null,null,null,null,null,null,null,null,null,null,null,null,null,null,null,null,null,null,null,null,null,null,null,null,null,"2021-03-11","Montreal Canadiens",null,"Calgary Flames"]
[null,null,null,null,null,null,null,null,null,null,null,null,null,null,null,null,null,null,null,null,null,null,null,null,null,null,null,null,null,null,null,null,null,null,null,null,null,null,null,null,null,null,null,null,null,null,null,null,null,null,null,null,null,null,"2021-03-11","Chicago Blackhawks",null,"Dallas Stars"]
[null,null,null,null,null,null,null,null,null,null,null,null,null,null,null,null,null,null,null,null,null,null,null,null,null,null,null,null,null,null,null,null,null,null,null,null,null,null,null,null,null,null,null,null,null,null,null,null,null,null,null,null,null,null,"2021-03-11","Tampa Bay Lightning",null,"Detroit Red Wings"]
[null,null,null,null,null,null,null,null,null,null,null,null,null,null,null,null,null,null,null,null,null,null,null,null,null,null,null,null,null,null,null,null,null,null,null,null,null,null,null,null,null,null,null,null,null,null,null,null,null,null,null,null,null,null,"2021-03-11","New Jersey Devils",null,"New York Islanders"]
[null,null,null,null,null,null,null,null,null,null,null,null,null,null,null,null,null,null,null,null,null,null,null,null,null,null,null,null,null,null,null,null,null,null,null,null,null,null,null,null,null,null,null,null,null,null,null,null,null,null,null,null,null,null,"2021-03-11","Washington Capitals",null,"Philadelphia Flyers"]
[null,null,null,null,null,null,null,null,null,null,null,null,null,null,null,null,null,null,null,null,null,null,null,null,null,null,null,null,null,null,null,null,null,null,null,null,null,null,null,null,null,null,null,null,null,null,null,null,null,null,null,null,null,null,"2021-03-11","Winnipeg Jets",null,"Toronto Maple Leafs"]
[null,null,null,null,null,null,null,null,null,null,null,null,null,null,null,null,null,null,null,null,null,null,null,null,null,null,null,null,null,null,null,null,null,null,null,null,null,null,null,null,null,null,null,null,null,null,null,null,null,null,null,null,null,null,"2021-03-12","San Jose Sharks",null,"Anaheim Ducks"]
[null,null,null,null,null,null,null,null,null,null,null,null,null,null,null,null,null,null,null,null,null,null,null,null,null,null,null,null,null,null,null,null,null,null,null,null,null,null,null,null,null,null,null,null,null,null,null,null,null,null,null,null,null,null,"2021-03-12","Los Angeles Kings",null,"Colorado Avalanche"]
[null,null,null,null,null,null,null,null,null,null,null,null,null,null,null,null,null,null,null,null,null,null,null,null,null,null,null,null,null,null,null,null,null,null,null,null,null,null,null,null,null,null,null,null,null,null,null,null,null,null,null,null,null,null,"2021-03-12","Ottawa Senators",null,"Edmonton Oilers"]
[null,null,null,null,null,null,null,null,null,null,null,null,null,null,null,null,null,null,null,null,null,null,null,null,null,null,null,null,null,null,null,null,null,null,null,null,null,null,null,null,null,null,null,null,null,null,null,null,null,null,null,null,null,null,"2021-03-12","Arizona Coyotes",null,"Minnesota Wild"]
[null,null,null,null,null,null,null,null,null,null,null,null,null,null,null,null,null,null,null,null,null,null,null,null,null,null,null,null,null,null,null,null,null,null,null,null,null,null,null,null,null,null,null,null,null,null,null,null,null,null,null,null,null,null,"2021-03-12","Vegas Golden Knights",null,"St. Louis Blues"]
[null,null,null,null,null,null,null,null,null,null,null,null,null,null,null,null,null,null,null,null,null,null,null,null,null,null,null,null,null,null,null,null,null,null,null,null,null,null,null,null,null,null,null,null,null,null,null,null,null,null,null,null,null,null,"2021-03-13","San Jose Sharks",null,"Anaheim Ducks"]
[null,null,null,null,null,null,null,null,null,null,null,null,null,null,null,null,null,null,null,null,null,null,null,null,null,null,null,null,null,null,null,null,null,null,null,null,null,null,null,null,null,null,null,null,null,null,null,null,null,null,null,null,null,null,"2021-03-13","New York Rangers",null,"Boston Bruins"]
[null,null,null,null,null,null,null,null,null,null,null,null,null,null,null,null,null,null,null,null,null,null,null,null,null,null,null,null,null,null,null,null,null,null,null,null,null,null,null,null,null,null,null,null,null,null,null,null,null,null,null,null,null,null,"2021-03-13","Pittsburgh Penguins",null,"Buffalo Sabres"]
[null,null,null,null,null,null,null,null,null,null,null,null,null,null,null,null,null,null,null,null,null,null,null,null,null,null,null,null,null,null,null,null,null,null,null,null,null,null,null,null,null,null,null,null,null,null,null,null,null,null,null,null,null,null,"2021-03-13","Dallas Stars",null,"Columbus Blue Jackets"]
[null,null,null,null,null,null,null,null,null,null,null,null,null,null,null,null,null,null,null,null,null,null,null,null,null,null,null,null,null,null,null,null,null,null,null,null,null,null,null,null,null,null,null,null,null,null,null,null,null,null,null,null,null,null,"2021-03-13","Montreal Canadiens",null,"Calgary Flames"]
[null,null,null,null,null,null,null,null,null,null,null,null,null,null,null,null,null,null,null,null,null,null,null,null,null,null,null,null,null,null,null,null,null,null,null,null,null,null,null,null,null,null,null,null,null,null,null,null,null,null,null,null,null,null,"2021-03-13","Chicago Blackhawks",null,"Florida Panthers"]
[null,null,null,null,null,null,null,null,null,null,null,null,null,null,null,null,null,null,null,null,null,null,null,null,null,null,null,null,null,null,null,null,null,null,null,null,null,null,null,null,null,null,null,null,null,null,null,null,null,null,null,null,null,null,"2021-03-13","New York Islanders",null,"New Jersey Devils"]
[null,null,null,null,null,null,null,null,null,null,null,null,null,null,null,null,null,null,null,null,null,null,null,null,null,null,null,null,null,null,null,null,null,null,null,null,null,null,null,null,null,null,null,null,null,null,null,null,null,null,null,null,null,null,"2021-03-13","Washington Capitals",null,"Philadelphia Flyers"]
[null,null,null,null,null,null,null,null,null,null,null,null,null,null,null,null,null,null,null,null,null,null,null,null,null,null,null,null,null,null,null,null,null,null,null,null,null,null,null,null,null,null,null,null,null,null,null,null,null,null,null,null,null,null,"2021-03-13","Vegas Golden Knights",null,"St. Louis Blues"]
[null,null,null,null,null,null,null,null,null,null,null,null,null,null,null,null,null,null,null,null,null,null,null,null,null,null,null,null,null,null,null,null,null,null,null,null,null,null,null,null,null,null,null,null,null,null,null,null,null,null,null,null,null,null,"2021-03-13","Nashville Predators",null,"Tampa Bay Lightning"]
[null,null,null,null,null,null,null,null,null,null,null,null,null,null,null,null,null,null,null,null,null,null,null,null,null,null,null,null,null,null,null,null,null,null,null,null,null,null,null,null,null,null,null,null,null,null,null,null,null,null,null,null,null,null,"2021-03-13","Winnipeg Jets",null,"Toronto Maple Leafs"]
[null,null,null,null,null,null,null,null,null,null,null,null,null,null,null,null,null,null,null,null,null,null,null,null,null,null,null,null,null,null,null,null,null,null,null,null,null,null,null,null,null,null,null,null,null,null,null,null,null,null,null,null,null,null,"2021-03-13","Edmonton Oilers",null,"Vancouver Canucks"]
[null,null,null,null,null,null,null,null,null,null,null,null,null,null,null,null,null,null,null,null,null,null,null,null,null,null,null,null,null,null,null,null,null,null,null,null,null,null,null,null,null,null,null,null,null,null,null,null,null,null,null,null,null,null,"2021-03-14","Dallas Stars",null,"Columbus Blue Jackets"]
[null,null,null,null,null,null,null,null,null,null,null,null,null,null,null,null,null,null,null,null,null,null,null,null,null,null,null,null,null,null,null,null,null,null,null,null,null,null,null,null,null,null,null,null,null,null,null,null,null,null,null,null,null,null,"2021-03-14","Los Angeles Kings",null,"Colorado Avalanche"]
[null,null,null,null,null,null,null,null,null,null,null,null,null,null,null,null,null,null,null,null,null,null,null,null,null,null,null,null,null,null,null,null,null,null,null,null,null,null,null,null,null,null,null,null,null,null,null,null,null,null,null,null,null,null,"2021-03-14","Carolina Hurricanes",null,"Detroit Red Wings"]
[null,null,null,null,null,null,null,null,null,null,null,null,null,null,null,null,null,null,null,null,null,null,null,null,null,null,null,null,null,null,null,null,null,null,null,null,null,null,null,null,null,null,null,null,null,null,null,null,null,null,null,null,null,null,"2021-03-14","Arizona Coyotes",null,"Minnesota Wild"]
[null,null,null,null,null,null,null,null,null,null,null,null,null,null,null,null,null,null,null,null,null,null,null,null,null,null,null,null,null,null,null,null,null,null,null,null,null,null,null,null,null,null,null,null,null,null,null,null,null,null,null,null,null,null,"2021-03-14","New York Islanders",null,"New Jersey Devils"]
[null,null,null,null,null,null,null,null,null,null,null,null,null,null,null,null,null,null,null,null,null,null,null,null,null,null,null,null,null,null,null,null,null,null,null,null,null,null,null,null,null,null,null,null,null,null,null,null,null,null,null,null,null,null,"2021-03-14","Toronto Maple Leafs",null,"Ottawa Senators"]
[null,null,null,null,null,null,null,null,null,null,null,null,null,null,null,null,null,null,null,null,null,null,null,null,null,null,null,null,null,null,null,null,null,null,null,null,null,null,null,null,null,null,null,null,null,null,null,null,null,null,null,null,null,null,"2021-03-15","Washington Capitals",null,"Buffalo Sabres"]
[null,null,null,null,null,null,null,null,null,null,null,null,null,null,null,null,null,null,null,null,null,null,null,null,null,null,null,null,null,null,null,null,null,null,null,null,null,null,null,null,null,null,null,null,null,null,null,null,null,null,null,null,null,null,"2021-03-15","Edmonton Oilers",null,"Calgary Flames"]
[null,null,null,null,null,null,null,null,null,null,null,null,null,null,null,null,null,null,null,null,null,null,null,null,null,null,null,null,null,null,null,null,null,null,null,null,null,null,null,null,null,null,null,null,null,null,null,null,null,null,null,null,null,null,"2021-03-15","Chicago Blackhawks",null,"Florida Panthers"]
[null,null,null,null,null,null,null,null,null,null,null,null,null,null,null,null,null,null,null,null,null,null,null,null,null,null,null,null,null,null,null,null,null,null,null,null,null,null,null,null,null,null,null,null,null,null,null,null,null,null,null,null,null,null,"2021-03-15","St. Louis Blues",null,"Los Angeles Kings"]
[null,null,null,null,null,null,null,null,null,null,null,null,null,null,null,null,null,null,null,null,null,null,null,null,null,null,null,null,null,null,null,null,null,null,null,null,null,null,null,null,null,null,null,null,null,null,null,null,null,null,null,null,null,null,"2021-03-15","Philadelphia Flyers",null,"New York Rangers"]
[null,null,null,null,null,null,null,null,null,null,null,null,null,null,null,null,null,null,null,null,null,null,null,null,null,null,null,null,null,null,null,null,null,null,null,null,null,null,null,null,null,null,null,null,null,null,null,null,null,null,null,null,null,null,"2021-03-15","Vancouver Canucks",null,"Ottawa Senators"]
[null,null,null,null,null,null,null,null,null,null,null,null,null,null,null,null,null,null,null,null,null,null,null,null,null,null,null,null,null,null,null,null,null,null,null,null,null,null,null,null,null,null,null,null,null,null,null,null,null,null,null,null,null,null,"2021-03-15","Boston Bruins",null,"Pittsburgh Penguins"]
[null,null,null,null,null,null,null,null,null,null,null,null,null,null,null,null,null,null,null,null,null,null,null,null,null,null,null,null,null,null,null,null,null,null,null,null,null,null,null,null,null,null,null,null,null,null,null,null,null,null,null,null,null,null,"2021-03-15","Nashville Predators",null,"Tampa Bay Lightning"]
[null,null,null,null,null,null,null,null,null,null,null,null,null,null,null,null,null,null,null,null,null,null,null,null,null,null,null,null,null,null,null,null,null,null,null,null,null,null,null,null,null,null,null,null,null,null,null,null,null,null,null,null,null,null,"2021-03-15","San Jose Sharks",null,"Vegas Golden Knights"]
[null,null,null,null,null,null,null,null,null,null,null,null,null,null,null,null,null,null,null,null,null,null,null,null,null,null,null,null,null,null,null,null,null,null,null,null,null,null,null,null,null,null,null,null,null,null,null,null,null,null,null,null,null,null,"2021-03-15","Montreal Canadiens",null,"Winnipeg Jets"]
[null,null,null,null,null,null,null,null,null,null,null,null,null,null,null,null,null,null,null,null,null,null,null,null,null,null,null,null,null,null,null,null,null,null,null,null,null,null,null,null,null,null,null,null,null,null,null,null,null,null,null,null,null,null,"2021-03-16","Anaheim Ducks",null,"Colorado Avalanche"]
[null,null,null,null,null,null,null,null,null,null,null,null,null,null,null,null,null,null,null,null,null,null,null,null,null,null,null,null,null,null,null,null,null,null,null,null,null,null,null,null,null,null,null,null,null,null,null,null,null,null,null,null,null,null,"2021-03-16","Tampa Bay Lightning",null,"Dallas Stars"]
[null,null,null,null,null,null,null,null,null,null,null,null,null,null,null,null,null,null,null,null,null,null,null,null,null,null,null,null,null,null,null,null,null,null,null,null,null,null,null,null,null,null,null,null,null,null,null,null,null,null,null,null,null,null,"2021-03-16","Carolina Hurricanes",null,"Detroit Red Wings"]
[null,null,null,null,null,null,null,null,null,null,null,null,null,null,null,null,null,null,null,null,null,null,null,null,null,null,null,null,null,null,null,null,null,null,null,null,null,null,null,null,null,null,null,null,null,null,null,null,null,null,null,null,null,null,"2021-03-16","Arizona Coyotes",null,"Minnesota Wild"]
[null,null,null,null,null,null,null,null,null,null,null,null,null,null,null,null,null,null,null,null,null,null,null,null,null,null,null,null,null,null,null,null,null,null,null,null,null,null,null,null,null,null,null,null,null,null,null,null,null,null,null,null,null,null,"2021-03-16","Buffalo Sabres",null,"New Jersey Devils"]
[null,null,null,null,null,null,null,null,null,null,null,null,null,null,null,null,null,null,null,null,null,null,null,null,null,null,null,null,null,null,null,null,null,null,null,null,null,null,null,null,null,null,null,null,null,null,null,null,null,null,null,null,null,null,"2021-03-16","Boston Bruins",null,"Pittsburgh Penguins"]
[null,null,null,null,null,null,null,null,null,null,null,null,null,null,null,null,null,null,null,null,null,null,null,null,null,null,null,null,null,null,null,null,null,null,null,null,null,null,null,null,null,null,null,null,null,null,null,null,null,null,null,null,null,null,"2021-03-16","New York Islanders",null,"Washington Capitals"]
[null,null,null,null,null,null,null,null,null,null,null,null,null,null,null,null,null,null,null,null,null,null,null,null,null,null,null,null,null,null,null,null,null,null,null,null,null,null,null,null,null,null,null,null,null,null,null,null,null,null,null,null,null,null,"2021-03-17","Edmonton Oilers",null,"Calgary Flames"]
[null,null,null,null,null,null,null,null,null,null,null,null,null,null,null,null,null,null,null,null,null,null,null,null,null,null,null,null,null,null,null,null,null,null,null,null,null,null,null,null,null,null,null,null,null,null,null,null,null,null,null,null,null,null,"2021-03-17","St. Louis Blues",null,"Los Angeles Kings"]
[null,null,null,null,null,null,null,null,null,null,null,null,null,null,null,null,null,null,null,null,null,null,null,null,null,null,null,null,null,null,null,null,null,null,null,null,null,null,null,null,null,null,null,null,null,null,null,null,null,null,null,null,null,null,"2021-03-17","Philadelphia Flyers",null,"New York Rangers"]
[null,null,null,null,null,null,null,null,null,null,null,null,null,null,null,null,null,null,null,null,null,null,null,null,null,null,null,null,null,null,null,null,null,null,null,null,null,null,null,null,null,null,null,null,null,null,null,null,null,null,null,null,null,null,"2021-03-17","Vancouver Canucks",null,"Ottawa Senators"]
[null,null,null,null,null,null,null,null,null,null,null,null,null,null,null,null,null,null,null,null,null,null,null,null,null,null,null,null,null,null,null,null,null,null,null,null,null,null,null,null,null,null,null,null,null,null,null,null,null,null,null,null,null,null,"2021-03-17","San Jose Sharks",null,"Vegas Golden Knights"]
[null,null,null,null,null,null,null,null,null,null,null,null,null,null,null,null,null,null,null,null,null,null,null,null,null,null,null,null,null,null,null,null,null,null,null,null,null,null,null,null,null,null,null,null,null,null,null,null,null,null,null,null,null,null,"2021-03-17","Montreal Canadiens",null,"Winnipeg Jets"]
[null,null,null,null,null,null,null,null,null,null,null,null,null,null,null,null,null,null,null,null,null,null,null,null,null,null,null,null,null,null,null,null,null,null,null,null,null,null,null,null,null,null,null,null,null,null,null,null,null,null,null,null,null,null,"2021-03-18","Arizona Coyotes",null,"Anaheim Ducks"]
[null,null,null,null,null,null,null,null,null,null,null,null,null,null,null,null,null,null,null,null,null,null,null,null,null,null,null,null,null,null,null,null,null,null,null,null,null,null,null,null,null,null,null,null,null,null,null,null,null,null,null,null,null,null,"2021-03-18","Boston Bruins",null,"Buffalo Sabres"]
[null,null,null,null,null,null,null,null,null,null,null,null,null,null,null,null,null,null,null,null,null,null,null,null,null,null,null,null,null,null,null,null,null,null,null,null,null,null,null,null,null,null,null,null,null,null,null,null,null,null,null,null,null,null,"2021-03-18","Columbus Blue Jackets",null,"Carolina Hurricanes"]
[null,null,null,null,null,null,null,null,null,null,null,null,null,null,null,null,null,null,null,null,null,null,null,null,null,null,null,null,null,null,null,null,null,null,null,null,null,null,null,null,null,null,null,null,null,null,null,null,null,null,null,null,null,null,"2021-03-18","Minnesota Wild",null,"Colorado Avalanche"]
[null,null,null,null,null,null,null,null,null,null,null,null,null,null,null,null,null,null,null,null,null,null,null,null,null,null,null,null,null,null,null,null,null,null,null,null,null,null,null,null,null,null,null,null,null,null,null,null,null,null,null,null,null,null,"2021-03-18","Dallas Stars",null,"Detroit Red Wings"]
[null,null,null,null,null,null,null,null,null,null,null,null,null,null,null,null,null,null,null,null,null,null,null,null,null,null,null,null,null,null,null,null,null,null,null,null,null,null,null,null,null,null,null,null,null,null,null,null,null,null,null,null,null,null,"2021-03-18","Winnipeg Jets",null,"Edmonton Oilers"]
[null,null,null,null,null,null,null,null,null,null,null,null,null,null,null,null,null,null,null,null,null,null,null,null,null,null,null,null,null,null,null,null,null,null,null,null,null,null,null,null,null,null,null,null,null,null,null,null,null,null,null,null,null,null,"2021-03-18","Nashville Predators",null,"Florida Panthers"]
[null,null,null,null,null,null,null,null,null,null,null,null,null,null,null,null,null,null,null,null,null,null,null,null,null,null,null,null,null,null,null,null,null,null,null,null,null,null,null,null,null,null,null,null,null,null,null,null,null,null,null,null,null,null,"2021-03-18","Pittsburgh Penguins",null,"New Jersey Devils"]
[null,null,null,null,null,null,null,null,null,null,null,null,null,null,null,null,null,null,null,null,null,null,null,null,null,null,null,null,null,null,null,null,null,null,null,null,null,null,null,null,null,null,null,null,null,null,null,null,null,null,null,null,null,null,"2021-03-18","Philadelphia Flyers",null,"New York Islanders"]
[null,null,null,null,null,null,null,null,null,null,null,null,null,null,null,null,null,null,null,null,null,null,null,null,null,null,null,null,null,null,null,null,null,null,null,null,null,null,null,null,null,null,null,null,null,null,null,null,null,null,null,null,null,null,"2021-03-18","Chicago Blackhawks",null,"Tampa Bay Lightning"]
[null,null,null,null,null,null,null,null,null,null,null,null,null,null,null,null,null,null,null,null,null,null,null,null,null,null,null,null,null,null,null,null,null,null,null,null,null,null,null,null,null,null,null,null,null,null,null,null,null,null,null,null,null,null,"2021-03-19","Vegas Golden Knights",null,"Los Angeles Kings"]
[null,null,null,null,null,null,null,null,null,null,null,null,null,null,null,null,null,null,null,null,null,null,null,null,null,null,null,null,null,null,null,null,null,null,null,null,null,null,null,null,null,null,null,null,null,null,null,null,null,null,null,null,null,null,"2021-03-19","Vancouver Canucks",null,"Montreal Canadiens"]
[null,null,null,null,null,null,null,null,null,null,null,null,null,null,null,null,null,null,null,null,null,null,null,null,null,null,null,null,null,null,null,null,null,null,null,null,null,null,null,null,null,null,null,null,null,null,null,null,null,null,null,null,null,null,"2021-03-19","St. Louis Blues",null,"San Jose Sharks"]
[null,null,null,null,null,null,null,null,null,null,null,null,null,null,null,null,null,null,null,null,null,null,null,null,null,null,null,null,null,null,null,null,null,null,null,null,null,null,null,null,null,null,null,null,null,null,null,null,null,null,null,null,null,null,"2021-03-19","Calgary Flames",null,"Toronto Maple Leafs"]
[null,null,null,null,null,null,null,null,null,null,null,null,null,null,null,null,null,null,null,null,null,null,null,null,null,null,null,null,null,null,null,null,null,null,null,null,null,null,null,null,null,null,null,null,null,null,null,null,null,null,null,null,null,null,"2021-03-19","New York Rangers",null,"Washington Capitals"]
[null,null,null,null,null,null,null,null,null,null,null,null,null,null,null,null,null,null,null,null,null,null,null,null,null,null,null,null,null,null,null,null,null,null,null,null,null,null,null,null,null,null,null,null,null,null,null,null,null,null,null,null,null,null,"2021-03-20","Arizona Coyotes",null,"Anaheim Ducks"]
[null,null,null,null,null,null,null,null,null,null,null,null,null,null,null,null,null,null,null,null,null,null,null,null,null,null,null,null,null,null,null,null,null,null,null,null,null,null,null,null,null,null,null,null,null,null,null,null,null,null,null,null,null,null,"2021-03-20","Boston Bruins",null,"Buffalo Sabres"]
[null,null,null,null,null,null,null,null,null,null,null,null,null,null,null,null,null,null,null,null,null,null,null,null,null,null,null,null,null,null,null,null,null,null,null,null,null,null,null,null,null,null,null,null,null,null,null,null,null,null,null,null,null,null,"2021-03-20","Columbus Blue Jackets",null,"Carolina Hurricanes"]
[null,null,null,null,null,null,null,null,null,null,null,null,null,null,null,null,null,null,null,null,null,null,null,null,null,null,null,null,null,null,null,null,null,null,null,null,null,null,null,null,null,null,null,null,null,null,null,null,null,null,null,null,null,null,"2021-03-20","Minnesota Wild",null,"Colorado Avalanche"]
[null,null,null,null,null,null,null,null,null,null,null,null,null,null,null,null,null,null,null,null,null,null,null,null,null,null,null,null,null,null,null,null,null,null,null,null,null,null,null,null,null,null,null,null,null,null,null,null,null,null,null,null,null,null,"2021-03-20","Dallas Stars",null,"Detroit Red Wings"]
[null,null,null,null,null,null,null,null,null,null,null,null,null,null,null,null,null,null,null,null,null,null,null,null,null,null,null,null,null,null,null,null,null,null,null,null,null,null,null,null,null,null,null,null,null,null,null,null,null,null,null,null,null,null,"2021-03-20","Winnipeg Jets",null,"Edmonton Oilers"]
[null,null,null,null,null,null,null,null,null,null,null,null,null,null,null,null,null,null,null,null,null,null,null,null,null,null,null,null,null,null,null,null,null,null,null,null,null,null,null,null,null,null,null,null,null,null,null,null,null,null,null,null,null,null,"2021-03-20","Nashville Predators",null,"Florida Panthers"]
[null,null,null,null,null,null,null,null,null,null,null,null,null,null,null,null,null,null,null,null,null,null,null,null,null,null,null,null,null,null,null,null,null,null,null,null,null,null,null,null,null,null,null,null,null,null,null,null,null,null,null,null,null,null,"2021-03-20","Vancouver Canucks",null,"Montreal Canadiens"]
[null,null,null,null,null,null,null,null,null,null,null,null,null,null,null,null,null,null,null,null,null,null,null,null,null,null,null,null,null,null,null,null,null,null,null,null,null,null,null,null,null,null,null,null,null,null,null,null,null,null,null,null,null,null,"2021-03-20","Pittsburgh Penguins",null,"New Jersey Devils"]
[null,null,null,null,null,null,null,null,null,null,null,null,null,null,null,null,null,null,null,null,null,null,null,null,null,null,null,null,null,null,null,null,null,null,null,null,null,null,null,null,null,null,null,null,null,null,null,null,null,null,null,null,null,null,"2021-03-20","Philadelphia Flyers",null,"New York Islanders"]
[null,null,null,null,null,null,null,null,null,null,null,null,null,null,null,null,null,null,null,null,null,null,null,null,null,null,null,null,null,null,null,null,null,null,null,null,null,null,null,null,null,null,null,null,null,null,null,null,null,null,null,null,null,null,"2021-03-20","St. Louis Blues",null,"San Jose Sharks"]
[null,null,null,null,null,null,null,null,null,null,null,null,null,null,null,null,null,null,null,null,null,null,null,null,null,null,null,null,null,null,null,null,null,null,null,null,null,null,null,null,null,null,null,null,null,null,null,null,null,null,null,null,null,null,"2021-03-20","Chicago Blackhawks",null,"Tampa Bay Lightning"]
[null,null,null,null,null,null,null,null,null,null,null,null,null,null,null,null,null,null,null,null,null,null,null,null,null,null,null,null,null,null,null,null,null,null,null,null,null,null,null,null,null,null,null,null,null,null,null,null,null,null,null,null,null,null,"2021-03-20","Calgary Flames",null,"Toronto Maple Leafs"]
[null,null,null,null,null,null,null,null,null,null,null,null,null,null,null,null,null,null,null,null,null,null,null,null,null,null,null,null,null,null,null,null,null,null,null,null,null,null,null,null,null,null,null,null,null,null,null,null,null,null,null,null,null,null,"2021-03-20","New York Rangers",null,"Washington Capitals"]
[null,null,null,null,null,null,null,null,null,null,null,null,null,null,null,null,null,null,null,null,null,null,null,null,null,null,null,null,null,null,null,null,null,null,null,null,null,null,null,null,null,null,null,null,null,null,null,null,null,null,null,null,null,null,"2021-03-21","Nashville Predators",null,"Dallas Stars"]
[null,null,null,null,null,null,null,null,null,null,null,null,null,null,null,null,null,null,null,null,null,null,null,null,null,null,null,null,null,null,null,null,null,null,null,null,null,null,null,null,null,null,null,null,null,null,null,null,null,null,null,null,null,null,"2021-03-21","Vegas Golden Knights",null,"Los Angeles Kings"]
[null,null,null,null,null,null,null,null,null,null,null,null,null,null,null,null,null,null,null,null,null,null,null,null,null,null,null,null,null,null,null,null,null,null,null,null,null,null,null,null,null,null,null,null,null,null,null,null,null,null,null,null,null,null,"2021-03-21","New Jersey Devils",null,"Pittsburgh Penguins"]
[null,null,null,null,null,null,null,null,null,null,null,null,null,null,null,null,null,null,null,null,null,null,null,null,null,null,null,null,null,null,null,null,null,null,null,null,null,null,null,null,null,null,null,null,null,null,null,null,null,null,null,null,null,null,"2021-03-21","Florida Panthers",null,"Tampa Bay Lightning"]
[null,null,null,null,null,null,null,null,null,null,null,null,null,null,null,null,null,null,null,null,null,null,null,null,null,null,null,null,null,null,null,null,null,null,null,null,null,null,null,null,null,null,null,null,null,null,null,null,null,null,null,null,null,null,"2021-03-22","Colorado Avalanche",null,"Arizona Coyotes"]
[null,null,null,null,null,null,null,null,null,null,null,null,null,null,null,null,null,null,null,null,null,null,null,null,null,null,null,null,null,null,null,null,null,null,null,null,null,null,null,null,null,null,null,null,null,null,null,null,null,null,null,null,null,null,"2021-03-22","Carolina Hurricanes",null,"Columbus Blue Jackets"]
[null,null,null,null,null,null,null,null,null,null,null,null,null,null,null,null,null,null,null,null,null,null,null,null,null,null,null,null,null,null,null,null,null,null,null,null,null,null,null,null,null,null,null,null,null,null,null,null,null,null,null,null,null,null,"2021-03-22","Anaheim Ducks",null,"Minnesota Wild"]
[null,null,null,null,null,null,null,null,null,null,null,null,null,null,null,null,null,null,null,null,null,null,null,null,null,null,null,null,null,null,null,null,null,null,null,null,null,null,null,null,null,null,null,null,null,null,null,null,null,null,null,null,null,null,"2021-03-22","Edmonton Oilers",null,"Montreal Canadiens"]
[null,null,null,null,null,null,null,null,null,null,null,null,null,null,null,null,null,null,null,null,null,null,null,null,null,null,null,null,null,null,null,null,null,null,null,null,null,null,null,null,null,null,null,null,null,null,null,null,null,null,null,null,null,null,"2021-03-22","Buffalo Sabres",null,"New York Rangers"]
[null,null,null,null,null,null,null,null,null,null,null,null,null,null,null,null,null,null,null,null,null,null,null,null,null,null,null,null,null,null,null,null,null,null,null,null,null,null,null,null,null,null,null,null,null,null,null,null,null,null,null,null,null,null,"2021-03-22","Calgary Flames",null,"Ottawa Senators"]
[null,null,null,null,null,null,null,null,null,null,null,null,null,null,null,null,null,null,null,null,null,null,null,null,null,null,null,null,null,null,null,null,null,null,null,null,null,null,null,null,null,null,null,null,null,null,null,null,null,null,null,null,null,null,"2021-03-22","New York Islanders",null,"Philadelphia Flyers"]
[null,null,null,null,null,null,null,null,null,null,null,null,null,null,null,null,null,null,null,null,null,null,null,null,null,null,null,null,null,null,null,null,null,null,null,null,null,null,null,null,null,null,null,null,null,null,null,null,null,null,null,null,null,null,"2021-03-22","Los Angeles Kings",null,"San Jose Sharks"]
[null,null,null,null,null,null,null,null,null,null,null,null,null,null,null,null,null,null,null,null,null,null,null,null,null,null,null,null,null,null,null,null,null,null,null,null,null,null,null,null,null,null,null,null,null,null,null,null,null,null,null,null,null,null,"2021-03-22","Winnipeg Jets",null,"Vancouver Canucks"]
[null,null,null,null,null,null,null,null,null,null,null,null,null,null,null,null,null,null,null,null,null,null,null,null,null,null,null,null,null,null,null,null,null,null,null,null,null,null,null,null,null,null,null,null,null,null,null,null,null,null,null,null,null,null,"2021-03-23","Colorado Avalanche",null,"Arizona Coyotes"]
[null,null,null,null,null,null,null,null,null,null,null,null,null,null,null,null,null,null,null,null,null,null,null,null,null,null,null,null,null,null,null,null,null,null,null,null,null,null,null,null,null,null,null,null,null,null,null,null,null,null,null,null,null,null,"2021-03-23","New York Islanders",null,"Boston Bruins"]
[null,null,null,null,null,null,null,null,null,null,null,null,null,null,null,null,null,null,null,null,null,null,null,null,null,null,null,null,null,null,null,null,null,null,null,null,null,null,null,null,null,null,null,null,null,null,null,null,null,null,null,null,null,null,"2021-03-23","Florida Panthers",null,"Chicago Blackhawks"]
[null,null,null,null,null,null,null,null,null,null,null,null,null,null,null,null,null,null,null,null,null,null,null,null,null,null,null,null,null,null,null,null,null,null,null,null,null,null,null,null,null,null,null,null,null,null,null,null,null,null,null,null,null,null,"2021-03-23","Tampa Bay Lightning",null,"Dallas Stars"]
[null,null,null,null,null,null,null,null,null,null,null,null,null,null,null,null,null,null,null,null,null,null,null,null,null,null,null,null,null,null,null,null,null,null,null,null,null,null,null,null,null,null,null,null,null,null,null,null,null,null,null,null,null,null,"2021-03-23","Detroit Red Wings",null,"Nashville Predators"]
[null,null,null,null,null,null,null,null,null,null,null,null,null,null,null,null,null,null,null,null,null,null,null,null,null,null,null,null,null,null,null,null,null,null,null,null,null,null,null,null,null,null,null,null,null,null,null,null,null,null,null,null,null,null,"2021-03-23","New Jersey Devils",null,"Philadelphia Flyers"]
[null,null,null,null,null,null,null,null,null,null,null,null,null,null,null,null,null,null,null,null,null,null,null,null,null,null,null,null,null,null,null,null,null,null,null,null,null,null,null,null,null,null,null,null,null,null,null,null,null,null,null,null,null,null,"2021-03-24","Anaheim Ducks",null,"Minnesota Wild"]
[null,null,null,null,null,null,null,null,null,null,null,null,null,null,null,null,null,null,null,null,null,null,null,null,null,null,null,null,null,null,null,null,null,null,null,null,null,null,null,null,null,null,null,null,null,null,null,null,null,null,null,null,null,null,"2021-03-24","Edmonton Oilers",null,"Montreal Canadiens"]
[null,null,null,null,null,null,null,null,null,null,null,null,null,null,null,null,null,null,null,null,null,null,null,null,null,null,null,null,null,null,null,null,null,null,null,null,null,null,null,null,null,null,null,null,null,null,null,null,null,null,null,null,null,null,"2021-03-24","Calgary Flames",null,"Ottawa Senators"]
[null,null,null,null,null,null,null,null,null,null,null,null,null,null,null,null,null,null,null,null,null,null,null,null,null,null,null,null,null,null,null,null,null,null,null,null,null,null,null,null,null,null,null,null,null,null,null,null,null,null,null,null,null,null,"2021-03-24","Buffalo Sabres",null,"Pittsburgh Penguins"]
[null,null,null,null,null,null,null,null,null,null,null,null,null,null,null,null,null,null,null,null,null,null,null,null,null,null,null,null,null,null,null,null,null,null,null,null,null,null,null,null,null,null,null,null,null,null,null,null,null,null,null,null,null,null,"2021-03-24","Los Angeles Kings",null,"San Jose Sharks"]
[null,null,null,null,null,null,null,null,null,null,null,null,null,null,null,null,null,null,null,null,null,null,null,null,null,null,null,null,null,null,null,null,null,null,null,null,null,null,null,null,null,null,null,null,null,null,null,null,null,null,null,null,null,null,"2021-03-24","Winnipeg Jets",null,"Vancouver Canucks"]
[null,null,null,null,null,null,null,null,null,null,null,null,null,null,null,null,null,null,null,null,null,null,null,null,null,null,null,null,null,null,null,null,null,null,null,null,null,null,null,null,null,null,null,null,null,null,null,null,null,null,null,null,null,null,"2021-03-25","New York Islanders",null,"Boston Bruins"]
[null,null,null,null,null,null,null,null,null,null,null,null,null,null,null,null,null,null,null,null,null,null,null,null,null,null,null,null,null,null,null,null,null,null,null,null,null,null,null,null,null,null,null,null,null,null,null,null,null,null,null,null,null,null,"2021-03-25","Carolina Hurricanes",null,"Columbus Blue Jackets"]
[null,null,null,null,null,null,null,null,null,null,null,null,null,null,null,null,null,null,null,null,null,null,null,null,null,null,null,null,null,null,null,null,null,null,null,null,null,null,null,null,null,null,null,null,null,null,null,null,null,null,null,null,null,null,"2021-03-25","Florida Panthers",null,"Chicago Blackhawks"]
[null,null,null,null,null,null,null,null,null,null,null,null,null,null,null,null,null,null,null,null,null,null,null,null,null,null,null,null,null,null,null,null,null,null,null,null,null,null,null,null,null,null,null,null,null,null,null,null,null,null,null,null,null,null,"2021-03-25","Vegas Golden Knights",null,"Colorado Avalanche"]
[null,null,null,null,null,null,null,null,null,null,null,null,null,null,null,null,null,null,null,null,null,null,null,null,null,null,null,null,null,null,null,null,null,null,null,null,null,null,null,null,null,null,null,null,null,null,null,null,null,null,null,null,null,null,"2021-03-25","Tampa Bay Lightning",null,"Dallas Stars"]
[null,null,null,null,null,null,null,null,null,null,null,null,null,null,null,null,null,null,null,null,null,null,null,null,null,null,null,null,null,null,null,null,null,null,null,null,null,null,null,null,null,null,null,null,null,null,null,null,null,null,null,null,null,null,"2021-03-25","St. Louis Blues",null,"Minnesota Wild"]
[null,null,null,null,null,null,null,null,null,null,null,null,null,null,null,null,null,null,null,null,null,null,null,null,null,null,null,null,null,null,null,null,null,null,null,null,null,null,null,null,null,null,null,null,null,null,null,null,null,null,null,null,null,null,"2021-03-25","Detroit Red Wings",null,"Nashville Predators"]
[null,null,null,null,null,null,null,null,null,null,null,null,null,null,null,null,null,null,null,null,null,null,null,null,null,null,null,null,null,null,null,null,null,null,null,null,null,null,null,null,null,null,null,null,null,null,null,null,null,null,null,null,null,null,"2021-03-25","Toronto Maple Leafs",null,"Ottawa Senators"]
[null,null,null,null,null,null,null,null,null,null,null,null,null,null,null,null,null,null,null,null,null,null,null,null,null,null,null,null,null,null,null,null,null,null,null,null,null,null,null,null,null,null,null,null,null,null,null,null,null,null,null,null,null,null,"2021-03-25","New York Rangers",null,"Philadelphia Flyers"]
[null,null,null,null,null,null,null,null,null,null,null,null,null,null,null,null,null,null,null,null,null,null,null,null,null,null,null,null,null,null,null,null,null,null,null,null,null,null,null,null,null,null,null,null,null,null,null,null,null,null,null,null,null,null,"2021-03-25","Buffalo Sabres",null,"Pittsburgh Penguins"]
[null,null,null,null,null,null,null,null,null,null,null,null,null,null,null,null,null,null,null,null,null,null,null,null,null,null,null,null,null,null,null,null,null,null,null,null,null,null,null,null,null,null,null,null,null,null,null,null,null,null,null,null,null,null,"2021-03-25","New Jersey Devils",null,"Washington Capitals"]
[null,null,null,null,null,null,null,null,null,null,null,null,null,null,null,null,null,null,null,null,null,null,null,null,null,null,null,null,null,null,null,null,null,null,null,null,null,null,null,null,null,null,null,null,null,null,null,null,null,null,null,null,null,null,"2021-03-26","San Jose Sharks",null,"Arizona Coyotes"]
[null,null,null,null,null,null,null,null,null,null,null,null,null,null,null,null,null,null,null,null,null,null,null,null,null,null,null,null,null,null,null,null,null,null,null,null,null,null,null,null,null,null,null,null,null,null,null,null,null,null,null,null,null,null,"2021-03-26","Winnipeg Jets",null,"Calgary Flames"]
[null,null,null,null,null,null,null,null,null,null,null,null,null,null,null,null,null,null,null,null,null,null,null,null,null,null,null,null,null,null,null,null,null,null,null,null,null,null,null,null,null,null,null,null,null,null,null,null,null,null,null,null,null,null,"2021-03-26","Edmonton Oilers",null,"Montreal Canadiens"]
[null,null,null,null,null,null,null,null,null,null,null,null,null,null,null,null,null,null,null,null,null,null,null,null,null,null,null,null,null,null,null,null,null,null,null,null,null,null,null,null,null,null,null,null,null,null,null,null,null,null,null,null,null,null,"2021-03-26","Anaheim Ducks",null,"St. Louis Blues"]
[null,null,null,null,null,null,null,null,null,null,null,null,null,null,null,null,null,null,null,null,null,null,null,null,null,null,null,null,null,null,null,null,null,null,null,null,null,null,null,null,null,null,null,null,null,null,null,null,null,null,null,null,null,null,"2021-03-26","New Jersey Devils",null,"Washington Capitals"]
[null,null,null,null,null,null,null,null,null,null,null,null,null,null,null,null,null,null,null,null,null,null,null,null,null,null,null,null,null,null,null,null,null,null,null,null,null,null,null,null,null,null,null,null,null,null,null,null,null,null,null,null,null,null,"2021-03-27","San Jose Sharks",null,"Arizona Coyotes"]
[null,null,null,null,null,null,null,null,null,null,null,null,null,null,null,null,null,null,null,null,null,null,null,null,null,null,null,null,null,null,null,null,null,null,null,null,null,null,null,null,null,null,null,null,null,null,null,null,null,null,null,null,null,null,"2021-03-27","Buffalo Sabres",null,"Boston Bruins"]
[null,null,null,null,null,null,null,null,null,null,null,null,null,null,null,null,null,null,null,null,null,null,null,null,null,null,null,null,null,null,null,null,null,null,null,null,null,null,null,null,null,null,null,null,null,null,null,null,null,null,null,null,null,null,"2021-03-27","Tampa Bay Lightning",null,"Carolina Hurricanes"]
[null,null,null,null,null,null,null,null,null,null,null,null,null,null,null,null,null,null,null,null,null,null,null,null,null,null,null,null,null,null,null,null,null,null,null,null,null,null,null,null,null,null,null,null,null,null,null,null,null,null,null,null,null,null,"2021-03-27","Winnipeg Jets",null,"Calgary Flames"]
[null,null,null,null,null,null,null,null,null,null,null,null,null,null,null,null,null,null,null,null,null,null,null,null,null,null,null,null,null,null,null,null,null,null,null,null,null,null,null,null,null,null,null,null,null,null,null,null,null,null,null,null,null,null,"2021-03-27","Nashville Predators",null,"Chicago Blackhawks"]
[null,null,null,null,null,null,null,null,null,null,null,null,null,null,null,null,null,null,null,null,null,null,null,null,null,null,null,null,null,null,null,null,null,null,null,null,null,null,null,null,null,null,null,null,null,null,null,null,null,null,null,null,null,null,"2021-03-27","Vegas Golden Knights",null,"Colorado Avalanche"]
[null,null,null,null,null,null,null,null,null,null,null,null,null,null,null,null,null,null,null,null,null,null,null,null,null,null,null,null,null,null,null,null,null,null,null,null,null,null,null,null,null,null,null,null,null,null,null,null,null,null,null,null,null,null,"2021-03-27","Florida Panthers",null,"Dallas Stars"]
[null,null,null,null,null,null,null,null,null,null,null,null,null,null,null,null,null,null,null,null,null,null,null,null,null,null,null,null,null,null,null,null,null,null,null,null,null,null,null,null,null,null,null,null,null,null,null,null,null,null,null,null,null,null,"2021-03-27","Columbus Blue Jackets",null,"Detroit Red Wings"]
[null,null,null,null,null,null,null,null,null,null,null,null,null,null,null,null,null,null,null,null,null,null,null,null,null,null,null,null,null,null,null,null,null,null,null,null,null,null,null,null,null,null,null,null,null,null,null,null,null,null,null,null,null,null,"2021-03-27","New York Rangers",null,"Philadelphia Flyers"]
[null,null,null,null,null,null,null,null,null,null,null,null,null,null,null,null,null,null,null,null,null,null,null,null,null,null,null,null,null,null,null,null,null,null,null,null,null,null,null,null,null,null,null,null,null,null,null,null,null,null,null,null,null,null,"2021-03-27","New York Islanders",null,"Pittsburgh Penguins"]
[null,null,null,null,null,null,null,null,null,null,null,null,null,null,null,null,null,null,null,null,null,null,null,null,null,null,null,null,null,null,null,null,null,null,null,null,null,null,null,null,null,null,null,null,null,null,null,null,null,null,null,null,null,null,"2021-03-27","Edmonton Oilers",null,"Toronto Maple Leafs"]
[null,null,null,null,null,null,null,null,null,null,null,null,null,null,null,null,null,null,null,null,null,null,null,null,null,null,null,null,null,null,null,null,null,null,null,null,null,null,null,null,null,null,null,null,null,null,null,null,null,null,null,null,null,null,"2021-03-28","New Jersey Devils",null,"Boston Bruins"]
[null,null,null,null,null,null,null,null,null,null,null,null,null,null,null,null,null,null,null,null,null,null,null,null,null,null,null,null,null,null,null,null,null,null,null,null,null,null,null,null,null,null,null,null,null,null,null,null,null,null,null,null,null,null,"2021-03-28","Nashville Predators",null,"Chicago Blackhawks"]
[null,null,null,null,null,null,null,null,null,null,null,null,null,null,null,null,null,null,null,null,null,null,null,null,null,null,null,null,null,null,null,null,null,null,null,null,null,null,null,null,null,null,null,null,null,null,null,null,null,null,null,null,null,null,"2021-03-28","Florida Panthers",null,"Dallas Stars"]
[null,null,null,null,null,null,null,null,null,null,null,null,null,null,null,null,null,null,null,null,null,null,null,null,null,null,null,null,null,null,null,null,null,null,null,null,null,null,null,null,null,null,null,null,null,null,null,null,null,null,null,null,null,null,"2021-03-28","Columbus Blue Jackets",null,"Detroit Red Wings"]
[null,null,null,null,null,null,null,null,null,null,null,null,null,null,null,null,null,null,null,null,null,null,null,null,null,null,null,null,null,null,null,null,null,null,null,null,null,null,null,null,null,null,null,null,null,null,null,null,null,null,null,null,null,null,"2021-03-28","Ottawa Senators",null,"Montreal Canadiens"]
[null,null,null,null,null,null,null,null,null,null,null,null,null,null,null,null,null,null,null,null,null,null,null,null,null,null,null,null,null,null,null,null,null,null,null,null,null,null,null,null,null,null,null,null,null,null,null,null,null,null,null,null,null,null,"2021-03-28","Anaheim Ducks",null,"St. Louis Blues"]
[null,null,null,null,null,null,null,null,null,null,null,null,null,null,null,null,null,null,null,null,null,null,null,null,null,null,null,null,null,null,null,null,null,null,null,null,null,null,null,null,null,null,null,null,null,null,null,null,null,null,null,null,null,null,"2021-03-28","New York Rangers",null,"Washington Capitals"]
[null,null,null,null,null,null,null,null,null,null,null,null,null,null,null,null,null,null,null,null,null,null,null,null,null,null,null,null,null,null,null,null,null,null,null,null,null,null,null,null,null,null,null,null,null,null,null,null,null,null,null,null,null,null,"2021-03-29","Philadelphia Flyers",null,"Buffalo Sabres"]
[null,null,null,null,null,null,null,null,null,null,null,null,null,null,null,null,null,null,null,null,null,null,null,null,null,null,null,null,null,null,null,null,null,null,null,null,null,null,null,null,null,null,null,null,null,null,null,null,null,null,null,null,null,null,"2021-03-29","Winnipeg Jets",null,"Calgary Flames"]
[null,null,null,null,null,null,null,null,null,null,null,null,null,null,null,null,null,null,null,null,null,null,null,null,null,null,null,null,null,null,null,null,null,null,null,null,null,null,null,null,null,null,null,null,null,null,null,null,null,null,null,null,null,null,"2021-03-29","Anaheim Ducks",null,"Colorado Avalanche"]
[null,null,null,null,null,null,null,null,null,null,null,null,null,null,null,null,null,null,null,null,null,null,null,null,null,null,null,null,null,null,null,null,null,null,null,null,null,null,null,null,null,null,null,null,null,null,null,null,null,null,null,null,null,null,"2021-03-29","New York Islanders",null,"Pittsburgh Penguins"]
[null,null,null,null,null,null,null,null,null,null,null,null,null,null,null,null,null,null,null,null,null,null,null,null,null,null,null,null,null,null,null,null,null,null,null,null,null,null,null,null,null,null,null,null,null,null,null,null,null,null,null,null,null,null,"2021-03-29","Minnesota Wild",null,"San Jose Sharks"]
[null,null,null,null,null,null,null,null,null,null,null,null,null,null,null,null,null,null,null,null,null,null,null,null,null,null,null,null,null,null,null,null,null,null,null,null,null,null,null,null,null,null,null,null,null,null,null,null,null,null,null,null,null,null,"2021-03-29","Edmonton Oilers",null,"Toronto Maple Leafs"]
[null,null,null,null,null,null,null,null,null,null,null,null,null,null,null,null,null,null,null,null,null,null,null,null,null,null,null,null,null,null,null,null,null,null,null,null,null,null,null,null,null,null,null,null,null,null,null,null,null,null,null,null,null,null,"2021-03-29","Los Angeles Kings",null,"Vegas Golden Knights"]
[null,null,null,null,null,null,null,null,null,null,null,null,null,null,null,null,null,null,null,null,null,null,null,null,null,null,null,null,null,null,null,null,null,null,null,null,null,null,null,null,null,null,null,null,null,null,null,null,null,null,null,null,null,null,"2021-03-30","New Jersey Devils",null,"Boston Bruins"]
[null,null,null,null,null,null,null,null,null,null,null,null,null,null,null,null,null,null,null,null,null,null,null,null,null,null,null,null,null,null,null,null,null,null,null,null,null,null,null,null,null,null,null,null,null,null,null,null,null,null,null,null,null,null,"2021-03-30","Carolina Hurricanes",null,"Chicago Blackhawks"]
[null,null,null,null,null,null,null,null,null,null,null,null,null,null,null,null,null,null,null,null,null,null,null,null,null,null,null,null,null,null,null,null,null,null,null,null,null,null,null,null,null,null,null,null,null,null,null,null,null,null,null,null,null,null,"2021-03-30","Detroit Red Wings",null,"Florida Panthers"]
[null,null,null,null,null,null,null,null,null,null,null,null,null,null,null,null,null,null,null,null,null,null,null,null,null,null,null,null,null,null,null,null,null,null,null,null,null,null,null,null,null,null,null,null,null,null,null,null,null,null,null,null,null,null,"2021-03-30","Dallas Stars",null,"Nashville Predators"]
[null,null,null,null,null,null,null,null,null,null,null,null,null,null,null,null,null,null,null,null,null,null,null,null,null,null,null,null,null,null,null,null,null,null,null,null,null,null,null,null,null,null,null,null,null,null,null,null,null,null,null,null,null,null,"2021-03-30","Washington Capitals",null,"New York Rangers"]
[null,null,null,null,null,null,null,null,null,null,null,null,null,null,null,null,null,null,null,null,null,null,null,null,null,null,null,null,null,null,null,null,null,null,null,null,null,null,null,null,null,null,null,null,null,null,null,null,null,null,null,null,null,null,"2021-03-30","Montreal Canadiens",null,"Ottawa Senators"]
[null,null,null,null,null,null,null,null,null,null,null,null,null,null,null,null,null,null,null,null,null,null,null,null,null,null,null,null,null,null,null,null,null,null,null,null,null,null,null,null,null,null,null,null,null,null,null,null,null,null,null,null,null,null,"2021-03-30","Columbus Blue Jackets",null,"Tampa Bay Lightning"]
[null,null,null,null,null,null,null,null,null,null,null,null,null,null,null,null,null,null,null,null,null,null,null,null,null,null,null,null,null,null,null,null,null,null,null,null,null,null,null,null,null,null,null,null,null,null,null,null,null,null,null,null,null,null,"2021-03-31","Philadelphia Flyers",null,"Buffalo Sabres"]
[null,null,null,null,null,null,null,null,null,null,null,null,null,null,null,null,null,null,null,null,null,null,null,null,null,null,null,null,null,null,null,null,null,null,null,null,null,null,null,null,null,null,null,null,null,null,null,null,null,null,null,null,null,null,"2021-03-31","Arizona Coyotes",null,"Colorado Avalanche"]
[null,null,null,null,null,null,null,null,null,null,null,null,null,null,null,null,null,null,null,null,null,null,null,null,null,null,null,null,null,null,null,null,null,null,null,null,null,null,null,null,null,null,null,null,null,null,null,null,null,null,null,null,null,null,"2021-03-31","Minnesota Wild",null,"San Jose Sharks"]
[null,null,null,null,null,null,null,null,null,null,null,null,null,null,null,null,null,null,null,null,null,null,null,null,null,null,null,null,null,null,null,null,null,null,null,null,null,null,null,null,null,null,null,null,null,null,null,null,null,null,null,null,null,null,"2021-03-31","Calgary Flames",null,"Vancouver Canucks"]
[null,null,null,null,null,null,null,null,null,null,null,null,null,null,null,null,null,null,null,null,null,null,null,null,null,null,null,null,null,null,null,null,null,null,null,null,null,null,null,null,null,null,null,null,null,null,null,null,null,null,null,null,null,null,"2021-03-31","Los Angeles Kings",null,"Vegas Golden Knights"]
[null,null,null,null,null,null,null,null,null,null,null,null,null,null,null,null,null,null,null,null,null,null,null,null,null,null,null,null,null,null,null,null,null,null,null,null,null,null,null,null,null,null,null,null,null,null,null,null,null,null,null,null,null,null,"2021-03-31","Toronto Maple Leafs",null,"Winnipeg Jets"]
[null,null,null,null,null,null,null,null,null,null,null,null,null,null,null,null,null,null,null,null,null,null,null,null,null,null,null,null,null,null,null,null,null,null,null,null,null,null,null,null,null,null,null,null,null,null,null,null,null,null,null,null,null,null,"2021-04-01","Pittsburgh Penguins",null,"Boston Bruins"]
[null,null,null,null,null,null,null,null,null,null,null,null,null,null,null,null,null,null,null,null,null,null,null,null,null,null,null,null,null,null,null,null,null,null,null,null,null,null,null,null,null,null,null,null,null,null,null,null,null,null,null,null,null,null,"2021-04-01","New York Rangers",null,"Buffalo Sabres"]
[null,null,null,null,null,null,null,null,null,null,null,null,null,null,null,null,null,null,null,null,null,null,null,null,null,null,null,null,null,null,null,null,null,null,null,null,null,null,null,null,null,null,null,null,null,null,null,null,null,null,null,null,null,null,"2021-04-01","Carolina Hurricanes",null,"Chicago Blackhawks"]
[null,null,null,null,null,null,null,null,null,null,null,null,null,null,null,null,null,null,null,null,null,null,null,null,null,null,null,null,null,null,null,null,null,null,null,null,null,null,null,null,null,null,null,null,null,null,null,null,null,null,null,null,null,null,"2021-04-01","Detroit Red Wings",null,"Florida Panthers"]
[null,null,null,null,null,null,null,null,null,null,null,null,null,null,null,null,null,null,null,null,null,null,null,null,null,null,null,null,null,null,null,null,null,null,null,null,null,null,null,null,null,null,null,null,null,null,null,null,null,null,null,null,null,null,"2021-04-01","Dallas Stars",null,"Nashville Predators"]
[null,null,null,null,null,null,null,null,null,null,null,null,null,null,null,null,null,null,null,null,null,null,null,null,null,null,null,null,null,null,null,null,null,null,null,null,null,null,null,null,null,null,null,null,null,null,null,null,null,null,null,null,null,null,"2021-04-01","Washington Capitals",null,"New York Islanders"]
[null,null,null,null,null,null,null,null,null,null,null,null,null,null,null,null,null,null,null,null,null,null,null,null,null,null,null,null,null,null,null,null,null,null,null,null,null,null,null,null,null,null,null,null,null,null,null,null,null,null,null,null,null,null,"2021-04-01","Montreal Canadiens",null,"Ottawa Senators"]
[null,null,null,null,null,null,null,null,null,null,null,null,null,null,null,null,null,null,null,null,null,null,null,null,null,null,null,null,null,null,null,null,null,null,null,null,null,null,null,null,null,null,null,null,null,null,null,null,null,null,null,null,null,null,"2021-04-01","Columbus Blue Jackets",null,"Tampa Bay Lightning"]
[null,null,null,null,null,null,null,null,null,null,null,null,null,null,null,null,null,null,null,null,null,null,null,null,null,null,null,null,null,null,null,null,null,null,null,null,null,null,null,null,null,null,null,null,null,null,null,null,null,null,null,null,null,null,"2021-04-01","Minnesota Wild",null,"Vegas Golden Knights"]
[null,null,null,null,null,null,null,null,null,null,null,null,null,null,null,null,null,null,null,null,null,null,null,null,null,null,null,null,null,null,null,null,null,null,null,null,null,null,null,null,null,null,null,null,null,null,null,null,null,null,null,null,null,null,"2021-04-02","Arizona Coyotes",null,"Anaheim Ducks"]
[null,null,null,null,null,null,null,null,null,null,null,null,null,null,null,null,null,null,null,null,null,null,null,null,null,null,null,null,null,null,null,null,null,null,null,null,null,null,null,null,null,null,null,null,null,null,null,null,null,null,null,null,null,null,"2021-04-02","St. Louis Blues",null,"Colorado Avalanche"]
[null,null,null,null,null,null,null,null,null,null,null,null,null,null,null,null,null,null,null,null,null,null,null,null,null,null,null,null,null,null,null,null,null,null,null,null,null,null,null,null,null,null,null,null,null,null,null,null,null,null,null,null,null,null,"2021-04-02","Calgary Flames",null,"Edmonton Oilers"]
[null,null,null,null,null,null,null,null,null,null,null,null,null,null,null,null,null,null,null,null,null,null,null,null,null,null,null,null,null,null,null,null,null,null,null,null,null,null,null,null,null,null,null,null,null,null,null,null,null,null,null,null,null,null,"2021-04-02","San Jose Sharks",null,"Los Angeles Kings"]
[null,null,null,null,null,null,null,null,null,null,null,null,null,null,null,null,null,null,null,null,null,null,null,null,null,null,null,null,null,null,null,null,null,null,null,null,null,null,null,null,null,null,null,null,null,null,null,null,null,null,null,null,null,null,"2021-04-02","Washington Capitals",null,"New Jersey Devils"]
[null,null,null,null,null,null,null,null,null,null,null,null,null,null,null,null,null,null,null,null,null,null,null,null,null,null,null,null,null,null,null,null,null,null,null,null,null,null,null,null,null,null,null,null,null,null,null,null,null,null,null,null,null,null,"2021-04-02","Toronto Maple Leafs",null,"Winnipeg Jets"]
[null,null,null,null,null,null,null,null,null,null,null,null,null,null,null,null,null,null,null,null,null,null,null,null,null,null,null,null,null,null,null,null,null,null,null,null,null,null,null,null,null,null,null,null,null,null,null,null,null,null,null,null,null,null,"2021-04-03","Pittsburgh Penguins",null,"Boston Bruins"]
[null,null,null,null,null,null,null,null,null,null,null,null,null,null,null,null,null,null,null,null,null,null,null,null,null,null,null,null,null,null,null,null,null,null,null,null,null,null,null,null,null,null,null,null,null,null,null,null,null,null,null,null,null,null,"2021-04-03","New York Rangers",null,"Buffalo Sabres"]
[null,null,null,null,null,null,null,null,null,null,null,null,null,null,null,null,null,null,null,null,null,null,null,null,null,null,null,null,null,null,null,null,null,null,null,null,null,null,null,null,null,null,null,null,null,null,null,null,null,null,null,null,null,null,"2021-04-03","Dallas Stars",null,"Carolina Hurricanes"]
[null,null,null,null,null,null,null,null,null,null,null,null,null,null,null,null,null,null,null,null,null,null,null,null,null,null,null,null,null,null,null,null,null,null,null,null,null,null,null,null,null,null,null,null,null,null,null,null,null,null,null,null,null,null,"2021-04-03","St. Louis Blues",null,"Colorado Avalanche"]
[null,null,null,null,null,null,null,null,null,null,null,null,null,null,null,null,null,null,null,null,null,null,null,null,null,null,null,null,null,null,null,null,null,null,null,null,null,null,null,null,null,null,null,null,null,null,null,null,null,null,null,null,null,null,"2021-04-03","Vancouver Canucks",null,"Edmonton Oilers"]
[null,null,null,null,null,null,null,null,null,null,null,null,null,null,null,null,null,null,null,null,null,null,null,null,null,null,null,null,null,null,null,null,null,null,null,null,null,null,null,null,null,null,null,null,null,null,null,null,null,null,null,null,null,null,"2021-04-03","Columbus Blue Jackets",null,"Florida Panthers"]
[null,null,null,null,null,null,null,null,null,null,null,null,null,null,null,null,null,null,null,null,null,null,null,null,null,null,null,null,null,null,null,null,null,null,null,null,null,null,null,null,null,null,null,null,null,null,null,null,null,null,null,null,null,null,"2021-04-03","San Jose Sharks",null,"Los Angeles Kings"]
[null,null,null,null,null,null,null,null,null,null,null,null,null,null,null,null,null,null,null,null,null,null,null,null,null,null,null,null,null,null,null,null,null,null,null,null,null,null,null,null,null,null,null,null,null,null,null,null,null,null,null,null,null,null,"2021-04-03","Ottawa Senators",null,"Montreal Canadiens"]
[null,null,null,null,null,null,null,null,null,null,null,null,null,null,null,null,null,null,null,null,null,null,null,null,null,null,null,null,null,null,null,null,null,null,null,null,null,null,null,null,null,null,null,null,null,null,null,null,null,null,null,null,null,null,"2021-04-03","Chicago Blackhawks",null,"Nashville Predators"]
[null,null,null,null,null,null,null,null,null,null,null,null,null,null,null,null,null,null,null,null,null,null,null,null,null,null,null,null,null,null,null,null,null,null,null,null,null,null,null,null,null,null,null,null,null,null,null,null,null,null,null,null,null,null,"2021-04-03","Philadelphia Flyers",null,"New York Islanders"]
[null,null,null,null,null,null,null,null,null,null,null,null,null,null,null,null,null,null,null,null,null,null,null,null,null,null,null,null,null,null,null,null,null,null,null,null,null,null,null,null,null,null,null,null,null,null,null,null,null,null,null,null,null,null,"2021-04-03","Detroit Red Wings",null,"Tampa Bay Lightning"]
[null,null,null,null,null,null,null,null,null,null,null,null,null,null,null,null,null,null,null,null,null,null,null,null,null,null,null,null,null,null,null,null,null,null,null,null,null,null,null,null,null,null,null,null,null,null,null,null,null,null,null,null,null,null,"2021-04-03","Minnesota Wild",null,"Vegas Golden Knights"]
[null,null,null,null,null,null,null,null,null,null,null,null,null,null,null,null,null,null,null,null,null,null,null,null,null,null,null,null,null,null,null,null,null,null,null,null,null,null,null,null,null,null,null,null,null,null,null,null,null,null,null,null,null,null,"2021-04-04","Arizona Coyotes",null,"Anaheim Ducks"]
[null,null,null,null,null,null,null,null,null,null,null,null,null,null,null,null,null,null,null,null,null,null,null,null,null,null,null,null,null,null,null,null,null,null,null,null,null,null,null,null,null,null,null,null,null,null,null,null,null,null,null,null,null,null,"2021-04-04","Dallas Stars",null,"Carolina Hurricanes"]
[null,null,null,null,null,null,null,null,null,null,null,null,null,null,null,null,null,null,null,null,null,null,null,null,null,null,null,null,null,null,null,null,null,null,null,null,null,null,null,null,null,null,null,null,null,null,null,null,null,null,null,null,null,null,"2021-04-04","Toronto Maple Leafs",null,"Calgary Flames"]
[null,null,null,null,null,null,null,null,null,null,null,null,null,null,null,null,null,null,null,null,null,null,null,null,null,null,null,null,null,null,null,null,null,null,null,null,null,null,null,null,null,null,null,null,null,null,null,null,null,null,null,null,null,null,"2021-04-04","Columbus Blue Jackets",null,"Florida Panthers"]
[null,null,null,null,null,null,null,null,null,null,null,null,null,null,null,null,null,null,null,null,null,null,null,null,null,null,null,null,null,null,null,null,null,null,null,null,null,null,null,null,null,null,null,null,null,null,null,null,null,null,null,null,null,null,"2021-04-04","Washington Capitals",null,"New Jersey Devils"]
[null,null,null,null,null,null,null,null,null,null,null,null,null,null,null,null,null,null,null,null,null,null,null,null,null,null,null,null,null,null,null,null,null,null,null,null,null,null,null,null,null,null,null,null,null,null,null,null,null,null,null,null,null,null,"2021-04-04","Detroit Red Wings",null,"Tampa Bay Lightning"]
[null,null,null,null,null,null,null,null,null,null,null,null,null,null,null,null,null,null,null,null,null,null,null,null,null,null,null,null,null,null,null,null,null,null,null,null,null,null,null,null,null,null,null,null,null,null,null,null,null,null,null,null,null,null,"2021-04-04","Vancouver Canucks",null,"Winnipeg Jets"]
[null,null,null,null,null,null,null,null,null,null,null,null,null,null,null,null,null,null,null,null,null,null,null,null,null,null,null,null,null,null,null,null,null,null,null,null,null,null,null,null,null,null,null,null,null,null,null,null,null,null,null,null,null,null,"2021-04-05","Philadelphia Flyers",null,"Boston Bruins"]
[null,null,null,null,null,null,null,null,null,null,null,null,null,null,null,null,null,null,null,null,null,null,null,null,null,null,null,null,null,null,null,null,null,null,null,null,null,null,null,null,null,null,null,null,null,null,null,null,null,null,null,null,null,null,"2021-04-05","Toronto Maple Leafs",null,"Calgary Flames"]
[null,null,null,null,null,null,null,null,null,null,null,null,null,null,null,null,null,null,null,null,null,null,null,null,null,null,null,null,null,null,null,null,null,null,null,null,null,null,null,null,null,null,null,null,null,null,null,null,null,null,null,null,null,null,"2021-04-05","Arizona Coyotes",null,"Los Angeles Kings"]
[null,null,null,null,null,null,null,null,null,null,null,null,null,null,null,null,null,null,null,null,null,null,null,null,null,null,null,null,null,null,null,null,null,null,null,null,null,null,null,null,null,null,null,null,null,null,null,null,null,null,null,null,null,null,"2021-04-05","Colorado Avalanche",null,"Minnesota Wild"]
[null,null,null,null,null,null,null,null,null,null,null,null,null,null,null,null,null,null,null,null,null,null,null,null,null,null,null,null,null,null,null,null,null,null,null,null,null,null,null,null,null,null,null,null,null,null,null,null,null,null,null,null,null,null,"2021-04-05","Edmonton Oilers",null,"Montreal Canadiens"]
[null,null,null,null,null,null,null,null,null,null,null,null,null,null,null,null,null,null,null,null,null,null,null,null,null,null,null,null,null,null,null,null,null,null,null,null,null,null,null,null,null,null,null,null,null,null,null,null,null,null,null,null,null,null,"2021-04-05","Vegas Golden Knights",null,"St. Louis Blues"]
[null,null,null,null,null,null,null,null,null,null,null,null,null,null,null,null,null,null,null,null,null,null,null,null,null,null,null,null,null,null,null,null,null,null,null,null,null,null,null,null,null,null,null,null,null,null,null,null,null,null,null,null,null,null,"2021-04-06","Florida Panthers",null,"Carolina Hurricanes"]
[null,null,null,null,null,null,null,null,null,null,null,null,null,null,null,null,null,null,null,null,null,null,null,null,null,null,null,null,null,null,null,null,null,null,null,null,null,null,null,null,null,null,null,null,null,null,null,null,null,null,null,null,null,null,"2021-04-06","Tampa Bay Lightning",null,"Columbus Blue Jackets"]
[null,null,null,null,null,null,null,null,null,null,null,null,null,null,null,null,null,null,null,null,null,null,null,null,null,null,null,null,null,null,null,null,null,null,null,null,null,null,null,null,null,null,null,null,null,null,null,null,null,null,null,null,null,null,"2021-04-06","Dallas Stars",null,"Chicago Blackhawks"]
[null,null,null,null,null,null,null,null,null,null,null,null,null,null,null,null,null,null,null,null,null,null,null,null,null,null,null,null,null,null,null,null,null,null,null,null,null,null,null,null,null,null,null,null,null,null,null,null,null,null,null,null,null,null,"2021-04-06","Nashville Predators",null,"Detroit Red Wings"]
[null,null,null,null,null,null,null,null,null,null,null,null,null,null,null,null,null,null,null,null,null,null,null,null,null,null,null,null,null,null,null,null,null,null,null,null,null,null,null,null,null,null,null,null,null,null,null,null,null,null,null,null,null,null,"2021-04-06","Buffalo Sabres",null,"New Jersey Devils"]
[null,null,null,null,null,null,null,null,null,null,null,null,null,null,null,null,null,null,null,null,null,null,null,null,null,null,null,null,null,null,null,null,null,null,null,null,null,null,null,null,null,null,null,null,null,null,null,null,null,null,null,null,null,null,"2021-04-06","Washington Capitals",null,"New York Islanders"]
[null,null,null,null,null,null,null,null,null,null,null,null,null,null,null,null,null,null,null,null,null,null,null,null,null,null,null,null,null,null,null,null,null,null,null,null,null,null,null,null,null,null,null,null,null,null,null,null,null,null,null,null,null,null,"2021-04-06","Pittsburgh Penguins",null,"New York Rangers"]
[null,null,null,null,null,null,null,null,null,null,null,null,null,null,null,null,null,null,null,null,null,null,null,null,null,null,null,null,null,null,null,null,null,null,null,null,null,null,null,null,null,null,null,null,null,null,null,null,null,null,null,null,null,null,"2021-04-06","Boston Bruins",null,"Philadelphia Flyers"]
[null,null,null,null,null,null,null,null,null,null,null,null,null,null,null,null,null,null,null,null,null,null,null,null,null,null,null,null,null,null,null,null,null,null,null,null,null,null,null,null,null,null,null,null,null,null,null,null,null,null,null,null,null,null,"2021-04-06","Anaheim Ducks",null,"San Jose Sharks"]
[null,null,null,null,null,null,null,null,null,null,null,null,null,null,null,null,null,null,null,null,null,null,null,null,null,null,null,null,null,null,null,null,null,null,null,null,null,null,null,null,null,null,null,null,null,null,null,null,null,null,null,null,null,null,"2021-04-06","Vancouver Canucks",null,"Winnipeg Jets"]
[null,null,null,null,null,null,null,null,null,null,null,null,null,null,null,null,null,null,null,null,null,null,null,null,null,null,null,null,null,null,null,null,null,null,null,null,null,null,null,null,null,null,null,null,null,null,null,null,null,null,null,null,null,null,"2021-04-07","Arizona Coyotes",null,"Los Angeles Kings"]
[null,null,null,null,null,null,null,null,null,null,null,null,null,null,null,null,null,null,null,null,null,null,null,null,null,null,null,null,null,null,null,null,null,null,null,null,null,null,null,null,null,null,null,null,null,null,null,null,null,null,null,null,null,null,"2021-04-07","Colorado Avalanche",null,"Minnesota Wild"]
[null,null,null,null,null,null,null,null,null,null,null,null,null,null,null,null,null,null,null,null,null,null,null,null,null,null,null,null,null,null,null,null,null,null,null,null,null,null,null,null,null,null,null,null,null,null,null,null,null,null,null,null,null,null,"2021-04-07","Edmonton Oilers",null,"Ottawa Senators"]
[null,null,null,null,null,null,null,null,null,null,null,null,null,null,null,null,null,null,null,null,null,null,null,null,null,null,null,null,null,null,null,null,null,null,null,null,null,null,null,null,null,null,null,null,null,null,null,null,null,null,null,null,null,null,"2021-04-07","Vegas Golden Knights",null,"St. Louis Blues"]
[null,null,null,null,null,null,null,null,null,null,null,null,null,null,null,null,null,null,null,null,null,null,null,null,null,null,null,null,null,null,null,null,null,null,null,null,null,null,null,null,null,null,null,null,null,null,null,null,null,null,null,null,null,null,"2021-04-07","Montreal Canadiens",null,"Toronto Maple Leafs"]
[null,null,null,null,null,null,null,null,null,null,null,null,null,null,null,null,null,null,null,null,null,null,null,null,null,null,null,null,null,null,null,null,null,null,null,null,null,null,null,null,null,null,null,null,null,null,null,null,null,null,null,null,null,null,"2021-04-08","New Jersey Devils",null,"Buffalo Sabres"]
[null,null,null,null,null,null,null,null,null,null,null,null,null,null,null,null,null,null,null,null,null,null,null,null,null,null,null,null,null,null,null,null,null,null,null,null,null,null,null,null,null,null,null,null,null,null,null,null,null,null,null,null,null,null,"2021-04-08","Florida Panthers",null,"Carolina Hurricanes"]
[null,null,null,null,null,null,null,null,null,null,null,null,null,null,null,null,null,null,null,null,null,null,null,null,null,null,null,null,null,null,null,null,null,null,null,null,null,null,null,null,null,null,null,null,null,null,null,null,null,null,null,null,null,null,"2021-04-08","Tampa Bay Lightning",null,"Columbus Blue Jackets"]
[null,null,null,null,null,null,null,null,null,null,null,null,null,null,null,null,null,null,null,null,null,null,null,null,null,null,null,null,null,null,null,null,null,null,null,null,null,null,null,null,null,null,null,null,null,null,null,null,null,null,null,null,null,null,"2021-04-08","Vancouver Canucks",null,"Calgary Flames"]
[null,null,null,null,null,null,null,null,null,null,null,null,null,null,null,null,null,null,null,null,null,null,null,null,null,null,null,null,null,null,null,null,null,null,null,null,null,null,null,null,null,null,null,null,null,null,null,null,null,null,null,null,null,null,"2021-04-08","Dallas Stars",null,"Chicago Blackhawks"]
[null,null,null,null,null,null,null,null,null,null,null,null,null,null,null,null,null,null,null,null,null,null,null,null,null,null,null,null,null,null,null,null,null,null,null,null,null,null,null,null,null,null,null,null,null,null,null,null,null,null,null,null,null,null,"2021-04-08","Nashville Predators",null,"Detroit Red Wings"]
[null,null,null,null,null,null,null,null,null,null,null,null,null,null,null,null,null,null,null,null,null,null,null,null,null,null,null,null,null,null,null,null,null,null,null,null,null,null,null,null,null,null,null,null,null,null,null,null,null,null,null,null,null,null,"2021-04-08","Winnipeg Jets",null,"Montreal Canadiens"]
[null,null,null,null,null,null,null,null,null,null,null,null,null,null,null,null,null,null,null,null,null,null,null,null,null,null,null,null,null,null,null,null,null,null,null,null,null,null,null,null,null,null,null,null,null,null,null,null,null,null,null,null,null,null,"2021-04-08","Philadelphia Flyers",null,"New York Islanders"]
[null,null,null,null,null,null,null,null,null,null,null,null,null,null,null,null,null,null,null,null,null,null,null,null,null,null,null,null,null,null,null,null,null,null,null,null,null,null,null,null,null,null,null,null,null,null,null,null,null,null,null,null,null,null,"2021-04-08","Pittsburgh Penguins",null,"New York Rangers"]
[null,null,null,null,null,null,null,null,null,null,null,null,null,null,null,null,null,null,null,null,null,null,null,null,null,null,null,null,null,null,null,null,null,null,null,null,null,null,null,null,null,null,null,null,null,null,null,null,null,null,null,null,null,null,"2021-04-08","Boston Bruins",null,"Washington Capitals"]
[null,null,null,null,null,null,null,null,null,null,null,null,null,null,null,null,null,null,null,null,null,null,null,null,null,null,null,null,null,null,null,null,null,null,null,null,null,null,null,null,null,null,null,null,null,null,null,null,null,null,null,null,null,null,"2021-04-09","Colorado Avalanche",null,"Anaheim Ducks"]
[null,null,null,null,null,null,null,null,null,null,null,null,null,null,null,null,null,null,null,null,null,null,null,null,null,null,null,null,null,null,null,null,null,null,null,null,null,null,null,null,null,null,null,null,null,null,null,null,null,null,null,null,null,null,"2021-04-09","Washington Capitals",null,"Buffalo Sabres"]
[null,null,null,null,null,null,null,null,null,null,null,null,null,null,null,null,null,null,null,null,null,null,null,null,null,null,null,null,null,null,null,null,null,null,null,null,null,null,null,null,null,null,null,null,null,null,null,null,null,null,null,null,null,null,"2021-04-09","Pittsburgh Penguins",null,"New Jersey Devils"]
[null,null,null,null,null,null,null,null,null,null,null,null,null,null,null,null,null,null,null,null,null,null,null,null,null,null,null,null,null,null,null,null,null,null,null,null,null,null,null,null,null,null,null,null,null,null,null,null,null,null,null,null,null,null,"2021-04-09","New York Rangers",null,"New York Islanders"]
[null,null,null,null,null,null,null,null,null,null,null,null,null,null,null,null,null,null,null,null,null,null,null,null,null,null,null,null,null,null,null,null,null,null,null,null,null,null,null,null,null,null,null,null,null,null,null,null,null,null,null,null,null,null,"2021-04-09","Edmonton Oilers",null,"Ottawa Senators"]
[null,null,null,null,null,null,null,null,null,null,null,null,null,null,null,null,null,null,null,null,null,null,null,null,null,null,null,null,null,null,null,null,null,null,null,null,null,null,null,null,null,null,null,null,null,null,null,null,null,null,null,null,null,null,"2021-04-09","Los Angeles Kings",null,"San Jose Sharks"]
[null,null,null,null,null,null,null,null,null,null,null,null,null,null,null,null,null,null,null,null,null,null,null,null,null,null,null,null,null,null,null,null,null,null,null,null,null,null,null,null,null,null,null,null,null,null,null,null,null,null,null,null,null,null,"2021-04-09","Minnesota Wild",null,"St. Louis Blues"]
[null,null,null,null,null,null,null,null,null,null,null,null,null,null,null,null,null,null,null,null,null,null,null,null,null,null,null,null,null,null,null,null,null,null,null,null,null,null,null,null,null,null,null,null,null,null,null,null,null,null,null,null,null,null,"2021-04-09","Arizona Coyotes",null,"Vegas Golden Knights"]
[null,null,null,null,null,null,null,null,null,null,null,null,null,null,null,null,null,null,null,null,null,null,null,null,null,null,null,null,null,null,null,null,null,null,null,null,null,null,null,null,null,null,null,null,null,null,null,null,null,null,null,null,null,null,"2021-04-10","Detroit Red Wings",null,"Carolina Hurricanes"]
[null,null,null,null,null,null,null,null,null,null,null,null,null,null,null,null,null,null,null,null,null,null,null,null,null,null,null,null,null,null,null,null,null,null,null,null,null,null,null,null,null,null,null,null,null,null,null,null,null,null,null,null,null,null,"2021-04-10","Chicago Blackhawks",null,"Columbus Blue Jackets"]
[null,null,null,null,null,null,null,null,null,null,null,null,null,null,null,null,null,null,null,null,null,null,null,null,null,null,null,null,null,null,null,null,null,null,null,null,null,null,null,null,null,null,null,null,null,null,null,null,null,null,null,null,null,null,"2021-04-10","Vancouver Canucks",null,"Calgary Flames"]
[null,null,null,null,null,null,null,null,null,null,null,null,null,null,null,null,null,null,null,null,null,null,null,null,null,null,null,null,null,null,null,null,null,null,null,null,null,null,null,null,null,null,null,null,null,null,null,null,null,null,null,null,null,null,"2021-04-10","Florida Panthers",null,"Dallas Stars"]
[null,null,null,null,null,null,null,null,null,null,null,null,null,null,null,null,null,null,null,null,null,null,null,null,null,null,null,null,null,null,null,null,null,null,null,null,null,null,null,null,null,null,null,null,null,null,null,null,null,null,null,null,null,null,"2021-04-10","Winnipeg Jets",null,"Montreal Canadiens"]
[null,null,null,null,null,null,null,null,null,null,null,null,null,null,null,null,null,null,null,null,null,null,null,null,null,null,null,null,null,null,null,null,null,null,null,null,null,null,null,null,null,null,null,null,null,null,null,null,null,null,null,null,null,null,"2021-04-10","Tampa Bay Lightning",null,"Nashville Predators"]
[null,null,null,null,null,null,null,null,null,null,null,null,null,null,null,null,null,null,null,null,null,null,null,null,null,null,null,null,null,null,null,null,null,null,null,null,null,null,null,null,null,null,null,null,null,null,null,null,null,null,null,null,null,null,"2021-04-10","Boston Bruins",null,"Philadelphia Flyers"]
[null,null,null,null,null,null,null,null,null,null,null,null,null,null,null,null,null,null,null,null,null,null,null,null,null,null,null,null,null,null,null,null,null,null,null,null,null,null,null,null,null,null,null,null,null,null,null,null,null,null,null,null,null,null,"2021-04-10","Los Angeles Kings",null,"San Jose Sharks"]
[null,null,null,null,null,null,null,null,null,null,null,null,null,null,null,null,null,null,null,null,null,null,null,null,null,null,null,null,null,null,null,null,null,null,null,null,null,null,null,null,null,null,null,null,null,null,null,null,null,null,null,null,null,null,"2021-04-10","Minnesota Wild",null,"St. Louis Blues"]
[null,null,null,null,null,null,null,null,null,null,null,null,null,null,null,null,null,null,null,null,null,null,null,null,null,null,null,null,null,null,null,null,null,null,null,null,null,null,null,null,null,null,null,null,null,null,null,null,null,null,null,null,null,null,"2021-04-10","Ottawa Senators",null,"Toronto Maple Leafs"]
[null,null,null,null,null,null,null,null,null,null,null,null,null,null,null,null,null,null,null,null,null,null,null,null,null,null,null,null,null,null,null,null,null,null,null,null,null,null,null,null,null,null,null,null,null,null,null,null,null,null,null,null,null,null,"2021-04-11","Colorado Avalanche",null,"Anaheim Ducks"]
[null,null,null,null,null,null,null,null,null,null,null,null,null,null,null,null,null,null,null,null,null,null,null,null,null,null,null,null,null,null,null,null,null,null,null,null,null,null,null,null,null,null,null,null,null,null,null,null,null,null,null,null,null,null,"2021-04-11","Pittsburgh Penguins",null,"New Jersey Devils"]
[null,null,null,null,null,null,null,null,null,null,null,null,null,null,null,null,null,null,null,null,null,null,null,null,null,null,null,null,null,null,null,null,null,null,null,null,null,null,null,null,null,null,null,null,null,null,null,null,null,null,null,null,null,null,"2021-04-11","Dallas Stars",null,"Nashville Predators"]
[null,null,null,null,null,null,null,null,null,null,null,null,null,null,null,null,null,null,null,null,null,null,null,null,null,null,null,null,null,null,null,null,null,null,null,null,null,null,null,null,null,null,null,null,null,null,null,null,null,null,null,null,null,null,"2021-04-11","New York Rangers",null,"New York Islanders"]
[null,null,null,null,null,null,null,null,null,null,null,null,null,null,null,null,null,null,null,null,null,null,null,null,null,null,null,null,null,null,null,null,null,null,null,null,null,null,null,null,null,null,null,null,null,null,null,null,null,null,null,null,null,null,"2021-04-11","Buffalo Sabres",null,"Philadelphia Flyers"]
[null,null,null,null,null,null,null,null,null,null,null,null,null,null,null,null,null,null,null,null,null,null,null,null,null,null,null,null,null,null,null,null,null,null,null,null,null,null,null,null,null,null,null,null,null,null,null,null,null,null,null,null,null,null,"2021-04-11","Arizona Coyotes",null,"Vegas Golden Knights"]
[null,null,null,null,null,null,null,null,null,null,null,null,null,null,null,null,null,null,null,null,null,null,null,null,null,null,null,null,null,null,null,null,null,null,null,null,null,null,null,null,null,null,null,null,null,null,null,null,null,null,null,null,null,null,"2021-04-11","Boston Bruins",null,"Washington Capitals"]
[null,null,null,null,null,null,null,null,null,null,null,null,null,null,null,null,null,null,null,null,null,null,null,null,null,null,null,null,null,null,null,null,null,null,null,null,null,null,null,null,null,null,null,null,null,null,null,null,null,null,null,null,null,null,"2021-04-12","Detroit Red Wings",null,"Carolina Hurricanes"]
[null,null,null,null,null,null,null,null,null,null,null,null,null,null,null,null,null,null,null,null,null,null,null,null,null,null,null,null,null,null,null,null,null,null,null,null,null,null,null,null,null,null,null,null,null,null,null,null,null,null,null,null,null,null,"2021-04-12","Chicago Blackhawks",null,"Columbus Blue Jackets"]
[null,null,null,null,null,null,null,null,null,null,null,null,null,null,null,null,null,null,null,null,null,null,null,null,null,null,null,null,null,null,null,null,null,null,null,null,null,null,null,null,null,null,null,null,null,null,null,null,null,null,null,null,null,null,"2021-04-12","Arizona Coyotes",null,"Colorado Avalanche"]
[null,null,null,null,null,null,null,null,null,null,null,null,null,null,null,null,null,null,null,null,null,null,null,null,null,null,null,null,null,null,null,null,null,null,null,null,null,null,null,null,null,null,null,null,null,null,null,null,null,null,null,null,null,null,"2021-04-12","Vancouver Canucks",null,"Edmonton Oilers"]
[null,null,null,null,null,null,null,null,null,null,null,null,null,null,null,null,null,null,null,null,null,null,null,null,null,null,null,null,null,null,null,null,null,null,null,null,null,null,null,null,null,null,null,null,null,null,null,null,null,null,null,null,null,null,"2021-04-12","Vegas Golden Knights",null,"Los Angeles Kings"]
[null,null,null,null,null,null,null,null,null,null,null,null,null,null,null,null,null,null,null,null,null,null,null,null,null,null,null,null,null,null,null,null,null,null,null,null,null,null,null,null,null,null,null,null,null,null,null,null,null,null,null,null,null,null,"2021-04-12","St. Louis Blues",null,"Minnesota Wild"]
[null,null,null,null,null,null,null,null,null,null,null,null,null,null,null,null,null,null,null,null,null,null,null,null,null,null,null,null,null,null,null,null,null,null,null,null,null,null,null,null,null,null,null,null,null,null,null,null,null,null,null,null,null,null,"2021-04-12","Toronto Maple Leafs",null,"Montreal Canadiens"]
[null,null,null,null,null,null,null,null,null,null,null,null,null,null,null,null,null,null,null,null,null,null,null,null,null,null,null,null,null,null,null,null,null,null,null,null,null,null,null,null,null,null,null,null,null,null,null,null,null,null,null,null,null,null,"2021-04-12","Winnipeg Jets",null,"Ottawa Senators"]
[null,null,null,null,null,null,null,null,null,null,null,null,null,null,null,null,null,null,null,null,null,null,null,null,null,null,null,null,null,null,null,null,null,null,null,null,null,null,null,null,null,null,null,null,null,null,null,null,null,null,null,null,null,null,"2021-04-12","Anaheim Ducks",null,"San Jose Sharks"]
[null,null,null,null,null,null,null,null,null,null,null,null,null,null,null,null,null,null,null,null,null,null,null,null,null,null,null,null,null,null,null,null,null,null,null,null,null,null,null,null,null,null,null,null,null,null,null,null,null,null,null,null,null,null,"2021-04-13","Buffalo Sabres",null,"Boston Bruins"]
[null,null,null,null,null,null,null,null,null,null,null,null,null,null,null,null,null,null,null,null,null,null,null,null,null,null,null,null,null,null,null,null,null,null,null,null,null,null,null,null,null,null,null,null,null,null,null,null,null,null,null,null,null,null,"2021-04-13","Florida Panthers",null,"Dallas Stars"]
[null,null,null,null,null,null,null,null,null,null,null,null,null,null,null,null,null,null,null,null,null,null,null,null,null,null,null,null,null,null,null,null,null,null,null,null,null,null,null,null,null,null,null,null,null,null,null,null,null,null,null,null,null,null,"2021-04-13","New York Rangers",null,"New Jersey Devils"]
[null,null,null,null,null,null,null,null,null,null,null,null,null,null,null,null,null,null,null,null,null,null,null,null,null,null,null,null,null,null,null,null,null,null,null,null,null,null,null,null,null,null,null,null,null,null,null,null,null,null,null,null,null,null,"2021-04-13","Tampa Bay Lightning",null,"Nashville Predators"]
[null,null,null,null,null,null,null,null,null,null,null,null,null,null,null,null,null,null,null,null,null,null,null,null,null,null,null,null,null,null,null,null,null,null,null,null,null,null,null,null,null,null,null,null,null,null,null,null,null,null,null,null,null,null,"2021-04-13","Calgary Flames",null,"Toronto Maple Leafs"]
[null,null,null,null,null,null,null,null,null,null,null,null,null,null,null,null,null,null,null,null,null,null,null,null,null,null,null,null,null,null,null,null,null,null,null,null,null,null,null,null,null,null,null,null,null,null,null,null,null,null,null,null,null,null,"2021-04-13","Philadelphia Flyers",null,"Washington Capitals"]
[null,null,null,null,null,null,null,null,null,null,null,null,null,null,null,null,null,null,null,null,null,null,null,null,null,null,null,null,null,null,null,null,null,null,null,null,null,null,null,null,null,null,null,null,null,null,null,null,null,null,null,null,null,null,"2021-04-14","Vancouver Canucks",null,"Edmonton Oilers"]
[null,null,null,null,null,null,null,null,null,null,null,null,null,null,null,null,null,null,null,null,null,null,null,null,null,null,null,null,null,null,null,null,null,null,null,null,null,null,null,null,null,null,null,null,null,null,null,null,null,null,null,null,null,null,"2021-04-14","Vegas Golden Knights",null,"Los Angeles Kings"]
[null,null,null,null,null,null,null,null,null,null,null,null,null,null,null,null,null,null,null,null,null,null,null,null,null,null,null,null,null,null,null,null,null,null,null,null,null,null,null,null,null,null,null,null,null,null,null,null,null,null,null,null,null,null,"2021-04-14","Arizona Coyotes",null,"Minnesota Wild"]
[null,null,null,null,null,null,null,null,null,null,null,null,null,null,null,null,null,null,null,null,null,null,null,null,null,null,null,null,null,null,null,null,null,null,null,null,null,null,null,null,null,null,null,null,null,null,null,null,null,null,null,null,null,null,"2021-04-14","Calgary Flames",null,"Montreal Canadiens"]
[null,null,null,null,null,null,null,null,null,null,null,null,null,null,null,null,null,null,null,null,null,null,null,null,null,null,null,null,null,null,null,null,null,null,null,null,null,null,null,null,null,null,null,null,null,null,null,null,null,null,null,null,null,null,"2021-04-14","Winnipeg Jets",null,"Ottawa Senators"]
[null,null,null,null,null,null,null,null,null,null,null,null,null,null,null,null,null,null,null,null,null,null,null,null,null,null,null,null,null,null,null,null,null,null,null,null,null,null,null,null,null,null,null,null,null,null,null,null,null,null,null,null,null,null,"2021-04-14","Anaheim Ducks",null,"San Jose Sharks"]
[null,null,null,null,null,null,null,null,null,null,null,null,null,null,null,null,null,null,null,null,null,null,null,null,null,null,null,null,null,null,null,null,null,null,null,null,null,null,null,null,null,null,null,null,null,null,null,null,null,null,null,null,null,null,"2021-04-14","Colorado Avalanche",null,"St. Louis Blues"]
[null,null,null,null,null,null,null,null,null,null,null,null,null,null,null,null,null,null,null,null,null,null,null,null,null,null,null,null,null,null,null,null,null,null,null,null,null,null,null,null,null,null,null,null,null,null,null,null,null,null,null,null,null,null,"2021-04-15","New York Islanders",null,"Boston Bruins"]
[null,null,null,null,null,null,null,null,null,null,null,null,null,null,null,null,null,null,null,null,null,null,null,null,null,null,null,null,null,null,null,null,null,null,null,null,null,null,null,null,null,null,null,null,null,null,null,null,null,null,null,null,null,null,"2021-04-15","Nashville Predators",null,"Carolina Hurricanes"]
[null,null,null,null,null,null,null,null,null,null,null,null,null,null,null,null,null,null,null,null,null,null,null,null,null,null,null,null,null,null,null,null,null,null,null,null,null,null,null,null,null,null,null,null,null,null,null,null,null,null,null,null,null,null,"2021-04-15","Columbus Blue Jackets",null,"Dallas Stars"]
[null,null,null,null,null,null,null,null,null,null,null,null,null,null,null,null,null,null,null,null,null,null,null,null,null,null,null,null,null,null,null,null,null,null,null,null,null,null,null,null,null,null,null,null,null,null,null,null,null,null,null,null,null,null,"2021-04-15","Chicago Blackhawks",null,"Detroit Red Wings"]
[null,null,null,null,null,null,null,null,null,null,null,null,null,null,null,null,null,null,null,null,null,null,null,null,null,null,null,null,null,null,null,null,null,null,null,null,null,null,null,null,null,null,null,null,null,null,null,null,null,null,null,null,null,null,"2021-04-15","New Jersey Devils",null,"New York Rangers"]
[null,null,null,null,null,null,null,null,null,null,null,null,null,null,null,null,null,null,null,null,null,null,null,null,null,null,null,null,null,null,null,null,null,null,null,null,null,null,null,null,null,null,null,null,null,null,null,null,null,null,null,null,null,null,"2021-04-15","Philadelphia Flyers",null,"Pittsburgh Penguins"]
[null,null,null,null,null,null,null,null,null,null,null,null,null,null,null,null,null,null,null,null,null,null,null,null,null,null,null,null,null,null,null,null,null,null,null,null,null,null,null,null,null,null,null,null,null,null,null,null,null,null,null,null,null,null,"2021-04-15","Florida Panthers",null,"Tampa Bay Lightning"]
[null,null,null,null,null,null,null,null,null,null,null,null,null,null,null,null,null,null,null,null,null,null,null,null,null,null,null,null,null,null,null,null,null,null,null,null,null,null,null,null,null,null,null,null,null,null,null,null,null,null,null,null,null,null,"2021-04-15","Winnipeg Jets",null,"Toronto Maple Leafs"]
[null,null,null,null,null,null,null,null,null,null,null,null,null,null,null,null,null,null,null,null,null,null,null,null,null,null,null,null,null,null,null,null,null,null,null,null,null,null,null,null,null,null,null,null,null,null,null,null,null,null,null,null,null,null,"2021-04-15","Buffalo Sabres",null,"Washington Capitals"]
[null,null,null,null,null,null,null,null,null,null,null,null,null,null,null,null,null,null,null,null,null,null,null,null,null,null,null,null,null,null,null,null,null,null,null,null,null,null,null,null,null,null,null,null,null,null,null,null,null,null,null,null,null,null,"2021-04-16","Vegas Golden Knights",null,"Anaheim Ducks"]
[null,null,null,null,null,null,null,null,null,null,null,null,null,null,null,null,null,null,null,null,null,null,null,null,null,null,null,null,null,null,null,null,null,null,null,null,null,null,null,null,null,null,null,null,null,null,null,null,null,null,null,null,null,null,"2021-04-16","New York Islanders",null,"Boston Bruins"]
[null,null,null,null,null,null,null,null,null,null,null,null,null,null,null,null,null,null,null,null,null,null,null,null,null,null,null,null,null,null,null,null,null,null,null,null,null,null,null,null,null,null,null,null,null,null,null,null,null,null,null,null,null,null,"2021-04-16","Los Angeles Kings",null,"Colorado Avalanche"]
[null,null,null,null,null,null,null,null,null,null,null,null,null,null,null,null,null,null,null,null,null,null,null,null,null,null,null,null,null,null,null,null,null,null,null,null,null,null,null,null,null,null,null,null,null,null,null,null,null,null,null,null,null,null,"2021-04-16","San Jose Sharks",null,"Minnesota Wild"]
[null,null,null,null,null,null,null,null,null,null,null,null,null,null,null,null,null,null,null,null,null,null,null,null,null,null,null,null,null,null,null,null,null,null,null,null,null,null,null,null,null,null,null,null,null,null,null,null,null,null,null,null,null,null,"2021-04-16","Calgary Flames",null,"Montreal Canadiens"]
[null,null,null,null,null,null,null,null,null,null,null,null,null,null,null,null,null,null,null,null,null,null,null,null,null,null,null,null,null,null,null,null,null,null,null,null,null,null,null,null,null,null,null,null,null,null,null,null,null,null,null,null,null,null,"2021-04-17","St. Louis Blues",null,"Arizona Coyotes"]
[null,null,null,null,null,null,null,null,null,null,null,null,null,null,null,null,null,null,null,null,null,null,null,null,null,null,null,null,null,null,null,null,null,null,null,null,null,null,null,null,null,null,null,null,null,null,null,null,null,null,null,null,null,null,"2021-04-17","Pittsburgh Penguins",null,"Buffalo Sabres"]
[null,null,null,null,null,null,null,null,null,null,null,null,null,null,null,null,null,null,null,null,null,null,null,null,null,null,null,null,null,null,null,null,null,null,null,null,null,null,null,null,null,null,null,null,null,null,null,null,null,null,null,null,null,null,"2021-04-17","Nashville Predators",null,"Carolina Hurricanes"]
[null,null,null,null,null,null,null,null,null,null,null,null,null,null,null,null,null,null,null,null,null,null,null,null,null,null,null,null,null,null,null,null,null,null,null,null,null,null,null,null,null,null,null,null,null,null,null,null,null,null,null,null,null,null,"2021-04-17","Columbus Blue Jackets",null,"Dallas Stars"]
[null,null,null,null,null,null,null,null,null,null,null,null,null,null,null,null,null,null,null,null,null,null,null,null,null,null,null,null,null,null,null,null,null,null,null,null,null,null,null,null,null,null,null,null,null,null,null,null,null,null,null,null,null,null,"2021-04-17","Chicago Blackhawks",null,"Detroit Red Wings"]
[null,null,null,null,null,null,null,null,null,null,null,null,null,null,null,null,null,null,null,null,null,null,null,null,null,null,null,null,null,null,null,null,null,null,null,null,null,null,null,null,null,null,null,null,null,null,null,null,null,null,null,null,null,null,"2021-04-17","San Jose Sharks",null,"Minnesota Wild"]
[null,null,null,null,null,null,null,null,null,null,null,null,null,null,null,null,null,null,null,null,null,null,null,null,null,null,null,null,null,null,null,null,null,null,null,null,null,null,null,null,null,null,null,null,null,null,null,null,null,null,null,null,null,null,"2021-04-17","New Jersey Devils",null,"New York Rangers"]
[null,null,null,null,null,null,null,null,null,null,null,null,null,null,null,null,null,null,null,null,null,null,null,null,null,null,null,null,null,null,null,null,null,null,null,null,null,null,null,null,null,null,null,null,null,null,null,null,null,null,null,null,null,null,"2021-04-17","Washington Capitals",null,"Philadelphia Flyers"]
[null,null,null,null,null,null,null,null,null,null,null,null,null,null,null,null,null,null,null,null,null,null,null,null,null,null,null,null,null,null,null,null,null,null,null,null,null,null,null,null,null,null,null,null,null,null,null,null,null,null,null,null,null,null,"2021-04-17","Florida Panthers",null,"Tampa Bay Lightning"]
[null,null,null,null,null,null,null,null,null,null,null,null,null,null,null,null,null,null,null,null,null,null,null,null,null,null,null,null,null,null,null,null,null,null,null,null,null,null,null,null,null,null,null,null,null,null,null,null,null,null,null,null,null,null,"2021-04-17","Toronto Maple Leafs",null,"Vancouver Canucks"]
[null,null,null,null,null,null,null,null,null,null,null,null,null,null,null,null,null,null,null,null,null,null,null,null,null,null,null,null,null,null,null,null,null,null,null,null,null,null,null,null,null,null,null,null,null,null,null,null,null,null,null,null,null,null,"2021-04-17","Edmonton Oilers",null,"Winnipeg Jets"]
[null,null,null,null,null,null,null,null,null,null,null,null,null,null,null,null,null,null,null,null,null,null,null,null,null,null,null,null,null,null,null,null,null,null,null,null,null,null,null,null,null,null,null,null,null,null,null,null,null,null,null,null,null,null,"2021-04-18","Vegas Golden Knights",null,"Anaheim Ducks"]
[null,null,null,null,null,null,null,null,null,null,null,null,null,null,null,null,null,null,null,null,null,null,null,null,null,null,null,null,null,null,null,null,null,null,null,null,null,null,null,null,null,null,null,null,null,null,null,null,null,null,null,null,null,null,"2021-04-18","Washington Capitals",null,"Boston Bruins"]
[null,null,null,null,null,null,null,null,null,null,null,null,null,null,null,null,null,null,null,null,null,null,null,null,null,null,null,null,null,null,null,null,null,null,null,null,null,null,null,null,null,null,null,null,null,null,null,null,null,null,null,null,null,null,"2021-04-18","Pittsburgh Penguins",null,"Buffalo Sabres"]
[null,null,null,null,null,null,null,null,null,null,null,null,null,null,null,null,null,null,null,null,null,null,null,null,null,null,null,null,null,null,null,null,null,null,null,null,null,null,null,null,null,null,null,null,null,null,null,null,null,null,null,null,null,null,"2021-04-18","Los Angeles Kings",null,"Colorado Avalanche"]
[null,null,null,null,null,null,null,null,null,null,null,null,null,null,null,null,null,null,null,null,null,null,null,null,null,null,null,null,null,null,null,null,null,null,null,null,null,null,null,null,null,null,null,null,null,null,null,null,null,null,null,null,null,null,"2021-04-18","New York Rangers",null,"New Jersey Devils"]
[null,null,null,null,null,null,null,null,null,null,null,null,null,null,null,null,null,null,null,null,null,null,null,null,null,null,null,null,null,null,null,null,null,null,null,null,null,null,null,null,null,null,null,null,null,null,null,null,null,null,null,null,null,null,"2021-04-18","New York Islanders",null,"Philadelphia Flyers"]
[null,null,null,null,null,null,null,null,null,null,null,null,null,null,null,null,null,null,null,null,null,null,null,null,null,null,null,null,null,null,null,null,null,null,null,null,null,null,null,null,null,null,null,null,null,null,null,null,null,null,null,null,null,null,"2021-04-19","Minnesota Wild",null,"Arizona Coyotes"]
[null,null,null,null,null,null,null,null,null,null,null,null,null,null,null,null,null,null,null,null,null,null,null,null,null,null,null,null,null,null,null,null,null,null,null,null,null,null,null,null,null,null,null,null,null,null,null,null,null,null,null,null,null,null,"2021-04-19","Ottawa Senators",null,"Calgary Flames"]
[null,null,null,null,null,null,null,null,null,null,null,null,null,null,null,null,null,null,null,null,null,null,null,null,null,null,null,null,null,null,null,null,null,null,null,null,null,null,null,null,null,null,null,null,null,null,null,null,null,null,null,null,null,null,"2021-04-19","Detroit Red Wings",null,"Dallas Stars"]
[null,null,null,null,null,null,null,null,null,null,null,null,null,null,null,null,null,null,null,null,null,null,null,null,null,null,null,null,null,null,null,null,null,null,null,null,null,null,null,null,null,null,null,null,null,null,null,null,null,null,null,null,null,null,"2021-04-19","Montreal Canadiens",null,"Edmonton Oilers"]
[null,null,null,null,null,null,null,null,null,null,null,null,null,null,null,null,null,null,null,null,null,null,null,null,null,null,null,null,null,null,null,null,null,null,null,null,null,null,null,null,null,null,null,null,null,null,null,null,null,null,null,null,null,null,"2021-04-19","Columbus Blue Jackets",null,"Florida Panthers"]
[null,null,null,null,null,null,null,null,null,null,null,null,null,null,null,null,null,null,null,null,null,null,null,null,null,null,null,null,null,null,null,null,null,null,null,null,null,null,null,null,null,null,null,null,null,null,null,null,null,null,null,null,null,null,"2021-04-19","Chicago Blackhawks",null,"Nashville Predators"]
[null,null,null,null,null,null,null,null,null,null,null,null,null,null,null,null,null,null,null,null,null,null,null,null,null,null,null,null,null,null,null,null,null,null,null,null,null,null,null,null,null,null,null,null,null,null,null,null,null,null,null,null,null,null,"2021-04-19","Carolina Hurricanes",null,"Tampa Bay Lightning"]
[null,null,null,null,null,null,null,null,null,null,null,null,null,null,null,null,null,null,null,null,null,null,null,null,null,null,null,null,null,null,null,null,null,null,null,null,null,null,null,null,null,null,null,null,null,null,null,null,null,null,null,null,null,null,"2021-04-19","Toronto Maple Leafs",null,"Vancouver Canucks"]
[null,null,null,null,null,null,null,null,null,null,null,null,null,null,null,null,null,null,null,null,null,null,null,null,null,null,null,null,null,null,null,null,null,null,null,null,null,null,null,null,null,null,null,null,null,null,null,null,null,null,null,null,null,null,"2021-04-19","San Jose Sharks",null,"Vegas Golden Knights"]
[null,null,null,null,null,null,null,null,null,null,null,null,null,null,null,null,null,null,null,null,null,null,null,null,null,null,null,null,null,null,null,null,null,null,null,null,null,null,null,null,null,null,null,null,null,null,null,null,null,null,null,null,null,null,"2021-04-20","Washington Capitals",null,"Boston Bruins"]
[null,null,null,null,null,null,null,null,null,null,null,null,null,null,null,null,null,null,null,null,null,null,null,null,null,null,null,null,null,null,null,null,null,null,null,null,null,null,null,null,null,null,null,null,null,null,null,null,null,null,null,null,null,null,"2021-04-20","Ottawa Senators",null,"Calgary Flames"]
[null,null,null,null,null,null,null,null,null,null,null,null,null,null,null,null,null,null,null,null,null,null,null,null,null,null,null,null,null,null,null,null,null,null,null,null,null,null,null,null,null,null,null,null,null,null,null,null,null,null,null,null,null,null,"2021-04-20","Detroit Red Wings",null,"Dallas Stars"]
[null,null,null,null,null,null,null,null,null,null,null,null,null,null,null,null,null,null,null,null,null,null,null,null,null,null,null,null,null,null,null,null,null,null,null,null,null,null,null,null,null,null,null,null,null,null,null,null,null,null,null,null,null,null,"2021-04-20","Montreal Canadiens",null,"Edmonton Oilers"]
[null,null,null,null,null,null,null,null,null,null,null,null,null,null,null,null,null,null,null,null,null,null,null,null,null,null,null,null,null,null,null,null,null,null,null,null,null,null,null,null,null,null,null,null,null,null,null,null,null,null,null,null,null,null,"2021-04-20","Columbus Blue Jackets",null,"Florida Panthers"]
[null,null,null,null,null,null,null,null,null,null,null,null,null,null,null,null,null,null,null,null,null,null,null,null,null,null,null,null,null,null,null,null,null,null,null,null,null,null,null,null,null,null,null,null,null,null,null,null,null,null,null,null,null,null,"2021-04-20","Anaheim Ducks",null,"Los Angeles Kings"]
[null,null,null,null,null,null,null,null,null,null,null,null,null,null,null,null,null,null,null,null,null,null,null,null,null,null,null,null,null,null,null,null,null,null,null,null,null,null,null,null,null,null,null,null,null,null,null,null,null,null,null,null,null,null,"2021-04-20","New York Rangers",null,"New York Islanders"]
[null,null,null,null,null,null,null,null,null,null,null,null,null,null,null,null,null,null,null,null,null,null,null,null,null,null,null,null,null,null,null,null,null,null,null,null,null,null,null,null,null,null,null,null,null,null,null,null,null,null,null,null,null,null,"2021-04-20","New Jersey Devils",null,"Pittsburgh Penguins"]
[null,null,null,null,null,null,null,null,null,null,null,null,null,null,null,null,null,null,null,null,null,null,null,null,null,null,null,null,null,null,null,null,null,null,null,null,null,null,null,null,null,null,null,null,null,null,null,null,null,null,null,null,null,null,"2021-04-20","Colorado Avalanche",null,"St. Louis Blues"]
[null,null,null,null,null,null,null,null,null,null,null,null,null,null,null,null,null,null,null,null,null,null,null,null,null,null,null,null,null,null,null,null,null,null,null,null,null,null,null,null,null,null,null,null,null,null,null,null,null,null,null,null,null,null,"2021-04-20","Carolina Hurricanes",null,"Tampa Bay Lightning"]
[null,null,null,null,null,null,null,null,null,null,null,null,null,null,null,null,null,null,null,null,null,null,null,null,null,null,null,null,null,null,null,null,null,null,null,null,null,null,null,null,null,null,null,null,null,null,null,null,null,null,null,null,null,null,"2021-04-21","Minnesota Wild",null,"Arizona Coyotes"]
[null,null,null,null,null,null,null,null,null,null,null,null,null,null,null,null,null,null,null,null,null,null,null,null,null,null,null,null,null,null,null,null,null,null,null,null,null,null,null,null,null,null,null,null,null,null,null,null,null,null,null,null,null,null,"2021-04-21","Nashville Predators",null,"Chicago Blackhawks"]
[null,null,null,null,null,null,null,null,null,null,null,null,null,null,null,null,null,null,null,null,null,null,null,null,null,null,null,null,null,null,null,null,null,null,null,null,null,null,null,null,null,null,null,null,null,null,null,null,null,null,null,null,null,null,"2021-04-21","San Jose Sharks",null,"Vegas Golden Knights"]
[null,null,null,null,null,null,null,null,null,null,null,null,null,null,null,null,null,null,null,null,null,null,null,null,null,null,null,null,null,null,null,null,null,null,null,null,null,null,null,null,null,null,null,null,null,null,null,null,null,null,null,null,null,null,"2021-04-21","Toronto Maple Leafs",null,"Winnipeg Jets"]
[null,null,null,null,null,null,null,null,null,null,null,null,null,null,null,null,null,null,null,null,null,null,null,null,null,null,null,null,null,null,null,null,null,null,null,null,null,null,null,null,null,null,null,null,null,null,null,null,null,null,null,null,null,null,"2021-04-22","Boston Bruins",null,"Buffalo Sabres"]
[null,null,null,null,null,null,null,null,null,null,null,null,null,null,null,null,null,null,null,null,null,null,null,null,null,null,null,null,null,null,null,null,null,null,null,null,null,null,null,null,null,null,null,null,null,null,null,null,null,null,null,null,null,null,"2021-04-22","Montreal Canadiens",null,"Calgary Flames"]
[null,null,null,null,null,null,null,null,null,null,null,null,null,null,null,null,null,null,null,null,null,null,null,null,null,null,null,null,null,null,null,null,null,null,null,null,null,null,null,null,null,null,null,null,null,null,null,null,null,null,null,null,null,null,"2021-04-22","Dallas Stars",null,"Detroit Red Wings"]
[null,null,null,null,null,null,null,null,null,null,null,null,null,null,null,null,null,null,null,null,null,null,null,null,null,null,null,null,null,null,null,null,null,null,null,null,null,null,null,null,null,null,null,null,null,null,null,null,null,null,null,null,null,null,"2021-04-22","Carolina Hurricanes",null,"Florida Panthers"]
[null,null,null,null,null,null,null,null,null,null,null,null,null,null,null,null,null,null,null,null,null,null,null,null,null,null,null,null,null,null,null,null,null,null,null,null,null,null,null,null,null,null,null,null,null,null,null,null,null,null,null,null,null,null,"2021-04-22","Washington Capitals",null,"New York Islanders"]
[null,null,null,null,null,null,null,null,null,null,null,null,null,null,null,null,null,null,null,null,null,null,null,null,null,null,null,null,null,null,null,null,null,null,null,null,null,null,null,null,null,null,null,null,null,null,null,null,null,null,null,null,null,null,"2021-04-22","Philadelphia Flyers",null,"New York Rangers"]
[null,null,null,null,null,null,null,null,null,null,null,null,null,null,null,null,null,null,null,null,null,null,null,null,null,null,null,null,null,null,null,null,null,null,null,null,null,null,null,null,null,null,null,null,null,null,null,null,null,null,null,null,null,null,"2021-04-22","New Jersey Devils",null,"Pittsburgh Penguins"]
[null,null,null,null,null,null,null,null,null,null,null,null,null,null,null,null,null,null,null,null,null,null,null,null,null,null,null,null,null,null,null,null,null,null,null,null,null,null,null,null,null,null,null,null,null,null,null,null,null,null,null,null,null,null,"2021-04-22","Colorado Avalanche",null,"St. Louis Blues"]
[null,null,null,null,null,null,null,null,null,null,null,null,null,null,null,null,null,null,null,null,null,null,null,null,null,null,null,null,null,null,null,null,null,null,null,null,null,null,null,null,null,null,null,null,null,null,null,null,null,null,null,null,null,null,"2021-04-22","Columbus Blue Jackets",null,"Tampa Bay Lightning"]
[null,null,null,null,null,null,null,null,null,null,null,null,null,null,null,null,null,null,null,null,null,null,null,null,null,null,null,null,null,null,null,null,null,null,null,null,null,null,null,null,null,null,null,null,null,null,null,null,null,null,null,null,null,null,"2021-04-22","Ottawa Senators",null,"Vancouver Canucks"]
[null,null,null,null,null,null,null,null,null,null,null,null,null,null,null,null,null,null,null,null,null,null,null,null,null,null,null,null,null,null,null,null,null,null,null,null,null,null,null,null,null,null,null,null,null,null,null,null,null,null,null,null,null,null,"2021-04-23","Vegas Golden Knights",null,"Anaheim Ducks"]
[null,null,null,null,null,null,null,null,null,null,null,null,null,null,null,null,null,null,null,null,null,null,null,null,null,null,null,null,null,null,null,null,null,null,null,null,null,null,null,null,null,null,null,null,null,null,null,null,null,null,null,null,null,null,"2021-04-23","Boston Bruins",null,"Buffalo Sabres"]
[null,null,null,null,null,null,null,null,null,null,null,null,null,null,null,null,null,null,null,null,null,null,null,null,null,null,null,null,null,null,null,null,null,null,null,null,null,null,null,null,null,null,null,null,null,null,null,null,null,null,null,null,null,null,"2021-04-23","Nashville Predators",null,"Chicago Blackhawks"]
[null,null,null,null,null,null,null,null,null,null,null,null,null,null,null,null,null,null,null,null,null,null,null,null,null,null,null,null,null,null,null,null,null,null,null,null,null,null,null,null,null,null,null,null,null,null,null,null,null,null,null,null,null,null,"2021-04-23","Minnesota Wild",null,"Los Angeles Kings"]
[null,null,null,null,null,null,null,null,null,null,null,null,null,null,null,null,null,null,null,null,null,null,null,null,null,null,null,null,null,null,null,null,null,null,null,null,null,null,null,null,null,null,null,null,null,null,null,null,null,null,null,null,null,null,"2021-04-23","Philadelphia Flyers",null,"New York Rangers"]
[null,null,null,null,null,null,null,null,null,null,null,null,null,null,null,null,null,null,null,null,null,null,null,null,null,null,null,null,null,null,null,null,null,null,null,null,null,null,null,null,null,null,null,null,null,null,null,null,null,null,null,null,null,null,"2021-04-23","Toronto Maple Leafs",null,"Winnipeg Jets"]
[null,null,null,null,null,null,null,null,null,null,null,null,null,null,null,null,null,null,null,null,null,null,null,null,null,null,null,null,null,null,null,null,null,null,null,null,null,null,null,null,null,null,null,null,null,null,null,null,null,null,null,null,null,null,"2021-04-24","Montreal Canadiens",null,"Calgary Flames"]
[null,null,null,null,null,null,null,null,null,null,null,null,null,null,null,null,null,null,null,null,null,null,null,null,null,null,null,null,null,null,null,null,null,null,null,null,null,null,null,null,null,null,null,null,null,null,null,null,null,null,null,null,null,null,"2021-04-24","Dallas Stars",null,"Detroit Red Wings"]
[null,null,null,null,null,null,null,null,null,null,null,null,null,null,null,null,null,null,null,null,null,null,null,null,null,null,null,null,null,null,null,null,null,null,null,null,null,null,null,null,null,null,null,null,null,null,null,null,null,null,null,null,null,null,"2021-04-24","Carolina Hurricanes",null,"Florida Panthers"]
[null,null,null,null,null,null,null,null,null,null,null,null,null,null,null,null,null,null,null,null,null,null,null,null,null,null,null,null,null,null,null,null,null,null,null,null,null,null,null,null,null,null,null,null,null,null,null,null,null,null,null,null,null,null,"2021-04-24","Arizona Coyotes",null,"Los Angeles Kings"]
[null,null,null,null,null,null,null,null,null,null,null,null,null,null,null,null,null,null,null,null,null,null,null,null,null,null,null,null,null,null,null,null,null,null,null,null,null,null,null,null,null,null,null,null,null,null,null,null,null,null,null,null,null,null,"2021-04-24","Washington Capitals",null,"New York Islanders"]
[null,null,null,null,null,null,null,null,null,null,null,null,null,null,null,null,null,null,null,null,null,null,null,null,null,null,null,null,null,null,null,null,null,null,null,null,null,null,null,null,null,null,null,null,null,null,null,null,null,null,null,null,null,null,"2021-04-24","New Jersey Devils",null,"Pittsburgh Penguins"]
[null,null,null,null,null,null,null,null,null,null,null,null,null,null,null,null,null,null,null,null,null,null,null,null,null,null,null,null,null,null,null,null,null,null,null,null,null,null,null,null,null,null,null,null,null,null,null,null,null,null,null,null,null,null,"2021-04-24","Minnesota Wild",null,"San Jose Sharks"]
[null,null,null,null,null,null,null,null,null,null,null,null,null,null,null,null,null,null,null,null,null,null,null,null,null,null,null,null,null,null,null,null,null,null,null,null,null,null,null,null,null,null,null,null,null,null,null,null,null,null,null,null,null,null,"2021-04-24","Colorado Avalanche",null,"St. Louis Blues"]
[null,null,null,null,null,null,null,null,null,null,null,null,null,null,null,null,null,null,null,null,null,null,null,null,null,null,null,null,null,null,null,null,null,null,null,null,null,null,null,null,null,null,null,null,null,null,null,null,null,null,null,null,null,null,"2021-04-24","Ottawa Senators",null,"Vancouver Canucks"]
[null,null,null,null,null,null,null,null,null,null,null,null,null,null,null,null,null,null,null,null,null,null,null,null,null,null,null,null,null,null,null,null,null,null,null,null,null,null,null,null,null,null,null,null,null,null,null,null,null,null,null,null,null,null,"2021-04-24","Toronto Maple Leafs",null,"Winnipeg Jets"]
[null,null,null,null,null,null,null,null,null,null,null,null,null,null,null,null,null,null,null,null,null,null,null,null,null,null,null,null,null,null,null,null,null,null,null,null,null,null,null,null,null,null,null,null,null,null,null,null,null,null,null,null,null,null,"2021-04-25","Buffalo Sabres",null,"New York Rangers"]
[null,null,null,null,null,null,null,null,null,null,null,null,null,null,null,null,null,null,null,null,null,null,null,null,null,null,null,null,null,null,null,null,null,null,null,null,null,null,null,null,null,null,null,null,null,null,null,null,null,null,null,null,null,null,"2021-04-25","New Jersey Devils",null,"Philadelphia Flyers"]
[null,null,null,null,null,null,null,null,null,null,null,null,null,null,null,null,null,null,null,null,null,null,null,null,null,null,null,null,null,null,null,null,null,null,null,null,null,null,null,null,null,null,null,null,null,null,null,null,null,null,null,null,null,null,"2021-04-25","Boston Bruins",null,"Pittsburgh Penguins"]
[null,null,null,null,null,null,null,null,null,null,null,null,null,null,null,null,null,null,null,null,null,null,null,null,null,null,null,null,null,null,null,null,null,null,null,null,null,null,null,null,null,null,null,null,null,null,null,null,null,null,null,null,null,null,"2021-04-25","Columbus Blue Jackets",null,"Tampa Bay Lightning"]
[null,null,null,null,null,null,null,null,null,null,null,null,null,null,null,null,null,null,null,null,null,null,null,null,null,null,null,null,null,null,null,null,null,null,null,null,null,null,null,null,null,null,null,null,null,null,null,null,null,null,null,null,null,null,"2021-04-26","Montreal Canadiens",null,"Calgary Flames"]
[null,null,null,null,null,null,null,null,null,null,null,null,null,null,null,null,null,null,null,null,null,null,null,null,null,null,null,null,null,null,null,null,null,null,null,null,null,null,null,null,null,null,null,null,null,null,null,null,null,null,null,null,null,null,"2021-04-26","Carolina Hurricanes",null,"Dallas Stars"]
[null,null,null,null,null,null,null,null,null,null,null,null,null,null,null,null,null,null,null,null,null,null,null,null,null,null,null,null,null,null,null,null,null,null,null,null,null,null,null,null,null,null,null,null,null,null,null,null,null,null,null,null,null,null,"2021-04-26","Anaheim Ducks",null,"Los Angeles Kings"]
[null,null,null,null,null,null,null,null,null,null,null,null,null,null,null,null,null,null,null,null,null,null,null,null,null,null,null,null,null,null,null,null,null,null,null,null,null,null,null,null,null,null,null,null,null,null,null,null,null,null,null,null,null,null,"2021-04-26","St. Louis Blues",null,"Minnesota Wild"]
[null,null,null,null,null,null,null,null,null,null,null,null,null,null,null,null,null,null,null,null,null,null,null,null,null,null,null,null,null,null,null,null,null,null,null,null,null,null,null,null,null,null,null,null,null,null,null,null,null,null,null,null,null,null,"2021-04-26","Florida Panthers",null,"Nashville Predators"]
[null,null,null,null,null,null,null,null,null,null,null,null,null,null,null,null,null,null,null,null,null,null,null,null,null,null,null,null,null,null,null,null,null,null,null,null,null,null,null,null,null,null,null,null,null,null,null,null,null,null,null,null,null,null,"2021-04-26","Vancouver Canucks",null,"Ottawa Senators"]
[null,null,null,null,null,null,null,null,null,null,null,null,null,null,null,null,null,null,null,null,null,null,null,null,null,null,null,null,null,null,null,null,null,null,null,null,null,null,null,null,null,null,null,null,null,null,null,null,null,null,null,null,null,null,"2021-04-26","Arizona Coyotes",null,"San Jose Sharks"]
[null,null,null,null,null,null,null,null,null,null,null,null,null,null,null,null,null,null,null,null,null,null,null,null,null,null,null,null,null,null,null,null,null,null,null,null,null,null,null,null,null,null,null,null,null,null,null,null,null,null,null,null,null,null,"2021-04-26","Colorado Avalanche",null,"Vegas Golden Knights"]
[null,null,null,null,null,null,null,null,null,null,null,null,null,null,null,null,null,null,null,null,null,null,null,null,null,null,null,null,null,null,null,null,null,null,null,null,null,null,null,null,null,null,null,null,null,null,null,null,null,null,null,null,null,null,"2021-04-26","Edmonton Oilers",null,"Winnipeg Jets"]
[null,null,null,null,null,null,null,null,null,null,null,null,null,null,null,null,null,null,null,null,null,null,null,null,null,null,null,null,null,null,null,null,null,null,null,null,null,null,null,null,null,null,null,null,null,null,null,null,null,null,null,null,null,null,"2021-04-27","Detroit Red Wings",null,"Columbus Blue Jackets"]
[null,null,null,null,null,null,null,null,null,null,null,null,null,null,null,null,null,null,null,null,null,null,null,null,null,null,null,null,null,null,null,null,null,null,null,null,null,null,null,null,null,null,null,null,null,null,null,null,null,null,null,null,null,null,"2021-04-27","Tampa Bay Lightning",null,"Chicago Blackhawks"]
[null,null,null,null,null,null,null,null,null,null,null,null,null,null,null,null,null,null,null,null,null,null,null,null,null,null,null,null,null,null,null,null,null,null,null,null,null,null,null,null,null,null,null,null,null,null,null,null,null,null,null,null,null,null,"2021-04-27","Carolina Hurricanes",null,"Dallas Stars"]
[null,null,null,null,null,null,null,null,null,null,null,null,null,null,null,null,null,null,null,null,null,null,null,null,null,null,null,null,null,null,null,null,null,null,null,null,null,null,null,null,null,null,null,null,null,null,null,null,null,null,null,null,null,null,"2021-04-27","Philadelphia Flyers",null,"New Jersey Devils"]
[null,null,null,null,null,null,null,null,null,null,null,null,null,null,null,null,null,null,null,null,null,null,null,null,null,null,null,null,null,null,null,null,null,null,null,null,null,null,null,null,null,null,null,null,null,null,null,null,null,null,null,null,null,null,"2021-04-27","Florida Panthers",null,"Nashville Predators"]
[null,null,null,null,null,null,null,null,null,null,null,null,null,null,null,null,null,null,null,null,null,null,null,null,null,null,null,null,null,null,null,null,null,null,null,null,null,null,null,null,null,null,null,null,null,null,null,null,null,null,null,null,null,null,"2021-04-27","Buffalo Sabres",null,"New York Rangers"]
[null,null,null,null,null,null,null,null,null,null,null,null,null,null,null,null,null,null,null,null,null,null,null,null,null,null,null,null,null,null,null,null,null,null,null,null,null,null,null,null,null,null,null,null,null,null,null,null,null,null,null,null,null,null,"2021-04-27","Boston Bruins",null,"Pittsburgh Penguins"]
[null,null,null,null,null,null,null,null,null,null,null,null,null,null,null,null,null,null,null,null,null,null,null,null,null,null,null,null,null,null,null,null,null,null,null,null,null,null,null,null,null,null,null,null,null,null,null,null,null,null,null,null,null,null,"2021-04-27","New York Islanders",null,"Washington Capitals"]
[null,null,null,null,null,null,null,null,null,null,null,null,null,null,null,null,null,null,null,null,null,null,null,null,null,null,null,null,null,null,null,null,null,null,null,null,null,null,null,null,null,null,null,null,null,null,null,null,null,null,null,null,null,null,"2021-04-28","Anaheim Ducks",null,"Los Angeles Kings"]
[null,null,null,null,null,null,null,null,null,null,null,null,null,null,null,null,null,null,null,null,null,null,null,null,null,null,null,null,null,null,null,null,null,null,null,null,null,null,null,null,null,null,null,null,null,null,null,null,null,null,null,null,null,null,"2021-04-28","St. Louis Blues",null,"Minnesota Wild"]
[null,null,null,null,null,null,null,null,null,null,null,null,null,null,null,null,null,null,null,null,null,null,null,null,null,null,null,null,null,null,null,null,null,null,null,null,null,null,null,null,null,null,null,null,null,null,null,null,null,null,null,null,null,null,"2021-04-28","Toronto Maple Leafs",null,"Montreal Canadiens"]
[null,null,null,null,null,null,null,null,null,null,null,null,null,null,null,null,null,null,null,null,null,null,null,null,null,null,null,null,null,null,null,null,null,null,null,null,null,null,null,null,null,null,null,null,null,null,null,null,null,null,null,null,null,null,"2021-04-28","Vancouver Canucks",null,"Ottawa Senators"]
[null,null,null,null,null,null,null,null,null,null,null,null,null,null,null,null,null,null,null,null,null,null,null,null,null,null,null,null,null,null,null,null,null,null,null,null,null,null,null,null,null,null,null,null,null,null,null,null,null,null,null,null,null,null,"2021-04-28","Arizona Coyotes",null,"San Jose Sharks"]
[null,null,null,null,null,null,null,null,null,null,null,null,null,null,null,null,null,null,null,null,null,null,null,null,null,null,null,null,null,null,null,null,null,null,null,null,null,null,null,null,null,null,null,null,null,null,null,null,null,null,null,null,null,null,"2021-04-28","Colorado Avalanche",null,"Vegas Golden Knights"]
[null,null,null,null,null,null,null,null,null,null,null,null,null,null,null,null,null,null,null,null,null,null,null,null,null,null,null,null,null,null,null,null,null,null,null,null,null,null,null,null,null,null,null,null,null,null,null,null,null,null,null,null,null,null,"2021-04-28","Edmonton Oilers",null,"Winnipeg Jets"]
[null,null,null,null,null,null,null,null,null,null,null,null,null,null,null,null,null,null,null,null,null,null,null,null,null,null,null,null,null,null,null,null,null,null,null,null,null,null,null,null,null,null,null,null,null,null,null,null,null,null,null,null,null,null,"2021-04-29","Buffalo Sabres",null,"Boston Bruins"]
[null,null,null,null,null,null,null,null,null,null,null,null,null,null,null,null,null,null,null,null,null,null,null,null,null,null,null,null,null,null,null,null,null,null,null,null,null,null,null,null,null,null,null,null,null,null,null,null,null,null,null,null,null,null,"2021-04-29","Detroit Red Wings",null,"Carolina Hurricanes"]
[null,null,null,null,null,null,null,null,null,null,null,null,null,null,null,null,null,null,null,null,null,null,null,null,null,null,null,null,null,null,null,null,null,null,null,null,null,null,null,null,null,null,null,null,null,null,null,null,null,null,null,null,null,null,"2021-04-29","Florida Panthers",null,"Chicago Blackhawks"]
[null,null,null,null,null,null,null,null,null,null,null,null,null,null,null,null,null,null,null,null,null,null,null,null,null,null,null,null,null,null,null,null,null,null,null,null,null,null,null,null,null,null,null,null,null,null,null,null,null,null,null,null,null,null,"2021-04-29","Calgary Flames",null,"Edmonton Oilers"]
[null,null,null,null,null,null,null,null,null,null,null,null,null,null,null,null,null,null,null,null,null,null,null,null,null,null,null,null,null,null,null,null,null,null,null,null,null,null,null,null,null,null,null,null,null,null,null,null,null,null,null,null,null,null,"2021-04-29","Philadelphia Flyers",null,"New Jersey Devils"]
[null,null,null,null,null,null,null,null,null,null,null,null,null,null,null,null,null,null,null,null,null,null,null,null,null,null,null,null,null,null,null,null,null,null,null,null,null,null,null,null,null,null,null,null,null,null,null,null,null,null,null,null,null,null,"2021-04-29","New York Islanders",null,"New York Rangers"]
[null,null,null,null,null,null,null,null,null,null,null,null,null,null,null,null,null,null,null,null,null,null,null,null,null,null,null,null,null,null,null,null,null,null,null,null,null,null,null,null,null,null,null,null,null,null,null,null,null,null,null,null,null,null,"2021-04-29","Dallas Stars",null,"Tampa Bay Lightning"]
[null,null,null,null,null,null,null,null,null,null,null,null,null,null,null,null,null,null,null,null,null,null,null,null,null,null,null,null,null,null,null,null,null,null,null,null,null,null,null,null,null,null,null,null,null,null,null,null,null,null,null,null,null,null,"2021-04-29","Pittsburgh Penguins",null,"Washington Capitals"]
[null,null,null,null,null,null,null,null,null,null,null,null,null,null,null,null,null,null,null,null,null,null,null,null,null,null,null,null,null,null,null,null,null,null,null,null,null,null,null,null,null,null,null,null,null,null,null,null,null,null,null,null,null,null,"2021-04-30","Los Angeles Kings",null,"Anaheim Ducks"]
[null,null,null,null,null,null,null,null,null,null,null,null,null,null,null,null,null,null,null,null,null,null,null,null,null,null,null,null,null,null,null,null,null,null,null,null,null,null,null,null,null,null,null,null,null,null,null,null,null,null,null,null,null,null,"2021-04-30","Vegas Golden Knights",null,"Arizona Coyotes"]
[null,null,null,null,null,null,null,null,null,null,null,null,null,null,null,null,null,null,null,null,null,null,null,null,null,null,null,null,null,null,null,null,null,null,null,null,null,null,null,null,null,null,null,null,null,null,null,null,null,null,null,null,null,null,"2021-04-30","San Jose Sharks",null,"Colorado Avalanche"]
[null,null,null,null,null,null,null,null,null,null,null,null,null,null,null,null,null,null,null,null,null,null,null,null,null,null,null,null,null,null,null,null,null,null,null,null,null,null,null,null,null,null,null,null,null,null,null,null,null,null,null,null,null,null,"2021-04-30","Winnipeg Jets",null,"Montreal Canadiens"]
[null,null,null,null,null,null,null,null,null,null,null,null,null,null,null,null,null,null,null,null,null,null,null,null,null,null,null,null,null,null,null,null,null,null,null,null,null,null,null,null,null,null,null,null,null,null,null,null,null,null,null,null,null,null,"2021-04-30","Minnesota Wild",null,"St. Louis Blues"]
[null,null,null,null,null,null,null,null,null,null,null,null,null,null,null,null,null,null,null,null,null,null,null,null,null,null,null,null,null,null,null,null,null,null,null,null,null,null,null,null,null,null,null,null,null,null,null,null,null,null,null,null,null,null,"2021-04-30","Vancouver Canucks",null,"Toronto Maple Leafs"]
[null,null,null,null,null,null,null,null,null,null,null,null,null,null,null,null,null,null,null,null,null,null,null,null,null,null,null,null,null,null,null,null,null,null,null,null,null,null,null,null,null,null,null,null,null,null,null,null,null,null,null,null,null,null,"2021-05-01","Los Angeles Kings",null,"Anaheim Ducks"]
[null,null,null,null,null,null,null,null,null,null,null,null,null,null,null,null,null,null,null,null,null,null,null,null,null,null,null,null,null,null,null,null,null,null,null,null,null,null,null,null,null,null,null,null,null,null,null,null,null,null,null,null,null,null,"2021-05-01","Vegas Golden Knights",null,"Arizona Coyotes"]
[null,null,null,null,null,null,null,null,null,null,null,null,null,null,null,null,null,null,null,null,null,null,null,null,null,null,null,null,null,null,null,null,null,null,null,null,null,null,null,null,null,null,null,null,null,null,null,null,null,null,null,null,null,null,"2021-05-01","Buffalo Sabres",null,"Boston Bruins"]
[null,null,null,null,null,null,null,null,null,null,null,null,null,null,null,null,null,null,null,null,null,null,null,null,null,null,null,null,null,null,null,null,null,null,null,null,null,null,null,null,null,null,null,null,null,null,null,null,null,null,null,null,null,null,"2021-05-01","Columbus Blue Jackets",null,"Carolina Hurricanes"]
[null,null,null,null,null,null,null,null,null,null,null,null,null,null,null,null,null,null,null,null,null,null,null,null,null,null,null,null,null,null,null,null,null,null,null,null,null,null,null,null,null,null,null,null,null,null,null,null,null,null,null,null,null,null,"2021-05-01","Florida Panthers",null,"Chicago Blackhawks"]
[null,null,null,null,null,null,null,null,null,null,null,null,null,null,null,null,null,null,null,null,null,null,null,null,null,null,null,null,null,null,null,null,null,null,null,null,null,null,null,null,null,null,null,null,null,null,null,null,null,null,null,null,null,null,"2021-05-01","San Jose Sharks",null,"Colorado Avalanche"]
[null,null,null,null,null,null,null,null,null,null,null,null,null,null,null,null,null,null,null,null,null,null,null,null,null,null,null,null,null,null,null,null,null,null,null,null,null,null,null,null,null,null,null,null,null,null,null,null,null,null,null,null,null,null,"2021-05-01","Tampa Bay Lightning",null,"Detroit Red Wings"]
[null,null,null,null,null,null,null,null,null,null,null,null,null,null,null,null,null,null,null,null,null,null,null,null,null,null,null,null,null,null,null,null,null,null,null,null,null,null,null,null,null,null,null,null,null,null,null,null,null,null,null,null,null,null,"2021-05-01","Calgary Flames",null,"Edmonton Oilers"]
[null,null,null,null,null,null,null,null,null,null,null,null,null,null,null,null,null,null,null,null,null,null,null,null,null,null,null,null,null,null,null,null,null,null,null,null,null,null,null,null,null,null,null,null,null,null,null,null,null,null,null,null,null,null,"2021-05-01","Ottawa Senators",null,"Montreal Canadiens"]
[null,null,null,null,null,null,null,null,null,null,null,null,null,null,null,null,null,null,null,null,null,null,null,null,null,null,null,null,null,null,null,null,null,null,null,null,null,null,null,null,null,null,null,null,null,null,null,null,null,null,null,null,null,null,"2021-05-01","Dallas Stars",null,"Nashville Predators"]
[null,null,null,null,null,null,null,null,null,null,null,null,null,null,null,null,null,null,null,null,null,null,null,null,null,null,null,null,null,null,null,null,null,null,null,null,null,null,null,null,null,null,null,null,null,null,null,null,null,null,null,null,null,null,"2021-05-01","New York Rangers",null,"New York Islanders"]
[null,null,null,null,null,null,null,null,null,null,null,null,null,null,null,null,null,null,null,null,null,null,null,null,null,null,null,null,null,null,null,null,null,null,null,null,null,null,null,null,null,null,null,null,null,null,null,null,null,null,null,null,null,null,"2021-05-01","New Jersey Devils",null,"Philadelphia Flyers"]
[null,null,null,null,null,null,null,null,null,null,null,null,null,null,null,null,null,null,null,null,null,null,null,null,null,null,null,null,null,null,null,null,null,null,null,null,null,null,null,null,null,null,null,null,null,null,null,null,null,null,null,null,null,null,"2021-05-01","Minnesota Wild",null,"St. Louis Blues"]
[null,null,null,null,null,null,null,null,null,null,null,null,null,null,null,null,null,null,null,null,null,null,null,null,null,null,null,null,null,null,null,null,null,null,null,null,null,null,null,null,null,null,null,null,null,null,null,null,null,null,null,null,null,null,"2021-05-01","Vancouver Canucks",null,"Toronto Maple Leafs"]
[null,null,null,null,null,null,null,null,null,null,null,null,null,null,null,null,null,null,null,null,null,null,null,null,null,null,null,null,null,null,null,null,null,null,null,null,null,null,null,null,null,null,null,null,null,null,null,null,null,null,null,null,null,null,"2021-05-01","Pittsburgh Penguins",null,"Washington Capitals"]
[null,null,null,null,null,null,null,null,null,null,null,null,null,null,null,null,null,null,null,null,null,null,null,null,null,null,null,null,null,null,null,null,null,null,null,null,null,null,null,null,null,null,null,null,null,null,null,null,null,null,null,null,null,null,"2021-05-02","Tampa Bay Lightning",null,"Detroit Red Wings"]
[null,null,null,null,null,null,null,null,null,null,null,null,null,null,null,null,null,null,null,null,null,null,null,null,null,null,null,null,null,null,null,null,null,null,null,null,null,null,null,null,null,null,null,null,null,null,null,null,null,null,null,null,null,null,"2021-05-03","Los Angeles Kings",null,"Arizona Coyotes"]
[null,null,null,null,null,null,null,null,null,null,null,null,null,null,null,null,null,null,null,null,null,null,null,null,null,null,null,null,null,null,null,null,null,null,null,null,null,null,null,null,null,null,null,null,null,null,null,null,null,null,null,null,null,null,"2021-05-03","New York Islanders",null,"Buffalo Sabres"]
[null,null,null,null,null,null,null,null,null,null,null,null,null,null,null,null,null,null,null,null,null,null,null,null,null,null,null,null,null,null,null,null,null,null,null,null,null,null,null,null,null,null,null,null,null,null,null,null,null,null,null,null,null,null,"2021-05-03","Chicago Blackhawks",null,"Carolina Hurricanes"]
[null,null,null,null,null,null,null,null,null,null,null,null,null,null,null,null,null,null,null,null,null,null,null,null,null,null,null,null,null,null,null,null,null,null,null,null,null,null,null,null,null,null,null,null,null,null,null,null,null,null,null,null,null,null,"2021-05-03","Nashville Predators",null,"Columbus Blue Jackets"]
[null,null,null,null,null,null,null,null,null,null,null,null,null,null,null,null,null,null,null,null,null,null,null,null,null,null,null,null,null,null,null,null,null,null,null,null,null,null,null,null,null,null,null,null,null,null,null,null,null,null,null,null,null,null,"2021-05-03","Dallas Stars",null,"Florida Panthers"]
[null,null,null,null,null,null,null,null,null,null,null,null,null,null,null,null,null,null,null,null,null,null,null,null,null,null,null,null,null,null,null,null,null,null,null,null,null,null,null,null,null,null,null,null,null,null,null,null,null,null,null,null,null,null,"2021-05-03","Vegas Golden Knights",null,"Minnesota Wild"]
[null,null,null,null,null,null,null,null,null,null,null,null,null,null,null,null,null,null,null,null,null,null,null,null,null,null,null,null,null,null,null,null,null,null,null,null,null,null,null,null,null,null,null,null,null,null,null,null,null,null,null,null,null,null,"2021-05-03","Toronto Maple Leafs",null,"Montreal Canadiens"]
[null,null,null,null,null,null,null,null,null,null,null,null,null,null,null,null,null,null,null,null,null,null,null,null,null,null,null,null,null,null,null,null,null,null,null,null,null,null,null,null,null,null,null,null,null,null,null,null,null,null,null,null,null,null,"2021-05-03","Boston Bruins",null,"New Jersey Devils"]
[null,null,null,null,null,null,null,null,null,null,null,null,null,null,null,null,null,null,null,null,null,null,null,null,null,null,null,null,null,null,null,null,null,null,null,null,null,null,null,null,null,null,null,null,null,null,null,null,null,null,null,null,null,null,"2021-05-03","Washington Capitals",null,"New York Rangers"]
[null,null,null,null,null,null,null,null,null,null,null,null,null,null,null,null,null,null,null,null,null,null,null,null,null,null,null,null,null,null,null,null,null,null,null,null,null,null,null,null,null,null,null,null,null,null,null,null,null,null,null,null,null,null,"2021-05-03","Winnipeg Jets",null,"Ottawa Senators"]
[null,null,null,null,null,null,null,null,null,null,null,null,null,null,null,null,null,null,null,null,null,null,null,null,null,null,null,null,null,null,null,null,null,null,null,null,null,null,null,null,null,null,null,null,null,null,null,null,null,null,null,null,null,null,"2021-05-03","Pittsburgh Penguins",null,"Philadelphia Flyers"]
[null,null,null,null,null,null,null,null,null,null,null,null,null,null,null,null,null,null,null,null,null,null,null,null,null,null,null,null,null,null,null,null,null,null,null,null,null,null,null,null,null,null,null,null,null,null,null,null,null,null,null,null,null,null,"2021-05-03","Colorado Avalanche",null,"San Jose Sharks"]
[null,null,null,null,null,null,null,null,null,null,null,null,null,null,null,null,null,null,null,null,null,null,null,null,null,null,null,null,null,null,null,null,null,null,null,null,null,null,null,null,null,null,null,null,null,null,null,null,null,null,null,null,null,null,"2021-05-03","Anaheim Ducks",null,"St. Louis Blues"]
[null,null,null,null,null,null,null,null,null,null,null,null,null,null,null,null,null,null,null,null,null,null,null,null,null,null,null,null,null,null,null,null,null,null,null,null,null,null,null,null,null,null,null,null,null,null,null,null,null,null,null,null,null,null,"2021-05-04","New York Islanders",null,"Buffalo Sabres"]
[null,null,null,null,null,null,null,null,null,null,null,null,null,null,null,null,null,null,null,null,null,null,null,null,null,null,null,null,null,null,null,null,null,null,null,null,null,null,null,null,null,null,null,null,null,null,null,null,null,null,null,null,null,null,"2021-05-04","Chicago Blackhawks",null,"Carolina Hurricanes"]
[null,null,null,null,null,null,null,null,null,null,null,null,null,null,null,null,null,null,null,null,null,null,null,null,null,null,null,null,null,null,null,null,null,null,null,null,null,null,null,null,null,null,null,null,null,null,null,null,null,null,null,null,null,null,"2021-05-04","Boston Bruins",null,"New Jersey Devils"]
[null,null,null,null,null,null,null,null,null,null,null,null,null,null,null,null,null,null,null,null,null,null,null,null,null,null,null,null,null,null,null,null,null,null,null,null,null,null,null,null,null,null,null,null,null,null,null,null,null,null,null,null,null,null,"2021-05-04","Pittsburgh Penguins",null,"Philadelphia Flyers"]
[null,null,null,null,null,null,null,null,null,null,null,null,null,null,null,null,null,null,null,null,null,null,null,null,null,null,null,null,null,null,null,null,null,null,null,null,null,null,null,null,null,null,null,null,null,null,null,null,null,null,null,null,null,null,"2021-05-04","Edmonton Oilers",null,"Vancouver Canucks"]
[null,null,null,null,null,null,null,null,null,null,null,null,null,null,null,null,null,null,null,null,null,null,null,null,null,null,null,null,null,null,null,null,null,null,null,null,null,null,null,null,null,null,null,null,null,null,null,null,null,null,null,null,null,null,"2021-05-05","Los Angeles Kings",null,"Arizona Coyotes"]
[null,null,null,null,null,null,null,null,null,null,null,null,null,null,null,null,null,null,null,null,null,null,null,null,null,null,null,null,null,null,null,null,null,null,null,null,null,null,null,null,null,null,null,null,null,null,null,null,null,null,null,null,null,null,"2021-05-05","Nashville Predators",null,"Columbus Blue Jackets"]
[null,null,null,null,null,null,null,null,null,null,null,null,null,null,null,null,null,null,null,null,null,null,null,null,null,null,null,null,null,null,null,null,null,null,null,null,null,null,null,null,null,null,null,null,null,null,null,null,null,null,null,null,null,null,"2021-05-05","Winnipeg Jets",null,"Calgary Flames"]
[null,null,null,null,null,null,null,null,null,null,null,null,null,null,null,null,null,null,null,null,null,null,null,null,null,null,null,null,null,null,null,null,null,null,null,null,null,null,null,null,null,null,null,null,null,null,null,null,null,null,null,null,null,null,"2021-05-05","Vegas Golden Knights",null,"Minnesota Wild"]
[null,null,null,null,null,null,null,null,null,null,null,null,null,null,null,null,null,null,null,null,null,null,null,null,null,null,null,null,null,null,null,null,null,null,null,null,null,null,null,null,null,null,null,null,null,null,null,null,null,null,null,null,null,null,"2021-05-05","Washington Capitals",null,"New York Rangers"]
[null,null,null,null,null,null,null,null,null,null,null,null,null,null,null,null,null,null,null,null,null,null,null,null,null,null,null,null,null,null,null,null,null,null,null,null,null,null,null,null,null,null,null,null,null,null,null,null,null,null,null,null,null,null,"2021-05-05","Toronto Maple Leafs",null,"Ottawa Senators"]
[null,null,null,null,null,null,null,null,null,null,null,null,null,null,null,null,null,null,null,null,null,null,null,null,null,null,null,null,null,null,null,null,null,null,null,null,null,null,null,null,null,null,null,null,null,null,null,null,null,null,null,null,null,null,"2021-05-05","Colorado Avalanche",null,"San Jose Sharks"]
[null,null,null,null,null,null,null,null,null,null,null,null,null,null,null,null,null,null,null,null,null,null,null,null,null,null,null,null,null,null,null,null,null,null,null,null,null,null,null,null,null,null,null,null,null,null,null,null,null,null,null,null,null,null,"2021-05-05","Anaheim Ducks",null,"St. Louis Blues"]
[null,null,null,null,null,null,null,null,null,null,null,null,null,null,null,null,null,null,null,null,null,null,null,null,null,null,null,null,null,null,null,null,null,null,null,null,null,null,null,null,null,null,null,null,null,null,null,null,null,null,null,null,null,null,"2021-05-05","Dallas Stars",null,"Tampa Bay Lightning"]
[null,null,null,null,null,null,null,null,null,null,null,null,null,null,null,null,null,null,null,null,null,null,null,null,null,null,null,null,null,null,null,null,null,null,null,null,null,null,null,null,null,null,null,null,null,null,null,null,null,null,null,null,null,null,"2021-05-06","New York Rangers",null,"Boston Bruins"]
[null,null,null,null,null,null,null,null,null,null,null,null,null,null,null,null,null,null,null,null,null,null,null,null,null,null,null,null,null,null,null,null,null,null,null,null,null,null,null,null,null,null,null,null,null,null,null,null,null,null,null,null,null,null,"2021-05-06","Chicago Blackhawks",null,"Carolina Hurricanes"]
[null,null,null,null,null,null,null,null,null,null,null,null,null,null,null,null,null,null,null,null,null,null,null,null,null,null,null,null,null,null,null,null,null,null,null,null,null,null,null,null,null,null,null,null,null,null,null,null,null,null,null,null,null,null,"2021-05-06","Tampa Bay Lightning",null,"Florida Panthers"]
[null,null,null,null,null,null,null,null,null,null,null,null,null,null,null,null,null,null,null,null,null,null,null,null,null,null,null,null,null,null,null,null,null,null,null,null,null,null,null,null,null,null,null,null,null,null,null,null,null,null,null,null,null,null,"2021-05-06","New Jersey Devils",null,"New York Islanders"]
[null,null,null,null,null,null,null,null,null,null,null,null,null,null,null,null,null,null,null,null,null,null,null,null,null,null,null,null,null,null,null,null,null,null,null,null,null,null,null,null,null,null,null,null,null,null,null,null,null,null,null,null,null,null,"2021-05-06","Buffalo Sabres",null,"Pittsburgh Penguins"]
[null,null,null,null,null,null,null,null,null,null,null,null,null,null,null,null,null,null,null,null,null,null,null,null,null,null,null,null,null,null,null,null,null,null,null,null,null,null,null,null,null,null,null,null,null,null,null,null,null,null,null,null,null,null,"2021-05-06","Edmonton Oilers",null,"Vancouver Canucks"]
[null,null,null,null,null,null,null,null,null,null,null,null,null,null,null,null,null,null,null,null,null,null,null,null,null,null,null,null,null,null,null,null,null,null,null,null,null,null,null,null,null,null,null,null,null,null,null,null,null,null,null,null,null,null,"2021-05-07","Detroit Red Wings",null,"Columbus Blue Jackets"]
[null,null,null,null,null,null,null,null,null,null,null,null,null,null,null,null,null,null,null,null,null,null,null,null,null,null,null,null,null,null,null,null,null,null,null,null,null,null,null,null,null,null,null,null,null,null,null,null,null,null,null,null,null,null,"2021-05-07","Edmonton Oilers",null,"Calgary Flames"]
[null,null,null,null,null,null,null,null,null,null,null,null,null,null,null,null,null,null,null,null,null,null,null,null,null,null,null,null,null,null,null,null,null,null,null,null,null,null,null,null,null,null,null,null,null,null,null,null,null,null,null,null,null,null,"2021-05-07","Colorado Avalanche",null,"Los Angeles Kings"]
[null,null,null,null,null,null,null,null,null,null,null,null,null,null,null,null,null,null,null,null,null,null,null,null,null,null,null,null,null,null,null,null,null,null,null,null,null,null,null,null,null,null,null,null,null,null,null,null,null,null,null,null,null,null,"2021-05-07","Anaheim Ducks",null,"Minnesota Wild"]
[null,null,null,null,null,null,null,null,null,null,null,null,null,null,null,null,null,null,null,null,null,null,null,null,null,null,null,null,null,null,null,null,null,null,null,null,null,null,null,null,null,null,null,null,null,null,null,null,null,null,null,null,null,null,"2021-05-07","Arizona Coyotes",null,"San Jose Sharks"]
[null,null,null,null,null,null,null,null,null,null,null,null,null,null,null,null,null,null,null,null,null,null,null,null,null,null,null,null,null,null,null,null,null,null,null,null,null,null,null,null,null,null,null,null,null,null,null,null,null,null,null,null,null,null,"2021-05-07","Dallas Stars",null,"Tampa Bay Lightning"]
[null,null,null,null,null,null,null,null,null,null,null,null,null,null,null,null,null,null,null,null,null,null,null,null,null,null,null,null,null,null,null,null,null,null,null,null,null,null,null,null,null,null,null,null,null,null,null,null,null,null,null,null,null,null,"2021-05-07","Montreal Canadiens",null,"Toronto Maple Leafs"]
[null,null,null,null,null,null,null,null,null,null,null,null,null,null,null,null,null,null,null,null,null,null,null,null,null,null,null,null,null,null,null,null,null,null,null,null,null,null,null,null,null,null,null,null,null,null,null,null,null,null,null,null,null,null,"2021-05-07","St. Louis Blues",null,"Vegas Golden Knights"]
[null,null,null,null,null,null,null,null,null,null,null,null,null,null,null,null,null,null,null,null,null,null,null,null,null,null,null,null,null,null,null,null,null,null,null,null,null,null,null,null,null,null,null,null,null,null,null,null,null,null,null,null,null,null,"2021-05-07","Ottawa Senators",null,"Winnipeg Jets"]
[null,null,null,null,null,null,null,null,null,null,null,null,null,null,null,null,null,null,null,null,null,null,null,null,null,null,null,null,null,null,null,null,null,null,null,null,null,null,null,null,null,null,null,null,null,null,null,null,null,null,null,null,null,null,"2021-05-07","Philadelphia Flyers",null,"Washington Capitals"]
[null,null,null,null,null,null,null,null,null,null,null,null,null,null,null,null,null,null,null,null,null,null,null,null,null,null,null,null,null,null,null,null,null,null,null,null,null,null,null,null,null,null,null,null,null,null,null,null,null,null,null,null,null,null,"2021-05-08","New York Rangers",null,"Boston Bruins"]
[null,null,null,null,null,null,null,null,null,null,null,null,null,null,null,null,null,null,null,null,null,null,null,null,null,null,null,null,null,null,null,null,null,null,null,null,null,null,null,null,null,null,null,null,null,null,null,null,null,null,null,null,null,null,"2021-05-08","Detroit Red Wings",null,"Columbus Blue Jackets"]
[null,null,null,null,null,null,null,null,null,null,null,null,null,null,null,null,null,null,null,null,null,null,null,null,null,null,null,null,null,null,null,null,null,null,null,null,null,null,null,null,null,null,null,null,null,null,null,null,null,null,null,null,null,null,"2021-05-08","Tampa Bay Lightning",null,"Florida Panthers"]
[null,null,null,null,null,null,null,null,null,null,null,null,null,null,null,null,null,null,null,null,null,null,null,null,null,null,null,null,null,null,null,null,null,null,null,null,null,null,null,null,null,null,null,null,null,null,null,null,null,null,null,null,null,null,"2021-05-08","Colorado Avalanche",null,"Los Angeles Kings"]
[null,null,null,null,null,null,null,null,null,null,null,null,null,null,null,null,null,null,null,null,null,null,null,null,null,null,null,null,null,null,null,null,null,null,null,null,null,null,null,null,null,null,null,null,null,null,null,null,null,null,null,null,null,null,"2021-05-08","Anaheim Ducks",null,"Minnesota Wild"]
[null,null,null,null,null,null,null,null,null,null,null,null,null,null,null,null,null,null,null,null,null,null,null,null,null,null,null,null,null,null,null,null,null,null,null,null,null,null,null,null,null,null,null,null,null,null,null,null,null,null,null,null,null,null,"2021-05-08","Carolina Hurricanes",null,"Nashville Predators"]
[null,null,null,null,null,null,null,null,null,null,null,null,null,null,null,null,null,null,null,null,null,null,null,null,null,null,null,null,null,null,null,null,null,null,null,null,null,null,null,null,null,null,null,null,null,null,null,null,null,null,null,null,null,null,"2021-05-08","New Jersey Devils",null,"New York Islanders"]
[null,null,null,null,null,null,null,null,null,null,null,null,null,null,null,null,null,null,null,null,null,null,null,null,null,null,null,null,null,null,null,null,null,null,null,null,null,null,null,null,null,null,null,null,null,null,null,null,null,null,null,null,null,null,"2021-05-08","Buffalo Sabres",null,"Pittsburgh Penguins"]
[null,null,null,null,null,null,null,null,null,null,null,null,null,null,null,null,null,null,null,null,null,null,null,null,null,null,null,null,null,null,null,null,null,null,null,null,null,null,null,null,null,null,null,null,null,null,null,null,null,null,null,null,null,null,"2021-05-08","Arizona Coyotes",null,"San Jose Sharks"]
[null,null,null,null,null,null,null,null,null,null,null,null,null,null,null,null,null,null,null,null,null,null,null,null,null,null,null,null,null,null,null,null,null,null,null,null,null,null,null,null,null,null,null,null,null,null,null,null,null,null,null,null,null,null,"2021-05-08","Montreal Canadiens",null,"Toronto Maple Leafs"]
[null,null,null,null,null,null,null,null,null,null,null,null,null,null,null,null,null,null,null,null,null,null,null,null,null,null,null,null,null,null,null,null,null,null,null,null,null,null,null,null,null,null,null,null,null,null,null,null,null,null,null,null,null,null,"2021-05-08","Calgary Flames",null,"Vancouver Canucks"]
[null,null,null,null,null,null,null,null,null,null,null,null,null,null,null,null,null,null,null,null,null,null,null,null,null,null,null,null,null,null,null,null,null,null,null,null,null,null,null,null,null,null,null,null,null,null,null,null,null,null,null,null,null,null,"2021-05-08","St. Louis Blues",null,"Vegas Golden Knights"]
[null,null,null,null,null,null,null,null,null,null,null,null,null,null,null,null,null,null,null,null,null,null,null,null,null,null,null,null,null,null,null,null,null,null,null,null,null,null,null,null,null,null,null,null,null,null,null,null,null,null,null,null,null,null,"2021-05-08","Ottawa Senators",null,"Winnipeg Jets"]
[null,null,null,null,null,null,null,null,null,null,null,null,null,null,null,null,null,null,null,null,null,null,null,null,null,null,null,null,null,null,null,null,null,null,null,null,null,null,null,null,null,null,null,null,null,null,null,null,null,null,null,null,null,null,"2021-05-08","Philadelphia Flyers",null,"Washington Capitals"]
[null,null,null,null,null,null,null,null,null,null,null,null,null,null,null,null,null,null,null,null,null,null,null,null,null,null,null,null,null,null,null,null,null,null,null,null,null,null,null,null,null,null,null,null,null,null,null,null,null,null,null,null,null,null,"2021-05-09","Dallas Stars",null,"Chicago Blackhawks"]
[null,null,null,null,null,null,null,null,null,null,null,null,null,null,null,null,null,null,null,null,null,null,null,null,null,null,null,null,null,null,null,null,null,null,null,null,null,null,null,null,null,null,null,null,null,null,null,null,null,null,null,null,null,null,"2021-05-10","Dallas Stars",null,"Chicago Blackhawks"]
[null,null,null,null,null,null,null,null,null,null,null,null,null,null,null,null,null,null,null,null,null,null,null,null,null,null,null,null,null,null,null,null,null,null,null,null,null,null,null,null,null,null,null,null,null,null,null,null,null,null,null,null,null,null,"2021-05-10","Carolina Hurricanes",null,"Nashville Predators"]
[null,null,null,null,null,null,null,null,null,null,null,null,null,null,null,null,null,null,null,null,null,null,null,null,null,null,null,null,null,null,null,null,null,null,null,null,null,null,null,null,null,null,null,null,null,null,null,null,null,null,null,null,null,null,"2021-05-10","New Jersey Devils",null,"Philadelphia Flyers"]

{"sheet":"NHL Rosters","index":4,"n_rows":37,"n_cols":98,"rows_kept":37,"cut":false,"hidden":true,"merged":[]}
["Boston Bruins",null,null,null,null,null,null,null,null,null,null,null,"Buffalo Sabres",null,null,null,null,null,null,null,null,null,null,null,"New Jersey Devils",null,null,null,null,null,null,null,null,null,null,null,"New York Islanders",null,null,null,null,null,null,null,null,null,null,null,"New York Rangers",null,null,null,null,null,null,null,null,null,null,null,"Philadelphia Flyers",null,null,null,null,null,null,null,null,null,null,null,"Pittsburgh Penguins",null,null,null,null,null,null,null,null,null,null,null,"Washington Capitals"]
[]
["No.","Player","Flag","Pos","Age","Ht","Wt","S/C","Exp","Birth Date","Salary",null,"No.","Player","Flag","Pos","Age","Ht","Wt","S/C","Exp","Birth Date","Salary",null,"No.","Player","Flag","Pos","Age","Ht","Wt","S/C","Exp","Birth Date","Salary",null,"No.","Player","Flag","Pos","Age","Ht","Wt","S/C","Exp","Birth Date","Salary",null,"No.","Player","Flag","Pos","Age","Ht","Wt","S/C","Exp","Birth Date","Salary",null,"No.","Player","Flag","Pos","Age","Ht","Wt","S/C","Exp","Birth Date","Salary",null,"No.","Player","Flag","Pos","Age","Ht","Wt","S/C","Exp","Birth Date","Salary",null,"No.","Player","Flag","Pos","Age","Ht","Wt","S/C","Exp","Birth Date","Salary",null,"Team","PlayerCol"]
[10,"Anders Bjork","us","LW",22,"2000-06-01",190,"L/-",1,"1996-08-05",925000,null,40,"Carter Hutton","ca","G",33,"2000-06-01",198,"-/L",6,"1985-12-19",2750000,null,6,"Andy Greene","us","D",36,"2018-05-11",190,"L/-",12,"1982-10-30",5000000,null,3,"Adam Pelech","ca","D",24,"2018-06-03",218,"L/-",3,"1994-08-16",1100000,null,54,"Adam McQuaid","ca","D",32,"2018-06-04",210,"R/-",9,"1986-10-12","N/A",null,47,"Andrew MacDonald","ca","D",32,"2018-06-01",204,"L/-",10,"1986-09-07",5500000,null,8,"Brian Dumoulin","us","D",27,"2018-06-04",207,"L/-",5,"1991-09-06",4100000,null,8,"Alex Ovechkin","su","LW",33,"2018-06-03",235,"R/-",13,"1985-09-17",10000000,null,"Boston Bruins","A"]
[63,"Brad Marchand","ca","LW",30,"2018-05-09",181,"L/-",9,"1988-05-11",8000000,null,37,"Casey Mittelstadt","us","C",20,"2018-06-01",202,"L/-",1,"1998-11-22",925000,null,12,"Ben Lovejoy","us","D",34,"2018-06-01",205,"R/-",10,"1984-02-20",2750000,null,27,"Anders Lee","us","LW",28,"2018-06-03",231,"L/-",6,"1990-07-03",5000000,null,40,"Alexandar Georgiev","bg","G",22,"2018-06-01",179,"-/L",1,"1996-02-10",70000,null,41,"Anthony Stolarz","us","G",25,"2018-06-06",210,"-/L",1,"1994-01-20","N/A",null,17,"Bryan Rust","us","RW",26,"2018-05-11",192,"R/-",4,"1992-05-11",3500000,null,65,"Andre Burakovsky","at","LW",23,"2018-06-03",201,"L/-",4,"1995-02-09",3250000,null,"Buffalo Sabres","M"]
[25,"Brandon Carlo","us","D",22,"2018-06-05",212,"R/-",2,"1996-11-26",832500,null,8,"Casey Nelson","us","D",26,"2018-06-01",185,"R/-",3,"1992-07-18",800000,null,20,"Blake Coleman","us","C",27,"2018-05-11",200,"L/-",2,"1991-11-28",1800000,null,16,"Andrew Ladd","ca","LW",33,"2018-06-03",192,"L/-",13,"1985-12-12",6000000,null,76,"Brady Skjei","us","D",24,"2018-06-03",214,"L/-",3,"1994-03-26","N/A",null,37,"Brian Elliott","ca","G",33,"2018-06-02",209,"-/L",11,"1985-04-09",3000000,null,1,"Casey DeSmith","us","G",27,"2000-06-01",181,"-/L",1,"1991-08-13",650000,null,70,"Braden Holtby","ca","G",29,"2018-06-02",211,"-/L",8,"1989-09-16",5000000,null,"New Jersey Devils","Y"]
[73,"Charlie McAvoy","us","D",21,"2000-06-01",208,"R/-",1,"1997-12-21",925000,null,43,"Conor Sheary","us","LW",26,"2018-05-08",176,"L/-",3,"1992-06-08",3000000,null,11,"Brian Boyle","us","C",34,"2018-06-06",245,"L/-",11,"1984-12-18",2500000,null,18,"Anthony Beauvillier","ca","C",21,"2018-05-11",182,"L/-",2,"1997-06-08",832500,null,42,"Brendan Smith","ca","D",29,"2018-06-02",195,"L/-",7,"1989-02-08",4525000,null,33,"Calvin Pickard","ca","G",26,"2018-06-01",207,"-/L",4,"1992-04-15","N/A",null,2,"Chad Ruhwedel","us","D",28,"2018-05-11",191,"R/-",6,"1990-05-07",650000,null,10,"Brett Connolly","ca","RW",26,"2018-06-03",195,"R/-",7,"1992-05-02",1500000,null,"New York Islanders","AK"]
[14,"Chris Wagner","us","RW",27,"2000-06-01",198,"R/-",4,"1991-05-27",1250000,null,71,"Evan Rodrigues","ca","LW",25,"2018-05-10",176,"R/-",3,"1993-07-28",650000,null,28,"Damon Severson","ca","D",24,"2018-06-02",205,"R/-",4,"1994-08-07",3000000,null,29,"Brock Nelson","us","C",27,"2018-06-03",212,"L/-",5,"1991-10-15","N/A",null,21,"Brett Howden","ca","C",20,"2018-06-03",195,"L/-","R","1998-03-29",70000,null,26,"Christian Folin","se","D",27,"2018-06-03",204,"R/-",5,"1991-02-09",800000,null,41,"Daniel Sprong","nl","RW",21,"2000-06-01",180,"R/-",2,"1997-03-17",750000,null,44,"Brooks Orpik","us","D",38,"2018-06-03",217,"L/-",15,"1980-09-26","N/A",null,"New York Rangers","AW"]
[43,"Danton Heinen","ca","C",23,"2018-06-01",188,"L/-",2,"1995-07-05",925000,null,9,"Jack Eichel","us","C",22,"2018-06-02",200,"R/-",3,"1996-10-28",10000000,null,10,"Jean-Sebastien Dea","ca","C",24,"2018-05-11",175,"R/-",2,"1994-02-08","N/A",null,15,"Cal Clutterbuck","ca","RW",31,"2018-05-11",216,"R/-",11,"1987-11-18",4000000,null,20,"Chris Kreider","us","LW",27,"2018-06-03",216,"L/-",6,"1991-04-30",4500000,null,28,"Claude Giroux","ca","C",31,"2018-05-11",185,"R/-",11,"1988-01-12",9000000,null,38,"Derek Grant","ca","C",28,"2018-06-03",215,"L/-",5,"1990-04-20",650000,null,18,"Chandler Stephenson","ca","C",24,"2000-06-01",203,"L/-",3,"1994-04-22",650000,null,"Philadelphia Flyers","BI"]
[42,"David Backes","us","RW",34,"2018-06-03",215,"R/-",12,"1984-05-01",6000000,null,19,"Jake McCabe","us","D",25,"2018-06-01",206,"L/-",5,"1993-10-12",1775000,null,47,"John Quenneville","ca","C",22,"2018-06-01",195,"L/-",2,"1996-04-16",70000,null,53,"Casey Cizikas","ca","C",27,"2018-05-11",195,"L/-",7,"1991-02-27",3500000,null,8,"Cody McLeod","ca","LW",34,"2018-06-02",204,"L/-",11,"1984-06-26",750000,null,22,"Dale Weise","ca","RW",30,"2018-06-02",206,"R/-",8,"1988-08-05",2350000,null,19,"Derick Brassard","ca","C",31,"2018-06-01",202,"L/-",11,"1987-09-22",2100000,null,29,"Christian Djoos","se","D",24,"2000-06-01",169,"L/-",1,"1994-08-06","N/A",null,"Pittsburgh Penguins","BU"]
[46,"David Krejci","cs","C",32,"2000-06-01",188,"R/-",12,"1986-04-28",7500000,null,29,"Jason Pominville","ca","RW",36,"2018-05-11",180,"R/-",14,"1982-11-30",5000000,null,1,"Keith Kinkaid","us","G",29,"2018-06-03",195,"-/L",5,"1989-07-04",1300000,null,55,"Johnny Boychuk","ca","D",35,"2018-06-02",227,"R/-",11,"1984-01-19",6500000,null,72,"Filip Chytil","cz","C",19,"2018-06-02",208,"L/-",1,"1999-09-05",70000,null,9,"Ivan Provorov","ru","D",22,"2018-06-01",201,"L/-",2,"1997-01-13",832500,null,12,"Dominik Simon","cz","LW",24,"2018-05-11",190,"L/-",3,"1994-08-08",750000,null,25,"Devante Smith-Pelly","ca","RW",26,"2000-06-01",223,"R/-",7,"1992-06-14",1000000,null,"Washington Capitals","CG"]
[88,"David Pastrnak","cz","RW",22,"2000-06-01",194,"R/-",4,"1996-05-25",8000000,null,53,"Jeff Skinner","ca","LW",26,"2018-05-11",187,"L/-",8,"1992-05-16","N/A",null,21,"Kyle Palmieri","us","RW",27,"2018-05-11",185,"R/-",8,"1991-02-01",5000000,null,7,"Jordan Eberle","ca","C",28,"2018-05-11",187,"R/-",8,"1990-05-15",6000000,null,33,"Fredrik Claesson","se","D",26,"2018-06-01",196,"L/-",3,"1992-11-24",700000,null,93,"Jakub Voracek","cs","RW",29,"2018-06-02",214,"L/-",10,"1989-08-15",9250000,null,44,"Erik Gudbranson","ca","D",27,"2019-06-05",217,"R/-",7,"1992-01-07",4500000,null,23,"Dmitrij Jaskin","ru","RW",25,"2018-06-02",216,"L/-",6,"1993-03-23",1100000]
[74,"Jake DeBrusk","ca","LW",22,"2000-06-01",188,"L/-",1,"1996-10-17",832500,null,22,"Johan Larsson","se","C",26,"2018-05-11",202,"L/-",6,"1992-07-25",1550000,null,90,"Marcus Johansson","se","LW",28,"2018-06-01",205,"L/-",8,"1990-10-06",4750000,null,12,"Josh Bailey","ca","RW",29,"2018-06-01",212,"L/-",10,"1989-10-02",7000000,null,30,"Henrik Lundqvist","se","G",36,"2018-06-01",180,"-/L",13,"1982-03-02",7500000,null,25,"James van Riemsdyk","us","LW",29,"2018-06-03",217,"L/-",9,"1989-05-04",8000000,null,71,"Evgeni Malkin","su","C",32,"2018-06-03",195,"L/-",12,"1986-07-31",9500000,null,9,"Dmitry Orlov","su","D",27,"2018-05-11",212,"L/-",6,"1991-07-23",6500000]
[41,"Jaroslav Halak","cs","G",33,"2018-05-11",185,"-/L",12,"1985-05-13",3250000,null,21,"Kyle Okposo","us","RW",30,"2000-06-01",219,"R/-",11,"1988-04-16",6000000,null,44,"Miles Wood","us","LW",23,"2018-06-02",195,"L/-",3,"1995-09-13","N/A",null,47,"Leo Komarov","su","C",32,"2018-05-11",209,"L/-",5,"1987-01-23",4000000,null,17,"Jesper Fast","se","RW",27,"2018-06-01",192,"R/-",5,"1991-12-02",1850000,null,40,"Jordan Weal","ca","C",26,"2018-05-10",179,"R/-",3,"1992-04-15",1750000,null,10,"Garrett Wilson","ca","LW",27,"2018-06-02",199,"L/-",3,"1991-03-16",650000,null,92,"Evgeny Kuznetsov","ru","C",26,"2018-06-02",204,"L/-",5,"1992-05-19",10000000]
[20,"Joakim Nordstrom","se","C",26,"2018-06-01",194,"L/-",5,"1992-02-25",900000,null,35,"Linus Ullmark","se","G",25,"2018-06-04",213,"-/L",3,"1993-07-31",800000,null,25,"Mirco Mueller","ch","D",23,"2018-06-03",210,"L/-",4,"1995-03-21",925000,null,21,"Luca Sbisa","it","D",29,"2018-06-03",204,"L/-",10,"1990-01-30","N/A",null,26,"Jimmy Vesey","us","LW",25,"2018-06-03",199,"L/-",2,"1993-05-26",2200000,null,15,"Jori Lehtera","fi","C",31,"2018-06-02",212,"L/-",4,"1987-12-23",5000000,null,73,"Jack Johnson","us","D",32,"2018-06-01",227,"L/-",12,"1987-01-13",4000000,null,13,"Jakub Vrana","cz","LW",22,"2000-06-01",197,"L/-",2,"1996-02-28",832500]
[27,"John Moore","us","D",28,"2018-06-02",210,"L/-",8,"1990-11-19",3250000,null,6,"Marco Scandella","ca","D",28,"2018-06-03",210,"L/-",8,"1990-02-23",4500000,null,13,"Nico Hischier","ch","C",20,"2018-06-01",175,"L/-",1,"1999-01-04",925000,null,13,"Mathew Barzal","ca","C",21,"2000-06-01",187,"R/-",2,"1997-05-26",832500,null,13,"Kevin Hayes","us","C",26,"2018-06-05",216,"L/-",4,"1992-05-08","N/A",null,12,"Michael Raffl","at","LW",30,"2000-06-01",200,"L/-",5,"1988-12-01",2350000,null,59,"Jake Guentzel","us","LW",24,"2018-05-11",180,"L/-",2,"1994-10-06",792500,null,74,"John Carlson","us","D",29,"2018-06-03",218,"R/-",9,"1990-01-10",12000000]
[86,"Kevan Miller","us","D",31,"2018-06-02",210,"R/-",5,"1987-11-15",2500000,null,82,"Nathan Beaulieu","ca","D",26,"2018-06-02",200,"L/-",6,"1992-12-05",2500000,null,37,"Pavel Zacha","cz","C",21,"2018-06-03",210,"L/-",3,"1997-04-06",832500,null,17,"Matt Martin","ca","LW",29,"2018-06-03",220,"L/-",9,"1989-05-08",2250000,null,22,"Kevin Shattenkirk","us","D",30,"2000-06-01",206,"R/-",8,"1989-01-29",8000000,null,24,"Mikhail Vorobyev","ru","C",22,"2018-06-02",194,"L/-","R","1997-01-05","N/A",null,6,"Jamie Oleksiak","ca","D",26,"2018-06-07",255,"L/-",6,"1992-12-21",1950000,null,34,"Jonas Siegenthaler","ch","D",21,"2018-06-03",206,"L/-","R","1997-05-06",650000]
[48,"Matt Grzelcyk","us","D",25,"2018-05-09",174,"L/-",2,"1994-01-05",1400000,null,10,"Patrik Berglund","se","C",30,"2018-06-04",215,"L/-",10,"1988-06-02",4700000,null,45,"Sami Vatanen","fi","D",27,"2018-05-10",185,"R/-",6,"1991-06-03",5000000,null,2,"Nick Leddy","us","D",27,"2000-06-01",207,"L/-",8,"1991-03-20",5500000,null,18,"Marc Staal","ca","D",32,"2018-06-04",213,"L/-",11,"1987-01-13",6000000,null,19,"Nolan Patrick","ca","C",20,"2018-06-02",198,"R/-",1,"1998-09-19",925000,null,19,"Jared McCann","ca","C",22,"2019-06-01",185,"L/-",3,"1996-05-31",1250000,null,20,"Lars Eller","dk","C",29,"2018-06-02",207,"L/-",9,"1989-05-08",5000000]
[55,"Noel Acciari","us","C",27,"2018-05-10",205,"R/-",3,"1991-12-01",750000,null,26,"Rasmus Dahlin","se","D",18,"2018-06-03",190,"L/-","R","2000-04-13",925000,null,23,"Stefan Noesen","us","RW",25,"2018-06-01",205,"R/-",4,"1993-02-12",1725000,null,40,"Robin Lehner","se","G",27,"2018-06-04",240,"-/L",8,"1991-07-24",1500000,null,36,"Mats Zuccarello","no","RW",31,"2018-05-08",184,"L/-",8,"1987-09-01",4500000,null,23,"Oskar Lindblom","se","LW",22,"2018-06-01",191,"L/-",1,"1996-08-15",70000,null,4,"Jean-Sebastien Dea","ca","D",null,null,null,null,null,null,null,null,22,"Madison Bowey","ca","D",23,"2018-06-02",198,"R/-",1,"1995-04-22",1000000]
[37,"Patrice Bergeron","ca","C",33,"2018-06-01",195,"R/-",14,"1985-07-24",6875000,null,55,"Rasmus Ristolainen","fi","D",24,"2018-06-04",215,"R/-",5,"1994-10-27",5400000,null,9,"Taylor Hall","ca","LW",27,"2018-06-01",205,"L/-",8,"1991-11-14",6000000,null,32,"Ross Johnston","ca","LW",24,"2018-06-05",235,"L/-",2,"1994-02-18",1000000,null,93,"Mika Zibanejad","se","C",25,"2018-06-02",213,"R/-",7,"1993-04-18",5500000,null,3,"Radko Gudas","cs","D",28,"2000-06-01",204,"R/-",6,"1990-06-05",3400000,null,4,"Justin Schultz","ca","D",28,"2018-06-02",193,"R/-",6,"1990-07-06","N/A",null,2,"Matt Niskanen","us","D",32,"2018-06-01",203,"R/-",11,"1986-12-06",5750000]
[17,"Ryan Donato","us","C",22,"2000-06-01",193,"R/-",1,"1996-04-09",925000,null,81,"Remi Elie","ca","LW",23,"2018-06-01",215,"L/-",2,"1995-04-16","N/A",null,19,"Travis Zajac","ca","C",33,"2018-06-02",185,"R/-",12,"1985-05-13",6500000,null,6,"Ryan Pulock","ca","D",24,"2018-06-02",217,"R/-",3,"1994-10-06",1350000,null,44,"Neal Pionk","us","D",23,"2000-06-01",186,"R/-",1,"1995-07-29",925000,null,8,"Robert Hagg","se","D",23,"2018-06-02",204,"L/-",2,"1995-02-08","N/A",null,50,"Juuso Riikola","fi","D",25,"2000-06-01",189,"L/-","R","1993-11-09",925000,null,6,"Michal Kempny","cs","D",28,"2000-06-01",194,"L/-",2,"1990-09-08",3300000]
[52,"Sean Kuraly","us","C",26,"2018-06-02",213,"L/-",2,"1993-01-20",1300000,null,23,"Sam Reinhart","ca","RW",23,"2018-06-01",192,"R/-",4,"1995-11-06","N/A",null,8,"Will Butcher","us","D",24,"2018-05-10",190,"L/-",1,"1995-01-06",925000,null,24,"Scott Mayfield","us","D",26,"2018-06-05",223,"R/-",4,"1992-10-14",1100000,null,89,"Pavel Buchnevich","ru","RW",23,"2018-06-03",192,"L/-",2,"1995-04-17",925000,null,21,"Scott Laughton","ca","C",24,"2018-06-01",190,"L/-",5,"1994-05-30",1050000,null,58,"Kris Letang","ca","D",31,"2000-06-01",201,"R/-",12,"1987-04-24",7250000,null,26,"Nic Dowd","us","C",28,"2018-06-02",197,"R/-",3,"1990-05-27",650000]
[40,"Tuukka Rask","fi","G",31,"2018-06-03",176,"-/L",11,"1987-03-10",7000000,null,72,"Tage Thompson","us","C",21,"2018-06-06",205,"R/-",1,"1997-10-30",925000,null,null,null,null,null,null,null,null,null,null,null,null,null,1,"Thomas Greiss","de","G",33,"2018-06-02",232,"-/L",9,"1986-01-29",3250000,null,23,"Ryan Spooner","ca","C",27,"2018-05-11",191,"L/-",6,"1992-01-30","N/A",null,14,"Sean Couturier","us","C",26,"2018-06-03",211,"L/-",7,"1992-12-07",4250000,null,28,"Marcus Pettersson","se","D",22,"2019-06-03",177,"L/-",1,"1996-05-08",832500,null,19,"Nicklas Backstrom","se","C",31,"2018-06-01",210,"L/-",11,"1987-11-23",7500000]
[33,"Zdeno Chara (C)","cs","D",41,"2018-06-09",250,"L/-",20,"1977-03-18",5000000,null,17,"Vladimir Sobotka","cs","C",31,"2018-05-11",189,"L/-",9,"1987-07-02",3500000,null,null,null,null,null,null,null,null,null,null,null,null,null,4,"Thomas Hickey","ca","D",29,"2000-06-01",183,"L/-",6,"1989-02-08",2500000,null,77,"Tony DeAngelo","us","D",23,"2018-05-11",180,"R/-",2,"1995-10-24",832500,null,53,"Shayne Gostisbehere","us","D",25,"2018-05-11",180,"L/-",4,"1993-04-20",6000000,null,7,"Matt Cullen","us","C",42,"2018-06-01",202,"L/-",20,"1976-11-02","N/A",null,1,"Pheonix Copley","us","G",27,"2018-06-04",200,"-/L",2,"1992-01-18",650000]
[null,null,null,null,null,null,null,null,null,null,null,null,4,"Zach Bogosian","us","D",28,"2018-06-03",226,"R/-",10,"1990-07-15",6000000,null,null,null,null,null,null,null,null,null,null,null,null,null,14,"Tom Kuhnhackl","de","RW",27,"2018-06-02",196,"L/-",3,"1992-01-21",700000,null,95,"Vinni Lettieri","us","C",23,"2018-05-11",191,"R/-",1,"1995-02-06",70000,null,11,"Travis Konecny","ca","C",21,"2018-05-10",175,"R/-",2,"1997-03-11",832500,null,30,"Matt Murray","ca","G",24,"2018-06-04",178,"-/R",3,"1994-05-25","N/A",null,77,"T.J. Oshie","us","RW",32,"2018-05-11",195,"R/-",10,"1986-12-23",7500000]
[null,null,null,null,null,null,null,null,null,null,null,null,28,"Zemgus Girgensons","lv","C",25,"2018-06-02",211,"L/-",5,"1994-01-05",1600000,null,null,null,null,null,null,null,null,null,null,null,null,null,51,"Valtteri Filppula","fi","C",34,"2000-06-01",196,"L/-",13,"1984-03-20",2750000,null,90,"Vladislav Namestnikov","ru","C",26,"2000-06-01",184,"L/-",5,"1992-11-22",4000000,null,6,"Travis Sanheim","ca","D",22,"2018-06-03",181,"L/-",1,"1996-03-29",70000,null,27,"Nick Bjugstad","us","C",26,"2019-06-06",215,"R/-",6,"1992-07-17",4300000,null,43,"Tom Wilson","ca","RW",24,"2018-06-04",218,"R/-",5,"1994-03-29",6100000]
[null,null,null,null,null,null,null,null,null,null,null,null,null,null,null,null,null,null,null,null,null,null,null,null,null,null,null,null,null,null,null,null,null,null,null,null,null,null,null,null,null,null,null,null,null,null,null,null,null,null,null,null,null,null,null,null,null,null,null,null,17,"Wayne Simmonds","ca","RW",30,"2018-06-02",185,"R/-",10,"1988-08-26",5000000,null,3,"Olli Maatta","fi","D",24,"2018-06-02",206,"L/-",5,"1994-08-22",4083300,null,72,"Travis Boyd","us","C",25,"2018-05-11",185,"L/-",1,"1993-09-14",800000]
[null,null,null,null,null,null,null,null,null,null,null,null,null,null,null,null,null,null,null,null,null,null,null,null,null,null,null,null,null,null,null,null,null,null,null,null,null,null,null,null,null,null,null,null,null,null,null,null,null,null,null,null,null,null,null,null,null,null,null,null,null,null,null,null,null,null,null,null,null,null,null,null,72,"Patric Hornqvist","se","RW",32,"2018-05-11",189,"R/-",10,"1987-01-01",5300000]
[null,null,null,null,null,null,null,null,null,null,null,null,null,null,null,null,null,null,null,null,null,null,null,null,null,null,null,null,null,null,null,null,null,null,null,null,null,null,null,null,null,null,null,null,null,null,null,null,null,null,null,null,null,null,null,null,null,null,null,null,null,null,null,null,null,null,null,null,null,null,null,null,81,"Phil Kessel","us","RW",31,"2000-06-01",202,"R/-",12,"1987-10-02",5950000]
[null,null,null,null,null,null,null,null,null,null,null,null,null,null,null,null,null,null,null,null,null,null,null,null,null,null,null,null,null,null,null,null,null,null,null,null,null,null,null,null,null,null,null,null,null,null,null,null,null,null,null,null,null,null,null,null,null,null,null,null,null,null,null,null,null,null,null,null,null,null,null,null,15,"Riley Sheahan","ca","C",27,"2018-06-03",214,"L/-",7,"1991-12-07",2100000]
[null,null,null,null,null,null,null,null,null,null,null,null,null,null,null,null,null,null,null,null,null,null,null,null,null,null,null,null,null,null,null,null,null,null,null,null,null,null,null,null,null,null,null,null,null,null,null,null,null,null,null,null,null,null,null,null,null,null,null,null,null,null,null,null,null,null,null,null,null,null,null,null,87,"Sidney Crosby","ca","C",31,"2018-05-11",200,"L/-",13,"1987-08-07",10000000]
[null,null,null,null,null,null,null,null,null,null,null,null,null,null,null,null,null,null,null,null,null,null,null,null,null,null,null,null,null,null,null,null,null,null,null,null,null,null,null,null,null,null,null,null,null,null,null,null,null,null,null,null,null,null,null,null,null,null,null,null,null,null,null,null,null,null,null,null,null,null,null,null,14,"Tanner Pearson","ca","LW",26,"2018-06-01",201,"L/-",5,"1992-08-10",28]
[null,null,null,null,null,null,null,null,null,null,null,null,null,null,null,null,null,null,null,null,null,null,null,null,null,null,null,null,null,null,null,null,null,null,null,null,null,null,null,null,null,null,null,null,null,null,null,null,null,null,null,null,null,null,null,null,null,null,null,null,null,null,null,null,null,null,null,null,null,null,null,null,53,"Teddy Blueger","lv","C",24,"2000-06-01",185,"L/-","R","1994-08-15",650000]
[null,null,null,null,null,null,null,null,null,null,null,null,null,null,null,null,null,null,null,null,null,null,null,null,null,null,null,null,null,null,null,null,null,null,null,null,null,null,null,null,null,null,null,null,null,null,null,null,null,null,null,null,null,null,null,null,null,null,null,null,null,null,null,null,null,null,null,null,null,null,null,null,35,"Tristan Jarry","ca","G",23,"2018-06-02",194,"-/L",2,"1995-04-29",650000]
[null,null,null,null,null,null,null,null,null,null,null,null,null,null,null,null,null,null,null,null,null,null,null,null,null,null,null,null,null,null,null,null,null,null,null,null,null,null,null,null,null,null,null,null,null,null,null,null,null,null,null,null,null,null,null,null,null,null,null,null,null,null,null,null,null,null,null,null,null,null,null,null,46,"Zach Aston-Reese","us","LW",24,"2000-06-01",204,"L/-",1,"1994-08-10",925000]
[null,null,null,null,null,null,null,null,null,null,null,null,null,null,null,null,null,null,null,null,null,null,null,null,null,null,null,null,null,null,null,null,null,null,null,null,null,null,null,null,null,null,null,null,null,null,null,null,null,null,null,null,null,null,null,null,null,null,null,null,null,null,null,null,null,null,null,null,null,null,null,null,5,"Zach Trotman","us","D",28,"2019-06-03",217,"R/-",4,"1990-08-26",650000]
[null,null,null,null,null,null,null,null,null,null,null,null,null,null,null,null,null,null,null,null,null,null,null,null,null,null,null,null,null,null,null,null,null,null,null,null,null,null,null,null,null,null,null,null,null,null,null,null,null,null,null,null,null,null,null,null,null,null,null,null,null,null,null,null,null,null,null,null,null,null,null,null,null,"Bench Penalty"]

{"sheet":"Game Summary","index":5,"n_rows":100,"n_cols":207,"rows_kept":100,"cut":false,"hidden":true,"merged":[[0,0,0,7],[1,1,1,7],[1,10,1,15],[1,18,1,21],[1,24,1,31],[0,23,0,31],[0,17,0,21],[0,9,0,15]]}
["Scoring Summary",null,null,null,null,null,null,null,null,"Penalty Summary",null,null,null,null,null,null,null,"Shootout Summary",null,null,null,null,null,"Goalie Summary",null,null,null,null,null,null,null,null,null,"Period List",null,null,"Yes No List",null,null,"Spec Goals",null,null,"Penalties",null,null,"Penalty Minutes"]
[{"$f":"Introduction!$A$44","v":"2021-02-01"},{"$f":"Introduction!$A$42","v":"@New York Rangers"},null,null,null,null,null,null,null,{"$f":"Introduction!$A$44","v":"2021-02-01"},{"$f":"Introduction!$A$42","v":"@New York Rangers"},null,null,{"$f":"Introduction!$A$42","v":"@New York Rangers"},null,null,null,{"$f":"Introduction!$A$44","v":"2021-02-01"},{"$f":"Introduction!$A$42","v":"@New York Rangers"},null,null,{"$f":"Introduction!$A$42","v":"@New York Rangers"},null,{"$f":"Introduction!$A$44","v":"2021-02-01"},{"$f":"Introduction!$A$42","v":"@New York Rangers"},null,null,null,null,null,null,null,null,1]
["No.","Per","Time","Team","SpecG","Goal Scorer","Primary Assist","Secondary Assist",null,"No.","Per","Time","Team","Player","Penalty","Mins",1,"Att","Team","Shooter","Goalie","GorS",null,"Rk","Team","Goalie","DEC","GA","SOG","SV","SO","TOI",null,2,null,null,"Yes",null,null,"PP",null,null,"Boarding",null,null,2]
[null,null,null,null,null,null,null,null,null,null,null,null,null,null,null,null,null,null,null,null,null,null,null,null,null,null,null,null,null,null,null,null,null,3,null,null,"No",null,null,"SH",null,null,"Butt ending",null,null,4]
[null,null,null,null,null,null,null,null,null,null,null,null,null,null,null,null,null,null,null,null,null,null,null,null,null,null,null,null,null,null,null,null,null,4,null,null,null,null,null,"EN",null,null,"Charging",null,null,5]
[null,null,null,null,null,null,null,null,null,null,null,null,null,null,null,null,null,null,null,null,null,null,null,null,null,null,null,null,null,null,null,null,null,null,null,null,null,null,null,"XP",null,null,"Checking from behind",null,null,10]
[null,null,null,null,null,null,null,null,null,null,null,null,null,null,null,null,null,null,null,null,null,null,null,null,null,null,null,null,null,null,null,null,null,null,null,null,null,null,null,null,null,null,"Clipping"]
[null,null,null,null,null,null,null,null,null,null,null,null,null,null,null,null,null,null,null,null,null,null,null,null,null,null,null,null,null,null,null,null,null,null,null,null,null,null,null,null,null,null,"Closing hand on puck"]
[null,null,null,null,null,null,null,null,null,null,null,null,null,null,null,null,null,null,null,null,null,null,null,null,null,null,null,null,null,null,null,null,null,null,null,null,null,null,null,null,null,null,"Cross checking"]
[null,null,null,null,null,null,null,null,null,null,null,null,null,null,null,null,null,null,null,null,null,null,null,null,null,null,null,null,null,null,null,null,null,null,null,null,null,null,null,null,null,null,"Delay of game"]
[null,null,null,null,null,null,null,null,null,null,null,null,null,null,null,null,null,null,null,null,null,null,null,null,null,null,null,null,null,null,null,null,null,null,null,null,null,null,null,null,null,null,"Diving"]
[null,null,null,null,null,null,null,null,null,null,null,null,null,null,null,null,null,null,null,null,null,null,null,null,null,null,null,null,null,null,null,null,null,null,null,null,null,null,null,null,null,null,"Elbowing"]
[null,null,null,null,null,null,null,null,null,null,null,null,null,null,null,null,null,null,null,null,null,null,null,null,null,null,null,null,null,null,null,null,null,null,null,null,null,null,null,null,null,null,"Embellishment"]
[null,null,null,null,null,null,null,null,null,null,null,null,null,null,null,null,null,null,null,null,null,null,null,null,null,null,null,null,null,null,null,null,null,null,null,null,null,null,null,null,null,null,"Face-off Violation"]
[null,null,null,null,null,null,null,null,null,null,null,null,null,null,null,null,null,null,null,null,null,null,null,null,null,null,null,null,null,null,null,null,null,null,null,null,null,null,null,null,null,null,"Fighting"]
[null,null,null,null,null,null,null,null,null,null,null,null,null,null,null,null,null,null,null,null,null,null,null,null,null,null,null,null,null,null,null,null,null,null,null,null,null,null,null,null,null,null,"Goalkeeper interference"]
[null,null,null,null,null,null,null,null,null,null,null,null,null,null,null,null,null,null,null,null,null,null,null,null,null,null,null,null,null,null,null,null,null,null,null,null,null,null,null,null,null,null,"Head butting"]
[null,null,null,null,null,null,null,null,null,null,null,null,null,null,null,null,null,null,null,null,null,null,null,null,null,null,null,null,null,null,null,null,null,null,null,null,null,null,null,null,null,null,"High sticking"]
[null,null,null,null,null,null,null,null,null,null,null,null,null,null,null,null,null,null,null,null,null,null,null,null,null,null,null,null,null,null,null,null,null,null,null,null,null,null,null,null,null,null,"Holding"]
[null,null,null,null,null,null,null,null,null,null,null,null,null,null,null,null,null,null,null,null,null,null,null,null,null,null,null,null,null,null,null,null,null,null,null,null,null,null,null,null,null,null,"Holding the stick"]
[null,null,null,null,null,null,null,null,null,null,null,null,null,null,null,null,null,null,null,null,null,null,null,null,null,null,null,null,null,null,null,null,null,null,null,null,null,null,null,null,null,null,"Hooking"]
[null,null,null,null,null,null,null,null,null,null,null,null,null,null,null,null,null,null,null,null,null,null,null,null,null,null,null,null,null,null,null,null,null,null,null,null,null,null,null,null,null,null,"Illegal check to the head"]
[null,null,null,null,null,null,null,null,null,null,null,null,null,null,null,null,null,null,null,null,null,null,null,null,null,null,null,null,null,null,null,null,null,null,null,null,null,null,null,null,null,null,"Illegal equipment"]
[null,null,null,null,null,null,null,null,null,null,null,null,null,null,null,null,null,null,null,null,null,null,null,null,null,null,null,null,null,null,null,null,null,null,null,null,null,null,null,null,null,null,"Illegal stick"]
[null,null,null,null,null,null,null,null,null,null,null,null,null,null,null,null,null,null,null,null,null,null,null,null,null,null,null,null,null,null,null,null,null,null,null,null,null,null,null,null,null,null,"Illegal substitution"]
[null,null,null,null,null,null,null,null,null,null,null,null,null,null,null,null,null,null,null,null,null,null,null,null,null,null,null,null,null,null,null,null,null,null,null,null,null,null,null,null,null,null,"Instigator"]
[null,null,null,null,null,null,null,null,null,null,null,null,null,null,null,null,null,null,null,null,null,null,null,null,null,null,null,null,null,null,null,null,null,null,null,null,null,null,null,null,null,null,"Interference"]
[null,null,null,null,null,null,null,null,null,null,null,null,null,null,null,null,null,null,null,null,null,null,null,null,null,null,null,null,null,null,null,null,null,null,null,null,null,null,null,null,null,null,"Kneeing"]
[null,null,null,null,null,null,null,null,null,null,null,null,null,null,null,null,null,null,null,null,null,null,null,null,null,null,null,null,null,null,null,null,null,null,null,null,null,null,null,null,null,null,"Leaving the crease"]
[null,null,null,null,null,null,null,null,null,null,null,null,null,null,null,null,null,null,null,null,null,null,null,null,null,null,null,null,null,null,null,null,null,null,null,null,null,null,null,null,null,null,"Misconduct"]
[null,null,null,null,null,null,null,null,null,null,null,null,null,null,null,null,null,null,null,null,null,null,null,null,null,null,null,null,null,null,null,null,null,null,null,null,null,null,null,null,null,null,"Penalty shot awarded"]
[null,null,null,null,null,null,null,null,null,null,null,null,null,null,null,null,null,null,null,null,null,null,null,null,null,null,null,null,null,null,null,null,null,null,null,null,null,null,null,null,null,null,"Roughing"]
[null,null,null,null,null,null,null,null,null,null,null,null,null,null,null,null,null,null,null,null,null,null,null,null,null,null,null,null,null,null,null,null,null,null,null,null,null,null,null,null,null,null,"Slashing"]
[null,null,null,null,null,null,null,null,null,null,null,null,null,null,null,null,null,null,null,null,null,null,null,null,null,null,null,null,null,null,null,null,null,null,null,null,null,null,null,null,null,null,"Spearing"]
[null,null,null,null,null,null,null,null,null,null,null,null,null,null,null,null,null,null,null,null,null,null,null,null,null,null,null,null,null,null,null,null,null,null,null,null,null,null,null,null,null,null,"Too many men on the ice"]
[null,null,null,null,null,null,null,null,null,null,null,null,null,null,null,null,null,null,null,null,null,null,null,null,null,null,null,null,null,null,null,null,null,null,null,null,null,null,null,null,null,null,"Tripping"]
[null,null,null,null,null,null,null,null,null,null,null,null,null,null,null,null,null,null,null,null,null,null,null,null,null,null,null,null,null,null,null,null,null,null,null,null,null,null,null,null,null,null,"Unsportsmanlike conduct"]
[null,null,null,null,null,null,null,null,null,null,null,null,null,null,null,null,null,null,null,null,null,null,null,null,null,null,null,null,null,null,null,null,null,null,null,null,null,null,null,null,null,null,"Slashing"]
[null,null,null,null,null,null,null,null,null,null,null,null,null,null,null,null,null,null,null,null,null,null,null,null,null,null,null,null,null,null,null,null,null,null,null,null,null,null,null,null,null,null,"Spearing"]
[null,null,null,null,null,null,null,null,null,null,null,null,null,null,null,null,null,null,null,null,null,null,null,null,null,null,null,null,null,null,null,null,null,null,null,null,null,null,null,null,null,null,"Too many men on the ice"]
[null,null,null,null,null,null,null,null,null,null,null,null,null,null,null,null,null,null,null,null,null,null,null,null,null,null,null,null,null,null,null,null,null,null,null,null,null,null,null,null,null,null,"Tripping"]
[null,null,null,null,null,null,null,null,null,null,null,null,null,null,null,null,null,null,null,null,null,null,null,null,null,null,null,null,null,null,null,null,null,null,null,null,null,null,null,null,null,null,"Unsportsmanlike conduct"]
[]
[]
[]
[]
[]
[]
[]
[1,2,1,3,4,2,2,null,null,null,null,null,null,null,null,null,null,null,null,null,null,null,null,null,null,null,null,null,null,null,null,null,null,null,null,null,null,null,null,null,null,null,null,null,null,null,null,null,null,null,null,null,null,null,null,null,null,null,null,null,null,null,null,null,null,null,null,null,null,null,null,null,null,null,null,null,null,null,null,null,null,null,null,null,null,null,null,null,null,null,null,null,null,null,null,null,null,null,null,null,null,null,null,null,null,null,null,null,null,null,null,null,null,null,null,null,null,null,null,null,null,null,null,null,null,null,null,null,null,null,null,null,null,null,null,null,null,null,null,null,null,null,null,null,null,null,null,null,null,null,null,null,null,null,null,null,null,null,null,null,null,null,null,null,null,null,null,null,null,null,null,null,null,null,null,null,null,null,null,null,null,null,null,null,null,null,null,null,null,null,null,null,null,null,null,null,null,null,null,null,null,null,null,null,null,null,"Marc-Andre Fleury"]
[null,null,null,null,null,null,null,null,null,null,null,null,null,null,null,null,null,null,null,null,null,null,null,null,null,null,null,null,null,null,null,null,null,null,null,null,null,null,null,null,null,null,null,null,null,null,null,null,null,null,null,null,null,null,null,null,null,null,null,null,null,null,null,null,null,null,null,null,null,null,null,null,null,null,null,null,null,null,null,null,null,null,null,null,null,null,null,null,null,null,null,null,null,null,null,null,null,null,null,null,null,null,null,null,null,null,null,null,null,null,null,null,null,null,null,null,null,null,null,null,null,null,null,null,null,null,null,null,null,null,null,null,null,null,null,null,null,null,null,null,null,null,null,null,null,null,null,null,null,null,null,null,null,null,null,null,null,null,null,null,null,null,null,null,null,null,null,null,null,null,null,null,null,null,null,null,null,null,null,null,null,null,null,null,null,null,null,null,null,null,null,null,null,null,null,null,null,null,null,null,null,null,null,null,null,null,"Matthew Murray"]
[null,null,null,null,null,null,null,null,null,null,null,null,null,null,null,null,null,null,null,null,null,null,null,null,null,null,null,null,null,null,null,null,null,null,null,null,null,null,null,null,null,null,null,null,null,null,null,null,null,null,null,null,null,null,null,null,null,null,null,null,null,null,null,null,null,null,null,null,null,null,null,null,null,null,null,null,null,null,null,null,null,null,null,null,null,null,null,null,null,null,null,null,null,null,null,null,null,null,null,null,null,null,null,null,null,null,null,null,null,null,null,null,null,null,null,null,null,null,null,null,null,null,null,null,null,null,null,null,null,null,null,null,null,null,null,null,null,null,null,null,null,null,null,null,null,null,null,null,null,null,null,null,null,null,null,null,null,null,null,null,null,null,null,null,null,null,null,null,null,null,null,null,null,null,null,null,null,null,null,null,null,null,null,null,null,null,null,null,null,null,null,null,null,null,null,null,null,null,null,null,null,null,null,null,null,null,"Mike Condon"]
[]
[]
[]
[]
[]
[]
[]
["Yes",null,null,null,null,null,null,null,null,null,null,null,null,null,null,null,null,null,null,null,null,null,null,null,null,null,null,null,null,null,null,null,null,null,"Yes","Yes"]
[]
[]
[]
[]
[]
[]
[]
[]
[]
[5,4,1,0,0,0,0]
[]
[]
[]
[]
[]
[]
[]
[]
[]
[]
[]
[]
[]
[]
[]
[]
[]
[]
[]
[]
[]
[]
[]
[]
[]
[]
[]
[]
[]
[null,null,"11:11:00"]

{"sheet":"All Goals 2020_21","index":6,"n_rows":63,"n_cols":9,"rows_kept":63,"cut":false,"hidden":true,"merged":[[0,1,0,8]]}
[null,"Scoring Statistics"]
[null,"Date","Per","Time","Team","SpecG","Goal Scorer","Primary Assist","Secondary Assist"]
[null,"2021-01-13",1,"05:12:00","PIT","","Mark Jankowski","Brandon Tanev","Jared McCann"]
[null,"2021-01-13",1,"15:11:00","PHI","PP","James van Riemsdyk","Erik Gustafsson","Joel Farabee"]
[null,"2021-01-13",1,"19:52:00","PHI","PP","Nolan Patrick","Erik Gustafsson","Joel Farabee"]
[null,"2021-01-13",2,"03:39:00","PIT","PP","Sidney Crosby"]
[null,"2021-01-13",2,"18:54:00","PHI","","Joel Farabee","Kevin Hayes"]
[null,"2021-01-13",3,"03:01:00","PIT","","Brandon Tanev","Mark Jankowski"]
[null,"2021-01-13",3,"05:37:00","PHI","","Michael Raffl","Scott Laughton","Nicolas Aube-Kubel"]
[null,"2021-01-13",3,"12:14:00","PHI","","Oskar Lindblom","Travis Konecny","Sean Couturier"]
[null,"2021-01-13",3,"12:34:00","PHI","","Kevin Hayes","Joel Farabee","Claude Giroux"]
[null,"2021-01-15",1,"07:27:00","PHI","PP","Travis Konecny","Jakub Voracek","Claude Giroux"]
[null,"2021-01-15",1,"09:26:00","PHI","","Travis Konecny","Nolan Patrick","James van Riemsdyk"]
[null,"2021-01-15",1,"11:30:00","PHI","","Ivan Provorov","Jakub Voracek","James van Riemsdyk"]
[null,"2021-01-15",1,"12:59:00","PIT","PP","Sidney Crosby","Jake Guentzel","Bryan Rust"]
[null,"2021-01-15",1,"13:31:00","PIT","","Brandon Tanev","Jared McCann","Mark Jankowski"]
[null,"2021-01-15",3,"12:53:00","PHI","","Travis Konecny","Kevin Hayes","Claude Giroux"]
[null,"2021-01-15",3,"17:52:00","PHI","EN","Oskar Lindblom","Scott Laughton","Travis Konecny"]
[null,"2021-01-17",1,"00:19:00","PIT","","Evan Rodrigues","Brian Dumoulin","Jake Guentzel"]
[null,"2021-01-17",1,"12:04:00","WSH","","Nic Dowd"]
[null,"2021-01-17",1,"14:24:00","WSH","","Alex Ovechkin","Evgeny Kuznetsov","Tom Wilson"]
[null,"2021-01-17",2,"02:10:00","PIT","","Colton Sceviour","Teddy Blueger"]
[null,"2021-01-17",2,"10:09:00","WSH","PP","Nicklas Backstrom","Evgeny Kuznetsov","Alex Ovechkin"]
[null,"2021-01-17",2,"12:57:00","PIT","","Marcus Pettersson","Jason Zucker","Bryan Rust"]
[null,"2021-01-19",1,"04:55:00","WSH","","Lars Eller","T.J. Oshie","Richard Panik"]
[null,"2021-01-19",1,"16:52:00","PIT","","Colton Sceviour","Teddy Blueger","Kasperi Kapanen"]
[null,"2021-01-19",1,"16:58:00","WSH","","Tom Wilson","Alex Ovechkin"]
[null,"2021-01-19",1,"19:43:00","WSH","","Tom Wilson","John Carlson"]
[null,"2021-01-19",2,"05:45:00","PIT","PP","Jake Guentzel","Bryan Rust","Sidney Crosby"]
[null,"2021-01-19",2,"08:16:00","WSH","","Evgeny Kuznetsov","Daniel Sprong","Jakub Vrana"]
[null,"2021-01-19",2,"15:07:00","PIT","SH","Teddy Blueger","Casey DeSmith"]
[null,"2021-01-19",2,"17:15:00","PIT","PP","Evgeni Malkin","Kris Letang","Sidney Crosby"]
[null,"2021-01-19",4,"01:11:00","PIT","","Sidney Crosby","Kris Letang","Jake Guentzel"]
[null,"2021-01-22",1,"10:29:00","PIT","","Bryan Rust","Cody Ceci","Evgeni Malkin"]
[null,"2021-01-22",2,"02:41:00","NYR","","Filip Chytil","Phillip Di Giuseppe"]
[null,"2021-01-22",2,"05:18:00","NYR","PP","Adam Fox","Artemi Panarin"]
[null,"2021-01-22",2,"05:42:00","NYR","","Kaapo Kakko","Phillip Di Giuseppe","K'Andre Miller"]
[null,"2021-01-22",2,"16:56:00","PIT","PP","Jared McCann"]
[null,"2021-01-22",3,"11:23:00","PIT","","Teddy Blueger","Pierre-Olivier Joseph","Kasperi Kapanen"]
[null,"2021-01-24",1,"16:36:00","NYR","","Colin Blackwell","Adam Fox","Brett Howden"]
[null,"2021-01-24",2,"11:24:00","PIT","","Bryan Rust","Sidney Crosby"]
[null,"2021-01-24",2,"17:17:00","NYR","","Ryan Strome","Jacob Trouba","Artemi Panarin"]
[null,"2021-01-24",3,"02:26:00","PIT","","Jared McCann"]
[null,"2021-01-24",3,"18:29:00","PIT","","Jake Guentzel","Kris Letang","Sidney Crosby"]
[null,"2021-01-26",1,"07:41:00","BOS","SH","Brad Marchand","Charlie McAvoy"]
[null,"2021-01-26",2,"07:58:00","BOS","PP","Nick Ritchie","Brad Marchand","Charlie McAvoy"]
[null,"2021-01-26",3,"09:47:00","PIT","","Jason Zucker","Jared McCann","Drew O'Connor"]
[null,"2021-01-26",3,"16:44:00","PIT","","Kasperi Kapanen","Evgeni Malkin","Jason Zucker"]
[null,"2021-01-26",4,"04:49:00","BOS","","Craig Smith","David Krejci","Charlie McAvoy"]
[null,"2021-01-28",1,"06:10:00","BOS","","Chris Wagner"]
[null,"2021-01-28",1,"15:03:00","PIT","","Cody Ceci","Bryan Rust","Teddy Blueger"]
[null,"2021-01-28",1,"18:53:00","BOS","","Sean Kuraly","Anders Bjork"]
[null,"2021-01-28",2,"08:13:00","BOS","","Patrice Bergeron","Matt Grzelcyk","Charlie Coyle"]
[null,"2021-01-28",3,"01:40:00","BOS","PP","Patrice Bergeron","Brad Marchand","Charlie McAvoy"]
[null,"2021-01-30",1,"07:39:00","PIT","","Jason Zucker","Pierre-Olivier Joseph","Kasperi Kapanen"]
[null,"2021-01-30",1,"13:52:00","NYR","","Brendan Lemieux","Phillip Di Giuseppe","Ryan Lindgren"]
[null,"2021-01-30",1,"19:20:00","PIT","","Brandon Tanev","Pierre-Olivier Joseph","Teddy Blueger"]
[null,"2021-01-30",2,"07:20:00","NYR","SH","Kevin Rooney","K'Andre Miller","Ryan Strome"]
[null,"2021-01-30",2,"09:42:00","PIT","","Kasperi Kapanen","Evgeni Malkin"]
[null,"2021-01-30",2,"10:25:00","NYR","","Chris Kreider","Jacob Trouba","K'Andre Miller"]
[null,"2021-01-30",2,"16:01:00","NYR","PP","Artemi Panarin","Pavel Buchnevich","Anthony DeAngelo"]
[null,"2021-01-30",3,"09:18:00","PIT","","Jake Guentzel","Cody Ceci","John Marino"]
[null,"2021-01-30",4,"02:27:00","PIT","","Sidney Crosby","Pierre-Olivier Joseph","Bryan Rust"]

{"sheet":"Teams","index":7,"n_rows":32,"n_cols":17,"rows_kept":32,"cut":false,"hidden":true,"merged":[]}
["Team","TAbrv","Conference","Division","Logo"]
["Anaheim Ducks","ANA","Western","Pacific"]
["Arizona Coyotes","ARI","Western","Pacific"]
["Boston Bruins","BOS","Eastern","Atlantic",null,null,"ANA",null,"CHI",null,"FLA",null,"NYI",null,"STL"]
["Buffalo Sabres","BUF","Eastern","Atlantic"]
["Calgary Flames","CGY","Western","Pacific"]
["Carolina Hurricanes","CAR","Eastern","Metropolitan"]
["Chicago Blackhawks","CHI","Western","Central",null,null,"ARI",null,"COL",null,"LAK",null,"NYR",null,"TBL"]
["Colorado Avalanche","COL","Western","Central"]
["Columbus Blue Jackets","CBJ","Eastern","Metropolitan"]
["Dallas Stars","DAL","Western","Central"]
["Detroit Red Wings","DET","Eastern","Atlantic",null,null,"BOS",null,"CBJ",null,"MIN",null,"OTT",null,"TOR"]
["Edmonton Oilers","EDM","Western","Pacific"]
["Florida Panthers","FLA","Eastern","Metropolitan"]
["Los Angeles Kings","LAK","Western","Pacific"]
["Minnesota Wild","MIN","Western","Central",null,null,"BUF",null,"DAL",null,"MTL",null,"PHI",null,"VAN"]
["Montreal Canadiens","MTL","Eastern","Atlantic"]
["Nashville Predators","NSH","Western","Central"]
["New Jersey Devils","NJD","Eastern","Metropolitan"]
["New York Islanders","NYI","Eastern","Metropolitan",null,null,"CGY",null,"DET",null,"NSH",null,"PIT",null,"VEG"]
["New York Rangers","NYR","Eastern","Metropolitan"]
["Ottawa Senators","OTT","Eastern","Atlantic"]
["Philadelphia Flyers","PHI","Eastern","Metropolitan"]
["Pittsburgh Penguins","PIT","Eastern","Metropolitan",null,null,"CAR",null,"EDM",null,"NJD",null,"SJS",null,"WSH",null,"WPG"]
["San Jose Sharks","SJS","Western","Pacific"]
["St. Louis Blues","STL","Western","Central"]
["Tampa Bay Lightning","TBL","Eastern","Atlantic"]
["Toronto Maple Leafs","TOR","Eastern","Atlantic"]
["Vancouver Canucks","VAN","Western","Pacific"]
["Vegas Golden Knights","VEG","Western","Pacific"]
["Washington Capitals","WSH","Eastern","Metropolitan"]
["Winnipeg Jets","WPG","Western","Pacific"]

{"sheet":"All Penalties 2020_21","index":8,"n_rows":64,"n_cols":8,"rows_kept":64,"cut":false,"hidden":true,"merged":[[0,1,0,7]]}
[null,"Penalty Statistics"]
[null,"Date","Period","Time","Team","Player","Penalty","Minutes"]
[null,"2021-01-13",1,"05:44:00","PHI","Scott Laughton","Holding",2]
[null,"2021-01-13",1,"13:47:00","PIT","Cody Ceci","Slashing",2]
[null,"2021-01-13",1,"19:44:00","PIT","Mike Matheson","Cross Checking",2]
[null,"2021-01-13",2,"01:52:00","PHI","Jakub Voracek","Interference",2]
[null,"2021-01-13",2,"07:23:00","PHI","Nolan Patrick","Slashing",2]
[null,"2021-01-13",3,"00:39:00","PIT","Bench","Too Many Men on the Ice",2]
[null,"2021-01-15",1,"05:09:00","PIT","Bench","Too Many Men on the Ice",2]
[null,"2021-01-15",1,"07:00:00","PIT","Chad Ruhwedel","Tripping",2]
[null,"2021-01-15",1,"11:59:00","PHI","Ivan Provorov","Roughing",2]
[null,"2021-01-15",1,"14:59:00","PHI","Philippe Myers","Slashing",2]
[null,"2021-01-15",1,"19:02:00","PHI","Nicolas Aube-Kubel","Cross Checking",2]
[null,"2021-01-15",2,"00:18:00","PIT","Kris Letang","Hooking",2]
[null,"2021-01-15",2,"08:07:00","PIT","Mike Matheson","Tripping",2]
[null,"2021-01-15",2,"13:25:00","PHI","Scott Laughton","Slashing",2]
[null,"2021-01-15",2,"14:40:00","PIT","Jared McCann","Elbowing",2]
[null,"2021-01-15",3,"08:21:00","PHI","Nicolas Aube-Kubel","Interference",2]
[null,"2021-01-15",3,"10:47:00","PIT","Jason Zucker","Slashing",2]
[null,"2021-01-17",1,"04:57:00","WSH","Nick Jensen","Tripping",2]
[null,"2021-01-17",1,"15:08:00","PIT","Brian Dumoulin","Holding",2]
[null,"2021-01-17",2,"05:20:00","WSH","Brenden Dillon","Cross Checking",2]
[null,"2021-01-17",2,"08:19:00","PIT","Jake Guentzel","Interference",2]
[null,"2021-01-17",2,"08:34:00","WSH","T.J. Oshie","Interference",2]
[null,"2021-01-17",2,"09:04:00","PIT","Sidney Crosby","Hooking",2]
[null,"2021-01-17",2,"19:39:00","WSH","Evgeny Kuznetsov","Tripping",2]
[null,"2021-01-17",3,"04:21:00","WSH","Tom Wilson","Slashing",2]
[null,"2021-01-17",3,"09:57:00","PIT","Bench","Too Many Men on the Ice",2]
[null,"2021-01-19",2,"04:08:00","WSH","Dmitry Orlov","Tripping",2]
[null,"2021-01-19",2,"04:47:00","WSH","Lars Eller","Slashing",2]
[null,"2021-01-19",2,"13:28:00","PIT","Jake Guentzel","Hooking",2]
[null,"2021-01-19",2,"14:34:00","PIT","Chad Ruhwedel","Slashing",2]
[null,"2021-01-19",2,"16:39:00","WSH","T.J. Oshie","Interference",2]
[null,"2021-01-22",1,"10:58:00","PIT","Kris Letang","Tripping",2]
[null,"2021-01-22",2,"00:32:00","PIT","Jake Guentzel","Delay of Game",2]
[null,"2021-01-22",2,"04:16:00","PIT","Sidney Crosby","Slashing",2]
[null,"2021-01-22",2,"09:23:00","NYR","Brendan Lemieux","Tripping",2]
[null,"2021-01-22",2,"16:19:00","NYR","Kevin Rooney","Tripping",2]
[null,"2021-01-22",3,"07:01:00","PIT","Jason Zucker","Hooking",2]
[null,"2021-01-24",1,"04:10:00","PIT","Chad Ruhwedel","Interference",2]
[null,"2021-01-24",3,"06:56:00","PIT","Cody Ceci","Hooking",2]
[null,"2021-01-26",1,"07:18:00","BOS","Connor Clifton","Cross Checking",2]
[null,"2021-01-26",1,"18:03:00","BOS","Chris Wagner","Interference",2]
[null,"2021-01-26",2,"02:55:00","BOS","Patrice Bergeron","Hooking",2]
[null,"2021-01-26",2,"06:15:00","PIT","Chad Ruhwedel","Hooking",2]
[null,"2021-01-26",2,"06:52:00","PIT","Brandon Tanev","Tripping",2]
[null,"2021-01-26",2,"12:00:00","BOS","Craig Smith","Slashing",2]
[null,"2021-01-26",2,"17:45:00","BOS","Jakub Zboril","Tripping",2]
[null,"2021-01-26",2,"18:52:00","PIT","Kris Letang","Tripping",2]
[null,"2021-01-26",3,"07:39:00","BOS","Nick Ritchie","Tripping",2]
[null,"2021-01-28",1,"00:52:00","PIT","Tristan Jarry","Tripping",2]
[null,"2021-01-28",1,"07:02:00","BOS","Charlie Coyle","Holding",2]
[null,"2021-01-28",2,"13:40:00","BOS","Jeremy Lauzon","Interference",2]
[null,"2021-01-28",2,"18:35:00","BOS","Matt Grzelcyk","Holding",2]
[null,"2021-01-28",3,"00:55:00","PIT","John Marino","Interference",2]
[null,"2021-01-30",1,"00:12:00","NYR","Adam Fox","Holding",2]
[null,"2021-01-30",1,"04:35:00","PIT","Pierre-Olivier Joseph","Interference",2]
[null,"2021-01-30",1,"07:43:00","PIT","Sidney Crosby","Hooking",2]
[null,"2021-01-30",2,"02:19:00","PIT","John Marino","Delay of Game",2]
[null,"2021-01-30",2,"06:15:00","NYR","Brendan Smith","Tripping",2]
[null,"2021-01-30",2,"15:02:00","PIT","John Marino","Illegal Equipment",2]
[null,"2021-01-30",2,"16:40:00","NYR","Jacob Trouba","Roughing",2]
[null,"2021-01-30",2,"19:52:00","PIT","Cody Ceci","Tripping",2]
[null,"2021-01-30",2,"20:00:00","NYR","Chris Kreider","Cross Checking",2]

{"sheet":"All Shootouts 2020_21","index":9,"n_rows":99,"n_cols":7,"rows_kept":99,"cut":false,"hidden":true,"merged":[[0,1,0,6]]}
[null,"Shootout Statistics"]
[null,"Date","Attempt","Team","Shooter","Goalie","Goal (1)/Save(0)"]
[null,"2021-01-17",1,"PIT","Kris Letang","Ilya Samsonov",0]
[null,"2021-01-17",2,"WSH","T.J. Oshie","Casey DeSmith",0]
[null,"2021-01-17",3,"PIT","Sidney Crosby","Ilya Samsonov",0]
[null,"2021-01-17",4,"WSH","Nicklas Backstrom","Casey DeSmith",0]
[null,"2021-01-17",5,"PIT","Evgeni Malkin","Ilya Samsonov",0]
[null,"2021-01-17",6,"WSH","Evgeny Kuznetsov","Casey DeSmith",0]
[null,"2021-01-17",7,"PIT","Jake Guentzel","Ilya Samsonov",1]
[null,"2021-01-17",8,"WSH","Alex Ovechkin","Casey DeSmith",0]
[null,"2021-01-22",1,"PIT","Jake Guentzel","Igor Shesterkin",1]
[null,"2021-01-22",2,"NYR","Mika Zibanejad","Tristan Jarry",0]
[null,"2021-01-22",3,"PIT","Sidney Crosby","Igor Shesterkin",0]
[null,"2021-01-22",4,"NYR","Artemi Panarin","Tristan Jarry",1]
[null,"2021-01-22",5,"PIT","Kris Letang","Igor Shesterkin",1]
[null,"2021-01-22",6,"NYR","Anthony DeAngelo","Tristan Jarry",0]
[]
[]
[]
[]
[]
[]
[]
[]
[]
[]
[]
[]
[]
[]
[]
[]
[]
[]
[]
[]
[]
[]
[]
[]
[]
[]
[]
[]
[]
[]
[]
[]
[]
[]
[]
[]
[]
[]
[]
[]
[]
[]
[]
[]
[]
[]
[]
[]
[]
[]
[]
[]
[]
[]
[]
[]
[]
[]
[]
[]
[]
[]
[]
[]
[]
[]
[]
[]
[]
[]
[]
[]
[]
[]
[]
[]
[]
[]
[]
[]
[]
[]
["2016-10-13"]

{"sheet":"All Goalies 2020_21","index":10,"n_rows":22,"n_cols":28,"rows_kept":22,"cut":false,"hidden":true,"merged":[[0,1,0,9]]}
[null,"Goalie Statistics"]
[null,"Date","Team","Goalie","Dec (W/L)","GA","SOG","SV","SO","TOI",null,null,null,null,null,null,"Goalie","TeamAbr","Num","Cty","Pos","Age","Height","Weight","Shoots","Yrs","Bdate","Salary"]
[null,"2021-01-13","PIT","Tristan Jarry","Loss",6,27,21,0,"59:51",null,null,null,null,null,null,"Alexandar Georgiev","NYR",40,"bg","G",22,"6'1\"",179,"-/L",1,"1996-02-10",70000]
[null,"2021-01-13","PHI","Carter Hart","Win",3,34,31,0,"59:45",null,null,null,null,null,null,"Anthony Stolarz","PHI",41,"us","G",25,"6'6\"",210,"-/L",1,"1994-01-20","N/A"]
[null,"2021-01-15","PIT","Tristan Jarry","Loss",3,6,3,0,"11:30",null,null,null,null,null,null,"Brian Elliott","PHI",37,"ca","G",33,"6'2\"",209,"-/L",11,"1985-04-09",3000000]
[null,"2021-01-15","PIT","Casey DeSmith","ND",1,13,12,0,"47:45",null,null,null,null,null,null,"Calvin Pickard","PHI",33,"ca","G",26,"6'1\"",207,"-/L",4,"1992-04-15","N/A"]
[null,"2021-01-15","WSH","Empty Net","ND",1,1,0,0,null,null,null,null,null,null,null,"Carter Hutton","BUF",40,"ca","G",33,"6'0\"",198,"-/L",6,"1985-12-19",2750000]
[null,"2021-01-15","PHI","Carter Hart","Win",2,33,31,0,"59:50",null,null,null,null,null,null,"Casey DeSmith","PIT",1,"us","G",27,"6'0\"",181,"-/L",1,"1991-08-13",650000]
[null,"2021-01-17","WSH","Ilya Samsonov","SOL",3,27,24,0,"65:00",null,null,null,null,null,null,"Craig Anderson","WSH",1,"us","G",39,"6'2\"",186,"-/L",17,"1981-05-21","N/A"]
[null,"2021-01-17","PIT","Casey DeSmith","Win",3,23,20,0,"65:00",null,null,null,null,null,null,"Henrik Lundqvist","NYR",30,"se","G",36,"6'1\"",180,"-/L",13,"1982-03-02",7500000]
[null,"2021-01-19","WSH","Vitek Vanecek","OTL",5,30,25,0,"61:11",null,null,null,null,null,null,"Ilya Samsonov","WSH",30,"ru","G",23,"6'3\"",208,"-/L",1,"1997-02-22",925000]
[null,"2021-01-19","PIT","Casey DeSmith","Win",4,26,22,0,"61:11",null,null,null,null,null,null,"Jaroslav Halak","BOS",41,"cs","G",33,"5'11\"",185,"-/L",12,"1985-05-13",3250000]
[null,"2021-01-22","NYR","Igor Shesterkin","SOL",3,28,25,0,"64:53",null,null,null,null,null,null,"Keith Kinkaid","NJD",1,"us","G",29,"6'3\"",195,"-/L",5,"1989-07-04",1300000]
[null,"2021-01-22","PIT","Tristan Jarry","Win",3,34,31,0,"65:00",null,null,null,null,null,null,"Linus Ullmark","BUF",35,"se","G",25,"6'4\"",213,"-/L",3,"1993-07-31",800000]
[null,"2021-01-24","NYR","Igor Shesterkin","Loss",3,19,16,0,"58:39",null,null,null,null,null,null,"Robin Lehner","NYI",40,"se","G",27,"6'4\"",240,"-/L",8,"1991-07-24",1500000]
[null,"2021-01-24","PIT","Tristan Jarry","Win",2,26,24,0,"60:00",null,null,null,null,null,null,"Thomas Greiss","NYI",1,"de","G",33,"6'2\"",232,"-/L",9,"1986-01-29",3250000]
[null,"2021-01-26","PIT","Tristan Jarry","OTL",3,36,33,0,"64:46",null,null,null,null,null,null,"Tristan Jarry","PIT",35,"ca","G",23,"6'2\"",194,"-/L",2,"1995-04-29",650000]
[null,"2021-01-26","BOS","Tuukka Rask","Win",2,30,28,0,"64:47",null,null,null,null,null,null,"Tuukka Rask","BOS",40,"fi","G",31,"6'3\"",176,"-/L",11,"1987-03-10",7000000]
[null,"2021-01-28","PIT","Tristan Jarry","Loss",4,20,16,0,"60:00",null,null,null,null,null,null,"Vitek Vanecek","WSH",41,"cz","G",25,"6'1\"",190,"-/L","R","1996-01-09",700000]
[null,"2021-01-28","BOS","Jaroslav Halak","Win",1,17,16,0,"60:00"]
[null,"2021-01-30","PIT","Casey DeSmith","Win",4,34,30,0,"62:26"]
[null,"2021-01-30","NYR","Alexandar Georgiev","OTL",5,38,33,0,"62:16"]